Workbook

Sheet 表紙
A7: 福井県市町勢要覧
A11: 令和３年度版
A45: 福井県地域戦略部統計情報課

Sheet ご利用の方へ
A1: =表紙!A11 -> 令和３年度版 | B1: ご利用の方へ
A2: 1 | B2: 「市町勢要覧」は、人口をはじめ、様々な分野にわたる基礎的なデータを市町別に編集し、個々の市勢町勢および | D2: 4 統計表中の符号の用法は次のとおりです。
B3: 地域ごとの県勢をわかりやすくとらえられる資料として整理したものです。 | D3: 「－」…該当数値なし
A4: 2 | B4: 数値の単位未満は四捨五入を原則としていますので、総数と内訳の合計が一致しない場合があります。 | D4: 「０」…単位未満
A5: 3 | B5: 各項目は「福井県統計年鑑」に準拠して並べています。 | D5: 「ｘ」…１つの事業所の値しかないなど、事業所に関する数が判明する箇所を秘匿としたもの
D6: 「…」…事業所に関する集計において、事業所単位の売上（収入）金額の把握ができない産業
D7: 5 資料出所および留意事項は次のとおりです。
A9: 分 類 | B9: 項 目 | C9: 資 料 の 出 所 | D9: 調査時点 | E9: 留意事項
A10: １．土 地 | B10: 総面積 | C10: 令和3年全国都道府県市区町村別面積調 | D10: =+データ一覧!A7 -> 3.10.1
C11: （国土交通省国土地理院）
B12: 町・字・大字区画数 | C12: 市町資料 | D12: =+データ一覧!A8 -> 2.4.1 | G12: 照会
B13: 固定資産概要調書による地目別面積 | C13: 固定資産概要調書 | D13: =+データ一覧!A9 -> 3.1.1 | E13: 道路河川を除く非課税地を含めた面積 | G13: 年鑑
C14: （県税務課） | E14: 住居表示指定区域内は住居表示の町名
A15: ２．世帯数と人口 | B15: 世帯数、人口、一世帯当たり人員、人口密度 | C15: 国勢調査 | D15: 昭和60年､平成2､7､12､17､22、27、令和2年 | E15: 市町村合併のあった市町については、平成17年以降の人口密度のみを計上した。
C16: 福井県の推計人口（県統計情報課） | D16: =データ一覧!$A$80 -> 3.10.1
B17: 年齢階級別人口 | C17: 〃 | D17: =+データ一覧!A83 -> 3.10.1
B18: 人口動態 | C18: 〃 | D18: =+データ一覧!A74 -> 2.10.1～3.9.30 | G18: 人口G
C19: 婚姻、離婚 （県地域福祉課） | D19: =+データ一覧!A78 -> 2.1.1～3.12.31 | G19: 年鑑
A20: ３．事 業 所 | B20: 事業所数、従業者数 | C20: 経済センサス‐活動調査 | D20: =+データ一覧!A99 -> 28.6.1 | E20: 調査は、国・地方公共団体、外国公務の事業所、農林漁業、家事ｻｰﾋﾞｽに属する個人経営の事業所を除く。
A21: ４．農 業 | B21: 農業経営体数（総数）と就業状況 | C21: 2020農林業センサス | D21: =+データ一覧!A213 -> 2.2.1 | E21: 2020年農林業センサス調査対象 | G21: 経済G
B22: 米収穫量 | C22: 北陸農政局 | D22: =データ一覧!A240 -> 2年 | E22: 面積・頭数が一定規模以上（外形基準）の農林業生産活動を行う方（組織の場合は代表者）を対象とする。
B23: 耕地面積 | C23: 〃 | D23: =+データ一覧!A243 -> 2.7.15 | G23: 年鑑
B24: 農業生産物 | C24: 〃 | D24: =データ一覧!A246 -> 2年中
B25: 畜産 | C25: 県中山間農業・畜産課 | D25: =+データ一覧!A255 -> 3.3.31 | G25: 年鑑
A26: ５．林 業 | B26: 林野面積 | C26: 県森づくり課 | D26: =+データ一覧!A265 -> 3.3.31 | G26: 年鑑
B27: 林産物生産量 | C27: 県産材活用課 | D27: =+データ一覧!A276 -> 2年中 | G27: 年鑑
A28: ６．漁 業 | B28: 漁船隻数・トン数 | C28: 県水産課 | D28: =データ一覧!A282 -> 2.12.31 | E28: エンジンの取り付け場所がわからないジーゼル船は動力船、電気点火式は船外機付漁船に計上した。
B29: 男女別就業者数 | C29: 2018年漁業センサス | D29: =+データ一覧!A286 -> 30.11.1 | G29: 照会
B30: 海面漁業漁獲量（属人） | C30: 北陸農政局福井地域センター | D30: =+データ一覧!A289 -> 30年中 | E30: 内水面漁業、海面養殖業を除く。 | G30: 照会
A31: ７．商 業 | B31: 事業所数、従業者数、年間商品販売額 | C31: 経済センサス‐活動調査 | D31: =データ一覧!$A$294 -> 28.6.1(平成27年実績） | E31: 調査は、民営の事業所を対象とした。
A32: ８．住 宅 | C32: 市町村固定資産課税台帳（市町資料） | D32: =データ一覧!$A$324 -> 2年 | E32: 共同住宅、併用住宅については、独立して生活できる部分を一戸として計上した。
A33: ９．議 員・職 員 | B33: 市町議会 | C33: 市町資料 | D33: =+データ一覧!A325 -> 3.8.1 | G33: 照会
B34: 有権者数 | C34: 選挙人名簿登録者（県選挙管理委員会） | D34: =+データ一覧!A328 -> 3.9.1
B35: 職員数 | C35: 県市町協働課 | D35: =+データ一覧!A330 -> 3.4.1 | G35: 照会
A36: 10．工 業 | B36: 事業所数、従業者数、製造品出荷額等 | C36: 工業統計調査 | D36: =+データ一覧!A332 -> 2.6.1（令和元年実績） | E36: 従業者４人以上の事業所 | G36: 年鑑
A37: 11．上・下 水 道 | B37: 水道供給人口 | C37: 県医薬食品・衛生課 | D37: =+データ一覧!A408 -> 3.3.31
B38: 下水道処理人口 | C38: 県河川課 | D38: =+データ一覧!A412 -> 3.3.31 | E38: 引用
A39: 12．交 通・通 信 | B39: 道路 | C39: 県道路保全課 | D39: =+データ一覧!A413 -> 2.4.1 | G39: 年鑑
B40: 鉄道営業キロ数 | C40: 西日本旅客鉄道㈱金沢支社、福井鉄道㈱、えちぜん鉄道㈱ | D40: =+データ一覧!A417 -> 3.4.1 | G40: 照会
B41: 自動車台数 | C41: 中部運輸局福井運輸支局 | D41: =データ一覧!$A$418 -> 3.3.31 | E41: 町不明の車両は県計に一括計上した。 | G41: 年鑑
B42: 通信（郵便局数） | C42: 日本郵便株式会社北陸支社 | D42: =+データ一覧!A425 -> 3.3.31 | G42: 照会
B43: 〃（一般電話加入数） | C43: 株式会社NTT西日本－北陸 | D43: =データ一覧!A428 -> 2.12.31 | G43: 年鑑
B44: 〃（ＩＮＳネット64加入数） | C44: 〃 | D44: =D43 -> 2.12.31 | G44: 照会
A45: 13．税 ･ 財 政 | B45: 普通会計元年度歳入決算額 | C45: 県市町協働課 | D45: =+データ一覧!A430 -> 3年度 | E45: 現年課税分の調定額 | G45: 年鑑
B46: 歳入歳出当初予算額 | C46: 県市町協働課 | D46: =+データ一覧!A438 -> 3年度 | G46: 年鑑
B47: 歳入歳出決算額 | C47: 〃 | D47: =+データ一覧!A452 -> 2年度 | G47: 照会
A48: 14．文 化 | B48: 公共施設数 | C48: 図書館・公民館(県生涯学習・文化財課) | D48: =+データ一覧!A494 -> 3.4.1 | E48: 県の図書館数・図書数は県立図書館、若狭図書学習センターの分 | G48: 照会
C49: 公園(県都市計画課) | D49: =+データ一覧!A498 -> 3.3.31 | E49: 都市公園の箇所数
C50: 児童館(県子ども家庭課) | D50: =+データ一覧!A499 -> 3.4.1 | G50: 年鑑
C51: 公会堂・市民会館（県市町協働課） | D51: =データ一覧!A505 -> 3.3.31 | G51: 照会
B52: 社会教育学級講座 | C52: 県生涯学習・文化財課 | D52: =+データ一覧!A500 -> 3.3.31 | E52: 青年、成人、婦人、高齢者、家庭教育、その他の学級・講座の合計 | G52: 年鑑
B53: 宗教法人数 | C53: 県情報公開・法制課 | D53: =+データ一覧!A502 -> 2.12.31 | G53: 市町財政要覧
B54: 衛星放送契約数 | C54: 日本放送協会 | D54: =+データ一覧!A506 -> 3.3.31 | G54: 年鑑
A55: 15．労 働 | B55: 産業別就業者数 | C55: 国勢調査 | D55: =+データ一覧!A507 -> 27.10.1 | G55: 照会
A56: 16．社 会 福 祉 | B56: 施設数、収容定員 | C56: 県地域福祉課 | D56: =+データ一覧!A557 -> 3.4.1 | G56: 年鑑
A57: 17．教 育 | B57: 学校数、教員数、学生・生徒・児童・園児数 | C57: 学校基本調査 | D57: =+データ一覧!A583 -> 3.5.1 | E57: 福井大学松岡キャンパス・永平寺キャンパス・敦賀キャンパスは本校に、
C58: （大学・短大・高専の教員数、学生数は直接照会した。） | E58: 福井県立大学、小浜キャンパスは分校に計上した。
E59: 各市町の小学校・中学校の教員数および児童・生徒数は公立学校分のみを計上した。
E60: 各市町の幼稚園の園数、教員数および園児数は公立・私立分のみ計上した。
E61: ただし、県計は国立、公立、私立学校の合計である。
A62: 18．衛 生 | B62: 医療関係施設数 | C62: 県地域医療課 | D62: =+データ一覧!A661 -> 元.10.1 | E62: 医療関係者については、就業届出による。
B63: 医療関係者数 | C63: 〃 | D63: =+データ一覧!A666 -> 30.12.31 | E63: 看護師には准看護師を含む。
B64: 死因別死亡数 | C64: 県地域福祉課 | D64: =+データ一覧!A672 -> 2年中 | E64: 交通事故の数は不慮の事故の内数。 | G64: 年鑑
A65: 19．警 察・消 防 | B65: 警察署数・交番・駐在所・検問所数 | C65: 県警察本部警務課 | D65: =+データ一覧!A682 -> 3.4.1 | G65: 年鑑
B66: 刑法犯認知件数・刑法犯検挙件数 | C66: 県警本部捜査第一課 | D66: =+データ一覧!A684 -> 2年中 | E66: 発生地不明の認知件数・検挙件数は県計に一括計上した。 | G66: 照会
B67: 交通事故発生件数 | C67: 県警察本部交通企画課 | D67: 〃 | E67: 交通事故発生件数は人身事故の数。 | G67: 照会
B68: 火災発生件数、焼損棟数、林野焼損面積 | C68: 県危機対策・防災課 | D68: =+データ一覧!A686 -> 2年中
B69: 損害見積額 | C69: 〃 | D69: 〃
B70: 消防自動車数、ポンプ数、消防吏員、消防団員数 | C70: 〃 | D70: =データ一覧!$A$690 -> 3.4.1 | E70: 消防本部等、複数の市町に跨っているものは市町ごとに按分している。 | G70: 年鑑、照会
A71: 20．そ の 他 | B71: 名所・旧跡、文化財等 | C71: 県生涯学習・文化財課 | G71: 年鑑
B72: 名所・旧跡、文化財等 | C72: 市町資料
B73: 特産物、年中行事 | C73: 市町資料 | G73: 照会
A74: 欄 外 | B74: 市（町）章とそのいわれ | C74: 〃 | G74: 照会
B75: 位置および地勢 | C75: 〃 | G75: 照会
G76: 照会

Sheet 行政区画図（目次）
B1: （＊地図上の市町名または五十音順市町名を押すと該当市町のシートに、分野名を押すとデータ一覧の該当箇所に移動します。）
H2: （五十音順市町名） | L2: （分野別）
I3: 福井県 | L3: 1． | M3: 土 地
H4: あ行 | I4: あわら市 | L4: 2． | M4: 世帯数と人口
I5: 池田町 | J5: 今立郡 | L5: 3． | M5: 事 業 所
I6: 永平寺町 | J6: 吉田郡 | L6: 4． | M6: 農 業
I7: 越前市 | L7: 5． | M7: 林 業
I8: 越前町 | J8: 丹生郡 | L8: 6． | M8: 漁 業
I9: おおい町 | J9: 大飯郡 | L9: 7． | M9: 商 業
I10: 大野市 | L10: 8． | M10: 住 宅
I11: 小浜市 | L11: 9． | M11: 議員・職員
H12: か行 | I12: 勝山市 | L12: 10． | M12: 工 業
H13: さ行 | I13: 坂井市 | L13: 11． | M13: 上・下水道
I14: 鯖江市 | L14: 12． | M14: 交通･通信
H15: た行 | I15: 高浜町 | J15: 大飯郡 | L15: 13． | M15: 税・財 政
I16: 敦賀市 | L16: 14． | M16: 文 化
H17: は行 | I17: 福井市 | L17: 15． | M17: 労 働
H18: ま行 | I18: 南越前町 | J18: 南条郡 | L18: 16． | M18: 社会福祉
I19: 美浜町 | J19: 三方郡 | L19: 17． | M19: 教 育
H20: わ行 | I20: 若狭町 | J20: 三方上中郡 | L20: 18． | M20: 衛 生
L21: 19． | M21: 警察・消防
B29: ※令和4年3月31日現在の市町区分に合わせて、旧市町村のデータを合算している。

Sheet データ一覧
A2: データ一覧 | E2: かな | P2: よしだぐん | Q2: いまだてぐん | R2: なんじょうぐん | S2: にゅうぐん | T2: みかたぐん | U2: おおいぐん | V2: おおいぐん | W2: みかたかみなかぐん
F3: ふくいけん | G3: ふくいし | H3: つるがし | I3: おばまし | J3: おおのし | K3: かつやまし | L3: さばえし | M3: あわらし | N3: えちぜんし | O3: さかいし | P3: えいへいじちょう | Q3: いけだちょう | R3: みなみえちぜんちょう | S3: えちぜんちょう | T3: みはまちょう | U3: たかはまちょう | V3: おおいちょう | W3: わかさちょう
E5: 郡 | P5: 吉田郡 | Q5: 今立郡 | R5: 南条郡 | S5: 丹生郡 | T5: 三方郡 | U5: 大飯郡 | V5: 大飯郡 | W5: 三方上中郡
A6: 基準日 | B6: 分類 | E6: 市町村名 | F6: 福井県 | G6: 福井市 | H6: 敦賀市 | I6: 小浜市 | J6: 大野市 | K6: 勝山市 | L6: 鯖江市 | M6: あわら市 | N6: 越前市 | O6: 坂井市 | P6: 永平寺町 | Q6: 池田町 | R6: 南越前町 | S6: 越前町 | T6: 美浜町 | U6: 高浜町 | V6: おおい町 | W6: 若狭町
A7: 3.10.1 | B7: 1 土地 | C7: 総面積 | F7: 4190.52 | G7: 536.41 | H7: 251.41 | I7: 233.11 | J7: 872.43 | K7: 253.88 | L7: 84.59 | M7: 116.98 | N7: 230.7 | O7: 209.67 | P7: 94.43 | Q7: 194.65 | R7: 343.69 | S7: 153.15 | T7: 152.35 | U7: 72.4 | V7: 212.19 | W7: 178.49
A8: 2.4.1 | C8: 町・丁・大字区画数 | F8: 2769 | G8: 733 | H8: 158 | I8: 143 | J8: 207 | K8: 118 | L8: 153 | M8: 125 | N8: 253 | O8: 368 | P8: 93 | Q8: 47 | R8: 63 | S8: 99 | T8: 31 | U8: 54 | V8: 48 | W8: 76
A9: 3.1.1 | C9: 固定資産概要調書による地目別面積 | E9: 総数 | F9: 262940.6 | G9: 34922.2 | H9: 11213.6 | I9: 13506.2 | J9: 48574.7 | K9: 20774.5 | L9: 8459 | M9: 8974.2 | N9: 13154.8 | O9: 20310.6 | P9: 6146.1 | Q9: 6550.9 | R9: 13042.8 | S9: 10414.3 | T9: 15235 | U9: 7240 | V9: 11808.2 | W9: 12613.5
E10: うち田 | F10: 39226.5 | G10: 7879.8 | H10: 1298.8 | I10: 1482.5 | J10: 4201.6 | K10: 1918.6 | L10: 2014 | M10: 2676.3 | N10: 3708.7 | O10: 6052.2 | P10: 1020.1 | Q10: 558.8 | R10: 1001 | S10: 1375 | T10: 926.1 | U10: 481.1 | V10: 698.4 | W10: 1933.5
E11: うち畑 | F11: 5503.7 | G11: 884.3 | H11: 253 | I11: 234.8 | J11: 230.8 | K11: 149.1 | L11: 123.8 | M11: 892.9 | N11: 333.3 | O11: 902.2 | P11: 85.1 | Q11: 118 | R11: 143.9 | S11: 300.6 | T11: 122.9 | U11: 174.9 | V11: 140.5 | W11: 413.6
E12: うち宅地 | F12: 17745 | G12: 4897.7 | H12: 1247.2 | I12: 652.2 | J12: 1002.9 | K12: 602.3 | L12: 1474 | M12: 873.2 | N12: 1937.8 | O12: 2373.6 | P12: 404.5 | Q12: 96.5 | R12: 281.3 | S12: 491.9 | T12: 282.5 | U12: 319.1 | V12: 279.6 | W12: 528.7
E13: うち山林 | F13: 100654.9 | G13: 17348.7 | H13: 4518.9 | I13: 7285.2 | J13: 13089 | K13: 9270.4 | L13: 1164.4 | M13: 2168.9 | N13: 4838.7 | O13: 5986.8 | P13: 4014.2 | Q13: 2519.2 | R13: 6130.9 | S13: 4561.4 | T13: 4179.4 | U13: 2197.2 | V13: 5971.6 | W13: 5410
E14: うち原野 | F14: 2533.7 | G14: 102.5 | H14: 216.4 | I14: 150.3 | J14: 673.2 | K14: 331.1 | L14: 0 | M14: 94.9 | N14: 107.9 | O14: 97 | P14: 48.3 | Q14: 81.7 | R14: 200.2 | S14: 81.7 | T14: 86 | U14: 119.7 | V14: 77.7 | W14: 65.1
A15: 60.10.1 | B15: 2 世帯数と人口 | C15: 国勢調査人口 | D15: (昭和６０年) | E15: 世帯数 | F15: 224295 | G15: 77605 | H15: 21194 | I15: 9584 | J15: 10925 | K15: 7718 | L15: 15362 | M15: 8588 | N15: 21726 | O15: 20745 | P15: 5033 | Q15: 1166 | R15: 3450 | S15: 6188 | T15: 3878 | U15: 3668 | V15: 3023 | W15: 4442
E16: 人口*計 | F16: 817633 | G16: 269083 | H16: 65670 | I16: 34011 | J16: 43118 | K16: 30416 | L16: 61452 | M16: 31830 | N16: 83953 | O16: 80707 | P16: 19550 | Q16: 4318 | R16: 13886 | S16: 26128 | T16: 13384 | U16: 12310 | V16: 9791 | W16: 18026
E17: 人口*男 | F17: 397115 | G17: 130648 | H17: 32808 | I17: 16309 | J17: 20700 | K17: 14715 | L17: 29881 | M17: 15016 | N17: 40566 | O17: 38775 | P17: 9447 | Q17: 2123 | R17: 6695 | S17: 12647 | T17: 6695 | U17: 6262 | V17: 5067 | W17: 8761
E18: 人口*女 | F18: 420518 | G18: 138435 | H18: 32862 | I18: 17702 | J18: 22418 | K18: 15701 | L18: 31571 | M18: 16814 | N18: 43387 | O18: 41932 | P18: 10103 | Q18: 2195 | R18: 7191 | S18: 13481 | T18: 6689 | U18: 6048 | V18: 4724 | W18: 9265
E19: 男女比*女１００につき男(／１００人) | F19: 94.4 | G19: 378.5 | H19: 99.8 | I19: 92.1 | J19: 92.3 | K19: 93.7 | L19: 94.6 | M19: 89.30653027 | N19: 93.5 | O19: 92.5 | P19: 93.5 | Q19: 96.7 | R19: 93.10248922 | S19: 93.81351532 | T19: 100.1 | U19: 103.5 | V19: 107.3 | W19: 94.56017269
E20: １世帯当たり人員*(／１世帯) | F20: 3.65 | G20: 3.47 | H20: 3.1 | I20: 3.55 | J20: 3.95 | K20: 3.94 | L20: 4 | M20: 3.71 | N20: 3.86 | O20: 3.89 | P20: 3.88 | Q20: 3.7 | R20: 4.02 | S20: 4.22 | T20: 3.45 | U20: 3.36 | V20: 3.24 | W20: 4.06
E21: 人口密度*(人／ｋ㎡) | F21: 195.1 | H21: 263.2 | I21: 145.4 | K21: 120.1 | L21: 729.6 | Q21: 22.2 | T21: 87.6 | U21: 172.7
A22: 2.10.1 | C22: 国勢調査人口 | D22: (平成２年) | E22: 世帯数*(世帯) | F22: 234192 | G22: 81287 | H22: 22995 | I22: 9920 | J22: 10758 | K22: 7701 | L22: 16053 | M22: 8708 | N22: 22678 | O22: 21981 | P22: 5159 | Q22: 1130 | R22: 3484 | S22: 6223 | T22: 4019 | U22: 3822 | V22: 3775 | W22: 4499
E23: 人口*計(人) | F23: 823585 | G23: 270911 | H23: 68041 | I23: 33774 | J23: 41837 | K23: 29805 | L23: 62283 | M23: 31743 | N23: 84897 | O23: 83372 | P23: 19387 | Q23: 4203 | R23: 13804 | S23: 25448 | T23: 13222 | U23: 12425 | V23: 10598 | W23: 17835
E24: 人口*男(人) | F24: 400391 | G24: 131608 | H24: 34091 | I24: 16175 | J24: 19944 | K24: 14400 | L24: 30164 | M24: 14885 | N24: 41272 | O24: 40152 | P24: 9427 | Q24: 2051 | R24: 6628 | S24: 12249 | T24: 6672 | U24: 6250 | V24: 5767 | W24: 8656
E25: 人口*女(人) | F25: 423194 | G25: 139303 | H25: 33950 | I25: 17599 | J25: 21893 | K25: 15405 | L25: 32119 | M25: 16858 | N25: 43625 | O25: 43220 | P25: 9960 | Q25: 2152 | R25: 7176 | S25: 13199 | T25: 6550 | U25: 6175 | V25: 4831 | W25: 9179
E26: 男女比*女１００につき男(／１００人) | F26: 94.6 | G26: 94.5 | H26: 100.4 | I26: 91.9 | J26: 91.1 | K26: 93.5 | L26: 93.9 | M26: 88.29635781 | N26: 94.6 | O26: 92.9 | P26: 94.6 | Q26: 95.3 | R26: 92.36343367 | S26: 92.80248504 | T26: 101.9 | U26: 101.2 | V26: 119.4 | W26: 94.30221157
E27: １世帯当たり人員*(／１世帯) | F27: 3.52 | G27: 3.33 | H27: 2.96 | I27: 3.4 | J27: 3.89 | K27: 3.87 | L27: 3.88 | M27: 3.65 | N27: 3.74 | O27: 3.79 | P27: 3.76 | Q27: 3.72 | R27: 3.96 | S27: 4.09 | T27: 3.29 | U27: 3.25 | V27: 2.81 | W27: 3.96
E28: 人口密度*(人／ｋ㎡) | F28: 196.7 | H28: 271.6 | I28: 145.1 | K28: 117.5 | L28: 734.9 | Q28: 21.6 | T28: 86.9 | U28: 172.6
A29: 7.10.1 | C29: 国勢調査人口 | D29: (平成７年) | E29: 世帯数*(世帯) | F29: 246911 | G29: 87719 | H29: 23115 | I29: 10383 | J29: 10862 | K29: 7733 | L29: 16919 | M29: 9327 | N29: 24233 | O29: 23882 | P29: 6049 | Q29: 1115 | R29: 3634 | S29: 6379 | T29: 3687 | U29: 3816 | V29: 3469 | W29: 4589
E30: 人口*計(人) | F30: 826996 | G30: 272970 | H30: 67204 | I30: 33496 | J30: 41069 | K30: 29162 | L30: 62890 | M30: 32432 | N30: 85533 | O30: 86870 | P30: 20183 | Q30: 4032 | R30: 13616 | S30: 25158 | T30: 12362 | U30: 12201 | V30: 10251 | W30: 17567
E31: 人口*男(人) | F31: 401860 | G31: 133444 | H31: 33047 | I31: 16164 | J31: 19537 | K31: 14033 | L31: 30376 | M31: 15174 | N31: 41641 | O31: 41942 | P31: 9907 | Q31: 1957 | R31: 6555 | S31: 12060 | T31: 6087 | U31: 6086 | V31: 5400 | W31: 8450
E32: 人口*女(人) | F32: 425136 | G32: 139526 | H32: 34157 | I32: 17332 | J32: 21532 | K32: 15129 | L32: 32514 | M32: 17258 | N32: 43892 | O32: 44928 | P32: 10276 | Q32: 2075 | R32: 7061 | S32: 13098 | T32: 6275 | U32: 6115 | V32: 4851 | W32: 9117
E33: 男女比*女１００につき男(／１００人) | F33: 94.5 | G33: 95.6 | H33: 96.8 | I33: 93.3 | J33: 90.7 | K33: 92.8 | L33: 93.4 | M33: 87.92444084 | N33: 94.9 | O33: 93.4 | P33: 96.4 | Q33: 94.3 | R33: 92.83387622 | S33: 92.07512597 | T33: 97 | U33: 99.5 | V33: 111.3 | W33: 92.68399693
E34: １世帯当たり人員*(／１世帯) | F34: 3.35 | G34: 3.11 | H34: 2.91 | I34: 3.23 | J34: 3.78 | K34: 3.77 | L34: 3.72 | M34: 3.48 | N34: 3.53 | O34: 3.64 | P34: 3.34 | Q34: 3.62 | R34: 3.75 | S34: 3.94 | T34: 3.35 | U34: 3.2 | V34: 2.96 | W34: 3.83
E35: 人口密度*(人／ｋ㎡) | F35: 197.4 | H35: 268.1 | I35: 143.9 | K35: 115 | L35: 742.1 | Q35: 20.7 | T35: 81.2 | U35: 169.4
A36: 12.10.1 | C36: 国勢調査人口 | D36: (平成１2年) | E36: 世帯数*(世帯) | F36: 259612 | G36: 89946 | H36: 24539 | I36: 10962 | J36: 11151 | K36: 7942 | L36: 18598 | M36: 9562 | N36: 26461 | O36: 26278 | P36: 6781 | Q36: 1095 | R36: 3744 | S36: 6619 | T36: 3713 | U36: 4015 | V36: 3490 | W36: 4716
E37: 人口*計(人) | F37: 828944 | G37: 269557 | H37: 68145 | I37: 33295 | J37: 39632 | K37: 28143 | L37: 64898 | M37: 32178 | N37: 87699 | O37: 91173 | P37: 21182 | Q37: 3759 | R37: 13221 | S37: 25017 | T37: 11630 | U37: 12119 | V37: 9983 | W37: 17313
E38: 人口*男(人) | F38: 402367 | G38: 131344 | H38: 33504 | I38: 16134 | J38: 18942 | K38: 13391 | L38: 31448 | M38: 15072 | N38: 42858 | O38: 43972 | P38: 10225 | Q38: 1825 | R38: 6437 | S38: 11973 | T38: 5672 | U38: 6076 | V38: 5192 | W38: 8302
E39: 人口*女(人) | F39: 426577 | G39: 138213 | H39: 34641 | I39: 17161 | J39: 20690 | K39: 14752 | L39: 33450 | M39: 17106 | N39: 44841 | O39: 47201 | P39: 10957 | Q39: 1934 | R39: 6784 | S39: 13044 | T39: 5958 | U39: 6043 | V39: 4791 | W39: 9011
E40: 男女比*女１００につき男(／１００人) | F40: 94.3 | G40: 95 | H40: 96.7 | I40: 94 | J40: 91.6 | K40: 90.8 | L40: 94 | M40: 88.10943529 | N40: 95.6 | O40: 93.2 | P40: 93.3 | Q40: 94.4 | R40: 94.88502358 | S40: 91.78932843 | T40: 95.2 | U40: 100.5 | V40: 108.4 | W40: 92.13183886
E41: １世帯当たり人員*(／１世帯) | F41: 3.19 | G41: 3 | H41: 2.78 | I41: 3.04 | J41: 3.55 | K41: 3.54 | L41: 3.49 | M41: 3.37 | N41: 3.31 | O41: 3.47 | P41: 3.12 | Q41: 3.43 | R41: 3.53 | S41: 3.78 | T41: 3.13 | U41: 3.02 | V41: 2.86 | W41: 3.67
E42: 人口密度*(人／ｋ㎡) | F42: 197.9 | H42: 271.8 | I42: 143 | K42: 110.9 | L42: 765.8 | Q42: 19.3 | T42: 76.4 | U42: 168.2
A43: 17.10.1 | C43: 国勢調査人口 | D43: (平成１7年) | E43: 世帯数*(世帯) | F43: 269577 | G43: 93694 | H43: 25742 | I43: 11136 | J43: 11230 | K43: 7990 | L43: 20177 | M43: 9658 | N43: 27916 | O43: 28035 | P43: 6868 | Q43: 1060 | R43: 3542 | S43: 6670 | T43: 3760 | U43: 4014 | V43: 3258 | W43: 4827
E44: 人口*計(人) | F44: 821592 | G44: 269144 | H44: 68402 | I44: 32182 | J44: 37843 | K44: 26961 | L44: 66831 | M44: 31081 | N44: 87742 | O44: 92318 | P44: 20764 | Q44: 3405 | R44: 12274 | S44: 23995 | T44: 11023 | U44: 11630 | V44: 9217 | W44: 16780
E45: 人口*男(人) | F45: 397271 | G45: 130834 | H45: 33475 | I45: 15620 | J45: 17956 | K45: 12777 | L45: 32263 | M45: 14498 | N45: 42706 | O45: 44349 | P45: 10085 | Q45: 1643 | R45: 5850 | S45: 11447 | T45: 5364 | U45: 5729 | V45: 4649 | W45: 8026
E46: 人口*女(人) | F46: 424321 | G46: 138310 | H46: 34927 | I46: 16562 | J46: 19887 | K46: 14184 | L46: 34568 | M46: 16583 | N46: 45036 | O46: 47969 | P46: 10679 | Q46: 1762 | R46: 6424 | S46: 12548 | T46: 5659 | U46: 5901 | V46: 4568 | W46: 8754
E47: 男女比*女１００につき男(／１００人) | F47: 93.6 | G47: 94.6 | H47: 95.8 | I47: 94.3 | J47: 90.3 | K47: 90.1 | L47: 93.3 | M47: 87.4 | N47: 94.8 | O47: 92.5 | P47: 94.4 | Q47: 93.2 | R47: 91.1 | S47: 91.2 | T47: 94.8 | U47: 97.1 | V47: 101.8 | W47: 91.7
E48: １世帯当たり人員*(／１世帯) | F48: 3.05 | G48: 2.87 | H48: 2.66 | I48: 2.89 | J48: 3.37 | K48: 3.37 | L48: 3.31 | M48: 3.22 | N48: 3.14 | O48: 3.29 | P48: 3.02 | Q48: 3.21 | R48: 3.47 | S48: 3.6 | T48: 2.93 | U48: 2.9 | V48: 2.83 | W48: 3.48
E49: 人口密度*(人／ｋ㎡) | F49: 196.1 | G49: 502 | H49: 272.8 | I49: 138.2 | J49: 43.4 | K49: 106.3 | L49: 788.6 | M49: 265.7 | N49: 380.2 | O49: 439.8 | P49: 220.1 | Q49: 17.5 | R49: 35.7 | S49: 156.9 | T49: 72.4 | U49: 161.3 | V49: 43.4 | W49: 93.9
A50: 22.10.1 | C50: 国勢調査人口 | D50: (平成22年) | E50: 世帯数*(世帯) | F50: 275599 | G50: 97446 | H50: 26453 | I50: 11477 | J50: 10847 | K50: 7773 | L50: 21028 | M50: 9735 | N50: 27601 | O50: 28744 | P50: 7217 | Q50: 1006 | R50: 3483 | S50: 6728 | T50: 3879 | U50: 4044 | V50: 3144 | W50: 4994
E51: 人口*計(人) | F51: 806314 | G51: 266796 | H51: 67760 | I51: 31340 | J51: 35291 | K51: 25466 | L51: 67450 | M51: 29989 | N51: 85614 | O51: 91900 | P51: 20647 | Q51: 3046 | R51: 11551 | S51: 23160 | T51: 10563 | U51: 11062 | V51: 8580 | W51: 16099
E52: 人口*男(人) | F52: 389712 | G52: 128692 | H52: 33396 | I52: 15376 | J52: 16705 | K52: 12072 | L52: 32507 | M52: 14081 | N52: 41762 | O52: 44235 | P52: 10026 | Q52: 1449 | R52: 5501 | S52: 11036 | T52: 5292 | U52: 5521 | V52: 4280 | W52: 7781
E53: 人口*女(人) | F53: 416602 | G53: 138104 | H53: 34364 | I53: 15964 | J53: 18586 | K53: 13394 | L53: 34943 | M53: 15908 | N53: 43852 | O53: 47665 | P53: 10621 | Q53: 1597 | R53: 6050 | S53: 12124 | T53: 5271 | U53: 5541 | V53: 4300 | W53: 8318
E54: 男女比*女１００につき男(／１００人) | F54: 93.5 | G54: 93.2 | H54: 97.2 | I54: 96.3 | J54: 89.9 | K54: 90.1 | L54: 93 | M54: 88.5 | N54: 95.2 | O54: 92.8 | P54: 94.4 | Q54: 90.7 | R54: 90.9 | S54: 91 | T54: 100.4 | U54: 99.6 | V54: 99.5 | W54: 93.5
E55: １世帯当たり人員*(／１世帯) | F55: 2.93 | G55: 2.74 | H55: 2.56 | I55: 2.73 | J55: 3.25 | K55: 3.28 | L55: 3.21 | M55: 3.08 | N55: 3.1 | O55: 3.2 | P55: 2.86 | Q55: 3.03 | R55: 3.32 | S55: 3.44 | T55: 2.72 | U55: 2.74 | V55: 2.73 | W55: 3.22
E56: 人口密度*(人／ｋ㎡) | F56: 192.4 | G56: 497.6 | H56: 269.7 | I56: 134.6 | J56: 40.5 | K56: 100.4 | L56: 795.9 | M56: 256.3 | N56: 371 | O56: 437.8 | P56: 218.9 | Q56: 15.6 | R56: 33.6 | S56: 151.4 | T56: 69.3 | U56: 153.3 | V56: 40.4 | W56: 90.1
A57: 27.10.1 | C57: 国勢調査人口 | D57: （平成27年） | E57: 世帯数*(世帯) | F57: 279687 | G57: 99872 | H57: 26545 | I57: 11220 | J57: 10698 | K57: 7703 | L57: 22335 | M57: 9697 | N57: 27889 | O57: 29454 | P57: 7276 | Q57: 902 | R57: 3353 | S57: 6560 | T57: 3899 | U57: 4191 | V57: 3222 | W57: 4871
E58: 人口*計(人) | F58: 786740 | G58: 265904 | H58: 66165 | I58: 29670 | J58: 33109 | K58: 24125 | L58: 68284 | M58: 28729 | N58: 81524 | O58: 90280 | P58: 19883 | Q58: 2638 | R58: 10799 | S58: 21538 | T58: 9914 | U58: 10596 | V58: 8325 | W58: 15257
E59: 人口*男(人) | F59: 381474 | G59: 128892 | H59: 32558 | I59: 14539 | J59: 15683 | K59: 11478 | L59: 33105 | M59: 13555 | N59: 39859 | O59: 43526 | P59: 9621 | Q59: 1250 | R59: 5173 | S59: 10333 | T59: 4988 | U59: 5417 | V59: 4201 | W59: 7296
E60: 人口*女(人) | F60: 405266 | G60: 137012 | H60: 33607 | I60: 15131 | J60: 17426 | K60: 12647 | L60: 35179 | M60: 15174 | N60: 41665 | O60: 46754 | P60: 10262 | Q60: 1388 | R60: 5626 | S60: 11205 | T60: 4926 | U60: 5179 | V60: 4124 | W60: 7961
E61: 男女比*女１００につき男(／１００人) | F61: 94.12928792 | G61: 94.07351181 | H61: 96.87862648 | I61: 96.08750248 | J61: 89.99770458 | K61: 90.75670119 | L61: 94.10443731 | M61: 89.33043364 | N61: 95.66542662 | O61: 93.0957779 | P61: 93.75365426 | Q61: 90.05763689 | R61: 91.94809812 | S61: 92.21775993 | T61: 101.2586277 | U61: 104.5954818 | V61: 101.8671193 | W61: 91.64677804
E62: １世帯当たり人員*(／１世帯) | F62: 2.812930168 | G62: 2.662447933 | H62: 2.492559804 | I62: 2.644385027 | J62: 3.094877547 | K62: 3.131896664 | L62: 3.057264383 | M62: 2.962668867 | N62: 2.923159669 | O62: 3.06511849 | P62: 2.732682793 | Q62: 2.924611973 | R62: 3.220697882 | S62: 3.283231707 | T62: 2.542703257 | U62: 2.528274875 | V62: 2.583798883 | W62: 3.132211045
E63: 人口密度*(人／ｋ㎡) | F63: 187.7 | G63: 495.7 | H63: 263.2 | I63: 127.3 | J63: 38 | K63: 95 | L63: 807.2 | M63: 245.6 | N63: 353.4 | O63: 430.6 | P63: 210.6 | Q63: 13.6 | R63: 31.4 | S63: 140.6 | T63: 65.1 | U63: 146.4 | V63: 39.2 | W63: 85.5
A64: 2.10.1 | C64: 国勢調査人口 | D64: （令和2年） | E64: 世帯数*(世帯) | F64: 291662 | G64: 104470 | H64: 27849 | I64: 12082 | J64: 10868 | K64: 7524 | L64: 23915 | M64: 9933 | N64: 29634 | O64: 31067 | P64: 7285 | Q64: 948 | R64: 3266 | S64: 6581 | T64: 3745 | U64: 4500 | V64: 3165 | W64: 4830
E65: 人口*計(人) | F65: 766863 | G65: 262328 | H65: 64264 | I65: 28991 | J65: 31286 | K65: 22150 | L65: 68302 | M65: 27524 | N65: 80611 | O65: 88481 | P65: 18965 | Q65: 2423 | R65: 10002 | S65: 20118 | T65: 9179 | U65: 10326 | V65: 7910 | W65: 14003
E66: 人口*男(人) | F66: 373973 | G66: 127867 | H66: 31785 | I66: 14317 | J66: 14997 | K66: 10581 | L66: 33323 | M66: 13067 | N66: 39657 | O66: 42719 | P66: 9231 | Q66: 1196 | R66: 4804 | S66: 9725 | T66: 4610 | U66: 5424 | V66: 3968 | W66: 6702
E67: 人口*女(人) | F67: 392890 | G67: 134461 | H67: 32479 | I67: 14674 | J67: 16289 | K67: 11569 | L67: 34979 | M67: 14457 | N67: 40954 | O67: 45762 | P67: 9734 | Q67: 1227 | R67: 5198 | S67: 10393 | T67: 4569 | U67: 4902 | V67: 3942 | W67: 7301
E68: 男女比*女１００につき男(／１００人) | F68: 95.18516633 | G68: 95.09597578 | H68: 97.86323471 | I68: 97.56712553 | J68: 92.06826693 | K68: 91.45993604 | L68: 95.26573087 | M68: 90.38528049 | N68: 96.83303218 | O68: 93.35037804 | P68: 94.83254572 | Q68: 97.47351263 | R68: 92.4201616 | S68: 93.57259694 | T68: 100.8973517 | U68: 110.6487148 | V68: 100.6595637 | W68: 91.79564443
E69: １世帯当たり人員*(／１世帯) | F69: 2.62928664 | G69: 2.511036661 | H69: 2.307587346 | I69: 2.399519947 | J69: 2.878726537 | K69: 2.943912812 | L69: 2.856031779 | M69: 2.770965469 | N69: 2.720220018 | O69: 2.8480703 | P69: 2.603294441 | Q69: 2.555907173 | R69: 3.062461727 | S69: 3.056982222 | T69: 2.451001335 | U69: 2.294666667 | V69: 2.499210111 | W69: 2.899171843
E70: 人口密度*(人／ｋ㎡) | F70: 182.9994846 | G70: 489.0438284 | H70: 255.6143351 | I70: 124.3661791 | J70: 35.86075674 | K70: 87.24594297 | L70: 807.4476889 | M70: 235.2880834 | N70: 349.4191591 | O70: 422.00124 | P70: 200.8365985 | Q70: 12.44798356 | R70: 29.10180686 | S70: 131.3614104 | T70: 60.24942566 | U70: 142.6243094 | V70: 37.27791131 | W70: 78.45257437
A71: 3.10.1 | C71: 推計人口 | E71: 世帯数*(世帯) | F71: 293092 | G71: 105147 | H71: 27887 | I71: 12060 | J71: 10803 | K71: 7441 | L71: 24295 | M71: 9946 | N71: 29975 | O71: 31305 | P71: 7340 | Q71: 937 | R71: 3261 | S71: 6528 | T71: 3720 | U71: 4472 | V71: 3184 | W71: 4791
E72: １世帯当たり人員*(／１世帯) | F72: 2.59 | G72: 2.48 | H72: 2.28 | I72: 2.38 | J72: 2.84 | K72: 2.92 | L72: 2.81 | M72: 2.73 | N72: 2.68 | O72: 2.8 | P72: 2.56 | Q72: 2.51 | R72: 3.01 | S72: 3.03 | T72: 2.42 | U72: 2.28 | V72: 2.48 | W72: 2.86
E73: 人口密度*(人／ｋ㎡) | F73: 181.4116148 | G73: 485.6490371 | H73: 253.1084682 | I73: 122.9162198 | J73: 35.13634332 | K73: 85.67039546 | L73: 808.4525358 | M73: 232.022568 | N73: 348.0190724 | O73: 418.2668002 | P73: 199.3116594 | Q73: 12.0626766 | R73: 28.51697751 | S73: 128.9911851 | T73: 59.06137184 | U73: 140.538674 | V73: 37.15537961 | W73: 76.83343605
A74: 2.10.1～3.9.30 | D74: 自然動態 | E74: 出 生 | F74: 2547 | G74: 908 | H74: 229 | I74: 98 | J74: 86 | K74: 56 | L74: 263 | M74: 71 | N74: 293 | O74: 257 | P74: 60 | Q74: 7 | R74: 27 | S74: 52 | T74: 29 | U74: 37 | V74: 32 | W74: 42
E75: 死 亡 | F75: 4892 | G75: 1537 | H75: 357 | I75: 230 | J75: 271 | K75: 177 | L75: 348 | M75: 201 | N75: 479 | O75: 533 | P75: 127 | Q75: 26 | R75: 91 | S75: 175 | T75: 77 | U75: 67 | V75: 55 | W75: 141
A76: 2.10.1～3.9.30 | D76: 社会動態 | E76: 転入計 | F76: 9482 | G76: 3027 | H76: 726 | I76: 324 | J76: 310 | K76: 176 | L76: 1064 | M76: 326 | N76: 1393 | O76: 1084 | P76: 265 | Q76: 16 | R76: 73 | S76: 197 | T76: 123 | U76: 149 | V76: 117 | W76: 112
E77: 転出計 | F77: 10867 | G77: 3486 | H77: 909 | I77: 387 | J77: 448 | K77: 297 | L77: 939 | M77: 431 | N77: 1425 | O77: 1199 | P77: 269 | Q77: 35 | R77: 115 | S77: 269 | T77: 167 | U77: 194 | V77: 108 | W77: 189
A78: 2.1.1～3.12.31 | E78: 婚姻 | F78: 3029 | G78: 1165 | H78: 272 | I78: 102 | J78: 86 | K78: 64 | L78: 262 | M78: 91 | N78: 345 | O78: 317 | P78: 56 | Q78: 10 | R78: 39 | S78: 77 | T78: 35 | U78: 33 | V78: 35 | W78: 40
E79: 離婚 | F79: 1052 | G79: 376 | H79: 115 | I79: 33 | J79: 45 | K79: 21 | L79: 96 | M79: 33 | N79: 98 | O79: 120 | P79: 22 | Q79: 3 | R79: 12 | S79: 33 | T79: 10 | U79: 15 | V79: 8 | W79: 12
A80: 3.10.1 | D80: 総計 | E80: 男女計（年齢不詳含む） | F80: 760209 | G80: 260507 | H80: 63634 | I80: 28653 | J80: 30654 | K80: 21750 | L80: 68387 | M80: 27142 | N80: 80288 | O80: 87698 | P80: 18821 | Q80: 2348 | R80: 9801 | S80: 19755 | T80: 8998 | U80: 10175 | V80: 7884 | W80: 13714
E81: 男 | F81: 371049 | G81: 127134 | H81: 31466 | I81: 14174 | J81: 14688 | K81: 10423 | L81: 33368 | M81: 12920 | N81: 39552 | O81: 42327 | P81: 9158 | Q81: 1159 | R81: 4709 | S81: 9557 | T81: 4521 | U81: 5348 | V81: 3956 | W81: 6589
E82: 女 | F82: 389160 | G82: 133373 | H82: 32168 | I82: 14479 | J82: 15966 | K82: 11327 | L82: 35019 | M82: 14222 | N82: 40736 | O82: 45371 | P82: 9663 | Q82: 1189 | R82: 5092 | S82: 10198 | T82: 4477 | U82: 4827 | V82: 3928 | W82: 7125
A83: 3.10.1 | D83: 男 | E83: 0～14 | F83: 48048 | G83: 16832 | H83: 3998 | I83: 1783 | J83: 1628 | K83: 1226 | L83: 4827 | M83: 1454 | N83: 5151 | O83: 5761 | P83: 1037 | Q83: 98 | R83: 601 | S83: 1147 | T83: 509 | U83: 608 | V83: 531 | W83: 857
E84: 15～24 | F84: 34749 | G84: 12697 | H84: 2766 | I84: 1149 | J84: 1107 | K84: 797 | L84: 3295 | M84: 1055 | N84: 3692 | O84: 4147 | P84: 1248 | Q84: 69 | R84: 407 | S84: 823 | T84: 312 | U84: 434 | V84: 295 | W84: 456
E85: 25～34 | F85: 36033 | G85: 12372 | H85: 3025 | I85: 1400 | J85: 1158 | K85: 856 | L85: 3371 | M85: 1230 | N85: 4387 | O85: 3988 | P85: 904 | Q85: 104 | R85: 381 | S85: 811 | T85: 500 | U85: 539 | V85: 447 | W85: 560
E86: 35～44 | F86: 44633 | G86: 15669 | H86: 3880 | I86: 1634 | J86: 1636 | K86: 1136 | L86: 4381 | M86: 1480 | N86: 4907 | O86: 5044 | P86: 975 | Q86: 117 | R86: 522 | S86: 1055 | T86: 504 | U86: 599 | V86: 408 | W86: 686
E87: 45～54 | F87: 53750 | G87: 18655 | H87: 4715 | I87: 1863 | J87: 1937 | K87: 1309 | L87: 5197 | M87: 1767 | N87: 5828 | O87: 6447 | P87: 1209 | Q87: 141 | R87: 578 | S87: 1315 | T87: 600 | U87: 778 | V87: 554 | W87: 857
E88: 55～64 | F88: 46361 | G88: 15309 | H88: 4095 | I88: 1897 | J88: 2046 | K88: 1422 | L88: 3716 | M88: 1786 | N88: 4698 | O88: 5351 | P88: 1102 | Q88: 173 | R88: 613 | S88: 1263 | T88: 643 | U88: 683 | V88: 604 | W88: 960
E89: 65以上 | F89: 101125 | G89: 32733 | H89: 8135 | I89: 3961 | J89: 5048 | K89: 3583 | L89: 8252 | M89: 3974 | N89: 10426 | O89: 11204 | P89: 2472 | Q89: 457 | R89: 1607 | S89: 3128 | T89: 1409 | U89: 1463 | V89: 1089 | W89: 2184
E90: 計(年齢不詳含む) | F90: 371049 | G90: 127134 | H90: 31466 | I90: 14174 | J90: 14688 | K90: 10423 | L90: 33368 | M90: 12920 | N90: 39552 | O90: 42327 | P90: 9158 | Q90: 1159 | R90: 4709 | S90: 9557 | T90: 4521 | U90: 5348 | V90: 3956 | W90: 6589
D91: 女 | E91: 0～14 | F91: 45485 | G91: 15656 | H91: 3885 | I91: 1645 | J91: 1593 | K91: 1151 | L91: 4619 | M91: 1457 | N91: 4799 | O91: 5498 | P91: 1050 | Q91: 90 | R91: 521 | S91: 1121 | T91: 435 | U91: 576 | V91: 544 | W91: 845
E92: 15～24 | F92: 31350 | G92: 10663 | H92: 2464 | I92: 944 | J92: 1082 | K92: 786 | L92: 3140 | M92: 1019 | N92: 3462 | O92: 4090 | P92: 1157 | Q92: 68 | R92: 365 | S92: 775 | T92: 294 | U92: 307 | V92: 265 | W92: 469
E93: 25～34 | F93: 33122 | G93: 11971 | H93: 2595 | I93: 1138 | J93: 1044 | K93: 747 | L93: 3275 | M93: 1132 | N93: 4061 | O93: 3790 | P93: 807 | Q93: 74 | R93: 339 | S93: 672 | T93: 378 | U93: 355 | V93: 292 | W93: 452
E94: 35～44 | F94: 42599 | G94: 15176 | H94: 3636 | I94: 1461 | J94: 1595 | K94: 1111 | L94: 4220 | M94: 1382 | N94: 4555 | O94: 4986 | P94: 920 | Q94: 85 | R94: 492 | S94: 991 | T94: 426 | U94: 503 | V94: 412 | W94: 648
E95: 45～54 | F95: 52596 | G95: 18533 | H95: 4552 | I95: 1794 | J95: 1823 | K95: 1345 | L95: 5074 | M95: 1798 | N95: 5443 | O95: 6528 | P95: 1260 | Q95: 98 | R95: 559 | S95: 1269 | T95: 471 | U95: 664 | V95: 468 | W95: 917
E96: 55～64 | F96: 47549 | G96: 16064 | H96: 3899 | I96: 1827 | J96: 2143 | K96: 1507 | L96: 3851 | M96: 1921 | N96: 4774 | O96: 5657 | P96: 1183 | Q96: 186 | R96: 654 | S96: 1322 | T96: 568 | U96: 584 | V96: 483 | W96: 926
E97: 65以上 | F97: 132158 | G97: 43358 | H97: 10530 | I97: 5249 | J97: 6632 | K97: 4671 | L97: 10631 | M97: 5369 | N97: 13379 | O97: 14396 | P97: 3147 | Q97: 588 | R97: 2162 | S97: 4044 | T97: 1877 | U97: 1813 | V97: 1459 | W97: 2853
E98: 計(年齢不詳含む) | F98: 389160 | G98: 133373 | H98: 32168 | I98: 14479 | J98: 15966 | K98: 11327 | L98: 35019 | M98: 14222 | N98: 40736 | O98: 45371 | P98: 9663 | Q98: 1189 | R98: 5092 | S98: 10198 | T98: 4477 | U98: 4827 | V98: 3928 | W98: 7125
A99: 28.6.1 | B99: 3 事業所 | C99: 事業所数 | D99: 全産業 | E99: 総数 | F99: … | G99: … | H99: … | I99: … | J99: … | K99: … | L99: … | M99: … | N99: … | O99: … | P99: … | Q99: … | R99: … | S99: … | T99: … | U99: … | V99: … | W99: …
E100: 民営 | F100: 41644 | G100: 15789 | H100: 3335 | I100: 1765 | J100: 1837 | K100: 1212 | L100: 3520 | M100: 1282 | N100: 4369 | O100: 3754 | P100: 797 | Q100: 143 | R100: 399 | S100: 1076 | T100: 571 | U100: 567 | V100: 478 | W100: 750
E101: 国，地方公共団体 | F101: … | G101: … | H101: … | I101: … | J101: … | K101: … | L101: … | M101: … | N101: … | O101: … | P101: … | Q101: … | R101: … | S101: … | T101: … | U101: … | V101: … | W101: …
D102: 農林漁業 | E102: 総数 | F102: … | G102: … | H102: … | I102: … | J102: … | K102: … | L102: … | M102: … | N102: … | O102: … | P102: … | Q102: … | R102: … | S102: … | T102: … | U102: … | V102: … | W102: …
E103: 民営 | F103: 348 | G103: 56 | H103: 4 | I103: 13 | J103: 37 | K103: 18 | L103: 15 | M103: 24 | N103: 30 | O103: 37 | P103: 13 | Q103: 10 | R103: 17 | S103: 14 | T103: 16 | U103: 5 | V103: 13 | W103: 26
E104: 国，地方公共団体 | F104: … | G104: … | H104: … | I104: … | J104: … | K104: … | L104: … | M104: … | N104: … | O104: … | P104: … | Q104: … | R104: … | S104: … | T104: … | U104: … | V104: … | W104: …
D105: 鉱業 | E105: 総数 | F105: … | G105: … | H105: … | I105: … | J105: … | K105: … | L105: … | M105: … | N105: … | O105: … | P105: … | Q105: … | R105: … | S105: … | T105: … | U105: … | V105: … | W105: …
E106: 民営 | F106: 13 | G106: 7 | H106: 0 | I106: 0 | J106: 1 | K106: 0 | L106: 0 | M106: 1 | N106: 1 | O106: 0 | P106: 1 | Q106: 0 | R106: 2 | S106: 0 | T106: 0 | U106: 0 | V106: 0 | W106: 0
E107: 国，地方公共団体 | F107: … | G107: … | H107: … | I107: … | J107: … | K107: … | L107: … | M107: … | N107: … | O107: … | P107: … | Q107: … | R107: … | S107: … | T107: … | U107: … | V107: … | W107: …
D108: 建設業 | E108: 総数 | F108: … | G108: … | H108: … | I108: … | J108: … | K108: … | L108: … | M108: … | N108: … | O108: … | P108: … | Q108: … | R108: … | S108: … | T108: … | U108: … | V108: … | W108: …
E109: 民営 | F109: 4743 | G109: 1525 | H109: 463 | I109: 190 | J109: 283 | K109: 167 | L109: 265 | M109: 142 | N109: 486 | O109: 448 | P109: 106 | Q109: 24 | R109: 64 | S109: 173 | T109: 94 | U109: 96 | V109: 108 | W109: 109
E110: 国，地方公共団体 | F110: … | G110: … | H110: … | I110: … | J110: … | K110: … | L110: … | M110: … | N110: … | O110: … | P110: … | Q110: … | R110: … | S110: … | T110: … | U110: … | V110: … | W110: …
D111: 製造業 | E111: 総数 | F111: … | G111: … | H111: … | I111: … | J111: … | K111: … | L111: … | M111: … | N111: … | O111: … | P111: … | Q111: … | R111: … | S111: … | T111: … | U111: … | V111: … | W111: …
E112: 民営 | F112: 5292 | G112: 1441 | H112: 170 | I112: 167 | J112: 207 | K112: 172 | L112: 1056 | M112: 166 | N112: 707 | O112: 651 | P112: 142 | Q112: 27 | R112: 38 | S112: 203 | T112: 32 | U112: 28 | V112: 24 | W112: 61
E113: 国，地方公共団体 | F113: … | G113: … | H113: … | I113: … | J113: … | K113: … | L113: … | M113: … | N113: … | O113: … | P113: … | Q113: … | R113: … | S113: … | T113: … | U113: … | V113: … | W113: …
D114: 電気・ガス・熱供給・水道業 | E114: 総数 | F114: … | G114: … | H114: … | I114: … | J114: … | K114: … | L114: … | M114: … | N114: … | O114: … | P114: … | Q114: … | R114: … | S114: … | T114: … | U114: … | V114: … | W114: …
E115: 民営 | F115: 46 | G115: 5 | H115: 9 | I115: 2 | J115: 4 | K115: 2 | L115: 0 | M115: 0 | N115: 5 | O115: 7 | P115: 2 | Q115: 0 | R115: 0 | S115: 0 | T115: 7 | U115: 1 | V115: 2 | W115: 0
E116: 国，地方公共団体 | F116: … | G116: … | H116: … | I116: … | J116: … | K116: … | L116: … | M116: … | N116: … | O116: … | P116: … | Q116: … | R116: … | S116: … | T116: … | U116: … | V116: … | W116: …
D117: 情報通信業 | E117: 総数 | F117: … | G117: … | H117: … | I117: … | J117: … | K117: … | L117: … | M117: … | N117: … | O117: … | P117: … | Q117: … | R117: … | S117: … | T117: … | U117: … | V117: … | W117: …
E118: 民営 | F118: 322 | G118: 195 | H118: 24 | I118: 10 | J118: 3 | K118: 6 | L118: 17 | M118: 2 | N118: 16 | O118: 37 | P118: 3 | Q118: 1 | R118: 1 | S118: 1 | T118: 3 | U118: 1 | V118: 1 | W118: 1
E119: 国，地方公共団体 | F119: … | G119: … | H119: … | I119: … | J119: … | K119: … | L119: … | M119: … | N119: … | O119: … | P119: … | Q119: … | R119: … | S119: … | T119: … | U119: … | V119: … | W119: …
D120: 運輸業、郵便業 | E120: 総数 | F120: … | G120: … | H120: … | I120: … | J120: … | K120: … | L120: … | M120: … | N120: … | O120: … | P120: … | Q120: … | R120: … | S120: … | T120: … | U120: … | V120: … | W120: …
E121: 民営 | F121: 799 | G121: 310 | H121: 92 | I121: 19 | J121: 18 | K121: 16 | L121: 48 | M121: 32 | N121: 76 | O121: 106 | P121: 17 | Q121: 2 | R121: 6 | S121: 15 | T121: 11 | U121: 10 | V121: 6 | W121: 15
E122: 国，地方公共団体 | F122: … | G122: … | H122: … | I122: … | J122: … | K122: … | L122: … | M122: … | N122: … | O122: … | P122: … | Q122: … | R122: … | S122: … | T122: … | U122: … | V122: … | W122: …
D123: 卸売業、小売業 | E123: 総数 | F123: … | G123: … | H123: … | I123: … | J123: … | K123: … | L123: … | M123: … | N123: … | O123: … | P123: … | Q123: … | R123: … | S123: … | T123: … | U123: … | V123: … | W123: …
E124: 民営 | F124: 10543 | G124: 4305 | H124: 875 | I124: 489 | J124: 416 | K124: 285 | L124: 797 | M124: 291 | N124: 1142 | O124: 930 | P124: 174 | Q124: 28 | R124: 94 | S124: 249 | T124: 118 | U124: 102 | V124: 78 | W124: 170
E125: 国，地方公共団体 | F125: … | G125: … | H125: … | I125: … | J125: … | K125: … | L125: … | M125: … | N125: … | O125: … | P125: … | Q125: … | R125: … | S125: … | T125: … | U125: … | V125: … | W125: …
D126: 金融業、保険業 | E126: 総数 | F126: … | G126: … | H126: … | I126: … | J126: … | K126: … | L126: … | M126: … | N126: … | O126: … | P126: … | Q126: … | R126: … | S126: … | T126: … | U126: … | V126: … | W126: …
E127: 民営 | F127: 749 | G127: 394 | H127: 56 | I127: 34 | J127: 23 | K127: 17 | L127: 51 | M127: 15 | N127: 66 | O127: 41 | P127: 7 | Q127: 1 | R127: 4 | S127: 13 | T127: 7 | U127: 5 | V127: 4 | W127: 11
E128: 国，地方公共団体 | F128: … | G128: … | H128: … | I128: … | J128: … | K128: … | L128: … | M128: … | N128: … | O128: … | P128: … | Q128: … | R128: … | S128: … | T128: … | U128: … | V128: … | W128: …
D129: 不動産業、物品賃貸業 | E129: 総数 | F129: … | G129: … | H129: … | I129: … | J129: … | K129: … | L129: … | M129: … | N129: … | O129: … | P129: … | Q129: … | R129: … | S129: … | T129: … | U129: … | V129: … | W129: …
E130: 民営 | F130: 1288 | G130: 697 | H130: 107 | I130: 67 | J130: 26 | K130: 14 | L130: 74 | M130: 19 | N130: 123 | O130: 72 | P130: 47 | Q130: 0 | R130: 2 | S130: 10 | T130: 8 | U130: 11 | V130: 6 | W130: 5
E131: 国，地方公共団体 | F131: … | G131: … | H131: … | I131: … | J131: … | K131: … | L131: … | M131: … | N131: … | O131: … | P131: … | Q131: … | R131: … | S131: … | T131: … | U131: … | V131: … | W131: …
D132: 学術研究、専門・技術サービス業 | E132: 総数 | F132: … | G132: … | H132: … | I132: … | J132: … | K132: … | L132: … | M132: … | N132: … | O132: … | P132: … | Q132: … | R132: … | S132: … | T132: … | U132: … | V132: … | W132: …
E133: 民営 | F133: 1529 | G133: 757 | H133: 136 | I133: 68 | J133: 50 | K133: 32 | L133: 89 | M133: 33 | N133: 130 | O133: 115 | P133: 22 | Q133: 4 | R133: 13 | S133: 15 | T133: 21 | U133: 14 | V133: 12 | W133: 18
E134: 国，地方公共団体 | F134: … | G134: … | H134: … | I134: … | J134: … | K134: … | L134: … | M134: … | N134: … | O134: … | P134: … | Q134: … | R134: … | S134: … | T134: … | U134: … | V134: … | W134: …
D135: 宿泊業、飲食サービス業 | E135: 総数 | F135: … | G135: … | H135: … | I135: … | J135: … | K135: … | L135: … | M135: … | N135: … | O135: … | P135: … | Q135: … | R135: … | S135: … | T135: … | U135: … | V135: … | W135: …
E136: 民営 | F136: 5288 | G136: 1977 | H136: 569 | I136: 244 | J136: 230 | K136: 151 | L136: 338 | M136: 202 | N136: 425 | O136: 376 | P136: 69 | Q136: 14 | R136: 62 | S136: 132 | T136: 100 | U136: 152 | V136: 87 | W136: 160
E137: 国，地方公共団体 | F137: … | G137: … | H137: … | I137: … | J137: … | K137: … | L137: … | M137: … | N137: … | O137: … | P137: … | Q137: … | R137: … | S137: … | T137: … | U137: … | V137: … | W137: …
D138: 生活関連サービス業、娯楽業 | E138: 総数 | F138: … | G138: … | H138: … | I138: … | J138: … | K138: … | L138: … | M138: … | N138: … | O138: … | P138: … | Q138: … | R138: … | S138: … | T138: … | U138: … | V138: … | W138: …
E139: 民営 | F139: 3577 | G139: 1333 | H139: 275 | I139: 167 | J139: 173 | K139: 128 | L139: 296 | M139: 127 | N139: 374 | O139: 330 | P139: 68 | Q139: 10 | R139: 30 | S139: 73 | T139: 41 | U139: 48 | V139: 45 | W139: 59
E140: 国，地方公共団体 | F140: … | G140: … | H140: … | I140: … | J140: … | K140: … | L140: … | M140: … | N140: … | O140: … | P140: … | Q140: … | R140: … | S140: … | T140: … | U140: … | V140: … | W140: …
D141: 教育、学習支援業 | E141: 総数 | F141: … | G141: … | H141: … | I141: … | J141: … | K141: … | L141: … | M141: … | N141: … | O141: … | P141: … | Q141: … | R141: … | S141: … | T141: … | U141: … | V141: … | W141: …
E142: 民営 | F142: 1037 | G142: 413 | H142: 70 | I142: 46 | J142: 36 | K142: 30 | L142: 85 | M142: 32 | N142: 116 | O142: 95 | P142: 25 | Q142: 1 | R142: 10 | S142: 24 | T142: 10 | U142: 15 | V142: 16 | W142: 13
E143: 国，地方公共団体 | F143: … | G143: … | H143: … | I143: … | J143: … | K143: … | L143: … | M143: … | N143: … | O143: … | P143: … | Q143: … | R143: … | S143: … | T143: … | U143: … | V143: … | W143: …
D144: 医療、福祉 | E144: 総数 | F144: … | G144: … | H144: … | I144: … | J144: … | K144: … | L144: … | M144: … | N144: … | O144: … | P144: … | Q144: … | R144: … | S144: … | T144: … | U144: … | V144: … | W144: …
E145: 民営 | F145: 2491 | G145: 1024 | H145: 201 | I145: 81 | J145: 151 | K145: 75 | L145: 195 | M145: 81 | N145: 262 | O145: 200 | P145: 36 | Q145: 5 | R145: 23 | S145: 49 | T145: 32 | U145: 17 | V145: 24 | W145: 35
E146: 国，地方公共団体 | F146: … | G146: … | H146: … | I146: … | J146: … | K146: … | L146: … | M146: … | N146: … | O146: … | P146: … | Q146: … | R146: … | S146: … | T146: … | U146: … | V146: … | W146: …
D147: 複合サービス事業 | E147: 総数 | F147: … | G147: … | H147: … | I147: … | J147: … | K147: … | L147: … | M147: … | N147: … | O147: … | P147: … | Q147: … | R147: … | S147: … | T147: … | U147: … | V147: … | W147: …
E148: 民営 | F148: 367 | G148: 116 | H148: 17 | I148: 21 | J148: 17 | K148: 13 | L148: 24 | M148: 13 | N148: 34 | O148: 36 | P148: 11 | Q148: 4 | R148: 10 | S148: 14 | T148: 8 | U148: 12 | V148: 6 | W148: 11
E149: 国，地方公共団体 | F149: … | G149: … | H149: … | I149: … | J149: … | K149: … | L149: … | M149: … | N149: … | O149: … | P149: … | Q149: … | R149: … | S149: … | T149: … | U149: … | V149: … | W149: …
D150: サービス業（他に分類されないもの） | E150: 総数 | F150: … | G150: … | H150: … | I150: … | J150: … | K150: … | L150: … | M150: … | N150: … | O150: … | P150: … | Q150: … | R150: … | S150: … | T150: … | U150: … | V150: … | W150: …
E151: 民営 | F151: 3212 | G151: 1234 | H151: 267 | I151: 147 | J151: 162 | K151: 86 | L151: 170 | M151: 102 | N151: 376 | O151: 273 | P151: 54 | Q151: 12 | R151: 23 | S151: 91 | T151: 63 | U151: 50 | V151: 46 | W151: 56
E152: 国，地方公共団体 | F152: … | G152: … | H152: … | I152: … | J152: … | K152: … | L152: … | M152: … | N152: … | O152: … | P152: … | Q152: … | R152: … | S152: … | T152: … | U152: … | V152: … | W152: …
D153: 公務（他に分類されないもの） | E153: 総数 | F153: … | G153: … | H153: … | I153: … | J153: … | K153: … | L153: … | M153: … | N153: … | O153: … | P153: … | Q153: … | R153: … | S153: … | T153: … | U153: … | V153: … | W153: …
E154: 民営 | F154: … | G154: … | H154: … | I154: … | J154: … | K154: … | L154: … | M154: … | N154: … | O154: … | P154: … | Q154: … | R154: … | S154: … | T154: … | U154: … | V154: … | W154: …
E155: 国，地方公共団体 | F155: … | G155: … | H155: … | I155: … | J155: … | K155: … | L155: … | M155: … | N155: … | O155: … | P155: … | Q155: … | R155: … | S155: … | T155: … | U155: … | V155: … | W155: …
C156: 従業者数 | D156: 全産業 | E156: 総数 | F156: … | G156: … | H156: … | I156: … | J156: … | K156: … | L156: … | M156: … | N156: … | O156: … | P156: … | Q156: … | R156: … | S156: … | T156: … | U156: … | V156: … | W156: …
E157: 民営 | F157: 377238 | G157: 149061 | H157: 31828 | I157: 12822 | J157: 13996 | K157: 9260 | L157: 29663 | M157: 13756 | N157: 42447 | O157: 34682 | P157: 9454 | Q157: 856 | R157: 2657 | S157: 6957 | T157: 5012 | U157: 4826 | V157: 4277 | W157: 5684
E158: 国，地方公共団体等 | F158: … | G158: … | H158: … | I158: … | J158: … | K158: … | L158: … | M158: … | N158: … | O158: … | P158: … | Q158: … | R158: … | S158: … | T158: … | U158: … | V158: … | W158: …
D159: 農林漁業 | E159: 総数 | F159: … | G159: … | H159: … | I159: … | J159: … | K159: … | L159: … | M159: … | N159: … | O159: … | P159: … | Q159: … | R159: … | S159: … | T159: … | U159: … | V159: … | W159: …
E160: 民営 | F160: 4621 | G160: 743 | H160: 77 | I160: 185 | J160: 671 | K160: 323 | L160: 177 | M160: 285 | N160: 384 | O160: 330 | P160: 334 | Q160: 96 | R160: 227 | S160: 175 | T160: 120 | U160: 94 | V160: 109 | W160: 291
E161: 国，地方公共団体等 | F161: … | G161: … | H161: … | I161: … | J161: … | K161: … | L161: … | M161: … | N161: … | O161: … | P161: … | Q161: … | R161: … | S161: … | T161: … | U161: … | V161: … | W161: …
D162: 鉱業 | E162: 総数 | F162: … | G162: … | H162: … | I162: … | J162: … | K162: … | L162: … | M162: … | N162: … | O162: … | P162: … | Q162: … | R162: … | S162: … | T162: … | U162: … | V162: … | W162: …
E163: 民営 | F163: 92 | G163: 32 | H163: 0 | I163: 0 | J163: 1 | K163: 0 | L163: 0 | M163: 4 | N163: 12 | O163: 0 | P163: 8 | Q163: 0 | R163: 35 | S163: 0 | T163: 0 | U163: 0 | V163: 0 | W163: 0
E164: 国，地方公共団体等 | F164: … | G164: … | H164: … | I164: … | J164: … | K164: … | L164: … | M164: … | N164: … | O164: … | P164: … | Q164: … | R164: … | S164: … | T164: … | U164: … | V164: … | W164: …
D165: 建設業 | E165: 総数 | F165: … | G165: … | H165: … | I165: … | J165: … | K165: … | L165: … | M165: … | N165: … | O165: … | P165: … | Q165: … | R165: … | S165: … | T165: … | U165: … | V165: … | W165: …
E166: 民営 | F166: 32043 | G166: 11445 | H166: 3911 | I166: 983 | J166: 1695 | K166: 814 | L166: 1510 | M166: 686 | N166: 2574 | O166: 2674 | P166: 620 | Q166: 128 | R166: 309 | S166: 635 | T166: 1036 | U166: 1200 | V166: 1261 | W166: 562
E167: 国，地方公共団体等 | F167: … | G167: … | H167: … | I167: … | J167: … | K167: … | L167: … | M167: … | N167: … | O167: … | P167: … | Q167: … | R167: … | S167: … | T167: … | U167: … | V167: … | W167: …
D168: 製造業 | E168: 総数 | F168: … | G168: … | H168: … | I168: … | J168: … | K168: … | L168: … | M168: … | N168: … | O168: … | P168: … | Q168: … | R168: … | S168: … | T168: … | U168: … | V168: … | W168: …
E169: 民営 | F169: 82745 | G169: 20796 | H169: 3953 | I169: 2084 | J169: 2742 | K169: 2909 | L169: 10659 | M169: 4684 | N169: 17247 | O169: 10661 | P169: 1312 | Q169: 210 | R169: 594 | S169: 2224 | T169: 289 | U169: 358 | V169: 293 | W169: 1730
E170: 国，地方公共団体等 | F170: … | G170: … | H170: … | I170: … | J170: … | K170: … | L170: … | M170: … | N170: … | O170: … | P170: … | Q170: … | R170: … | S170: … | T170: … | U170: … | V170: … | W170: …
D171: 電気・ガス・熱供給・水道業 | E171: 総数 | F171: … | G171: … | H171: … | I171: … | J171: … | K171: … | L171: … | M171: … | N171: … | O171: … | P171: … | Q171: … | R171: … | S171: … | T171: … | U171: … | V171: … | W171: …
E172: 民営 | F172: 3601 | G172: 396 | H172: 524 | I172: 34 | J172: 157 | K172: 15 | L172: 0 | M172: 0 | N172: 193 | O172: 162 | P172: 92 | Q172: 0 | R172: 0 | S172: 0 | T172: 1014 | U172: 491 | V172: 523 | W172: 0
E173: 国，地方公共団体等 | F173: … | G173: … | H173: … | I173: … | J173: … | K173: … | L173: … | M173: … | N173: … | O173: … | P173: … | Q173: … | R173: … | S173: … | T173: … | U173: … | V173: … | W173: …
D174: 情報通信業 | E174: 総数 | F174: … | G174: … | H174: … | I174: … | J174: … | K174: … | L174: … | M174: … | N174: … | O174: … | P174: … | Q174: … | R174: … | S174: … | T174: … | U174: … | V174: … | W174: …
E175: 民営 | F175: 5047 | G175: 3411 | H175: 216 | I175: 59 | J175: 11 | K175: 43 | L175: 265 | M175: 10 | N175: 120 | O175: 825 | P175: 20 | Q175: 1 | R175: 32 | S175: 4 | T175: 24 | U175: 0 | V175: 2 | W175: 4
E176: 国，地方公共団体等 | F176: … | G176: … | H176: … | I176: … | J176: … | K176: … | L176: … | M176: … | N176: … | O176: … | P176: … | Q176: … | R176: … | S176: … | T176: … | U176: … | V176: … | W176: …
D177: 運輸業、郵便業 | E177: 総数 | F177: … | G177: … | H177: … | I177: … | J177: … | K177: … | L177: … | M177: … | N177: … | O177: … | P177: … | Q177: … | R177: … | S177: … | T177: … | U177: … | V177: … | W177: …
E178: 民営 | F178: 16135 | G178: 7119 | H178: 2182 | I178: 297 | J178: 215 | K178: 345 | L178: 677 | M178: 1199 | N178: 1567 | O178: 1677 | P178: 254 | Q178: 11 | R178: 49 | S178: 94 | T178: 107 | U178: 103 | V178: 90 | W178: 149
E179: 国，地方公共団体等 | F179: … | G179: … | H179: … | I179: … | J179: … | K179: … | L179: … | M179: … | N179: … | O179: … | P179: … | Q179: … | R179: … | S179: … | T179: … | U179: … | V179: … | W179: …
D180: 卸売業、小売業 | E180: 総数 | F180: … | G180: … | H180: … | I180: … | J180: … | K180: … | L180: … | M180: … | N180: … | O180: … | P180: … | Q180: … | R180: … | S180: … | T180: … | U180: … | V180: … | W180: …
E181: 民営 | F181: 73107 | G181: 34043 | H181: 6007 | I181: 3144 | J181: 2223 | K181: 1379 | L181: 5638 | M181: 1655 | N181: 7217 | O181: 6702 | P181: 922 | Q181: 116 | R181: 411 | S181: 1353 | T181: 552 | U181: 561 | V181: 351 | W181: 833
E182: 国，地方公共団体等 | F182: … | G182: … | H182: … | I182: … | J182: … | K182: … | L182: … | M182: … | N182: … | O182: … | P182: … | Q182: … | R182: … | S182: … | T182: … | U182: … | V182: … | W182: …
D183: 金融業、保険業 | E183: 総数 | F183: … | G183: … | H183: … | I183: … | J183: … | K183: … | L183: … | M183: … | N183: … | O183: … | P183: … | Q183: … | R183: … | S183: … | T183: … | U183: … | V183: … | W183: …
E184: 民営 | F184: 9238 | G184: 5552 | H184: 639 | I184: 348 | J184: 266 | K184: 118 | L184: 650 | M184: 143 | N184: 684 | O184: 481 | P184: 62 | Q184: 4 | R184: 24 | S184: 93 | T184: 41 | U184: 48 | V184: 26 | W184: 59
E185: 国，地方公共団体等 | F185: … | G185: … | H185: … | I185: … | J185: … | K185: … | L185: … | M185: … | N185: … | O185: … | P185: … | Q185: … | R185: … | S185: … | T185: … | U185: … | V185: … | W185: …
D186: 不動産業、物品賃貸業 | E186: 総数 | F186: … | G186: … | H186: … | I186: … | J186: … | K186: … | L186: … | M186: … | N186: … | O186: … | P186: … | Q186: … | R186: … | S186: … | T186: … | U186: … | V186: … | W186: …
E187: 民営 | F187: 5756 | G187: 2900 | H187: 538 | I187: 220 | J187: 642 | K187: 31 | L187: 243 | M187: 37 | N187: 483 | O187: 445 | P187: 88 | Q187: 0 | R187: 2 | S187: 27 | T187: 29 | U187: 17 | V187: 41 | W187: 13
E188: 国，地方公共団体等 | F188: … | G188: … | H188: … | I188: … | J188: … | K188: … | L188: … | M188: … | N188: … | O188: … | P188: … | Q188: … | R188: … | S188: … | T188: … | U188: … | V188: … | W188: …
D189: 学術研究、専門・技術サービス業 | E189: 総数 | F189: … | G189: … | H189: … | I189: … | J189: … | K189: … | L189: … | M189: … | N189: … | O189: … | P189: … | Q189: … | R189: … | S189: … | T189: … | U189: … | V189: … | W189: …
E190: 民営 | F190: 9623 | G190: 4136 | H190: 1765 | I190: 748 | J190: 273 | K190: 97 | L190: 397 | M190: 116 | N190: 728 | O190: 668 | P190: 74 | Q190: 4 | R190: 26 | S190: 36 | T190: 171 | U190: 72 | V190: 246 | W190: 66
E191: 国，地方公共団体 | F191: … | G191: … | H191: … | I191: … | J191: … | K191: … | L191: … | M191: … | N191: … | O191: … | P191: … | Q191: … | R191: … | S191: … | T191: … | U191: … | V191: … | W191: …
D192: 宿泊業、飲食サービス業 | E192: 総数 | F192: … | G192: … | H192: … | I192: … | J192: … | K192: … | L192: … | M192: … | N192: … | O192: … | P192: … | Q192: … | R192: … | S192: … | T192: … | U192: … | V192: … | W192: …
E193: 民営 | F193: 32923 | G193: 13787 | H193: 3423 | I193: 1406 | J193: 848 | K193: 645 | L193: 2542 | M193: 1686 | N193: 2415 | O193: 2523 | P193: 364 | Q193: 94 | R193: 304 | S193: 687 | T193: 429 | U193: 656 | V193: 335 | W193: 779
E194: 国，地方公共団体等 | F194: … | G194: … | H194: … | I194: … | J194: … | K194: … | L194: … | M194: … | N194: … | O194: … | P194: … | Q194: … | R194: … | S194: … | T194: … | U194: … | V194: … | W194: …
D195: 生活関連サービス業、娯楽業 | E195: 総数 | F195: … | G195: … | H195: … | I195: … | J195: … | K195: … | L195: … | M195: … | N195: … | O195: … | P195: … | Q195: … | R195: … | S195: … | T195: … | U195: … | V195: … | W195: …
E196: 民営 | F196: 14326 | G196: 6418 | H196: 1224 | I196: 598 | J196: 605 | K196: 317 | L196: 1069 | M196: 564 | N196: 1276 | O196: 1246 | P196: 143 | Q196: 14 | R196: 74 | S196: 160 | T196: 117 | U196: 152 | V196: 140 | W196: 209
E197: 国，地方公共団体等 | F197: … | G197: … | H197: … | I197: … | J197: … | K197: … | L197: … | M197: … | N197: … | O197: … | P197: … | Q197: … | R197: … | S197: … | T197: … | U197: … | V197: … | W197: …
D198: 教育、学習支援業 | E198: 総数 | F198: … | G198: … | H198: … | I198: … | J198: … | K198: … | L198: … | M198: … | N198: … | O198: … | P198: … | Q198: … | R198: … | S198: … | T198: … | U198: … | V198: … | W198: …
E199: 民営 | F199: 10254 | G199: 4626 | H199: 509 | I199: 218 | J199: 113 | K199: 149 | L199: 490 | M199: 205 | N199: 748 | O199: 253 | P199: 2643 | Q199: 1 | R199: 15 | S199: 45 | T199: 83 | U199: 54 | V199: 85 | W199: 17
E200: 国，地方公共団体等 | F200: … | G200: … | H200: … | I200: … | J200: … | K200: … | L200: … | M200: … | N200: … | O200: … | P200: … | Q200: … | R200: … | S200: … | T200: … | U200: … | V200: … | W200: …
D201: 医療、福祉 | E201: 総数 | F201: … | G201: … | H201: … | I201: … | J201: … | K201: … | L201: … | M201: … | N201: … | O201: … | P201: … | Q201: … | R201: … | S201: … | T201: … | U201: … | V201: … | W201: …
E202: 民営 | F202: 47565 | G202: 20340 | H202: 3682 | I202: 1336 | J202: 2194 | K202: 1671 | L202: 3700 | M202: 1484 | N202: 4288 | O202: 3530 | P202: 2124 | Q202: 117 | R202: 377 | S202: 1098 | T202: 334 | U202: 324 | V202: 294 | W202: 672
... 491 more rows

Sheet 福井県
A1: =+データ一覧!F2 -> 0
A2: =+データ一覧!F5 -> 0
AN3: 0 | BS3: 0
AB4: 県章とそのいわれ 「フクイ」の三文字を組み合わせ、伸びゆく | AO4: 【位置および地勢 】本県は本州日本海側のほぼ中央にあり、総面積は、 | BS4: 0 | BW4: 所在地 | CE4: 〒910-8580
AB5: 福井県を表現しています。 | AO5: 4,190.52k㎡で北は石川県に、東南は岐阜県、西南は滋賀県、京都府に | BS5: 0 | CE5: 福井市大手３丁目１７番１号
A6: =+データ一覧!F3 -> ふくいけん | AB6: 0 | AO6: 連なり、西北は日本海に面している。 | BS6: 0
A7: =データ一覧!F6 -> 福井県 | AB7: 0 | BS7: 0 | BW7: 電話番号 | CE7: （０７７６）２１－１１１１（代表）
AB8: 0 | BW8: FAX番号
AB9: 0
AB10: 0 | BS10: 0 | BW10: 最寄駅および距離 | CE10: ＪＲ北陸本線福井駅 下車３００ｍ
BS11: 0
BS12: 0 | BW12: ホームページ | CE12: https://www.pref.fukui.jp
A15: １ 土 地 | Z15: =データ一覧!$A$240 -> 2年 | AA15: 産米収穫量 | AD15: 収 穫 量 | AG15: 作 付 面 積 | AJ15: 10a当たり収量 | BP15: １５ 労 働 | CE15: 27.10.1
AD16: =データ一覧!$F$240 -> 130000 | AF16: t | AG16: =データ一覧!$F$241 -> 25100 | AI16: ha | AJ16: =データ一覧!F242 -> 518 | AM16: kg | AN16: １０ 工 業 | BB16: =データ一覧!$A$332 -> 2.6.1（令和元年実績）
A17: 総 面 積 | K17: 固 定 資 産 概 要 調 書 に よ る 地 目 別 面 積 | AC17: 総 数 | AG17: うち 田 | AK17: うち 畑 | BW17: 産業別就業者数
C18: =データ一覧!$A$7 -> 3.10.1 | Q18: =データ一覧!$A$9 -> 3.1.1 | Z18: 耕 地 面 積 | AD18: ha | AG18: ha | AK18: ha | AO18: 産業分類 | AW18: 事業所数 | BB18: 従業者数 | BH18: 年間製造品出荷額等 | BQ18: 区 分 | BV18: 総 数 | CA18: 男 | CE18: 女 | CI18: 区 分 | CN18: 総 数 | CS18: 男 | CW18: 女
G19: ㎢ | K19: 総 数 | P19: う ち 田 | U19: う ち 畑 | Z19: =データ一覧!A243 -> 2.7.15 | AC19: =データ一覧!$F$243 -> 40000 | AF19: =データ一覧!$F$244 -> 36300 | AJ19: =データ一覧!$F$245 -> 3710 | AZ19: 事業所 | BB19: 人 | BE19: 人 | BG19: 万円 | BN19: 万円 | BV19: 人 | CB19: 人 | CF19: 人 | CN19: 人 | CR19: 人 | CV19: 人
D20: =データ一覧!F7 -> 4190.52 | O20: ha | T20: ha | Y20: ha | Z20: 農 業 生 産 物 | AD20: 作 付 面 積 | AG20: 収 穫 量 | AJ20: 10a当たり収量 | AO20: 総数 | AX20: =データ一覧!F332 -> 2032 | BB20: =+データ一覧!F357 -> 72879 | BI20: =データ一覧!F382 -> 225907590 | BP20: 総 数 | BV20: =BZ20+CD20 -> 399169 | BZ20: =データ一覧!F507 -> 217914 | CD20: =データ一覧!F532 -> 181255
L21: =データ一覧!F9 -> 262940.6 | Q21: =データ一覧!F10 -> 39226.5 | V21: =データ一覧!F11 -> 5503.7 | Z21: =データ一覧!$A$246 -> 2年中 | AD21: ha | AG21: t | AJ21: kg | AO21: 食料品 | AX21: =データ一覧!F333 -> 189 | BB21: =+データ一覧!F358 -> 4576 | BI21: =データ一覧!F383 -> 5828346 | CI21: 卸売業,小売業 | CN21: =CR21+CV21 -> 60800 | CR21: =データ一覧!F520 -> 29022 | CV21: =データ一覧!F545 -> 31778
A22: 町 ･ 丁 ･ 大 字 | K22: う ち 宅 地 | P22: う ち 山 林 | U22: う ち 原 野 | Z22: 水 稲 | AD22: =データ一覧!F246 -> 25100 | AG22: =データ一覧!F247 -> 130000 | AJ22: =データ一覧!F248 -> 518 | AO22: 飲料・飼料 | AX22: =データ一覧!F334 -> 20 | BB22: =+データ一覧!F359 -> 259 | BI22: =データ一覧!F384 -> 603806 | BP22: 第１次産業 | BV22: =BZ22+CD22 -> 14826 | BZ22: =データ一覧!F508 -> 9789 | CD22: =データ一覧!F533 -> 5037 | CI22: 金融業,保険業 | CN22: =CR22+CV22 -> 9254 | CR22: =データ一覧!F521 -> 3833 | CV22: =データ一覧!F546 -> 5421
A23: 区 画 数 | H23: =データ一覧!F8 -> 2769 | O23: ha | T23: ha | Y23: ha | Z23: 六 条 大 麦 | AD23: =データ一覧!F249 -> 4650 | AG23: =データ一覧!F250 -> 14000 | AJ23: =データ一覧!F251 -> 300 | AO23: 繊維 | AX23: =データ一覧!F335 -> 488 | BB23: =+データ一覧!F360 -> 14611 | BI23: =データ一覧!F385 -> 23056130 | BQ23: 農業 | BV23: =BZ23+CD23 -> 13154 | BZ23: =データ一覧!F509 -> 8326 | CD23: =データ一覧!F534 -> 4828 | CI23: 不動産業 | CN23: 4009 | CR23: =データ一覧!F522 -> 2337 | CV23: =データ一覧!F547 -> 1672
A24: =データ一覧!$A$8 -> 2.4.1 | L24: =データ一覧!F12 -> 17745 | Q24: =データ一覧!F13 -> 100654.9 | V24: =データ一覧!F14 -> 2533.7 | Z24: 大 豆 | AD24: =データ一覧!F252 -> 1800 | AG24: =データ一覧!F253 -> 1820 | AJ24: =データ一覧!F254 -> 101 | AO24: 木材 | AX24: =データ一覧!F336 -> 57 | BB24: =+データ一覧!F361 -> 1508 | BI24: =データ一覧!F386 -> 7984962 | BQ24: 林業 | BV24: 636 | BZ24: =データ一覧!F510 -> 554 | CD24: =データ一覧!F535 -> 82 | CI24: 学術研究 | CN24: 11187 | CR24: =データ一覧!F523 -> 7429 | CV24: =データ一覧!F548 -> 3758
A25: ２ 世 帯 数 と 人 口 | AB25: 区 分 | AD25: 乳 用 牛 | AF25: 肉 用 牛 | AH25: 豚 | AJ25: 採卵鶏 | AL25: ブロイラー | AO25: 家具 | AX25: =データ一覧!F337 -> 38 | BB25: =+データ一覧!F362 -> 926 | BI25: =データ一覧!F387 -> 1555992 | BQ25: 漁業 | BV25: 1036 | BZ25: =データ一覧!F511 -> 909 | CD25: =データ一覧!F536 -> 127 | CI25: 宿泊業,飲食ｻｰﾋﾞｽ | CN25: 21067 | CR25: =データ一覧!F524 -> 7488 | CV25: =データ一覧!F549 -> 13579
Z26: 畜 産 | AB26: 飼養農家 | AD26: =データ一覧!$F$255 -> 20 | AF26: =データ一覧!$F$257 -> 42 | AH26: =データ一覧!$F$259 -> x | AJ26: =データ一覧!$F$261 -> 25 | AL26: =データ一覧!$F$263 -> x | AO26: パルプ・紙 | AX26: =データ一覧!F338 -> 81 | BB26: =+データ一覧!F363 -> 1952 | BI26: =データ一覧!F388 -> 8763255 | BP26: 第２次産業 | BV26: 122602 | BZ26: =データ一覧!F512 -> 84210 | CD26: =データ一覧!F537 -> 38392 | CI26: 生活関連ｻｰﾋﾞｽ業 | CN26: 13244 | CR26: =データ一覧!F525 -> 5027 | CV26: =データ一覧!F550 -> 8217
I27: 人 口 | U27: １世帯当 | W27: 人 口 | Z27: =データ一覧!$A$255 -> 3.3.31 | AB27: （戸） | AO27: 印刷 | AX27: =データ一覧!F339 -> 97 | BB27: =+データ一覧!F364 -> 2136 | BI27: =データ一覧!F389 -> 3192644 | BQ27: 鉱業，採石業 | BV27: 100 | BZ27: =データ一覧!F513 -> 79 | CD27: =データ一覧!F538 -> 21 | CI27: 教育,学習支援業 | CN27: 18458 | CR27: =データ一覧!F526 -> 7599 | CV27: =データ一覧!F551 -> 10859
A28: 区 分 | F28: 世帯数 | I28: 総 数 | L28: 男 | O28: 女 | R28: 男／女 | U28: たり人員 | W28: 密 度 | AB28: 頭 羽 | AD28: =データ一覧!$F$256 -> 843 | AF28: =データ一覧!$F$258 -> 2143 | AH28: =データ一覧!$F$260 -> 1394 | AJ28: =データ一覧!$F$262 -> 770165 | AL28: =データ一覧!$F$264 -> 53300 | AO28: 化学 | AX28: =データ一覧!F340 -> 52 | BB28: =+データ一覧!F365 -> 4129 | BI28: =データ一覧!F390 -> 24676904 | BQ28: 建設業 | BV28: 35912 | BZ28: =データ一覧!F514 -> 30243 | CD28: =データ一覧!F539 -> 5669 | CI28: 医療，福祉 | CN28: 50759 | CR28: =データ一覧!F527 -> 10476 | CV28: =データ一覧!F552 -> 40283
F29: 世 帯 | I29: 人 | L29: 人 | O29: 人 | S29: ％ | U29: 人 | W29: 人/㎢ | AO29: 石油・石炭 | AX29: =データ一覧!F341 -> 9 | BB29: =+データ一覧!F366 -> 86 | BI29: =データ一覧!F391 -> 501566 | BQ29: 製造業 | BV29: 86590 | BZ29: =データ一覧!F515 -> 53888 | CD29: =データ一覧!F540 -> 32702 | CI29: 複合サービス事業 | CN29: 4818 | CR29: =データ一覧!F528 -> 2877 | CV29: =データ一覧!F553 -> 1941
A30: =データ一覧!$A$22 -> 2.10.1 | F30: =データ一覧!F22 -> 234192 | I30: =+L30+O30 -> 823585 | L30: =データ一覧!F24 -> 400391 | O30: =データ一覧!F25 -> 423194 | S30: =+L30/O30*100 -> 94.61169109 | U30: =データ一覧!F27 -> 3.52 | W30: =データ一覧!F28 -> 196.7 | Z30: ５ 林 業 | AO30: プラスチック | AX30: =データ一覧!F342 -> 116 | BB30: =+データ一覧!F367 -> 5149 | BI30: =データ一覧!F392 -> 17151598 | BP30: 第３次産業 | BV30: 254676 | BZ30: =データ一覧!F516 -> 120110 | CD30: =データ一覧!F541 -> 134566 | CI30: サービス業 | CN30: 21414 | CR30: =データ一覧!F529 -> 13548 | CV30: =データ一覧!F554 -> 7866
A31: =データ一覧!$A$29 -> 7.10.1 | F31: =データ一覧!F29 -> 246911 | I31: =+L31+O31 -> 826996 | L31: =データ一覧!F31 -> 401860 | O31: =データ一覧!F32 -> 425136 | S31: 94.5250461 | U31: =データ一覧!F34 -> 3.35 | W31: =データ一覧!F35 -> 197.4 | AO31: ゴム | AX31: =データ一覧!F343 -> 5 | BB31: =+データ一覧!F368 -> 189 | BI31: =データ一覧!F393 -> 184358 | BQ31: 電気･ｶﾞｽ･水道業 | BV31: 4788 | BZ31: =データ一覧!F517 -> 4356 | CD31: =データ一覧!F542 -> 432 | CI31: 公務 | CN31: 13518 | CR31: =データ一覧!F530 -> 9494 | CV31: =データ一覧!F555 -> 4024
A32: =データ一覧!$A$36 -> 12.10.1 | F32: =データ一覧!F36 -> 259612 | I32: =+L32+O32 -> 828944 | L32: =データ一覧!F38 -> 402367 | O32: =データ一覧!F39 -> 426577 | S32: 94.32458853 | U32: =データ一覧!F41 -> 3.19 | W32: =データ一覧!F42 -> 197.9 | Z32: 森 林 総 面 積 | AH32: =データ一覧!$A$265 -> 3.3.31 | AO32: 皮革 | AX32: =データ一覧!F344 -> 3 | BB32: =+データ一覧!F369 -> 62 | BI32: =データ一覧!F394 -> 63100 | BQ32: 情報通信業 | BV32: 5611 | BZ32: =データ一覧!F518 -> 3840 | CD32: =データ一覧!F543 -> 1771 | CH32: 分類不能の産業 | CN32: 7065 | CR32: =データ一覧!F531 -> 3805 | CV32: =データ一覧!F556 -> 3260
A33: =+データ一覧!$A$43 -> 17.10.1 | F33: =データ一覧!F43 -> 269577 | I33: =+L33+O33 -> 821592 | L33: =データ一覧!F45 -> 397271 | O33: =データ一覧!F46 -> 424321 | S33: 93.62510929 | U33: =データ一覧!F48 -> 3.05 | W33: =データ一覧!F49 -> 196.1 | Z33: 森 林 の 構 成 | AO33: 窯業・土石 | AX33: =データ一覧!F345 -> 71 | BB33: =+データ一覧!F370 -> 1997 | BI33: =データ一覧!F395 -> 5709186 | BQ33: 運輸業,郵便業 | BV33: =BZ33+CD33 -> 15749 | BZ33: =データ一覧!F519 -> 12784 | CD33: =データ一覧!F544 -> 2965
A34: =+データ一覧!$A$50 -> 22.10.1 | F34: =+データ一覧!F50 -> 275599 | I34: =データ一覧!F51 -> 806314 | L34: =+データ一覧!F52 -> 389712 | O34: =+データ一覧!F53 -> 416602 | S34: 93.54539825 | U34: =+データ一覧!F55 -> 2.93 | W34: =+データ一覧!F56 -> 192.4 | AE34: ha | AL34: ha | AO34: 鉄鋼 | AX34: =データ一覧!F346 -> 19 | BB34: =+データ一覧!F371 -> 349 | BI34: =データ一覧!F396 -> 2545958 | BP34: １６ 社 会 福 祉 | CE34: =データ一覧!$A$557 -> 3.4.1
A35: =+データ一覧!$A$57 -> 27.10.1 | F35: =+データ一覧!F57 -> 279687 | I35: =データ一覧!F58 -> 786740 | L35: =+データ一覧!F59 -> 381474 | O35: =+データ一覧!F60 -> 405266 | S35: 94.12928792 | U35: =+データ一覧!F62 -> 2.812930168 | W35: =+データ一覧!F63 -> 187.7 | Z35: 総 数 | AD35: =データ一覧!F265 -> 312141.72 | AG35: 天然林 針葉樹 | AK35: =データ一覧!F268 -> 8946.29 | AO35: 非鉄金属 | AX35: =データ一覧!F347 -> 15 | BB35: =+データ一覧!F372 -> 1383 | BI35: =データ一覧!F397 -> 13565204
A36: 令 2.10.1（国調） | F36: =データ一覧!F64 -> 291662 | I36: =データ一覧!F65 -> 766863 | L36: =データ一覧!F66 -> 373973 | O36: =データ一覧!F67 -> 392890 | S36: =+L36/O36*100 -> 95.18516633 | U36: =データ一覧!F72 -> 2.59 | W36: =データ一覧!F73 -> 181.4116148 | Z36: 人工林 針葉樹 | AD36: =データ一覧!F266 -> 120867.05 | AG36: 天然林 広葉樹 | AK36: =データ一覧!F269 -> 169937.48 | AO36: 金属 | AX36: =データ一覧!F348 -> 179 | BB36: =+データ一覧!F373 -> 4481 | BI36: =データ一覧!F398 -> 11743831 | BQ36: 区分 | BX36: 施設数 | CC36: 収容定員 | CI36: 区分 | CP36: 施設数 | CU36: 収容定員
A37: 年 | C37: 区 | E37: 0歳 | H37: 15歳 | K37: 25歳 | N37: 35歳 | Q37: 45歳 | T37: 55歳 | W37: 65歳 | Z37: 人工林 広葉樹 | AD37: =データ一覧!F267 -> 2926.46 | AG37: 竹 林 | AK37: =データ一覧!F270 -> 1393.28 | AO37: はん用機械 | AX37: =データ一覧!F349 -> 28 | BB37: =+データ一覧!F374 -> 751 | BI37: =データ一覧!F399 -> 2135315 | BP37: 生活保護施設 | BX37: =データ一覧!F557 -> 2 | CB37: =データ一覧!F570 -> 140 | CF37: 人 | CH37: 指定障害者支援施設 | CP37: =データ一覧!F563 -> 26 | CT37: =データ一覧!F576 -> 1653 | CX37: 人
A38: 齢 | B38: 令 | F38: ～ | I38: ～ | L38: ～ | O38: ～ | R38: ～ | U38: ～ | AO38: 生産用機械 | AX38: =データ一覧!F350 -> 151 | BB38: =+データ一覧!F375 -> 3797 | BI38: =データ一覧!F400 -> 10082029 | BP38: 地域福祉施設 | BX38: =データ一覧!F558 -> 3 | CB38: =データ一覧!F571 -> 0 | CH38: 指定相談支援事業所 | CP38: =データ一覧!F564 -> 26 | CT38: =データ一覧!F577 -> 0
A39: 階 | B39: =+LEFT(データ一覧!$A$83,1) -> 3 | C39: 分 | G39: 14歳 | J39: 24歳 | M39: 34歳 | P39: 44歳 | S39: 54歳 | V39: 64歳 | Y39: 以上 | Z39: 林 野 の 構 成 | AG39: 保 有 形 態 別 | AO39: 業務用機械 | AX39: =データ一覧!F351 -> 12 | BB39: =+データ一覧!F376 -> 617 | BI39: =データ一覧!F401 -> 959462 | BP39: 老人福祉施設 | BX39: =データ一覧!F559 -> 172 | CB39: =データ一覧!F572 -> 5524 | CH39: 児童福祉施設 | CP39: =データ一覧!F565 -> 568 | CT39: =データ一覧!F578 -> 31747
A40: 級 | B40: ・ | G40: 人 | J40: 人 | L40: 人 | O40: 人 | R40: 人 | U40: 人 | X40: 人 | AF40: ha | AL40: ha | AO40: 電子・デバイス | AX40: =データ一覧!F352 -> 48 | BB40: =+データ一覧!F377 -> 10105 | BI40: =データ一覧!F402 -> 34102309 | BP40: 介護保険施設 | BX40: =データ一覧!F560 -> 1216 | CB40: =データ一覧!F573 -> 23782 | CH40: 母子福祉施設 | CP40: =データ一覧!F566 -> 1 | CT40: =データ一覧!F579 -> 0
A41: 別 | B41: =+MID(データ一覧!$A$83,3,2) -> 10 | C41: 総 数 | E41: =+E42+E43 -> 93533 | H41: =+H42+H43 -> 66099 | K41: =+K42+K43 -> 69155 | N41: =+N42+N43 -> 87232 | Q41: =+Q42+Q43 -> 106346 | T41: =+T42+T43 -> 93910 | W41: =+W42+W43 -> 233283 | Z41: 無立木地 伐採跡地 | AD41: =データ一覧!F271 -> 111.5 | AG41: 国 有 | AK41: =データ一覧!F273 -> 39306.97 | AO41: 電気機械 | AX41: =データ一覧!F353 -> 65 | BB41: =+データ一覧!F378 -> 3274 | BI41: =データ一覧!F403 -> 20700290 | BP41: 障害者自立支援法施行前からの身体障害者福祉施設 | BX41: =データ一覧!F561 -> 2 | CB41: =データ一覧!F574 -> 0 | CH41: 婦人保護施設 | CP41: =データ一覧!F567 -> 1 | CT41: =データ一覧!F580 -> 15
A42: 人 | B42: ・ | C42: 男 | E42: =データ一覧!F83 -> 48048 | H42: =データ一覧!F84 -> 34749 | K42: =データ一覧!F85 -> 36033 | N42: =データ一覧!F86 -> 44633 | Q42: =データ一覧!F87 -> 53750 | T42: =データ一覧!F88 -> 46361 | W42: =データ一覧!F89 -> 101125 | Z42: 無立木地 未立木地 | AD42: =データ一覧!F272 -> 7959.66 | AG42: 公 有 | AK42: =データ一覧!F274 -> 38866.19 | AO42: 情報通信機械 | AX42: =データ一覧!F354 -> 4 | BB42: =+データ一覧!F379 -> 302 | BI42: =データ一覧!F404 -> 874601 | CH42: その他の社会福祉施設 | CP42: =データ一覧!F568+データ一覧!F569 -> 17 | CT42: =SUM(データ一覧!F581,データ一覧!F582) -> 0
A43: 口 | B43: =+RIGHT(データ一覧!$A$83,1) -> 1 | C43: 女 | E43: =データ一覧!F91 -> 45485 | H43: =データ一覧!F92 -> 31350 | K43: =データ一覧!F93 -> 33122 | N43: =データ一覧!F94 -> 42599 | Q43: =データ一覧!F95 -> 52596 | T43: =データ一覧!F96 -> 47549 | W43: =データ一覧!F97 -> 132158 | AG43: 私 有 | AK43: =データ一覧!F275 -> 233968.56 | AO43: 輸送機械 | AX43: =データ一覧!F355 -> 26 | BB43: =+データ一覧!F380 -> 4404 | BI43: =データ一覧!F405 -> 20143342 | BP43: 障害福祉サービス事業所 | BX43: =データ一覧!F562 -> 571 | CB43: =データ一覧!F575 -> 6908
Z44: 林 産 物 生 産 量 | AJ44: =データ一覧!$A$276 -> 2年中 | AO44: その他 | AX44: =データ一覧!F356 -> 259 | BB44: =+データ一覧!F381 -> 5836 | BI44: =データ一覧!F406 -> 9783402 | BP44: １７ 教 育 | CD44: =データ一覧!$A$583 -> 3.5.1
A45: 人口動態 | H45: 自 然 動 態 | N45: 社 会 動 態 | T45: =データ一覧!$A78 -> 2.1.1～3.12.31 | Z45: 生椎茸 | AD45: =データ一覧!F276 -> 212013.4 | AF45: ㎏ | AG45: 乾椎茸 | AK45: =データ一覧!F277 -> 2092 | AM45: ㎏
C46: 区 分 | H46: 出 生 | K46: 死 亡 | N46: 転 入 | Q46: 転 出 | T46: 婚 姻 | W46: 離 婚 | Z46: えのきだけ | AD46: =データ一覧!F279 -> 114466 | AF46: ㎏ | AG46: なめこ | AK46: =データ一覧!F278 -> 23554 | AM46: ㎏ | AO46: 工 業 用 水 量 | AU46: （従業者30人以上の事業所） | BF46: =データ一覧!F407 -> 271073 | BK46: ㎥／日 | BZ46: 学校数（校） | CG46: 教員数（人） | CO46: 学生・生徒・児童数（人）
A47: =LEFT(データ一覧!$A74,6) -> 2.10.1 | H47: 人 | K47: 人 | N47: 人 | Q47: 人 | U47: 件 | X47: 件 | Z47: ひらたけ | AD47: =+データ一覧!F280 -> 9184 | AF47: ㎏ | AG47: まいたけ | AK47: =+データ一覧!F281 -> 130264 | AM47: ㎏ | BR47: 区分 | BZ47: 本 校 | CC47: 分 校 | CF47: 本 務 | CJ47: 兼 務 | CN47: 総 数 | CR47: 男 | CV47: 女
A48: ～ | C48: 実 数 | H48: =データ一覧!F74 -> 2547 | K48: =データ一覧!F75 -> 4892 | N48: =データ一覧!F76 -> 9482 | Q48: =データ一覧!F77 -> 10867 | T48: =データ一覧!F78 -> 3029 | W48: =データ一覧!F79 -> 1052 | AN48: １１ 上 ・ 下 水 道 | BQ48: 小学校 | BZ48: =データ一覧!F584 -> 193 | CC48: =データ一覧!F585 -> 1 | CF48: =データ一覧!F586 -> 3060 | CJ48: =データ一覧!F587 -> 492 | CN48: =データ一覧!F588 -> 39236 | CR48: =データ一覧!F589 -> 20169 | CV48: =データ一覧!F590 -> 19067
A49: =RIGHT(データ一覧!$A76,6) -> 3.9.30 | C49: 比率(対1,000人) | H49: =+H48/I36*1000 -> 3.321323365 | K49: =+K48/I36*1000 -> 6.379235926 | N49: - | Q49: - | T49: =+T48/I36*1000 -> 3.949858058 | W49: =+W48/I36*1000 -> 1.371822607 | Z49: ６ 漁 業 | BQ49: 中学校 | BZ49: =データ一覧!F592 -> 81 | CC49: =データ一覧!F593 -> 2 | CF49: =データ一覧!F594 -> 1848 | CJ49: =データ一覧!F595 -> 387 | CN49: =データ一覧!F596 -> 21196 | CR49: =データ一覧!F597 -> 10846 | CV49: =データ一覧!F598 -> 10350
AN50: 水 道 供 給 人 口 | AU50: 上 水 道 | AY50: 簡易水道 | BC50: 専用水道 | BG50: 飲料水供給施設 | BK50: 下水道処理人口 | BQ50: 高等学校 | BZ50: =データ一覧!F600 -> 35 | CC50: =データ一覧!F601 -> 0 | CF50: =データ一覧!F602 -> 1631 | CJ50: =データ一覧!F603 -> 790 | CN50: =データ一覧!F604 -> 20701 | CR50: =データ一覧!F605 -> 10437 | CV50: =データ一覧!F606 -> 10264
A51: ３ 事 業 所（民 営） （平 28.6.1） | Z51: 漁船隻数・トン数 | AD51: =データ一覧!$A$282 -> 2.12.31 | AH51: 動 力 船 | AN51: =データ一覧!$A$408 -> 3.3.31 | AT51: 人 | AV51: =データ一覧!F408 -> 693022 | AY51: =データ一覧!F409 -> 50625 | BD51: =データ一覧!F410 -> 935 | BH51: =データ一覧!F411 -> 1143 | BL51: =データ一覧!F412 -> 629470 | BQ51: 大学・短期大学 | BZ51: =データ一覧!F607 -> 9 | CC51: =データ一覧!F608 -> 2 | CF51: =データ一覧!F609 -> 1081 | CJ51: =データ一覧!F610 -> 756 | CN51: =データ一覧!F611 -> 11599 | CR51: =データ一覧!F612 -> 6951 | CV51: =データ一覧!F613 -> 4648
Z52: 無動力船隻数 | AD52: 船外機付漁船隻数 | AH52: 隻 数 | AK52: 総 ト ン 数 | BQ52: 高等専門学校 | BZ52: =データ一覧!F614 -> 1 | CC52: =データ一覧!F615 -> 0 | CF52: =データ一覧!F616 -> 79 | CJ52: =データ一覧!F617 -> 36 | CN52: =データ一覧!F618 -> 998 | CR52: =データ一覧!F619 -> 790 | CV52: =データ一覧!F620 -> 208
H53: 総 数 | N53: 民 営 | T53: 国 ･ 地方公共団体 | AC53: 隻 | AG53: 隻 | AJ53: 隻 | AM53: t | AN53: １２ 交 通 ・ 通 信 | BQ53: 特別支援学校 | BZ53: =+データ一覧!F622 -> 12 | CC53: =+データ一覧!F623 -> 0 | CF53: =+データ一覧!F624 -> 763 | CJ53: =+データ一覧!F625 -> 79 | CN53: =+データ一覧!F626 -> 994 | CR53: =+データ一覧!F627 -> 620 | CV53: =+データ一覧!F628 -> 374
A54: 区 分 | H54: 事業所数 | K54: 従業者数 | N54: 事業所数 | Q54: 従業者数 | T54: 事業所数 | W54: 従業者数 | Z54: =データ一覧!$F$282 -> 39 | AD54: =データ一覧!$F$283 -> 1051 | AH54: =データ一覧!F284 -> 1106 | AK54: =データ一覧!F285 -> 6188.37 | BQ54: 幼稚園 | BZ54: =データ一覧!F638 -> 137 | CC54: =データ一覧!F639 -> 1 | CF54: =データ一覧!F640 -> 2638 | CJ54: =データ一覧!F641 -> 427 | CN54: =データ一覧!F642 -> 15118 | CR54: =データ一覧!F643 -> 7678 | CV54: =データ一覧!F644 -> 7440
K55: 人 | Q55: 人 | W55: 人 | Z55: 男女別就業者数 | AH55: =データ一覧!$A$286 -> 30.11.1 | AN55: 道 路 | AR55: 実 延 長 | AV55: 国 道 | AZ55: 県 道 | BD55: 市町道 | BH55: 鉄 道 営 業 キ ロ 数 | BQ55: 幼保連携認定こども園 | BZ55: =データ一覧!F630 -> 64 | CC55: =データ一覧!F631 -> 0 | CF55: =データ一覧!F632 -> 201 | CJ55: =データ一覧!F633 -> 62 | CN55: =データ一覧!F634 -> 1113 | CR55: =データ一覧!F635 -> 559 | CV55: =データ一覧!F636 -> 554
A56: 総数 | H56: =データ一覧!F99 -> … | K56: =データ一覧!F156 -> … | N56: =データ一覧!F100 -> 41644 | Q56: =データ一覧!F157 -> 377238 | T56: =データ一覧!F101 -> … | W56: =データ一覧!F158 -> … | Z56: 総 数 | AF56: 男 | AJ56: 女 | AN56: =データ一覧!$A$413 -> 2.4.1 | AR56: =データ一覧!F413 -> 10699.012 | AU56: ㎞ | AV56: =データ一覧!F414 -> 592.1 | AY56: ㎞ | AZ56: =データ一覧!F415 -> 1564.3 | BC56: ㎞ | BD56: =データ一覧!F416 -> 8542.612 | BG56: km | BH56: =データ一覧!$A$417 -> 3.4.1 | BL56: =データ一覧!F417 -> 302.63 | BO56: ㎞ | BQ56: 各種学校 | BZ56: =データ一覧!F646 -> 12 | CC56: =データ一覧!F647 -> 0 | CF56: =データ一覧!F648 -> 231 | CJ56: =データ一覧!F649 -> 11 | CN56: =データ一覧!F650 -> 2082 | CR56: =データ一覧!F651 -> 1387 | CV56: =データ一覧!F652 -> 695
A57: 農林漁業 | H57: =データ一覧!F102 -> … | K57: =データ一覧!F159 -> … | N57: =データ一覧!F103 -> 348 | Q57: =データ一覧!F160 -> 4621 | T57: =データ一覧!F104 -> … | W57: =データ一覧!F161 -> … | AE57: 人 | AH57: 人 | AM57: 人 | AN57: 自動車 | AW57: 乗用車 | BQ57: 専修学校 | BZ57: =データ一覧!F654 -> 21 | CC57: =データ一覧!F655 -> 0 | CF57: =データ一覧!F656 -> 165 | CJ57: =データ一覧!F657 -> 350 | CN57: =データ一覧!F658 -> 1479 | CR57: =データ一覧!F659 -> 503 | CV57: =データ一覧!F660 -> 976
A58: 鉱業 | H58: =データ一覧!F105 -> … | K58: =データ一覧!F162 -> … | N58: =データ一覧!F106 -> 13 | Q58: =データ一覧!F163 -> 92 | T58: =データ一覧!F107 -> … | W58: =データ一覧!F164 -> … | Z58: =AF58+AJ58 -> 1328 | AF58: =データ一覧!F287 -> 1234 | AJ58: =データ一覧!F288 -> 94 | AN58: 台 数 | AR58: 貨 物 | AV58: 普 通 | AZ58: 小 型 | BD58: 乗 合 | BG58: 特 種 | BJ58: 小型二輪 | BM58: 軽自動車 | BP58: １８ 衛 生
A59: 建設業 | H59: =データ一覧!F108 -> … | K59: =データ一覧!F165 -> … | N59: =データ一覧!F109 -> 4743 | Q59: =データ一覧!F166 -> 32043 | T59: =データ一覧!F110 -> … | W59: =データ一覧!F167 -> … | Z59: 海 面 漁 業 漁 獲 量 （属人） | AH59: =データ一覧!$A$289 -> 30年中 | AN59: =データ一覧!$A$418 -> 3.3.31 | AS59: =データ一覧!F418 -> 44847 | AW59: =データ一覧!F420 -> 150712 | BA59: =データ一覧!F421 -> 155223 | BD59: =データ一覧!F419 -> 1843 | BG59: =データ一覧!F422 -> 14916 | BJ59: =データ一覧!F423 -> 8493 | BM59: =データ一覧!F424 -> 287598
A60: 製造業 | H60: =データ一覧!F111 -> … | K60: =データ一覧!F168 -> … | N60: =データ一覧!F112 -> 5292 | Q60: =データ一覧!F169 -> 82745 | T60: =データ一覧!F113 -> … | W60: =データ一覧!F170 -> … | AF60: ｔ | AM60: t | AR60: 郵 便 局 数 | BF60: =+MID(データ一覧!$A$428,3,2) -> 12 | BG60: 令 | BH60: 一般加入 | BL60: ＩＮＳネット | BT60: 医療関係施設 | BZ60: =データ一覧!$A$661 -> 元.10.1 | CG60: および医療関係者数 | CO60: =データ一覧!$A$666 -> 30.12.31
A61: 電気・ｶﾞ ｽ・熱供給・水道業 | H61: =データ一覧!F114 -> … | K61: =データ一覧!F171 -> … | N61: =データ一覧!F115 -> 46 | Q61: =データ一覧!F172 -> 3601 | T61: =データ一覧!F116 -> … | W61: =データ一覧!F173 -> … | Z61: 総 数 | AD61: =データ一覧!F289 -> 11317 | AG61: 藻 類 | AK61: =データ一覧!F292 -> 50 | AN61: 通 信 | AR61: 総 数 | AW61: 郵 便 局 | BB61: 簡 易 局 | BF61: ・ | BG61: =+LEFT(データ一覧!$A$428,1) -> 2 | BH61: 電話数 | BL61: 加入数 | BW61: 病 | BZ61: 院 | CH61: 一般診療所 | CT61: 歯科診療所
A62: 情報通信業 | H62: =データ一覧!F117 -> … | K62: =データ一覧!F174 -> … | N62: =データ一覧!F118 -> 322 | Q62: =データ一覧!F175 -> 5047 | T62: =データ一覧!F119 -> … | W62: =データ一覧!F176 -> … | Z62: 魚 類 | AD62: =データ一覧!F290 -> 8504 | AG62: そ の 他 | AK62: =データ一覧!F293 -> 2502 | AN62: =データ一覧!$A$428 -> 2.12.31 | AR62: =データ一覧!F425 -> 235 | AW62: =データ一覧!F426 -> 207 | BB62: =データ一覧!F427 -> 28 | BF62: =+RIGHT(データ一覧!$A$428,2) -> 31 | BG62: ・ | BH62: =データ一覧!F428 -> 71718 | BL62: =データ一覧!F429 -> 11459 | BQ62: 医療関係 | CC62: 一般病院 | CO62: 有 | CR62: 床
A63: 運輸業、郵便業 | H63: =データ一覧!F120 -> … | K63: =データ一覧!F177 -> … | N63: =データ一覧!F121 -> 799 | Q63: =データ一覧!F178 -> 16135 | T63: =データ一覧!F122 -> … | W63: =データ一覧!F179 -> … | Z63: 貝 類 | AD63: =データ一覧!F291 -> 261 | BQ63: 施設数 | BX63: =データ一覧!F661 -> 67 | CD63: =データ一覧!F662 -> 57 | CJ63: =データ一覧!F663 -> 573 | CP63: =データ一覧!F664 -> 62 | CV63: =データ一覧!F665 -> 300
A64: 卸売業、小売業 | H64: =データ一覧!F123 -> … | K64: =データ一覧!F180 -> … | N64: =データ一覧!F124 -> 10543 | Q64: =データ一覧!F181 -> 73107 | T64: =データ一覧!F125 -> … | W64: =データ一覧!F182 -> … | AN64: １３ 税 ・ 財 政 | BW64: 医師 | CB64: 歯科医師 | CG64: 薬剤師 | CL64: 保健師 | CQ64: 助産師 | CV64: 看護師
A65: 金融業、保険業 | H65: =データ一覧!F126 -> … | K65: =データ一覧!F183 -> … | N65: =データ一覧!F127 -> 749 | Q65: =データ一覧!F184 -> 9238 | T65: =データ一覧!F128 -> … | W65: =データ一覧!F185 -> … | Z65: ７ 商 業 | AG65: =データ一覧!$A$294 -> 28.6.1(平成27年実績） | BQ65: 医療 | BZ65: 人 | CE65: 人 | CJ65: 人 | CO65: 人 | CT65: 人 | CY65: 人
A66: 不動産業、物品賃貸業 | H66: =データ一覧!F129 -> … | K66: =データ一覧!F186 -> … | N66: =データ一覧!F130 -> 1288 | Q66: =データ一覧!F187 -> 5756 | T66: =データ一覧!F131 -> … | W66: =データ一覧!F188 -> … | AR66: 歳入 | BA66: (千円） | BF66: 歳出 | BO66: (千円） | BQ66: 関係者 | BV66: =データ一覧!F666 -> 2057 | CA66: =データ一覧!F667 -> 445 | CF66: =データ一覧!F668 -> 1466 | CK66: =データ一覧!F669 -> 477 | CP66: =データ一覧!F670 -> 248 | CU66: =データ一覧!F671 -> 11822
A67: 学術研究、専門・技術ｻｰﾋﾞｽ業 | H67: =データ一覧!F132 -> … | K67: =データ一覧!F189 -> … | N67: =データ一覧!F133 -> 1529 | Q67: =データ一覧!F190 -> 9623 | T67: =データ一覧!F134 -> … | W67: =データ一覧!F191 -> … | Z67: 産 業 分 類 | AD67: 商 店 数 | AG67: 従 業 者 数 | AJ67: 年 間 販 売 額 | AN67: 一人当たり歳入歳出予算決算額 | BY67: 死因別死亡数 | CO67: =データ一覧!$A$672 -> 2年中 | CX67: 単 位：人
A68: 宿泊業、飲食サービス業 | H68: =データ一覧!F135 -> … | K68: =データ一覧!F192 -> … | N68: =データ一覧!F136 -> 5288 | Q68: =データ一覧!F193 -> 32923 | T68: =データ一覧!F137 -> … | W68: =データ一覧!F194 -> … | AE68: 店 | AI68: 人 | AK68: 百万円 | AN68: 区分 | AR68: =データ一覧!$A$438 -> 3年度 | AW68: =データ一覧!$A$452 -> 2年度 | BB68: 区分 | BF68: =+AR68 -> 3年度 | BK68: =データ一覧!$A$452 -> 2年度 | BP68: 死 因 | CB68: 悪 性 | CE68: 高血圧 | CK68: 脳血管 | CT68: 不慮の事故
A69: 生活関連サービス業、娯楽業 | H69: =データ一覧!F138 -> … | K69: =データ一覧!F195 -> … | N69: =データ一覧!F139 -> 3577 | Q69: =データ一覧!F196 -> 14326 | T69: =データ一覧!F140 -> … | W69: =データ一覧!F197 -> … | Z69: 総 計 | AD69: =データ一覧!F294 -> 8905 | AG69: =データ一覧!F303 -> 60306 | AJ69: =データ一覧!F312 -> 1945172 | AR69: =データ一覧!F434 -> 500815.4718 | AW69: =データ一覧!F435 -> 677102.6552 | BF69: =データ一覧!F436 -> 500815.4718 | BK69: =データ一覧!F437 -> 653771.9526 | BU69: 全 死 因 | BY69: 結 核 | CB69: 新生物 | CE69: 性疾患 | CH69: 心疾患 | CK69: 疾 患 | CN69: 肺 炎 | CQ69: 老 衰 | CW69: 交通事故
A70: 教育、学習支援業 | H70: =データ一覧!F141 -> … | K70: =データ一覧!F198 -> … | N70: =データ一覧!F142 -> 1037 | Q70: =データ一覧!F199 -> 10254 | T70: =データ一覧!F143 -> … | W70: =データ一覧!F200 -> … | Z70: 卸売業 | AD70: =データ一覧!F295 -> 2072 | AG70: =データ一覧!F304 -> 17447 | AJ70: =データ一覧!F313 -> 1124125 | AN70: 項目別歳入歳出予算決算額
A71: 医療、福祉 | H71: =データ一覧!F144 -> … | K71: =データ一覧!F201 -> … | N71: =データ一覧!F145 -> 2491 | Q71: =データ一覧!F202 -> 47565 | T71: =データ一覧!F146 -> … | W71: =データ一覧!F203 -> … | Z71: 小売業 | AD71: =データ一覧!F296 -> 6833 | AG71: =データ一覧!F305 -> 42859 | AJ71: =データ一覧!F314 -> 821047 | AN71: 区分 | AR71: =データ一覧!$A$438 -> 3年度 | AW71: =データ一覧!$A$452 -> 2年度 | BB71: 区分 | BF71: =+AR71 -> 3年度 | BK71: =データ一覧!$A$452 -> 2年度 | BU71: =データ一覧!F672 -> 9286 | BY71: － | BZ71: =データ一覧!F673 -> 13 | CB71: =データ一覧!F674 -> 512 | CF71: =データ一覧!F675 -> 65 | CH71: =データ一覧!F676 -> 125 | CK71: =データ一覧!F677 -> 17 | CN71: =データ一覧!F678 -> 598 | CQ71: =データ一覧!F679 -> 820 | CT71: =データ一覧!F680 -> 282 | CW71: =データ一覧!F681 -> 39
A72: 複合サービス事業 | H72: =データ一覧!F147 -> … | K72: =データ一覧!F204 -> … | N72: =データ一覧!F148 -> 367 | Q72: =データ一覧!F205 -> 4934 | T72: =データ一覧!F149 -> … | W72: =データ一覧!F206 -> … | Z72: 各種商品 | AD72: =データ一覧!F297 -> 26 | AG72: =データ一覧!F306 -> 2195 | AJ72: =データ一覧!F315 -> 61566 | AN72: 総額 | AR72: =SUM(AR73:AV85) -> 380724429 | AW72: =SUM(AW73:BA85) -> 514714593 | BB72: 総額 | BF72: =SUM(BF73:BJ85) -> 380724429 | BK72: =SUM(BK73:BO85) -> 498618139 | BP72: １９ 警 察 ・ 消 防 | CE72: =+データ一覧!$A682 -> 3.4.1
A73: サービス業 | H73: =データ一覧!F150 -> … | K73: =データ一覧!F207 -> … | N73: =データ一覧!F151 -> 3212 | Q73: =データ一覧!F208 -> 25228 | T73: =データ一覧!F152 -> … | W73: =データ一覧!F209 -> … | Z73: 織物・衣服・身の回り品 | AD73: =データ一覧!F298 -> 986 | AG73: =データ一覧!F307 -> 3532 | AJ73: =データ一覧!F316 -> 46990 | AN73: 地方税 | AR73: =データ一覧!F439 -> 119936460 | AW73: =データ一覧!F453 -> 126900573 | BB73: 議会費 | BF73: =データ一覧!F467 -> 3231372 | BK73: =データ一覧!F481 -> 3016505
A74: 公務 | H74: =データ一覧!F153 -> … | K74: =データ一覧!F210 -> … | N74: =データ一覧!F154 -> … | Q74: =データ一覧!F211 -> … | T74: =データ一覧!F155 -> … | W74: =データ一覧!F212 -> … | Z74: 飲食料品 | AD74: =データ一覧!F299 -> 2102 | AG74: =データ一覧!F308 -> 15273 | AJ74: =データ一覧!F317 -> 238769 | AN74: 地方譲与税 | AR74: =データ一覧!F440 -> 3255902 | AW74: =データ一覧!F454 -> 3457222 | BB74: 総務費 | BF74: =データ一覧!F468 -> 45392988 | BK74: =データ一覧!F482 -> 145446304 | BZ74: 交番・駐在所 | CI74: 刑法犯認知件数 | CR74: 交通人身事故発生件数
A75: ４ 農 業 | Z75: 機械器具 | AD75: =データ一覧!F300 -> 1028 | AG75: =データ一覧!F309 -> 6435 | AJ75: =データ一覧!F318 -> 178495 | AN75: 各種交付金 | AR75: =データ一覧!F441 -> 19288469 | AW75: =データ一覧!F455 -> 18502264 | BB75: 民生費 | BF75: =データ一覧!F469 -> 127886975 | BK75: =データ一覧!F483 -> 126199027 | BQ75: 警察署数 | BZ75: 検問所数 | CJ75: =データ一覧!$A$684 -> 2年中 | CS75: =データ一覧!$A$684 -> 2年中
Z76: その他 | AD76: =データ一覧!F301 -> 2465 | AG76: =データ一覧!F310 -> 13896 | AJ76: =データ一覧!F319 -> 254849 | AN76: 地方特例交付金 | AR76: =データ一覧!F442 -> 3308248 | AW76: =データ一覧!F456 -> 792292 | BB76: 衛生費 | BF76: =データ一覧!F470 -> 31171019 | BK76: =データ一覧!F484 -> 27278361 | CN76: 件 | CW76: 件
C77: 農業経営体数 | J77: 農産物販売額規模別経営体数 | R77: 経営耕地面積規模別経営体数 | Z77: 無店舗 | AD77: =データ一覧!F302 -> 226 | AG77: =データ一覧!F311 -> 1528 | AJ77: =データ一覧!F320 -> 40378 | AN77: 地方交付税 | AR77: =データ一覧!F443 -> 64786400 | AW77: =データ一覧!F457 -> 71480523 | BB77: 労働費 | BF77: =データ一覧!F471 -> 1755721 | BK77: =データ一覧!F485 -> 1564642 | BR77: =データ一覧!F682 -> 11 | CA77: =データ一覧!F683 -> 136 | CJ77: =データ一覧!F684 -> 2764 | CS77: =データ一覧!F685 -> 868
A78: 農 | C78: 区 分 | G78: 経営体数 （経営体） | J78: 区 分 | O78: 経営体数 （経営体） | R78: 区 分 | W78: 経営体数 （経営体） | AN78: 分担金および負担金 | AR78: =データ一覧!F444 -> 2620429 | AW78: =データ一覧!F458 -> 2342010 | BB78: 農林水産業費 | BF78: =データ一覧!F472 -> 18927351 | BK78: =データ一覧!F486 -> 20361223 | BP78: 火災発生件数 | BZ78: 林野焼損 | CE78: 損 害 | CJ78: 消 防 自 | CN78: その他の
A79: 業 | B79: 令 | Z79: ８ 住 宅 | AN79: 使用料および手数料 | AR79: =データ一覧!F445 -> 4636705 | AW79: =データ一覧!F459 -> 4337149 | BB79: 商工費 | BF79: =データ一覧!F473 -> 16800464 | BK79: =データ一覧!F487 -> 19600696 | BP79: =+データ一覧!$A$686 -> 2年中 | BU79: 焼損棟数 | BZ79: 面 積 | CE79: 見 積 額 | CJ79: 動 車 数 | CN79: ﾎﾟﾝﾌﾟ数 | CR79: 消防吏員 | CV79: 消防団員
A80: 経 | B80: =+LEFT(データ一覧!$A$213) -> 2 | C80: 計 | G80: =データ一覧!F213 -> 10546 | J80: 総 数 | O80: =データ一覧!F217 -> 10546 | R80: 総 数 | W80: =データ一覧!F233 -> 32792 | AN80: 国庫支出金 | AR80: =データ一覧!F446 -> 55970724 | AW80: =データ一覧!F460 -> 153363307 | BB80: 土木費 | BF80: =データ一覧!F474 -> 44478565 | BK80: =データ一覧!F488 -> 54359522 | BP80: 件 | BV80: 棟 | CC80: ａ | CG80: 千円 | CT80: 人 | CX80: 人
A81: 営 | B81: ・ | C81: 個人経営体 | G81: =データ一覧!F214 -> 9871 | J81: 販 売 な し | O81: =データ一覧!F218 -> 706 | R81: 0.5 ha 未満 | W81: =データ一覧!F234 -> 728 | Z81: =+データ一覧!$A$321 -> 令和元年 | AE81: =データ一覧!$A$324 -> 2年 | AF81: 中の増減 | AJ81: =+データ一覧!$A$324 -> 2年 | AN81: 県支出金 | AR81: =データ一覧!F447 -> 37032340 | AW81: =データ一覧!F461 -> 36743440 | BB81: 消防費 | BF81: =データ一覧!F475 -> 13319230 | BK81: =データ一覧!F489 -> 14217258 | BQ81: =データ一覧!F686 -> 171 | BV81: =データ一覧!F687 -> 152 | CA81: =データ一覧!F688 -> 5 | CE81: =データ一覧!F689 -> 588667 | CK81: =データ一覧!F690 -> 262 | CO81: =データ一覧!F691 -> 362 | CS81: =データ一覧!F692 -> 1245 | CW81: =データ一覧!F693 -> 5874
A82: 体 | B82: =+LEFT(データ一覧!$A$213,1) -> 2 | C82: 団体経営体 | G82: =データ一覧!F215 -> 675 | J82: 50万円未満 | O82: =データ一覧!F219 -> 3648 | R82: 0.5 ha ～ 1.0 ha | W82: =データ一覧!F235 -> 2338 | AD82: 建設した住宅 | AG82: 消失した住宅 | AN82: 財産収入 | AR82: =データ一覧!F448 -> 1089004 | AW82: =データ一覧!F462 -> 10632206 | BB82: 教育費 | BF82: =データ一覧!F476 -> 37490413 | BK82: =データ一覧!F490 -> 45491896 | BP82: ２０ そ の 他 （令3．4．1）
A83: 数 | B83: ・ | D83: 法人経営 | G83: =データ一覧!F216 -> 414 | J83: 50～300万円 | O83: =データ一覧!F220 -> 4670 | R83: 1.0 ha ～ 2.0 ha | W83: =データ一覧!F236 -> 4042 | AN83: 繰入金 | AR83: =データ一覧!F449 -> 16573349 | AW83: =データ一覧!F463 -> 11742764 | BB83: 災害復旧費 | BF83: =データ一覧!F477 -> 128920 | BK83: =データ一覧!F491 -> 357448
A84: （ | B84: =+RIGHT(データ一覧!$A$213) -> 1 | J84: 300～500万円 | O84: =データ一覧!F221 -> 431 | R84: 2.0 ha ～ 3.0 ha | W84: =データ一覧!F237 -> 1968 | AA84: =データ一覧!F321 -> 307954 | AC84: 戸 | AD84: =データ一覧!F322 -> 4262 | AF84: 戸 | AG84: =データ一覧!F323 -> 2151 | AI84: 戸 | AK84: =データ一覧!F324 -> 310065 | AM84: 戸 | AN84: 地方債 | AR84: =データ一覧!F450 -> 33166700 | AW84: =データ一覧!F464 -> 38554591 | BB84: 公債費 | BF84: =データ一覧!F478 -> 38143356 | BK84: =データ一覧!F492 -> 40722987
A85: 総 | J85: 500～1,000万円 | O85: =データ一覧!F222 -> 417 | R85: 3.0 ha ～ 5.0 ha | W85: =データ一覧!F238 -> 1473 | AN85: その他 | AR85: =データ一覧!F451 -> 19059699 | AW85: =データ一覧!F465 -> 35866252 | BB85: その他 | BF85: =データ一覧!F479 -> 1998055 | BK85: =データ一覧!F493 -> 2270 | BQ85: 県内文化財数 | CC85: 国指定 | CH85: 国選択・選定 | CO85: 国登録 | CU85: 県指定
A86: 数 | J86: 1,000万円以上 | O86: =データ一覧!F223 -> 674 | R86: 5.0 ha以上 | W86: =データ一覧!F239 -> 22242 | BQ86: 有形文化財 | CC86: 114 | CO86: 227 | CU86: 262
A87: ） | C87: 15歳以上の常雇い数 | J87: 農業に60日以上従事した世帯員、役員・構成員 （経営主を含む）の平均年齢 | Z87: ９ 議 員 ・ 職 員 | AN87: １４ 文 化 | AX87: ( | AY87: =データ一覧!$A$500 -> 3.3.31 | BC87: ただし図書館・公民館・児童館 | BK87: =データ一覧!$A$494 -> 3.4.1 | BQ87: 無形文化財 | CC87: 2
A88: と | BD88: 宗教法人数 | BK88: =データ一覧!$A$502 -> 2.12.31 | BO88: ） | BQ88: 民俗文化財 | CC88: 6 | CI88: 12 | CO88: 1 | CU88: 75
A89: 就 | J89: 農業に60日以上従事 | R89: 農業に150日以上従事 | Z89: 市 町 村 議 会 | AC89: 有権者数 | AE89: =データ一覧!$A$328 -> 3.9.1 | AG89: 市 町 村 議 会 | AJ89: 市町職員数 | AR89: 県立図書館 | AY89: 公 民 館 | BJ89: 社会教育学級講座 | BQ89: 天然記念物、史跡・名勝 | CC89: 62 | CO89: 3 | CU89: 67
A90: 業 | C90: 区 分 | G90: 人 | J90: 区 分 | O90: 人 | R90: 区 分 | W90: 人 | Z90: 議 員 定 数 | AC90: 男 | AE90: 女 | AG90: 選 挙 投 票 率 | AJ90: 総 数 | AL90: 一般行政職 | AN90: 公 共 | AR90: 館 数 | AU90: 図書数 | AX90: 本 館 | BA90: 分 館 | BD90: 公 園 | BG90: 児童館 | BJ90: 学級講座数 | BM90: 受講者数 | BQ90: 選定保存技術
A91: 状 | C91: 総数 | G91: =データ一覧!F230 -> 783 | J91: 総数 | O91: =データ一覧!F224 -> 67.9 | R91: 総数 | W91: =データ一覧!F227 -> 67.4 | AB91: 人 | AD91: 人 | AF91: 人 | AI91: ％ | AK91: 人 | AM91: 人 | AN91: 施 設 数 | AS91: =データ一覧!F494 -> 2 | AU91: =データ一覧!F495 -> 1362649 | AY91: =データ一覧!F496 -> 182 | BA91: =データ一覧!F497 -> 25 | BD91: =データ一覧!F498 -> 937 | BG91: =データ一覧!F499 -> 99 | BJ91: =データ一覧!F500 -> 2163 | BM91: =データ一覧!F501 -> 39557 | BQ91: 重要伝統的建造物群保存地区 | CI91: 2
A92: 況 | C92: 男 | G92: =データ一覧!F231 -> 489 | J92: 男 | O92: =データ一覧!F225 -> 67.1 | R92: 男 | W92: =データ一覧!F228 -> 66.7 | AA92: =データ一覧!F325 -> 298 | AC92: =データ一覧!F328 -> 308546 | AE92: =データ一覧!F329 -> 330662 | AG92: =データ一覧!F327 -> - | AJ92: =データ一覧!F330 -> 7865 | AL92: =データ一覧!F331 -> 4286 | AN92: 宗 教 | AR92: 仏教系 | AU92: ｷﾘｽﾄ教系 | AX92: 神道諸派 | BA92: 公会堂・市民会館 | BG92: テレビ | BJ92: 衛星放送契約数 | BQ92: 文化的景観 | CI92: 3
C93: 女 | G93: =データ一覧!F232 -> 294 | J93: 女 | O93: =データ一覧!F226 -> 69.7 | R93: 女 | W93: =データ一覧!F229 -> 69 | AN93: 法 人 数 | AR93: =データ一覧!F502 -> 1685 | AU93: =データ一覧!F503 -> 37 | AX93: =データ一覧!F504 -> 1812 | BA93: =データ一覧!F505 -> 37 | BG93: 等 | BJ93: =データ一覧!F506 -> 178314 | BQ93: その他

Sheet 福井市
A1: =+データ一覧!G2 -> 0
A2: =+データ一覧!G5 -> 0
AN3: 0
AB4: 【市章とそのいわれ】福井城内にあった「福ノ井」の井げたに、 | AN4: 【位置および地勢】福井市は、福井県の北部に位置し、面積は536.41平方㎞、東西に | BS4: 所在地 | CA4: 〒910-8511
AB5: 福井の旧称「北ノ庄」の北を組み合せ、古きを | AO5: 広がりのある形で、西方は日本海に臨み、奇岩で有名な越前海岸は風光明媚な | CA5: 福井市大手３丁目１０番１号
A6: =+データ一覧!G3 -> ふくいし | AB6: 生かし新しい時代への発展と繁栄を図案化した | AO6: 観光地となっている。市の西部と南東部は山岳地であるが、他のほとんどは平坦地で
A7: =データ一覧!G6 -> 福井市 | AB7: もの。 | AO7: 穀倉地帯となっている。市南東部の豊かな森林地帯に源を発する足羽川が市の中央部を | BS7: 電話番号 | CA7: （０７７６）２０－５１１１
AB8: 0 | AO8: 流れて、南越から市街地西側に流れ込む日野川と合流し、さらに市の北部を流れる本県 | BS8: FAX番号 | CA8: 〃 ２０－５７３３
AB9: 0 | AO9: 最大河川の九頭竜川へと注いでいる。ＪＲ北陸本線は市街地の東側を走り、その東を
AB10: 0 | AO10: これに平行して国道８号と北陸自動車が南北に貫いている。 | BS10: 最寄駅および距離 | CA10: ＪＲ北陸本線福井駅 下車５００ｍ
AB11: 0 | AN11: 0
AB13: 【市が掲げる標語】みんなが輝く 全国に誇れる ふくい | BS13: ホームページ | CA13: http://www.city.fukui.lg.jp/
A15: １ 土 地 | Z15: =データ一覧!$A$240 -> 2年 | AA15: 産米収穫量 | AD15: 収 穫 量 | AG15: 作 付 面 積 | AJ15: 10a当たり収量 | BP15: １５ 労 働 | CE15: 27.10.1
AD16: =データ一覧!$G$240 -> 28200 | AF16: t | AG16: =データ一覧!$G$241 -> 5290 | AI16: ha | AJ16: =データ一覧!G242 -> 532 | AM16: kg | AN16: １０ 工 業 | BB16: =データ一覧!$A$332 -> 2.6.1（令和元年実績）
A17: 総 面 積 | K17: 固 定 資 産 概 要 調 書 に よ る 地 目 別 面 積 | AC17: 総 数 | AG17: うち 田 | AK17: うち 畑 | BW17: 産業別就業者数
C18: =データ一覧!$A$7 -> 3.10.1 | Q18: =データ一覧!$A$9 -> 3.1.1 | Z18: 耕 地 面 積 | AD18: ha | AG18: ha | AK18: ha | AO18: 産業分類 | AW18: 事業所数 | BB18: 従業者数 | BH18: 年間製造品出荷額等 | BQ18: 区 分 | BV18: 総 数 | CA18: 男 | CE18: 女 | CI18: 区 分 | CN18: 総 数 | CS18: 男 | CW18: 女
G19: ㎢ | K19: 総 数 | P19: う ち 田 | U19: う ち 畑 | Z19: =データ一覧!A243 -> 2.7.15 | AC19: =データ一覧!$G$243 -> 7800 | AF19: =データ一覧!$G$244 -> 7410 | AJ19: =データ一覧!$G$245 -> 388 | AZ19: 事業所 | BB19: 人 | BE19: 人 | BG19: 万円 | BN19: 万円 | BV19: 人 | CB19: 人 | CF19: 人 | CN19: 人 | CR19: 人 | CV19: 人
D20: =データ一覧!G7 -> 536.41 | O20: ha | T20: ha | Y20: ha | Z20: 農 業 生 産 物 | AD20: 作 付 面 積 | AG20: 収 穫 量 | AJ20: 10a当たり収量 | AO20: 総数 | AX20: =データ一覧!G332 -> 557 | BB20: =+データ一覧!G357 -> 17511 | BI20: =データ一覧!G382 -> 46040083 | BP20: 総 数 | BV20: =BZ20+CD20 -> 129888 | BZ20: =データ一覧!G507 -> 70147 | CD20: =データ一覧!G532 -> 59741
L21: =データ一覧!G9 -> 34922.2 | Q21: =データ一覧!G10 -> 7879.8 | V21: =データ一覧!G11 -> 884.3 | Z21: =データ一覧!$A$246 -> 2年中 | AD21: ha | AG21: t | AJ21: kg | AN21: 食料品 | AO21: 食料品 | AX21: =データ一覧!G333 -> 68 | BB21: =+データ一覧!G358 -> 1801 | BI21: =データ一覧!G383 -> 2126054 | CI21: 卸売業,小売業 | CN21: =CR21+CV21 -> 22922 | CR21: =データ一覧!G520 -> 11326 | CV21: =データ一覧!G545 -> 11596
A22: 町 ･ 丁 ･ 大 字 | K22: う ち 宅 地 | P22: う ち 山 林 | U22: う ち 原 野 | Z22: 水 稲 | AD22: =データ一覧!G246 -> 5290 | AG22: =データ一覧!G247 -> 28200 | AJ22: =データ一覧!G248 -> 532 | AN22: 飲料・飼料 | AO22: 飲料・飼料 | AX22: =データ一覧!G334 -> 5 | BB22: =+データ一覧!G359 -> 27 | BI22: =データ一覧!G384 -> 30167 | BP22: 第１次産業 | BV22: =BZ22+CD22 -> 2824 | BZ22: =データ一覧!G508 -> 1889 | CD22: =データ一覧!G533 -> 935 | CI22: 金融業,保険業 | CN22: =CR22+CV22 -> 4136 | CR22: =データ一覧!G521 -> 1818 | CV22: =データ一覧!G546 -> 2318
A23: 区 画 数 | H23: =データ一覧!G8 -> 733 | O23: ha | T23: ha | Y23: ha | Z23: 六 条 大 麦 | AD23: =データ一覧!G249 -> 928 | AG23: =データ一覧!G250 -> 3050 | AJ23: =データ一覧!G251 -> 329 | AN23: 繊維 | AO23: 繊維 | AX23: =データ一覧!G335 -> 130 | BB23: =+データ一覧!G360 -> 4821 | BI23: =データ一覧!G385 -> 8496615 | BQ23: 農業 | BV23: =BZ23+CD23 -> 2614 | BZ23: =データ一覧!G509 -> 1710 | CD23: =データ一覧!G534 -> 904 | CI23: 不動産業 | CN23: 1949 | CR23: =データ一覧!G522 -> 1132 | CV23: =データ一覧!G547 -> 817
A24: =データ一覧!$A$8 -> 2.4.1 | L24: =データ一覧!G12 -> 4897.7 | Q24: =データ一覧!G13 -> 17348.7 | V24: =データ一覧!G14 -> 102.5 | Z24: 大 豆 | AD24: =データ一覧!G252 -> 412 | AG24: =データ一覧!G253 -> 503 | AJ24: =データ一覧!G254 -> 122 | AN24: 衣服 | AO24: 木材 | AX24: =データ一覧!G336 -> 18 | BB24: =+データ一覧!G361 -> 373 | BI24: =データ一覧!G386 -> 4488023 | BQ24: 林業 | BV24: 150 | BZ24: =データ一覧!G510 -> 126 | CD24: =データ一覧!G535 -> 24 | CI24: 学術研究 | CN24: 3993 | CR24: =データ一覧!G523 -> 2449 | CV24: =データ一覧!G548 -> 1544
A25: ２ 世 帯 数 と 人 口 | AB25: 区 分 | AD25: 乳 用 牛 | AF25: 肉 用 牛 | AH25: 豚 | AJ25: 採卵鶏 | AL25: ブロイラー | AN25: 木材 | AO25: 家具 | AX25: =データ一覧!G337 -> 10 | BB25: =+データ一覧!G362 -> 290 | BI25: =データ一覧!G387 -> 433136 | BQ25: 漁業 | BV25: 60 | BZ25: =データ一覧!G511 -> 53 | CD25: =データ一覧!G536 -> 7 | CI25: 宿泊業,飲食ｻｰﾋﾞｽ | CN25: 7060 | CR25: =データ一覧!G524 -> 2649 | CV25: =データ一覧!G549 -> 4411
Z26: 畜 産 | AB26: 飼養農家 | AD26: =データ一覧!$G$255 -> 3 | AF26: =データ一覧!$G$257 -> 5 | AH26: =データ一覧!$G$259 -> - | AJ26: =データ一覧!$G$261 -> 6 | AL26: =データ一覧!$G$263 -> x | AN26: 家具 | AO26: パルプ・紙 | AX26: =データ一覧!G338 -> 22 | BB26: =+データ一覧!G363 -> 350 | BI26: =データ一覧!G388 -> 785820 | BP26: 第２次産業 | BV26: 32932 | BZ26: =データ一覧!G512 -> 23283 | CD26: =データ一覧!G537 -> 9649 | CI26: 生活関連ｻｰﾋﾞｽ業 | CN26: 4719 | CR26: =データ一覧!G525 -> 1831 | CV26: =データ一覧!G550 -> 2888
I27: 人 口 | U27: １世帯当 | W27: 人 口 | Z27: =データ一覧!$A$255 -> 3.3.31 | AB27: （戸） | AN27: パルプ・紙 | AO27: 印刷 | AX27: =データ一覧!G339 -> 45 | BB27: =+データ一覧!G364 -> 1280 | BI27: =データ一覧!G389 -> 2134093 | BQ27: 鉱業，採石業 | BV27: 22 | BZ27: =データ一覧!G513 -> 16 | CD27: =データ一覧!G538 -> 6 | CI27: 教育,学習支援業 | CN27: 6918 | CR27: =データ一覧!G526 -> 2861 | CV27: =データ一覧!G551 -> 4057
A28: 区 分 | F28: 世帯数 | I28: 総 数 | L28: 男 | O28: 女 | R28: 男／女 | U28: たり人員 | W28: 密 度 | AB28: 頭 羽 | AD28: =データ一覧!$G$256 -> 102 | AF28: =データ一覧!$G$258 -> 255 | AH28: =データ一覧!$G$260 -> 0 | AJ28: =データ一覧!$G$262 -> 6720 | AL28: =データ一覧!$G$264 -> 23300 | AN28: 出版・印刷 | AO28: 化学 | AX28: =データ一覧!G340 -> 16 | BB28: =+データ一覧!G365 -> 1055 | BI28: =データ一覧!G390 -> 6647193 | BQ28: 建設業 | BV28: 10657 | BZ28: =データ一覧!G514 -> 8864 | CD28: =データ一覧!G539 -> 1793 | CI28: 医療，福祉 | CN28: 17236 | CR28: =データ一覧!G527 -> 4069 | CV28: =データ一覧!G552 -> 13167
F29: 世 帯 | I29: 人 | L29: 人 | O29: 人 | S29: ％ | U29: 人 | W29: 人/㎢ | AN29: 化学 | AO29: 石油・石炭 | AX29: =データ一覧!G341 -> 3 | BB29: =+データ一覧!G366 -> 25 | BI29: =データ一覧!G391 -> 152786 | BQ29: 製造業 | BV29: 22253 | BZ29: =データ一覧!G515 -> 14403 | CD29: =データ一覧!G540 -> 7850 | CI29: 複合サービス事業 | CN29: 1258 | CR29: =データ一覧!G528 -> 746 | CV29: =データ一覧!G553 -> 512
A30: =データ一覧!$A$22 -> 2.10.1 | F30: =データ一覧!G22 -> 81287 | I30: =+L30+O30 -> 270911 | L30: =データ一覧!G24 -> 131608 | O30: =データ一覧!G25 -> 139303 | S30: =+L30/O30*100 -> 94.47607015 | U30: =データ一覧!G27 -> 3.33 | W30: =データ一覧!G21 -> 0 | Z30: ５ 林 業 | AN30: 石油・石炭 | AO30: プラスチック | AX30: =データ一覧!G342 -> 28 | BB30: =+データ一覧!G367 -> 1246 | BI30: =データ一覧!G392 -> 4011659 | BP30: 第３次産業 | BV30: 90375 | BZ30: =データ一覧!G516 -> 42993 | CD30: =データ一覧!G541 -> 47382 | CI30: サービス業 | CN30: 6945 | CR30: =データ一覧!G529 -> 4194 | CV30: =データ一覧!G554 -> 2751
A31: =データ一覧!$A$29 -> 7.10.1 | F31: =データ一覧!G29 -> 87719 | I31: =+L31+O31 -> 272970 | L31: =データ一覧!G31 -> 133444 | O31: =データ一覧!G32 -> 139526 | S31: 95.64095581 | U31: =データ一覧!G34 -> 3.11 | W31: =データ一覧!G28 -> 0 | AN31: プラスチック | AO31: ゴム | AX31: =データ一覧!G343 -> 4 | BB31: =+データ一覧!G368 -> 67 | BI31: =データ一覧!G393 -> x | BQ31: 電気･ｶﾞｽ･水道業 | BV31: 627 | BZ31: =データ一覧!G517 -> 533 | CD31: =データ一覧!G542 -> 94 | CI31: 公務 | CN31: 4708 | CR31: =データ一覧!G530 -> 3314 | CV31: =データ一覧!G555 -> 1394
A32: =データ一覧!$A$36 -> 12.10.1 | F32: =データ一覧!G36 -> 89946 | I32: =+L32+O32 -> 269557 | L32: =データ一覧!G38 -> 131344 | O32: =データ一覧!G39 -> 138213 | S32: 95.03013465 | U32: =データ一覧!G41 -> 3 | W32: =データ一覧!G35 -> 0 | Z32: 森 林 総 面 積 | AH32: =データ一覧!$A$265 -> 3.3.31 | AN32: ゴム | AO32: 皮革 | AX32: =データ一覧!G344 -> 0 | BB32: =+データ一覧!G369 -> 0 | BI32: =データ一覧!G394 -> 0 | BQ32: 情報通信業 | BV32: 2639 | BZ32: =データ一覧!G518 -> 1807 | CD32: =データ一覧!G543 -> 832 | CH32: 分類不能の産業 | CN32: 3757 | CR32: =データ一覧!G531 -> 1982 | CV32: =データ一覧!G556 -> 1775
A33: =+データ一覧!$A$43 -> 17.10.1 | F33: =データ一覧!G43 -> 93694 | I33: =+L33+O33 -> 269144 | L33: =データ一覧!G45 -> 130834 | O33: =データ一覧!G46 -> 138310 | S33: 94.59475092 | U33: =データ一覧!G48 -> 2.87 | W33: =データ一覧!G49 -> 502 | Z33: 森 林 の 構 成 | AN33: 皮革 | AO33: 窯業・土石 | AX33: =データ一覧!G345 -> 12 | BB33: =+データ一覧!G370 -> 200 | BI33: =データ一覧!G395 -> 819899 | BQ33: 運輸業,郵便業 | BV33: =BZ33+CD33 -> 5265 | BZ33: =データ一覧!G519 -> 4264 | CD33: =データ一覧!G544 -> 1001
A34: =+データ一覧!$A$50 -> 22.10.1 | F34: =+データ一覧!G50 -> 97446 | I34: =+L34+O34 -> 266796 | L34: =+データ一覧!G52 -> 128692 | O34: =+データ一覧!G53 -> 138104 | S34: 93.1848462 | U34: =+データ一覧!G55 -> 2.74 | W34: =+データ一覧!G56 -> 497.6 | AE34: ha | AL34: ha | AN34: 窯業・土石 | AO34: 鉄鋼 | AX34: =データ一覧!G346 -> 6 | BB34: =+データ一覧!G371 -> 75 | BI34: =データ一覧!G396 -> 285168 | BP34: １６ 社 会 福 祉 | CF34: =データ一覧!$A$557 -> 3.4.1
A35: =データ一覧!$A$57 -> 27.10.1 | F35: =データ一覧!G57 -> 99872 | I35: =データ一覧!G58 -> 265904 | L35: =データ一覧!G59 -> 128892 | O35: =データ一覧!G60 -> 137012 | S35: 94.07351181 | U35: =データ一覧!G62 -> 2.662447933 | W35: =データ一覧!G63 -> 495.7 | Z35: 総 数 | AD35: =データ一覧!G265 -> 31943.21 | AG35: 天然林 針葉樹 | AK35: =データ一覧!G268 -> 750.28 | AN35: 鉄鋼 | AO35: 非鉄金属 | AX35: =データ一覧!G347 -> 3 | BB35: =+データ一覧!G372 -> 120 | BI35: =データ一覧!G397 -> 679080
A36: 令 2.10.1（国調） | F36: =データ一覧!G64 -> 104470 | I36: =データ一覧!G65 -> 262328 | L36: =データ一覧!G66 -> 127867 | O36: =データ一覧!G67 -> 134461 | S36: =+L36/O36*100 -> 95.09597578 | U36: =データ一覧!G72 -> 2.48 | W36: =データ一覧!G73 -> 485.6490371 | Z36: 人工林 針葉樹 | AD36: =データ一覧!G266 -> 19360.16 | AG36: 天然林 広葉樹 | AK36: =データ一覧!G269 -> 10922.71 | AN36: 非鉄金属 | AO36: 金属 | AX36: =データ一覧!G348 -> 57 | BB36: =+データ一覧!G373 -> 1413 | BI36: =データ一覧!G398 -> 3727662 | BQ36: 区分 | BX36: 施設数 | CC36: 収容定員 | CI36: 区分 | CP36: 施設数 | CU36: 収容定員
A37: 年 | C37: 区 | E37: 0歳 | H37: 15歳 | K37: 25歳 | N37: 35歳 | Q37: 45歳 | T37: 55歳 | W37: 65歳 | Z37: 人工林 広葉樹 | AD37: =データ一覧!G267 -> 70.18 | AG37: 竹 林 | AK37: =データ一覧!G270 -> 303.48 | AN37: 金属 | AO37: はん用機械 | AX37: =データ一覧!G349 -> 11 | BB37: =+データ一覧!G374 -> 153 | BI37: =データ一覧!G399 -> 285030 | BP37: 生活保護施設 | BX37: =データ一覧!G557 -> 1 | CB37: =データ一覧!G570 -> 0 | CF37: 人 | CH37: 指定障害者支援施設 | CP37: =データ一覧!G563 -> 8 | CT37: =データ一覧!G576 -> 490 | CX37: 人
A38: 齢 | B38: 令 | F38: ～ | I38: ～ | L38: ～ | O38: ～ | R38: ～ | U38: ～ | AN38: 一般機械 | AO38: 生産用機械 | AX38: =データ一覧!G350 -> 57 | BB38: =+データ一覧!G375 -> 1838 | BI38: =データ一覧!G400 -> 4941744 | BP38: 地域福祉施設 | BX38: =データ一覧!G558 -> 0 | CB38: =データ一覧!G571 -> 0 | CH38: 指定相談支援事業所 | CP38: =データ一覧!G564 -> 4 | CT38: =データ一覧!G577 -> 0
A39: 階 | B39: =+LEFT(データ一覧!$A$83,1) -> 3 | C39: 分 | G39: 14歳 | J39: 24歳 | M39: 34歳 | P39: 44歳 | S39: 54歳 | V39: 64歳 | Y39: 以上 | Z39: 林 野 の 構 成 | AG39: 保 有 形 態 別 | AN39: 電気機械 | AO39: 業務用機械 | AX39: =データ一覧!G351 -> 3 | BB39: =+データ一覧!G376 -> 40 | BI39: =データ一覧!G401 -> 73988 | BP39: 老人福祉施設 | BX39: =データ一覧!G559 -> 57 | CB39: =データ一覧!G572 -> 1802 | CH39: 児童福祉施設 | CP39: =データ一覧!G565 -> 200 | CT39: =データ一覧!G578 -> 11945
A40: 級 | B40: ・ | G40: 人 | J40: 人 | L40: 人 | O40: 人 | R40: 人 | U40: 人 | X40: 人 | AF40: ha | AL40: ha | AO40: 電子・デバイス | AX40: =データ一覧!G352 -> 8 | BB40: =+データ一覧!G377 -> 969 | BI40: =データ一覧!G402 -> 3734953 | BP40: 介護保険施設 | BX40: =データ一覧!G560 -> 438 | CB40: =データ一覧!G573 -> 8243 | CH40: 母子福祉施設 | CP40: =データ一覧!G566 -> 1 | CT40: =データ一覧!G579 -> 0
A41: 別 | B41: =+MID(データ一覧!$A$83,3,2) -> 10 | C41: 総 数 | E41: =+E42+E43 -> 32488 | H41: =+H42+H43 -> 23360 | K41: =+K42+K43 -> 24343 | N41: =+N42+N43 -> 30845 | Q41: =+Q42+Q43 -> 37188 | T41: =+T42+T43 -> 31373 | W41: =+W42+W43 -> 76091 | Z41: 無立木地 伐採跡地 | AD41: =データ一覧!G271 -> 21.31 | AG41: 国 有 | AK41: =データ一覧!G273 -> 109.08 | AO41: 電気機械 | AX41: =データ一覧!G353 -> 10 | BB41: =+データ一覧!G378 -> 227 | BI41: =データ一覧!G403 -> 396176 | BP41: 障害者自立支援法施行前からの身体障害者福祉施設 | BX41: =データ一覧!G561 -> 2 | CB41: =データ一覧!G574 -> 0 | CH41: 婦人保護施設 | CP41: =データ一覧!G567 -> 1 | CT41: =データ一覧!G580 -> 15
A42: 人 | B42: ・ | C42: 男 | E42: =データ一覧!G83 -> 16832 | H42: =データ一覧!G84 -> 12697 | K42: =データ一覧!G85 -> 12372 | N42: =データ一覧!G86 -> 15669 | Q42: =データ一覧!G87 -> 18655 | T42: =データ一覧!G88 -> 15309 | W42: =データ一覧!G89 -> 32733 | Z42: 無立木地 未立木地 | AD42: =データ一覧!G272 -> 515.09 | AG42: 公 有 | AK42: =データ一覧!G274 -> 1529.55 | AN42: 輸送機械 | AO42: 情報通信機械 | AX42: =データ一覧!G354 -> 1 | BB42: =+データ一覧!G379 -> 85 | BI42: =データ一覧!G404 -> x | CH42: その他の社会福祉施設 | CP42: =データ一覧!G568+データ一覧!G569 -> 9 | CT42: =SUM(データ一覧!G581,データ一覧!G582) -> 0
A43: 口 | B43: =+RIGHT(データ一覧!$A$83,1) -> 1 | C43: 女 | E43: =データ一覧!G91 -> 15656 | H43: =データ一覧!G92 -> 10663 | K43: =データ一覧!G93 -> 11971 | N43: =データ一覧!G94 -> 15176 | Q43: =データ一覧!G95 -> 18533 | T43: =データ一覧!G96 -> 16064 | W43: =データ一覧!G97 -> 43358 | AG43: 私 有 | AK43: =データ一覧!G275 -> 30304.58 | AN43: 精密機械 | AO43: 輸送機械 | AX43: =データ一覧!G355 -> 3 | BB43: =+データ一覧!G380 -> 244 | BI43: =データ一覧!G405 -> 568792 | BP43: 障害福祉サービス事業所 | BX43: =データ一覧!G562 -> 202 | CB43: =データ一覧!G575 -> 2919
Z44: 林 産 物 生 産 量 | AJ44: =データ一覧!$A$276 -> 2年中 | AN44: その他 | AO44: その他 | AX44: =データ一覧!G356 -> 37 | BB44: =+データ一覧!G381 -> 812 | BI44: =データ一覧!G406 -> 927229 | BP44: １７ 教 育 | CF44: =データ一覧!$A$583 -> 3.5.1
A45: 人口動態 | H45: 自 然 動 態 | N45: 社 会 動 態 | T45: =データ一覧!$A78 -> 2.1.1～3.12.31 | Z45: 生椎茸 | AD45: =データ一覧!G276 -> 10903 | AF45: ㎏ | AG45: 乾椎茸 | AK45: =データ一覧!G277 -> 111 | AM45: ㎏
C46: 区 分 | H46: 出 生 | K46: 死 亡 | N46: 転 入 | Q46: 転 出 | T46: 婚 姻 | W46: 離 婚 | Z46: えのきだけ | AD46: =データ一覧!G279 -> 114212 | AF46: ㎏ | AG46: なめこ | AK46: =データ一覧!G278 -> - | AM46: ㎏ | AO46: 工 業 用 水 量 | AU46: （従業者30人以上の事業所） | BF46: =データ一覧!G407 -> 63894 | BK46: ㎥／日 | BZ46: 学校数（校） | CG46: 教員数（人） | CO46: 学生・生徒・児童数（人）
A47: =LEFT(データ一覧!$A74,6) -> 2.10.1 | H47: 人 | K47: 人 | N47: 人 | Q47: 人 | U47: 件 | X47: 件 | Z47: ひらたけ | AD47: =+データ一覧!G280 -> 8954 | AF47: ㎏ | AG47: まいたけ | AK47: =+データ一覧!G281 -> 450 | AM47: ㎏ | BR47: 区分 | BZ47: 本 校 | CC47: 分 校 | CF47: 本 務 | CJ47: 兼 務 | CN47: 総 数 | CR47: 男 | CV47: 女
A48: ～ | C48: 実 数 | H48: =データ一覧!G74 -> 908 | K48: =データ一覧!G75 -> 1537 | N48: =データ一覧!G76 -> 3027 | Q48: =データ一覧!G77 -> 3486 | T48: =データ一覧!G78 -> 1165 | W48: =データ一覧!G79 -> 376 | AN48: １１ 上 ・ 下 水 道 | BQ48: 小学校 | BZ48: =データ一覧!G584 -> 53 | CC48: =データ一覧!G585 -> 0 | CF48: =データ一覧!G586 -> 949 | CJ48: =データ一覧!G587 -> 141 | CN48: =データ一覧!G588 -> 13189 | CR48: =データ一覧!G589 -> 6848 | CV48: =データ一覧!G590 -> 6341
A49: =RIGHT(データ一覧!$A76,6) -> 3.9.30 | C49: 比率(対1,000人) | H49: =+H48/I35*1000 -> 3.414766231 | K49: =+K48/I35*1000 -> 5.780281605 | N49: - | Q49: - | T49: =+T48/I35*1000 -> 4.381280462 | W49: =+W48/I35*1000 -> 1.414044166 | Z49: ６ 漁 業 | BQ49: 中学校 | BZ49: =データ一覧!G592 -> 28 | CC49: =データ一覧!G593 -> 1 | CF49: =データ一覧!G594 -> 614 | CJ49: =データ一覧!G595 -> 193 | CN49: =データ一覧!G596 -> 7274 | CR49: =データ一覧!G597 -> 3721 | CV49: =データ一覧!G598 -> 3553
AN50: 水 道 供 給 人 口 | AU50: 上 水 道 | AY50: 簡易水道 | BC50: 専用水道 | BG50: 飲料水供給施設 | BK50: 下水道処理人口 | BQ50: 高等学校 | BZ50: =データ一覧!G600 -> 13 | CC50: =データ一覧!G601 -> 0 | CF50: =データ一覧!G602 -> 711 | CJ50: =データ一覧!G603 -> 372 | CN50: =データ一覧!G604 -> 10619 | CR50: =データ一覧!G605 -> 5035 | CV50: =データ一覧!G606 -> 5584
A51: ３ 事 業 所（民 営） （平 28.6.1） | Z51: 漁船隻数・トン数 | AD51: =データ一覧!$A$282 -> 2.12.31 | AH51: 動 力 船 | AN51: =データ一覧!$A$408 -> 3.3.31 | AT51: 人 | AV51: =データ一覧!G408 -> 254568 | AY51: =データ一覧!G409 -> 4608 | BD51: =データ一覧!G410 -> 332 | BH51: =データ一覧!G411 -> 471 | BL51: =データ一覧!G412 -> 230237 | BQ51: 大学・短期大学 | BZ51: =データ一覧!G607 -> 4 | CC51: =データ一覧!G608 -> 0 | CF51: =データ一覧!G609 -> 483 | CJ51: =データ一覧!G610 -> 381 | CN51: =データ一覧!G611 -> 7135 | CR51: =データ一覧!G612 -> 5063 | CV51: =データ一覧!G613 -> 2072
Z52: 無動力船隻数 | AD52: 船外機付漁船隻数 | AH52: 隻 数 | AK52: 総 ト ン 数 | BQ52: 高等専門学校 | BZ52: =データ一覧!G614 -> 0 | CC52: =データ一覧!G615 -> 0 | CF52: =データ一覧!G616 -> 0 | CJ52: =データ一覧!G617 -> 0 | CN52: =データ一覧!G618 -> 0 | CR52: =データ一覧!G619 -> 0 | CV52: =データ一覧!G620 -> 0
H53: 総 数 | N53: 民 営 | T53: 国 ･ 地方公共団体 | AC53: 隻 | AG53: 隻 | AJ53: 隻 | AM53: t | AN53: １２ 交 通 ・ 通 信 | BQ53: 特別支援学校 | BZ53: =+データ一覧!G622 -> 7 | CC53: =+データ一覧!G623 -> 0 | CF53: =+データ一覧!G624 -> 367 | CJ53: =+データ一覧!G625 -> 60 | CN53: =+データ一覧!G626 -> 418 | CR53: =+データ一覧!G627 -> 254 | CV53: =+データ一覧!G628 -> 164
A54: 区 分 | H54: 事業所数 | K54: 従業者数 | N54: 事業所数 | Q54: 従業者数 | T54: 事業所数 | W54: 従業者数 | Z54: =データ一覧!$G$282 -> 0 | AD54: =データ一覧!$G$283 -> 140 | AH54: =データ一覧!G284 -> 69 | AK54: =データ一覧!G285 -> 497.39 | BQ54: 幼稚園 | BZ54: =データ一覧!G630 -> 23 | CC54: =データ一覧!G631 -> 0 | CF54: =データ一覧!G632 -> 67 | CJ54: =データ一覧!G633 -> 28 | CN54: =データ一覧!G634 -> 459 | CR54: =データ一覧!G635 -> 224 | CV54: =データ一覧!G636 -> 235
K55: 人 | Q55: 人 | W55: 人 | Z55: 男女別就業者数 | AH55: =データ一覧!$A$286 -> 30.11.1 | AN55: 道 路 | AR55: 実 延 長 | AV55: 国 道 | AZ55: 県 道 | BD55: 市町道 | BH55: 鉄 道 営 業 キ ロ 数 | BQ55: 幼保連携認定こども園 | BZ55: =データ一覧!G638 -> 62 | CC55: =データ一覧!G639 -> 1 | CF55: =データ一覧!G640 -> 1255 | CJ55: =データ一覧!G641 -> 265 | CN55: =データ一覧!G642 -> 7402 | CR55: =データ一覧!G643 -> 3809 | CV55: =データ一覧!G644 -> 3593
A56: 総数 | H56: =データ一覧!G99 -> … | K56: =データ一覧!G156 -> … | N56: =データ一覧!G100 -> 15789 | Q56: =データ一覧!G157 -> 149061 | T56: =データ一覧!G101 -> … | W56: =データ一覧!G158 -> … | Z56: 総 数 | AF56: 男 | AJ56: 女 | AN56: =データ一覧!$A$413 -> 2.4.1 | AR56: =データ一覧!G413 -> 2486 | AU56: ㎞ | AV56: =データ一覧!G414 -> 108.8 | AY56: ㎞ | AZ56: =データ一覧!G415 -> 300.7 | BC56: ㎞ | BD56: =データ一覧!G416 -> 2076.5 | BG56: km | BH56: =データ一覧!$A$417 -> 3.4.1 | BL56: =データ一覧!G417 -> 69.91 | BO56: ㎞ | BQ56: 各種学校 | BZ56: =データ一覧!G646 -> 4 | CC56: =データ一覧!G647 -> 0 | CF56: =データ一覧!G648 -> 114 | CJ56: =データ一覧!G649 -> 6 | CN56: =データ一覧!G650 -> 1354 | CR56: =データ一覧!G651 -> 927 | CV56: =データ一覧!G652 -> 427
A57: 農林漁業 | H57: =データ一覧!G102 -> … | K57: =データ一覧!G159 -> … | N57: =データ一覧!G103 -> 56 | Q57: =データ一覧!G160 -> 743 | T57: =データ一覧!G104 -> … | W57: =データ一覧!G161 -> … | AE57: 人 | AH57: 人 | AM57: 人 | AN57: 自動車 | AW57: 乗用車 | BQ57: 専修学校 | BZ57: =データ一覧!G654 -> 12 | CC57: =データ一覧!G655 -> 0 | CF57: =データ一覧!G656 -> 97 | CJ57: =データ一覧!G657 -> 205 | CN57: =データ一覧!G658 -> 973 | CR57: =データ一覧!G659 -> 356 | CV57: =データ一覧!G660 -> 617
A58: 鉱業 | H58: =データ一覧!G105 -> … | K58: =データ一覧!G162 -> … | N58: =データ一覧!G106 -> 7 | Q58: =データ一覧!G163 -> 32 | T58: =データ一覧!G107 -> … | W58: =データ一覧!G164 -> … | Z58: =AF58+AJ58 -> 114 | AF58: =データ一覧!$G$287 -> 109 | AJ58: =データ一覧!G288 -> 5 | AN58: 台 数 | AR58: 貨 物 | AV58: 普 通 | AZ58: 小 型 | BD58: 乗 合 | BG58: 特 種 | BJ58: 小型二輪 | BM58: 軽自動車 | BP58: １８ 衛 生
A59: 建設業 | H59: =データ一覧!G108 -> … | K59: =データ一覧!G165 -> … | N59: =データ一覧!G109 -> 1525 | Q59: =データ一覧!G166 -> 11445 | T59: =データ一覧!G110 -> … | W59: =データ一覧!G167 -> … | Z59: 海 面 漁 業 漁 獲 量 （属人） | AH59: =データ一覧!$A$289 -> 30年中 | AN59: =データ一覧!$A$418 -> 3.3.31 | AS59: =データ一覧!G418 -> 18058 | AW59: =データ一覧!G420 -> 54326 | BA59: =データ一覧!G421 -> 56863 | BD59: =データ一覧!G419 -> 542 | BG59: =データ一覧!G422 -> 5243 | BJ59: =データ一覧!G423 -> 2591 | BM59: =データ一覧!G424 -> 86854
A60: 製造業 | H60: =データ一覧!G111 -> … | K60: =データ一覧!G168 -> … | N60: =データ一覧!G112 -> 1441 | Q60: =データ一覧!G169 -> 20796 | T60: =データ一覧!G113 -> … | W60: =データ一覧!G170 -> … | AF60: ｔ | AM60: t | AR60: 郵 便 局 数 | BF60: =+MID(データ一覧!$A$428,3,2) -> 12 | BG60: 令 | BH60: 一般加入 | BL60: ＩＮＳネット | BT60: 医療関係施設 | BZ60: =データ一覧!$A$661 -> 元.10.1 | CG60: および医療関係者数 | CO60: =データ一覧!$A$666 -> 30.12.31
A61: 電気・ｶﾞ ｽ・熱供給・水道業 | H61: =データ一覧!G114 -> … | K61: =データ一覧!G171 -> … | N61: =データ一覧!G115 -> 5 | Q61: =データ一覧!G172 -> 396 | T61: =データ一覧!G116 -> … | W61: =データ一覧!G173 -> … | Z61: 総 数 | AD61: =データ一覧!G289 -> 1038 | AG61: 藻 類 | AK61: =データ一覧!G292 -> 4 | AN61: 通 信 | AR61: 総 数 | AW61: 郵 便 局 | BB61: 簡 易 局 | BF61: ・ | BG61: =+LEFT(データ一覧!$A$428,1) -> 2 | BH61: 電話数 | BL61: 加入数 | BW61: 病 | BZ61: 院 | CH61: 一般診療所 | CT61: 歯科診療所
A62: 情報通信業 | H62: =データ一覧!G117 -> … | K62: =データ一覧!G174 -> … | N62: =データ一覧!G118 -> 195 | Q62: =データ一覧!G175 -> 3411 | T62: =データ一覧!G119 -> … | W62: =データ一覧!G176 -> … | Z62: 魚 類 | AD62: =データ一覧!G290 -> 583 | AG62: そ の 他 | AK62: =データ一覧!G293 -> 445 | AN62: =データ一覧!$A$428 -> 2.12.31 | AR62: =データ一覧!G425 -> 71 | AW62: =データ一覧!G426 -> 65 | BB62: =データ一覧!G427 -> 6 | BF62: =+RIGHT(データ一覧!$A$428,2) -> 31 | BG62: ・ | BH62: =データ一覧!G428 -> 21437 | BL62: =データ一覧!G429 -> 4307 | BQ62: 医療関係 | CC62: 一般病院 | CO62: 有 | CR62: 床
A63: 運輸業、郵便業 | H63: =データ一覧!G120 -> … | K63: =データ一覧!G177 -> … | N63: =データ一覧!G121 -> 310 | Q63: =データ一覧!G178 -> 7119 | T63: =データ一覧!G122 -> … | W63: =データ一覧!G179 -> … | Z63: 貝 類 | AD63: =データ一覧!G291 -> 6 | BQ63: 施設数 | BX63: =データ一覧!G661 -> 27 | CD63: =データ一覧!G662 -> 23 | CJ63: =データ一覧!G663 -> 257 | CP63: =データ一覧!G664 -> 34 | CV63: =データ一覧!G665 -> 136
A64: 卸売業、小売業 | H64: =データ一覧!G123 -> … | K64: =データ一覧!G180 -> … | N64: =データ一覧!G124 -> 4305 | Q64: =データ一覧!G181 -> 34043 | T64: =データ一覧!G125 -> … | W64: =データ一覧!G182 -> … | AN64: １３ 税 ・ 財 政 | BW64: 医師 | CB64: 歯科医師 | CG64: 薬剤師 | CL64: 保健師 | CQ64: 助産師 | CV64: 看護師
A65: 金融業、保険業 | H65: =データ一覧!G126 -> … | K65: =データ一覧!G183 -> … | N65: =データ一覧!G127 -> 394 | Q65: =データ一覧!G184 -> 5552 | T65: =データ一覧!G128 -> … | W65: =データ一覧!G185 -> … | Z65: ７ 商 業 | AG65: =データ一覧!$A$294 -> 28.6.1(平成27年実績） | BQ65: 医療 | BZ65: 人 | CE65: 人 | CJ65: 人 | CO65: 人 | CT65: 人 | CY65: 人
A66: 不動産業、物品賃貸業 | H66: =データ一覧!G129 -> … | K66: =データ一覧!G186 -> … | N66: =データ一覧!G130 -> 697 | Q66: =データ一覧!G187 -> 2900 | T66: =データ一覧!G131 -> … | W66: =データ一覧!G188 -> … | AR66: 歳入 | BA66: (千円） | BF66: 歳出 | BO66: (千円） | BQ66: 関係者 | BV66: =データ一覧!G666 -> 979 | CA66: =データ一覧!G667 -> 201 | CF66: =データ一覧!G668 -> 677 | CK66: =データ一覧!G669 -> 155 | CP66: =データ一覧!G670 -> 137 | CU66: =データ一覧!G671 -> 5490
A67: 学術研究、専門・技術ｻｰﾋﾞｽ業 | H67: =データ一覧!G132 -> … | K67: =データ一覧!G189 -> … | N67: =データ一覧!G133 -> 757 | Q67: =データ一覧!G190 -> 4136 | T67: =データ一覧!G134 -> … | W67: =データ一覧!G191 -> … | Z67: 産 業 分 類 | AD67: 商 店 数 | AG67: 従 業 者 数 | AJ67: 年 間 販 売 額 | AN67: 一人当たり歳入歳出予算決算額 | BY67: 死因別死亡数 | CO67: =データ一覧!$A$672 -> 2年中 | CX67: 単 位：人
A68: 宿泊業、飲食サービス業 | H68: =データ一覧!G135 -> … | K68: =データ一覧!G192 -> … | N68: =データ一覧!G136 -> 1977 | Q68: =データ一覧!G193 -> 13787 | T68: =データ一覧!G137 -> … | W68: =データ一覧!G194 -> … | AE68: 店 | AI68: 人 | AK68: 百万円 | AN68: 区分 | AR68: =データ一覧!$A$438 -> 3年度 | AW68: =データ一覧!$A$452 -> 2年度 | BB68: 区分 | BF68: =+AR68 -> 3年度 | BK68: =データ一覧!$A$452 -> 2年度 | BP68: 死 因 | CB68: 悪 性 | CE68: 高血圧 | CK68: 脳血管 | CT68: 不慮の事故
A69: 生活関連サービス業、娯楽業 | H69: =データ一覧!G138 -> … | K69: =データ一覧!G195 -> … | N69: =データ一覧!G139 -> 1333 | Q69: =データ一覧!G196 -> 6418 | T69: =データ一覧!G140 -> … | W69: =データ一覧!G197 -> … | Z69: 総 計 | AD69: =データ一覧!$G$294 -> 3539 | AG69: =データ一覧!G303 -> 27824 | AJ69: =データ一覧!G312 -> 1186220 | AR69: =データ一覧!G434 -> 432811.6058 | AW69: =データ一覧!G435 -> 578506.7728 | BF69: =データ一覧!G436 -> 432811.6058 | BK69: =データ一覧!G437 -> 564489.7766 | BU69: 全 死 因 | BY69: 結 核 | CB69: 新生物 | CE69: 性疾患 | CH69: 心疾患 | CK69: 疾 患 | CN69: 肺 炎 | CQ69: 老 衰 | CW69: 交通事故
A70: 教育、学習支援業 | H70: =データ一覧!G141 -> … | K70: =データ一覧!G198 -> … | N70: =データ一覧!G142 -> 413 | Q70: =データ一覧!G199 -> 4626 | T70: =データ一覧!G143 -> … | W70: =データ一覧!G200 -> … | Z70: 卸売業 | AD70: =データ一覧!G295 -> 1051 | AG70: =データ一覧!G304 -> 10424 | AJ70: =データ一覧!G313 -> 814926 | AN70: 項目別歳入歳出予算決算額
A71: 医療、福祉 | H71: =データ一覧!G144 -> … | K71: =データ一覧!G201 -> … | N71: =データ一覧!G145 -> 1024 | Q71: =データ一覧!G202 -> 20340 | T71: =データ一覧!G146 -> … | W71: =データ一覧!G203 -> … | Z71: 小売業 | AD71: =データ一覧!G296 -> 2488 | AG71: =データ一覧!G305 -> 17400 | AJ71: =データ一覧!G314 -> 371293 | AN71: 区分 | AR71: =データ一覧!$A$438 -> 3年度 | AW71: =データ一覧!$A$452 -> 2年度 | BB71: 区分 | BF71: =+AR71 -> 3年度 | BK71: =データ一覧!$A$452 -> 2年度 | BU71: =データ一覧!G672 -> 2946 | BY71: － | BZ71: =データ一覧!G673 -> 4 | CB71: =データ一覧!G674 -> 175 | CF71: =データ一覧!G675 -> 10 | CH71: =データ一覧!G676 -> 31 | CK71: =データ一覧!G677 -> 5 | CN71: =データ一覧!G678 -> 203 | CQ71: =データ一覧!G679 -> 204 | CT71: =データ一覧!G680 -> 88 | CW71: =データ一覧!G681 -> 12
A72: 複合サービス事業 | H72: =データ一覧!G147 -> … | K72: =データ一覧!G204 -> … | N72: =データ一覧!G148 -> 116 | Q72: =データ一覧!G205 -> 1431 | T72: =データ一覧!G149 -> … | W72: =データ一覧!G206 -> … | Z72: 各種商品 | AD72: =データ一覧!G297 -> 12 | AG72: =データ一覧!G306 -> 1046 | AJ72: =データ一覧!G315 -> 35475 | AN72: 総額 | AR72: =SUM(AR73:AV85) -> 112750453 | AW72: =SUM(AW73:BA85) -> 150463530 | BB72: 総額 | BF72: =SUM(BF73:BJ85) -> 112750453 | BK72: =SUM(BK73:BO85) -> 147397877 | BP72: １９ 警 察 ・ 消 防 | CF72: =+データ一覧!$A682 -> 3.4.1
A73: サービス業 | H73: =データ一覧!G150 -> … | K73: =データ一覧!G207 -> … | N73: =データ一覧!G151 -> 1234 | Q73: =データ一覧!G208 -> 11886 | T73: =データ一覧!G152 -> … | W73: =データ一覧!G209 -> … | Z73: 織物・衣服・身の回り品 | AD73: =データ一覧!G298 -> 455 | AG73: =データ一覧!G307 -> 1990 | AJ73: =データ一覧!G316 -> 29283 | AN73: 地方税 | AR73: =データ一覧!G439 -> 41939000 | AW73: =データ一覧!G453 -> 44480240 | BB73: 議会費 | BF73: =データ一覧!G467 -> 684664 | BK73: =データ一覧!G481 -> 650411
A74: 公務 | H74: =データ一覧!G153 -> … | K74: =データ一覧!G210 -> … | N74: =データ一覧!G154 -> … | Q74: =データ一覧!G211 -> … | T74: =データ一覧!G155 -> … | W74: =データ一覧!G212 -> … | Z74: 飲食料品 | AD74: =データ一覧!G299 -> 665 | AG74: =データ一覧!G308 -> 5305 | AJ74: =データ一覧!G317 -> 83516 | AN74: 地方譲与税 | AR74: =データ一覧!G440 -> 905000 | AW74: =データ一覧!G454 -> 959254 | BB74: 総務費 | BF74: =データ一覧!G468 -> 8316352 | BK74: =データ一覧!G482 -> 38743519 | BZ74: 交番・駐在所 | CI74: 刑法犯認知件数 | CR74: 交通人身事故発生件数
A75: ４ 農 業 | Z75: 機械器具 | AD75: =データ一覧!G300 -> 388 | AG75: =データ一覧!G309 -> 2815 | AJ75: =データ一覧!G318 -> 93970 | AN75: 各種交付金 | AR75: =データ一覧!G441 -> 6685000 | AW75: =データ一覧!G455 -> 6518803 | BB75: 民生費 | BF75: =データ一覧!G469 -> 45645415 | BK75: =データ一覧!G483 -> 44484424 | BQ75: 警察署数 | BZ75: 検問所数 | CJ75: =データ一覧!$A$684 -> 2年中 | CS75: =データ一覧!$A$684 -> 2年中
Z76: その他 | AD76: =データ一覧!G301 -> 879 | AG76: =データ一覧!G310 -> 5444 | AJ76: =データ一覧!G319 -> 105519 | AN76: 地方特例交付金 | AR76: =データ一覧!G442 -> 1331000 | AW76: =データ一覧!G456 -> 268978 | BB76: 衛生費 | BF76: =データ一覧!G470 -> 8288194 | BK76: =データ一覧!G484 -> 6110685 | CN76: 件 | CW76: 件
C77: 農業経営体数 | J77: 農産物販売額規模別経営体数 | R77: 経営耕地面積規模別経営体数 | Z77: 無店舗 | AD77: =データ一覧!G302 -> 89 | AG77: =データ一覧!G311 -> 800 | AJ77: =データ一覧!G320 -> 23530 | AN77: 地方交付税 | AR77: =データ一覧!G443 -> 10400000 | AW77: =データ一覧!G457 -> 11596114 | BB77: 労働費 | BF77: =データ一覧!G471 -> 523612 | BK77: =データ一覧!G485 -> 405649 | BR77: =データ一覧!G682 -> 2 | CA77: =データ一覧!G683 -> 36 | CJ77: =データ一覧!G684 -> 1160 | CS77: =データ一覧!G685 -> 380
A78: 農 | C78: 区 分 | G78: 経営体数 （経営体） | J78: 区 分 | O78: 経営体数 （経営体） | R78: 区 分 | W78: 経営体数 （経営体） | AN78: 分担金および負担金 | AR78: =データ一覧!G444 -> 224629 | AW78: =データ一覧!G458 -> 203336 | BB78: 農林水産業費 | BF78: =データ一覧!G472 -> 3543601 | BK78: =データ一覧!G486 -> 3427153 | BP78: 火災発生件数 | BZ78: 林野焼損 | CE78: 損 害 | CJ78: 消 防 自 | CN78: その他の
A79: 業 | B79: 令 | Z79: ８ 住 宅 | AN79: 使用料および手数料 | AR79: =データ一覧!G445 -> 1257477 | AW79: =データ一覧!G459 -> 1175723 | BB79: 商工費 | BF79: =データ一覧!G473 -> 2811745 | BK79: =データ一覧!G487 -> 4103794 | BP79: =+データ一覧!$A$686 -> 2年中 | BU79: 焼損棟数 | BZ79: 面 積 | CE79: 見 積 額 | CJ79: 動 車 数 | CN79: ﾎﾟﾝﾌﾟ数 | CR79: 消防吏員 | CV79: 消防団員
A80: 経 | B80: =+LEFT(データ一覧!$A$213) -> 2 | C80: 計 | G80: =データ一覧!G213 -> 2333 | J80: 総 数 | O80: =データ一覧!G217 -> 2333 | R80: 総 数 | W80: =データ一覧!G233 -> 6910 | AN80: 国庫支出金 | AR80: =データ一覧!G446 -> 21486846 | AW80: =データ一覧!G460 -> 49750618 | BB80: 土木費 | BF80: =データ一覧!G474 -> 16212433 | BK80: =データ一覧!G488 -> 18567880 | BP80: 件 | BV80: 棟 | CC80: ａ | CG80: 千円 | CT80: 人 | CX80: 人
A81: 営 | B81: ・ | C81: 個人経営体 | G81: =データ一覧!G214 -> 2195 | J81: 販 売 な し | O81: =データ一覧!G218 -> 129 | R81: 0.5 ha 未満 | W81: =データ一覧!G234 -> 163 | Z81: =+データ一覧!$A$321 -> 令和元年 | AE81: =データ一覧!$A$324 -> 2年 | AF81: 中の増減 | AJ81: =+データ一覧!$A$324 -> 2年 | AN81: 県支出金 | AR81: =データ一覧!G447 -> 10700154 | AW81: =データ一覧!G461 -> 10117896 | BB81: 消防費 | BF81: =データ一覧!G475 -> 3524784 | BK81: =データ一覧!G489 -> 3447520 | BQ81: =データ一覧!G686 -> 46 | BV81: =データ一覧!G687 -> 52 | CA81: =データ一覧!G688 -> 5 | CE81: =データ一覧!G689 -> 381322 | CK81: =データ一覧!G690 -> 36 | CO81: =データ一覧!G691 -> 100 | CS81: =データ一覧!G692 -> 368 | CW81: =データ一覧!G693 -> 999
A82: 体 | B82: =+LEFT(データ一覧!$A$213,1) -> 2 | C82: 団体経営体 | G82: =データ一覧!G215 -> 138 | J82: 50万円未満 | O82: =データ一覧!G219 -> 816 | R82: 0.5 ha ～ 1.0 ha | W82: =データ一覧!G235 -> 549 | AD82: 建設した住宅 | AG82: 消失した住宅 | AN82: 財産収入 | AR82: =データ一覧!G448 -> 107553 | AW82: =データ一覧!G462 -> 9496992 | BB82: 教育費 | BF82: =データ一覧!G476 -> 9373201 | BK82: =データ一覧!G490 -> 10350350 | BP82: ２０ そ の 他
A83: 数 | B83: ・ | D83: 法人経営 | G83: =データ一覧!G216 -> 73 | J83: 50～300万円 | O83: =データ一覧!G220 -> 1075 | R83: 1.0 ha ～ 2.0 ha | W83: =データ一覧!G236 -> 908 | AN83: 繰入金 | AR83: =データ一覧!G449 -> 960177 | AW83: =データ一覧!G463 -> 41357 | BB83: 災害復旧費 | BF83: =データ一覧!G477 -> 30750 | BK83: =データ一覧!G491 -> 72365
A84: （ | B84: =+RIGHT(データ一覧!$A$213) -> 1 | J84: 300～500万円 | O84: =データ一覧!G221 -> 92 | R84: 2.0 ha ～ 3.0 ha | W84: =データ一覧!G237 -> 398 | AA84: =データ一覧!G321 -> 107546 | AC84: 戸 | AD84: =データ一覧!G322 -> 1503 | AF84: 戸 | AG84: =データ一覧!G323 -> 606 | AI84: 戸 | AK84: =データ一覧!G324 -> 108443 | AM84: 戸 | AN84: 地方債 | AR84: =データ一覧!G450 -> 12194800 | AW84: =データ一覧!G464 -> 8966498 | BB84: 公債費 | BF84: =データ一覧!G478 -> 13495702 | BK84: =データ一覧!G492 -> 17034127 | BU84: 一乗谷朝倉氏遺跡、一乗谷朝倉氏庭園、養浩館庭園、免鳥長山古墳、越前海岸、福井城址、北の庄城址・柴田公園､グリフィス記念館、足羽川の桜並木、愛宕坂、丹巌洞、大安禅寺、コスモス広苑、絹本著色 羅漢図、木造十一面観音菩薩立像、鉄製銀象嵌冑、糸崎の仏舞、睦月神事
A85: 総 | J85: 500～1,000万円 | O85: =データ一覧!G222 -> 81 | R85: 3.0 ha ～ 5.0 ha | W85: =データ一覧!G238 -> 287 | AN85: その他 | AR85: =データ一覧!G451 -> 4558817 | AW85: =データ一覧!G465 -> 6887721 | BB85: その他 | BF85: =データ一覧!G479 -> 300000 | BK85: =データ一覧!G493 -> 0 | BP85: 名所・旧跡
A86: 数 | J86: 1,000万円以上 | O86: =データ一覧!G223 -> 140 | R86: 5.0 ha以上 | W86: =データ一覧!G239 -> 4608 | BP86: 文化財等
A87: ） | C87: 15歳以上の常雇い数 | J87: 農業に60日以上従事した世帯員、役員・構成員 （経営主を含む）の平均年齢 | Z87: ９ 議 員 ・ 職 員 | AN87: １４ 文 化 | AX87: ( | AY87: =データ一覧!$A$500 -> 3.3.31 | BC87: ただし図書館・公民館・児童館 | BK87: =データ一覧!$A$494 -> 3.4.1
A88: と | BD88: 宗教法人数 | BK88: =データ一覧!$A$502 -> 2.12.31 | BO88: ）
A89: 就 | J89: 農業に60日以上従事 | R89: 農業に150日以上従事 | Z89: 市 町 村 議 会 | AC89: 有権者数 | AE89: =データ一覧!$A$328 -> 3.9.1 | AG89: 市 町 村 議 会 | AJ89: 職 員 数 | AS89: 図書館 | AY89: 公 民 館 | BJ89: 社会教育学級講座 | BP89: 特産物 | BU89: 羽二重餅、水ようかん、越前がに、越前おろしそば、金福すいか、越のルビー、越前金時、水菜、坊ちゃんかぼちゃ、六条大麦、河内赤かぶら､木田ちそ、明里ネギ、新保ナス、越前水仙、ワカメ、ソースカツ丼、あべかわ餅
A90: 業 | C90: 区 分 | G90: 人 | J90: 区 分 | O90: 人 | R90: 区 分 | W90: 人 | Z90: 議 員 定 数 | AC90: 男 | AE90: 女 | AG90: 選 挙 投 票 率 | AJ90: 総 数 | AL90: 一般行政職 | AN90: 公 共 | AR90: 館 数 | AU90: 図書数 | AX90: 本 館 | BA90: 分 館 | BD90: 公 園 | BG90: 児童館 | BJ90: 学級講座数 | BM90: 受講者数
A91: 状 | C91: 総数 | G91: =データ一覧!G230 -> 113 | J91: 総数 | O91: =データ一覧!G224 -> 67.8 | R91: 総数 | W91: =データ一覧!G227 -> 66.4 | AB91: 人 | AD91: 人 | AF91: 人 | AI91: ％ | AK91: 人 | AM91: 人 | AN91: 施 設 数 | AS91: =データ一覧!G494 -> 5 | AU91: =データ一覧!G495 -> 1241588 | AY91: =データ一覧!G496 -> 50 | BA91: =データ一覧!G497 -> 6 | BD91: =データ一覧!G498 -> 398 | BG91: =データ一覧!G499 -> 28 | BJ91: =データ一覧!G500 -> 0 | BM91: =データ一覧!G501 -> 0
A92: 況 | C92: 男 | G92: =データ一覧!G231 -> 79 | J92: 男 | O92: =データ一覧!G225 -> 67.3 | R92: 男 | W92: =データ一覧!G228 -> 65.8 | AA92: =データ一覧!G325 -> 32 | AC92: =データ一覧!G328 -> 103760 | AE92: =データ一覧!G329 -> 112418 | AG92: =データ一覧!G327 -> 46.73 | AJ92: =データ一覧!G330 -> 2279 | AL92: =データ一覧!G331 -> 1207 | AN92: 宗 教 | AR92: 仏教系 | AU92: ｷﾘｽﾄ教系 | AX92: 神道諸派 | BA92: 公会堂・市民会館 | BG92: テレビ | BJ92: 衛星放送契約数 | BP92: 年中行事 | BU92: オシッサマのお渡り、越前朝倉万灯夜(規模縮小して実施）
C93: 女 | G93: =データ一覧!G232 -> 34 | J93: 女 | O93: =データ一覧!G226 -> 69.2 | R93: 女 | W93: =データ一覧!G229 -> 67.9 | AG93: =データ一覧!G326 -> 31.4.21 | AN93: 法 人 数 | AR93: =データ一覧!G502 -> 384 | AU93: =データ一覧!G503 -> 12 | AX93: =データ一覧!G504 -> 469 | BA93: =データ一覧!G505 -> 6 | BG93: 等 | BJ93: =データ一覧!G506 -> 65700

Sheet 敦賀市
A1: =+データ一覧!H2 -> 0
A2: =+データ一覧!H5 -> 0
AN3: 0
AB4: 【市章とそのいわれ】周囲の円形は敦賀港を現して地勢を物語り、 | AN4: 【位置および地勢】敦賀市は福井県の中央部に位置し、北に敦賀湾口を開いて | BS4: 所在地 | CA4: 〒914-8501
AB5: 中央の角は「都怒我阿羅斯等」来朝にちなんで | AO5: 日本海に面し、他の三方は山岳が連なり、敦賀湾と平野部を囲んでいる。 | CA5: 敦賀市中央町２丁目１番１号
A6: =+データ一覧!H3 -> つるがし | AB6: その沿革を象徴する。角の上部は敦賀港最初の | AO6: 東西約１４㎞、南北約２６km、面積は２５１．４１平方kmで若狭湾に大きく
A7: =データ一覧!H6 -> 敦賀市 | AB7: 文明施設としての灯台を具現し、港湾都市と | AO7: 張り出た敦賀半島と５４㎞に及ぶ海岸線が敦賀湾を日本海の風や波浪から | BS7: 電話番号 | CA7: （０７７０）２１－１１１１
AB8: しての将来への発展を意味する。 | AO8: 防ぎ、天然の良港を形成している。 | BS8: FAX番号 | CA8: 〃 ２２－６２２０
AB9: 0 | AO9: 日本三大松原の一つに数えられる気比の松原は、敦賀湾の最奥部に位置し、
AB10: 0 | AO10: 海との織り成す景観は、見事である。 | BS10: 最寄駅および距離 | CA10: ＪＲ北陸本線敦賀駅 下車２ｋｍ
AB11: 0
AB13: 【市が掲げる標語】次世代につなげる 夢と希望に満ちた 住みたくなるまち敦賀 | BS13: ホームページ | CA13: http://www.city.tsuruga.lg.jp/
A15: １ 土 地 | Z15: =データ一覧!$A$240 -> 2年 | AA15: 産米収穫量 | AD15: 収 穫 量 | AG15: 作 付 面 積 | AJ15: 10a当たり収量 | BP15: １５ 労 働 | CE15: 27.10.1
AD16: =データ一覧!$H$240 -> 2000 | AF16: t | AG16: =データ一覧!$H$241 -> 416 | AI16: ha | AJ16: =データ一覧!H242 -> 481 | AM16: kg | AN16: １０ 工 業 | BB16: =データ一覧!$A$332 -> 2.6.1（令和元年実績）
A17: 総 面 積 | K17: 固 定 資 産 概 要 調 書 に よ る 地 目 別 面 積 | AC17: 総 数 | AG17: うち 田 | AK17: うち 畑 | BW17: 産業別就業者数
C18: =データ一覧!$A$7 -> 3.10.1 | Q18: =データ一覧!$A$9 -> 3.1.1 | Z18: 耕 地 面 積 | AD18: ha | AG18: ha | AK18: ha | AO18: 産業分類 | AW18: 事業所数 | BB18: 従業者数 | BH18: 年間製造品出荷額等 | BQ18: 区 分 | BV18: 総 数 | CA18: 男 | CE18: 女 | CI18: 区 分 | CN18: 総 数 | CS18: 男 | CW18: 女
G19: ㎢ | K19: 総 数 | P19: う ち 田 | U19: う ち 畑 | Z19: =データ一覧!A243 -> 2.7.15 | AC19: =データ一覧!$H$243 -> 872 | AF19: =データ一覧!$H$244 -> 769 | AJ19: =データ一覧!$H$245 -> 103 | AZ19: 事業所 | BB19: 人 | BE19: 人 | BG19: 万円 | BN19: 万円 | BV19: 人 | CB19: 人 | CF19: 人 | CN19: 人 | CR19: 人 | CV19: 人
D20: =データ一覧!H7 -> 251.41 | O20: ha | T20: ha | Y20: ha | Z20: 農 業 生 産 物 | AD20: 作 付 面 積 | AG20: 収 穫 量 | AJ20: 10a当たり収量 | AO20: 総数 | AX20: =データ一覧!H332 -> 74 | BB20: =+データ一覧!H357 -> 3538 | BI20: =データ一覧!H382 -> 13169275 | BP20: 総 数 | BV20: =BZ20+CD20 -> 32820 | BZ20: =データ一覧!H507 -> 18800 | CD20: =データ一覧!H532 -> 14020
L21: =データ一覧!H9 -> 11213.6 | Q21: =データ一覧!H10 -> 1298.8 | V21: =データ一覧!H11 -> 253 | Z21: =データ一覧!$A$246 -> 2年中 | AD21: ha | AG21: t | AJ21: kg | AN21: 食料品 | AO21: 食料品 | AX21: =データ一覧!H333 -> 16 | BB21: =+データ一覧!H358 -> 315 | BI21: =データ一覧!H383 -> 332679 | CI21: 卸売業,小売業 | CN21: =CR21+CV21 -> 4628 | CR21: =データ一覧!H520 -> 1910 | CV21: =データ一覧!H545 -> 2718
A22: 町 ･ 丁 ･ 大 字 | K22: う ち 宅 地 | P22: う ち 山 林 | U22: う ち 原 野 | Z22: 水 稲 | AD22: =データ一覧!H246 -> 416 | AG22: =データ一覧!H247 -> 2000 | AJ22: =データ一覧!H248 -> 481 | AN22: 飲料・飼料 | AO22: 飲料・飼料 | AX22: =データ一覧!H334 -> 0 | BB22: =+データ一覧!H359 -> 0 | BI22: =データ一覧!H384 -> 0 | BP22: 第１次産業 | BV22: =BZ22+CD22 -> 615 | BZ22: =データ一覧!H508 -> 380 | CD22: =データ一覧!H533 -> 235 | CI22: 金融業,保険業 | CN22: =CR22+CV22 -> 578 | CR22: =データ一覧!H521 -> 206 | CV22: =データ一覧!H546 -> 372
A23: 区 画 数 | H23: =データ一覧!H8 -> 158 | O23: ha | T23: ha | Y23: ha | Z23: 六 条 大 麦 | AD23: =データ一覧!H249 -> - | AG23: =データ一覧!H250 -> - | AJ23: =データ一覧!H251 -> - | AN23: 繊維 | AO23: 繊維 | AX23: =データ一覧!H335 -> 4 | BB23: =+データ一覧!H360 -> 215 | BI23: =データ一覧!H385 -> 615875 | BQ23: 農業 | BV23: =BZ23+CD23 -> 521 | BZ23: =データ一覧!H509 -> 303 | CD23: =データ一覧!H534 -> 218 | CI23: 不動産業 | CN23: 362 | CR23: =データ一覧!H522 -> 199 | CV23: =データ一覧!H547 -> 163
A24: =データ一覧!$A$8 -> 2.4.1 | L24: =データ一覧!H12 -> 1247.2 | Q24: =データ一覧!H13 -> 4518.9 | V24: =データ一覧!H14 -> 216.4 | Z24: 大 豆 | AD24: =データ一覧!H252 -> x | AG24: =データ一覧!H253 -> x | AJ24: =データ一覧!H254 -> x | AN24: 衣服 | AO24: 木材 | AX24: =データ一覧!H336 -> 2 | BB24: =+データ一覧!H361 -> 251 | BI24: =データ一覧!H386 -> x | BQ24: 林業 | BV24: 12 | BZ24: =データ一覧!H510 -> 10 | CD24: =データ一覧!H535 -> 2 | CI24: 学術研究 | CN24: 1766 | CR24: =データ一覧!H523 -> 1369 | CV24: =データ一覧!H548 -> 397
A25: ２ 世 帯 数 と 人 口 | AB25: 区 分 | AD25: 乳 用 牛 | AF25: 肉 用 牛 | AH25: 豚 | AJ25: 採卵鶏 | AL25: ブロイラー | AN25: 木材 | AO25: 家具 | AX25: =データ一覧!H337 -> 1 | BB25: =+データ一覧!H362 -> 4 | BI25: =データ一覧!H387 -> x | BQ25: 漁業 | BV25: 82 | BZ25: =データ一覧!H511 -> 67 | CD25: =データ一覧!H536 -> 15 | CI25: 宿泊業,飲食ｻｰﾋﾞｽ | CN25: 2113 | CR25: =データ一覧!H524 -> 580 | CV25: =データ一覧!H549 -> 1533
Z26: 畜 産 | AB26: 飼養農家 | AD26: =データ一覧!$H$255 -> x | AF26: =データ一覧!$H$257 -> 3 | AH26: =データ一覧!$H$259 -> - | AJ26: =データ一覧!$H$261 -> x | AL26: =データ一覧!$H$263 -> 0 | AN26: 家具 | AO26: パルプ・紙 | AX26: =データ一覧!H338 -> 4 | BB26: =+データ一覧!H363 -> 256 | BI26: =データ一覧!H388 -> 1949879 | BP26: 第２次産業 | BV26: 8759 | BZ26: =データ一覧!H512 -> 6700 | CD26: =データ一覧!H537 -> 2059 | CI26: 生活関連ｻｰﾋﾞｽ業 | CN26: 1108 | CR26: =データ一覧!H525 -> 376 | CV26: =データ一覧!H550 -> 732
I27: 人 口 | U27: １世帯当 | W27: 人 口 | Z27: =データ一覧!$A$255 -> 3.3.31 | AB27: （戸） | AN27: パルプ・紙 | AO27: 印刷 | AX27: =データ一覧!H339 -> 2 | BB27: =+データ一覧!H364 -> 62 | BI27: =データ一覧!H389 -> x | BQ27: 鉱業，採石業 | BV27: 11 | BZ27: =データ一覧!H513 -> 8 | CD27: =データ一覧!H538 -> 3 | CI27: 教育,学習支援業 | CN27: 1255 | CR27: =データ一覧!H526 -> 546 | CV27: =データ一覧!H551 -> 709
A28: 区 分 | F28: 世帯数 | I28: 総 数 | L28: 男 | O28: 女 | R28: 男／女 | U28: たり人員 | W28: 密 度 | AB28: 頭 羽 | AD28: =データ一覧!$H$256 -> 35 | AF28: =データ一覧!$H$258 -> 73 | AH28: =データ一覧!$H$260 -> 0 | AJ28: =データ一覧!$H$262 -> 350 | AL28: =データ一覧!$H$264 -> 0 | AN28: 出版・印刷 | AO28: 化学 | AX28: =データ一覧!H340 -> 2 | BB28: =+データ一覧!H365 -> 255 | BI28: =データ一覧!H390 -> x | BQ28: 建設業 | BV28: 4404 | BZ28: =データ一覧!H514 -> 3736 | CD28: =データ一覧!H539 -> 668 | CI28: 医療，福祉 | CN28: 3904 | CR28: =データ一覧!H527 -> 762 | CV28: =データ一覧!H552 -> 3142
F29: 世 帯 | I29: 人 | L29: 人 | O29: 人 | S29: ％ | U29: 人 | W29: 人/㎢ | AN29: 化学 | AO29: 石油・石炭 | AX29: =データ一覧!H341 -> 1 | BB29: =+データ一覧!H366 -> 7 | BI29: =データ一覧!H391 -> x | BQ29: 製造業 | BV29: 4344 | BZ29: =データ一覧!H515 -> 2956 | CD29: =データ一覧!H540 -> 1388 | CI29: 複合サービス事業 | CN29: 293 | CR29: =データ一覧!H528 -> 166 | CV29: =データ一覧!H553 -> 127
A30: =データ一覧!$A$22 -> 2.10.1 | F30: =データ一覧!H22 -> 22995 | I30: =+L30+O30 -> 68041 | L30: =データ一覧!H24 -> 34091 | O30: =データ一覧!H25 -> 33950 | S30: =+L30/O30*100 -> 100.4153166 | U30: =データ一覧!H27 -> 2.96 | W30: =データ一覧!H28 -> 271.6 | Z30: ５ 林 業 | AN30: 石油・石炭 | AO30: プラスチック | AX30: =データ一覧!H342 -> 7 | BB30: =+データ一覧!H367 -> 739 | BI30: =データ一覧!H392 -> 4452166 | BP30: 第３次産業 | BV30: 22957 | BZ30: =データ一覧!H516 -> 11435 | CD30: =データ一覧!H541 -> 11522 | CI30: サービス業 | CN30: 2396 | CR30: =データ一覧!H529 -> 1643 | CV30: =データ一覧!H554 -> 753
A31: =データ一覧!$A$29 -> 7.10.1 | F31: =データ一覧!H29 -> 23115 | I31: =+L31+O31 -> 67204 | L31: =データ一覧!H31 -> 33047 | O31: =データ一覧!H32 -> 34157 | S31: 96.75030008 | U31: =データ一覧!H34 -> 2.91 | W31: =データ一覧!H35 -> 268.1 | AN31: プラスチック | AO31: ゴム | AX31: =データ一覧!H343 -> 0 | BB31: =+データ一覧!H368 -> 0 | BI31: =データ一覧!H393 -> 0 | BQ31: 電気･ｶﾞｽ･水道業 | BV31: 1294 | BZ31: =データ一覧!H517 -> 1187 | CD31: =データ一覧!H542 -> 107 | CI31: 公務 | CN31: 1027 | CR31: =データ一覧!H530 -> 699 | CV31: =データ一覧!H555 -> 328
A32: =データ一覧!$A$36 -> 12.10.1 | F32: =データ一覧!H36 -> 24539 | I32: =+L32+O32 -> 68145 | L32: =データ一覧!H38 -> 33504 | O32: =データ一覧!H39 -> 34641 | S32: 96.71776219 | U32: =データ一覧!H41 -> 2.78 | W32: =データ一覧!H42 -> 271.8 | Z32: 森 林 総 面 積 | AH32: =データ一覧!$A$265 -> 3.3.31 | AN32: ゴム | AO32: 皮革 | AX32: =データ一覧!H344 -> 0 | BB32: =+データ一覧!H369 -> 0 | BI32: =データ一覧!H394 -> 0 | BQ32: 情報通信業 | BV32: 352 | BZ32: =データ一覧!H518 -> 210 | CD32: =データ一覧!H543 -> 142 | CH32: 分類不能の産業 | CN32: 489 | CR32: =データ一覧!H531 -> 285 | CV32: =データ一覧!H556 -> 204
A33: =+データ一覧!$A$43 -> 17.10.1 | F33: =データ一覧!H43 -> 25742 | I33: =+L33+O33 -> 68402 | L33: =データ一覧!H45 -> 33475 | O33: =データ一覧!H46 -> 34927 | S33: 95.84275775 | U33: =データ一覧!H48 -> 2.66 | W33: =データ一覧!H49 -> 272.8 | Z33: 森 林 の 構 成 | AN33: 皮革 | AO33: 窯業・土石 | AX33: =データ一覧!H345 -> 9 | BB33: =+データ一覧!H370 -> 591 | BI33: =データ一覧!H395 -> 1125792 | BQ33: 運輸業,郵便業 | BV33: =BZ33+CD33 -> 1881 | BZ33: =データ一覧!H519 -> 1582 | CD33: =データ一覧!H544 -> 299
A34: =+データ一覧!$A$50 -> 22.10.1 | F34: =+データ一覧!H50 -> 26453 | I34: =+L34+O34 -> 67760 | L34: =+データ一覧!H52 -> 33396 | O34: =+データ一覧!H53 -> 34364 | S34: 97.18309859 | U34: =+データ一覧!H55 -> 2.56 | W34: =+データ一覧!H56 -> 269.7 | AE34: ha | AL34: ha | AN34: 窯業・土石 | AO34: 鉄鋼 | AX34: =データ一覧!H346 -> 0 | BB34: =+データ一覧!H371 -> 0 | BI34: =データ一覧!H396 -> 0 | BP34: １６ 社 会 福 祉 | CF34: =データ一覧!$A$557 -> 3.4.1
A35: =データ一覧!$A$57 -> 27.10.1 | F35: =データ一覧!H57 -> 26545 | I35: =データ一覧!H58 -> 66165 | L35: =データ一覧!H59 -> 32558 | O35: =データ一覧!H60 -> 33607 | S35: 96.87862648 | U35: =データ一覧!H62 -> 2.492559804 | W35: =データ一覧!H63 -> 263.2 | Z35: 総 数 | AD35: =データ一覧!H265 -> 19899.71 | AG35: 天然林 針葉樹 | AK35: =データ一覧!H268 -> 2066.55 | AN35: 鉄鋼 | AO35: 非鉄金属 | AX35: =データ一覧!H347 -> 1 | BB35: =+データ一覧!H372 -> 29 | BI35: =データ一覧!H397 -> x
A36: 令 2.10.1（国調） | F36: =データ一覧!H64 -> 27849 | I36: =データ一覧!H65 -> 64264 | L36: =データ一覧!H66 -> 31785 | O36: =データ一覧!H67 -> 32479 | S36: =+L36/O36*100 -> 97.86323471 | U36: =データ一覧!H72 -> 2.28 | W36: =データ一覧!H73 -> 253.1084682 | Z36: 人工林 針葉樹 | AD36: =データ一覧!H266 -> 4449.71 | AG36: 天然林 広葉樹 | AK36: =データ一覧!H269 -> 12596.19 | AN36: 非鉄金属 | AO36: 金属 | AX36: =データ一覧!H348 -> 8 | BB36: =+データ一覧!H373 -> 71 | BI36: =データ一覧!H398 -> 287826 | BQ36: 区分 | BX36: 施設数 | CC36: 収容定員 | CI36: 区分 | CP36: 施設数 | CU36: 収容定員
A37: 年 | C37: 区 | E37: 0歳 | H37: 15歳 | K37: 25歳 | N37: 35歳 | Q37: 45歳 | T37: 55歳 | W37: 65歳 | Z37: 人工林 広葉樹 | AD37: =データ一覧!H267 -> 335.63 | AG37: 竹 林 | AK37: =データ一覧!H270 -> 72.56 | AN37: 金属 | AO37: はん用機械 | AX37: =データ一覧!H349 -> 0 | BB37: =+データ一覧!H374 -> 0 | BI37: =データ一覧!H399 -> 0 | BP37: 生活保護施設 | BX37: =データ一覧!H557 -> 0 | CB37: =データ一覧!H570 -> 0 | CF37: 人 | CH37: 指定障害者支援施設 | CP37: =データ一覧!H563 -> 1 | CT37: =データ一覧!H576 -> 30 | CX37: 人
A38: 齢 | B38: 令 | F38: ～ | I38: ～ | L38: ～ | O38: ～ | R38: ～ | U38: ～ | AN38: 一般機械 | AO38: 生産用機械 | AX38: =データ一覧!H350 -> 2 | BB38: =+データ一覧!H375 -> 36 | BI38: =データ一覧!H400 -> x | BP38: 地域福祉施設 | BX38: =データ一覧!H558 -> 1 | CB38: =データ一覧!H571 -> 0 | CH38: 指定相談支援事業所 | CP38: =データ一覧!H564 -> 3 | CT38: =データ一覧!H577 -> 0
A39: 階 | B39: =+LEFT(データ一覧!$A$83,1) -> 3 | C39: 分 | G39: 14歳 | J39: 24歳 | M39: 34歳 | P39: 44歳 | S39: 54歳 | V39: 64歳 | Y39: 以上 | Z39: 林 野 の 構 成 | AG39: 保 有 形 態 別 | AN39: 電気機械 | AO39: 業務用機械 | AX39: =データ一覧!H351 -> 0 | BB39: =+データ一覧!H376 -> 0 | BI39: =データ一覧!H401 -> 0 | BP39: 老人福祉施設 | BX39: =データ一覧!H559 -> 11 | CB39: =データ一覧!H572 -> 214 | CH39: 児童福祉施設 | CP39: =データ一覧!H565 -> 42 | CT39: =データ一覧!H578 -> 2549
A40: 級 | B40: ・ | G40: 人 | J40: 人 | L40: 人 | O40: 人 | R40: 人 | U40: 人 | X40: 人 | AF40: ha | AL40: ha | AO40: 電子・デバイス | AX40: =データ一覧!H352 -> 5 | BB40: =+データ一覧!H377 -> 574 | BI40: =データ一覧!H402 -> 1935933 | BP40: 介護保険施設 | BX40: =データ一覧!H560 -> 100 | CB40: =データ一覧!H573 -> 1961 | CH40: 母子福祉施設 | CP40: =データ一覧!H566 -> 0 | CT40: =データ一覧!H579 -> 0
A41: 別 | B41: =+MID(データ一覧!$A$83,3,2) -> 10 | C41: 総 数 | E41: =+E42+E43 -> 7883 | H41: =+H42+H43 -> 5230 | K41: =+K42+K43 -> 5620 | N41: =+N42+N43 -> 7516 | Q41: =+Q42+Q43 -> 9267 | T41: =+T42+T43 -> 7994 | W41: =+W42+W43 -> 18665 | Z41: 無立木地 伐採跡地 | AD41: =データ一覧!H271 -> 0.35 | AG41: 国 有 | AK41: =データ一覧!H273 -> 4794.99 | AO41: 電気機械 | AX41: =データ一覧!H353 -> 2 | BB41: =+データ一覧!H378 -> 42 | BI41: =データ一覧!H403 -> x | BP41: 障害者自立支援法施行前からの身体障害者福祉施設 | BX41: =データ一覧!H561 -> 0 | CB41: =データ一覧!H574 -> 0 | CH41: 婦人保護施設 | CP41: =データ一覧!H567 -> 0 | CT41: =データ一覧!H580 -> 0
A42: 人 | B42: ・ | C42: 男 | E42: =データ一覧!H83 -> 3998 | H42: =データ一覧!H84 -> 2766 | K42: =データ一覧!H85 -> 3025 | N42: =データ一覧!H86 -> 3880 | Q42: =データ一覧!H87 -> 4715 | T42: =データ一覧!H88 -> 4095 | W42: =データ一覧!H89 -> 8135 | Z42: 無立木地 未立木地 | AD42: =データ一覧!H272 -> 378.72 | AG42: 公 有 | AK42: =データ一覧!H274 -> 1873.73 | AN42: 輸送機械 | AO42: 情報通信機械 | AX42: =データ一覧!H354 -> 0 | BB42: =+データ一覧!H379 -> 0 | BI42: =データ一覧!H404 -> 0 | CH42: その他の社会福祉施設 | CP42: =データ一覧!H568+データ一覧!H569 -> 2 | CT42: =データ一覧!H581+データ一覧!H582 -> 0
A43: 口 | B43: =+RIGHT(データ一覧!$A$83,1) -> 1 | C43: 女 | E43: =データ一覧!H91 -> 3885 | H43: =データ一覧!H92 -> 2464 | K43: =データ一覧!H93 -> 2595 | N43: =データ一覧!H94 -> 3636 | Q43: =データ一覧!H95 -> 4552 | T43: =データ一覧!H96 -> 3899 | W43: =データ一覧!H97 -> 10530 | AG43: 私 有 | AK43: =データ一覧!H275 -> 13230.99 | AN43: 精密機械 | AO43: 輸送機械 | AX43: =データ一覧!H355 -> 3 | BB43: =+データ一覧!H380 -> 36 | BI43: =データ一覧!H405 -> 22090 | BP43: 障害福祉サービス事業所 | BX43: =データ一覧!H562 -> 40 | CB43: =データ一覧!H575 -> 431
Z44: 林 産 物 生 産 量 | AJ44: =データ一覧!$A$276 -> 2年中 | AN44: その他 | AO44: その他 | AX44: =データ一覧!H356 -> 5 | BB44: =+データ一覧!H381 -> 55 | BI44: =データ一覧!H406 -> 134886 | BP44: １７ 教 育 | CF44: =データ一覧!$A$583 -> 3.5.1
A45: 人口動態 | H45: 自 然 動 態 | N45: 社 会 動 態 | T45: =データ一覧!$A78 -> 2.1.1～3.12.31 | Z45: 生椎茸 | AD45: =データ一覧!H276 -> 3674 | AF45: ㎏ | AG45: 乾椎茸 | AK45: =データ一覧!H277 -> 126 | AM45: ㎏
C46: 区 分 | H46: 出 生 | K46: 死 亡 | N46: 転 入 | Q46: 転 出 | T46: 婚 姻 | W46: 離 婚 | Z46: えのきだけ | AD46: =データ一覧!H279 -> - | AF46: ㎏ | AG46: なめこ | AK46: =データ一覧!H278 -> 35 | AM46: ㎏ | AO46: 工 業 用 水 量 | AU46: （従業者30人以上の事業所） | BF46: =データ一覧!H407 -> 63803 | BK46: ㎥／日 | BZ46: 学校数（校） | CG46: 教員数（人） | CO46: 学生・生徒・児童数（人）
A47: =LEFT(データ一覧!$A74,6) -> 2.10.1 | H47: 人 | K47: 人 | N47: 人 | Q47: 人 | U47: 件 | X47: 件 | Z47: ひらたけ | AD47: =+データ一覧!H280 -> - | AF47: ㎏ | AG47: まいたけ | AK47: =+データ一覧!H281 -> - | AM47: ㎏ | BR47: 区分 | BZ47: 本 校 | CC47: 分 校 | CF47: 本 務 | CJ47: 兼 務 | CN47: 総 数 | CR47: 男 | CV47: 女
A48: ～ | C48: 実 数 | H48: =データ一覧!H74 -> 229 | K48: =データ一覧!H75 -> 357 | N48: =データ一覧!H76 -> 726 | Q48: =データ一覧!H77 -> 909 | T48: =データ一覧!H78 -> 272 | W48: =データ一覧!H79 -> 115 | AN48: １１ 上 ・ 下 水 道 | BQ48: 小学校 | BZ48: =データ一覧!H584 -> 13 | CC48: =データ一覧!H585 -> 0 | CF48: =データ一覧!H586 -> 221 | CJ48: =データ一覧!H587 -> 53 | CN48: =データ一覧!H588 -> 3383 | CR48: =データ一覧!H589 -> 1715 | CV48: =データ一覧!H590 -> 1668
A49: =RIGHT(データ一覧!$A76,6) -> 3.9.30 | C49: 比率(対1,000人) | H49: =+H48/I35*1000 -> 3.461044359 | K49: =+K48/I35*1000 -> 5.395601904 | N49: - | Q49: - | T49: =+T48/I35*1000 -> 4.110934784 | W49: =+W48/I35*1000 -> 1.738079045 | Z49: ６ 漁 業 | BQ49: 中学校 | BZ49: =データ一覧!H592 -> 7 | CC49: =データ一覧!H593 -> 0 | CF49: =データ一覧!H594 -> 147 | CJ49: =データ一覧!H595 -> 55 | CN49: =データ一覧!H596 -> 1825 | CR49: =データ一覧!H597 -> 916 | CV49: =データ一覧!H598 -> 909
AN50: 水 道 供 給 人 口 | AU50: 上 水 道 | AY50: 簡易水道 | BC50: 専用水道 | BG50: 飲料水供給施設 | BK50: 下水道処理人口 | BQ50: 高等学校 | BZ50: =データ一覧!H600 -> 4 | CC50: =データ一覧!H601 -> 0 | CF50: =データ一覧!H602 -> 146 | CJ50: =データ一覧!H603 -> 63 | CN50: =データ一覧!H604 -> 1747 | CR50: =データ一覧!H605 -> 1018 | CV50: =データ一覧!H606 -> 729
A51: ３ 事 業 所（民 営） （平 28.6.1） | Z51: 漁船隻数・トン数 | AD51: =データ一覧!$A$282 -> 2.12.31 | AH51: 動 力 船 | AN51: =データ一覧!$A$408 -> 3.3.31 | AT51: 人 | AV51: =データ一覧!H408 -> 63223 | AY51: =データ一覧!H409 -> 0 | BD51: =データ一覧!H410 -> 0 | BH51: =データ一覧!H411 -> 0 | BL51: =データ一覧!H412 -> 55989 | BQ51: 大学・短期大学 | BZ51: =データ一覧!H607 -> 2 | CC51: =データ一覧!H608 -> 0 | CF51: =データ一覧!H609 -> 43 | CJ51: =データ一覧!H610 -> 34 | CN51: =データ一覧!H611 -> 357 | CR51: =データ一覧!H612 -> 123 | CV51: =データ一覧!H613 -> 234
Z52: 無動力船隻数 | AD52: 船外機付漁船隻数 | AH52: 隻 数 | AK52: 総 ト ン 数 | BQ52: 高等専門学校 | BZ52: =データ一覧!H614 -> 0 | CC52: =データ一覧!H615 -> 0 | CF52: =データ一覧!H616 -> 0 | CJ52: =データ一覧!H617 -> 0 | CN52: =データ一覧!H618 -> 0 | CR52: =データ一覧!H619 -> 0 | CV52: =データ一覧!H620 -> 0
H53: 総 数 | N53: 民 営 | T53: 国 ･ 地方公共団体 | AC53: 隻 | AG53: 隻 | AJ53: 隻 | AM53: t | AN53: １２ 交 通 ・ 通 信 | BQ53: 特別支援学校 | BZ53: =データ一覧!H622 -> 0 | CC53: =データ一覧!H623 -> 0 | CF53: =+データ一覧!H624 -> 0 | CJ53: =+データ一覧!H625 -> 0 | CN53: =+データ一覧!H626 -> 0 | CR53: =+データ一覧!H627 -> 0 | CV53: =+データ一覧!H628 -> 0
A54: 区 分 | H54: 事業所数 | K54: 従業者数 | N54: 事業所数 | Q54: 従業者数 | T54: 事業所数 | W54: 従業者数 | Z54: =データ一覧!$H$282 -> 0 | AD54: =データ一覧!$H$283 -> 67 | AH54: =データ一覧!H284 -> 136 | AK54: =データ一覧!H285 -> 670.19 | BQ54: 幼稚園 | BZ54: =データ一覧!H630 -> 4 | CC54: =データ一覧!H631 -> 0 | CF54: =データ一覧!H632 -> 23 | CJ54: =データ一覧!H633 -> 13 | CN54: =データ一覧!$H$634 -> 157 | CR54: =データ一覧!H635 -> 81 | CV54: =データ一覧!H636 -> 76
K55: 人 | Q55: 人 | W55: 人 | Z55: 男女別就業者数 | AH55: =データ一覧!$A$286 -> 30.11.1 | AN55: 道 路 | AR55: 実 延 長 | AV55: 国 道 | AZ55: 県 道 | BD55: 市町道 | BH55: 鉄 道 営 業 キ ロ 数 | BQ55: 幼保連携認定こども園 | BZ55: =データ一覧!H638 -> 3 | CC55: =データ一覧!H639 -> 0 | CF55: =データ一覧!H640 -> 58 | CJ55: =データ一覧!H641 -> 22 | CN55: =データ一覧!H642 -> 550 | CR55: =データ一覧!H643 -> 278 | CV55: =データ一覧!H644 -> 272
A56: 総数 | H56: =データ一覧!H99 -> … | K56: =データ一覧!H156 -> … | N56: =データ一覧!H100 -> 3335 | Q56: =データ一覧!H157 -> 31828 | T56: =データ一覧!H101 -> … | W56: =データ一覧!H158 -> … | Z56: 総 数 | AF56: 男 | AJ56: 女 | AN56: =データ一覧!$A$413 -> 2.4.1 | AR56: =データ一覧!H413 -> 517.5 | AU56: ㎞ | AV56: =データ一覧!H414 -> 12.2 | AY56: ㎞ | AZ56: =データ一覧!H415 -> 71.6 | BC56: ㎞ | BD56: =データ一覧!H416 -> 433.7 | BG56: km | BH56: =データ一覧!$A$417 -> 3.4.1 | BL56: =データ一覧!H417 -> 30.246 | BO56: ㎞ | BQ56: 各種学校 | BZ56: =データ一覧!H646 -> 3 | CC56: =データ一覧!H647 -> 0 | CF56: =データ一覧!H648 -> 35 | CJ56: =データ一覧!H649 -> - | CN56: =データ一覧!H650 -> 245 | CR56: =データ一覧!H651 -> 146 | CV56: =データ一覧!H652 -> 99
A57: 農林漁業 | H57: =データ一覧!H102 -> … | K57: =データ一覧!H159 -> … | N57: =データ一覧!H103 -> 4 | Q57: =データ一覧!H160 -> 77 | T57: =データ一覧!H104 -> … | W57: =データ一覧!H161 -> … | AE57: 人 | AH57: 人 | AM57: 人 | AN57: 自動車 | AW57: 乗用車 | BQ57: 専修学校 | BZ57: =データ一覧!H654 -> 0 | CC57: =データ一覧!H655 -> 0 | CF57: =データ一覧!H656 -> 0 | CJ57: =データ一覧!H657 -> 0 | CN57: =データ一覧!H658 -> 0 | CR57: =データ一覧!H659 -> 0 | CV57: =データ一覧!H660 -> 0
A58: 鉱業 | H58: =データ一覧!H105 -> … | K58: =データ一覧!H162 -> … | N58: =データ一覧!H106 -> 0 | Q58: =データ一覧!H163 -> 0 | T58: =データ一覧!H107 -> … | W58: =データ一覧!H164 -> … | Z58: =AF58+AJ58 -> 134 | AF58: =データ一覧!$H$287 -> 121 | AJ58: =データ一覧!H288 -> 13 | AN58: 台 数 | AR58: 貨 物 | AV58: 普 通 | AZ58: 小 型 | BD58: 乗 合 | BG58: 特 種 | BJ58: 小型二輪 | BM58: 軽自動車 | BP58: １８ 衛 生
A59: 建設業 | H59: =データ一覧!H108 -> … | K59: =データ一覧!H165 -> … | N59: =データ一覧!H109 -> 463 | Q59: =データ一覧!H166 -> 3911 | T59: =データ一覧!H110 -> … | W59: =データ一覧!H167 -> … | Z59: 海 面 漁 業 漁 獲 量 （属人） | AH59: =データ一覧!$A$289 -> 30年中 | AN59: =データ一覧!$A$418 -> 3.3.31 | AS59: =データ一覧!H418 -> 4644 | AW59: =データ一覧!H420 -> 12116 | BA59: =データ一覧!H421 -> 11291 | BD59: =データ一覧!H419 -> 197 | BG59: =データ一覧!H422 -> 1531 | BJ59: =データ一覧!H423 -> 921 | BM59: =データ一覧!H424 -> 24937
A60: 製造業 | H60: =データ一覧!H111 -> … | K60: =データ一覧!H168 -> … | N60: =データ一覧!H112 -> 170 | Q60: =データ一覧!H169 -> 3953 | T60: =データ一覧!H113 -> … | W60: =データ一覧!H170 -> … | AF60: ｔ | AM60: t | AR60: 郵 便 局 数 | BF60: =+MID(データ一覧!$A$428,3,2) -> 12 | BG60: 令 | BH60: 一般加入 | BL60: ＩＮＳネット | BT60: 医療関係施設 | BZ60: =データ一覧!$A$661 -> 元.10.1 | CG60: および医療関係者数 | CO60: =データ一覧!$A$666 -> 30.12.31
A61: 電気・ｶﾞ ｽ・熱供給・水道業 | H61: =データ一覧!H114 -> … | K61: =データ一覧!H171 -> … | N61: =データ一覧!H115 -> 9 | Q61: =データ一覧!H172 -> 524 | T61: =データ一覧!H116 -> … | W61: =データ一覧!H173 -> … | Z61: 総 数 | AD61: =データ一覧!H289 -> 503 | AG61: 藻 類 | AK61: =データ一覧!H292 -> 2 | AN61: 通 信 | AR61: 総 数 | AW61: 郵 便 局 | BB61: 簡 易 局 | BF61: ・ | BG61: =+LEFT(データ一覧!$A$428,1) -> 2 | BH61: 電話数 | BL61: 加入数 | BW61: 病 | BZ61: 院 | CH61: 一般診療所 | CT61: 歯科診療所
A62: 情報通信業 | H62: =データ一覧!H117 -> … | K62: =データ一覧!H174 -> … | N62: =データ一覧!H118 -> 24 | Q62: =データ一覧!H175 -> 216 | T62: =データ一覧!H119 -> … | W62: =データ一覧!H176 -> … | Z62: 魚 類 | AD62: =データ一覧!H290 -> 420 | AG62: そ の 他 | AK62: =データ一覧!H293 -> 71 | AN62: =データ一覧!$A$428 -> 2.12.31 | AR62: =データ一覧!H425 -> 12 | AW62: =データ一覧!H426 -> 11 | BB62: =データ一覧!H427 -> 1 | BF62: =+RIGHT(データ一覧!$A$428,2) -> 31 | BG62: ・ | BH62: =データ一覧!H428 -> 6832 | BL62: =データ一覧!H429 -> 1227 | BQ62: 医療関係 | CC62: 一般病院 | CO62: 有 | CR62: 床
A63: 運輸業、郵便業 | H63: =データ一覧!H120 -> … | K63: =データ一覧!H177 -> … | N63: =データ一覧!H121 -> 92 | Q63: =データ一覧!H178 -> 2182 | T63: =データ一覧!H122 -> … | W63: =データ一覧!H179 -> … | Z63: 貝 類 | AD63: =データ一覧!H291 -> 10 | BQ63: 施設数 | BX63: =データ一覧!H661 -> 5 | CD63: =データ一覧!H662 -> 3 | CJ63: =データ一覧!H663 -> 47 | CP63: =データ一覧!H664 -> 3 | CV63: =データ一覧!H665 -> 23
A64: 卸売業、小売業 | H64: =データ一覧!H123 -> … | K64: =データ一覧!H180 -> … | N64: =データ一覧!H124 -> 875 | Q64: =データ一覧!H181 -> 6007 | T64: =データ一覧!H125 -> … | W64: =データ一覧!H182 -> … | AN64: １３ 税 ・ 財 政 | BW64: 医師 | CB64: 歯科医師 | CG64: 薬剤師 | CL64: 保健師 | CQ64: 助産師 | CV64: 看護師
A65: 金融業、保険業 | H65: =データ一覧!H126 -> … | K65: =データ一覧!H183 -> … | N65: =データ一覧!H127 -> 56 | Q65: =データ一覧!H184 -> 639 | T65: =データ一覧!H128 -> … | W65: =データ一覧!H185 -> … | Z65: ７ 商 業 | AG65: =データ一覧!$A$294 -> 28.6.1(平成27年実績） | BQ65: 医療 | BZ65: 人 | CE65: 人 | CJ65: 人 | CO65: 人 | CT65: 人 | CY65: 人
A66: 不動産業、物品賃貸業 | H66: =データ一覧!H129 -> … | K66: =データ一覧!H186 -> … | N66: =データ一覧!H130 -> 107 | Q66: =データ一覧!H187 -> 538 | T66: =データ一覧!H131 -> … | W66: =データ一覧!H188 -> … | AR66: 歳入 | BA66: (千円） | BF66: 歳出 | BO66: (千円） | BQ66: 関係者 | BV66: =データ一覧!H666 -> 126 | CA66: =データ一覧!H667 -> 35 | CF66: =データ一覧!H668 -> 130 | CK66: =データ一覧!H669 -> 54 | CP66: =データ一覧!H670 -> 37 | CU66: =データ一覧!H671 -> 1033
A67: 学術研究、専門・技術ｻｰﾋﾞｽ業 | H67: =データ一覧!H132 -> … | K67: =データ一覧!H189 -> … | N67: =データ一覧!H133 -> 136 | Q67: =データ一覧!H190 -> 1765 | T67: =データ一覧!H134 -> … | W67: =データ一覧!H191 -> … | Z67: 産 業 分 類 | AD67: 商 店 数 | AG67: 従 業 者 数 | AJ67: 年 間 販 売 額 | AN67: 一人当たり歳入歳出予算決算額 | BY67: 死因別死亡数 | CO67: =データ一覧!$A$672 -> 2年中 | CX67: 単 位：人
A68: 宿泊業、飲食サービス業 | H68: =データ一覧!H135 -> … | K68: =データ一覧!H192 -> … | N68: =データ一覧!H136 -> 569 | Q68: =データ一覧!H193 -> 3423 | T68: =データ一覧!H137 -> … | W68: =データ一覧!H194 -> … | AE68: 店 | AI68: 人 | AK68: 百万円 | AN68: 区分 | AR68: =データ一覧!$A$438 -> 3年度 | AW68: =データ一覧!$A$452 -> 2年度 | BB68: 区分 | BF68: =+AR68 -> 3年度 | BK68: =データ一覧!$A$452 -> 2年度 | BP68: 死 因 | CB68: 悪 性 | CE68: 高血圧 | CK68: 脳血管 | CT68: 不慮の事故
A69: 生活関連サービス業、娯楽業 | H69: =データ一覧!H138 -> … | K69: =データ一覧!H195 -> … | N69: =データ一覧!H139 -> 275 | Q69: =データ一覧!H196 -> 1224 | T69: =データ一覧!H140 -> … | W69: =データ一覧!H197 -> … | Z69: 総 計 | AD69: =データ一覧!$H$294 -> 735 | AG69: =データ一覧!H303 -> 5066 | AJ69: =データ一覧!H312 -> 156769 | AR69: =データ一覧!H434 -> 515341.7356 | AW69: =データ一覧!H435 -> 736862.0873 | BF69: =データ一覧!H436 -> 515341.7356 | BK69: =データ一覧!H437 -> 697974.3975 | BU69: 全 死 因 | BY69: 結 核 | CB69: 新生物 | CE69: 性疾患 | CH69: 心疾患 | CK69: 疾 患 | CN69: 肺 炎 | CQ69: 老 衰 | CW69: 交通事故
A70: 教育、学習支援業 | H70: =データ一覧!H141 -> … | K70: =データ一覧!H198 -> … | N70: =データ一覧!H142 -> 70 | Q70: =データ一覧!H199 -> 509 | T70: =データ一覧!H143 -> … | W70: =データ一覧!H200 -> … | Z70: 卸売業 | AD70: =データ一覧!H295 -> 152 | AG70: =データ一覧!H304 -> 1148 | AJ70: =データ一覧!H313 -> 75791 | AN70: 項目別歳入歳出予算決算額
A71: 医療、福祉 | H71: =データ一覧!H144 -> … | K71: =データ一覧!H201 -> … | N71: =データ一覧!H145 -> 201 | Q71: =データ一覧!H202 -> 3682 | T71: =データ一覧!H146 -> … | W71: =データ一覧!H203 -> … | Z71: 小売業 | AD71: =データ一覧!H296 -> 583 | AG71: =データ一覧!H305 -> 3918 | AJ71: =データ一覧!H314 -> 80978 | AN71: 区分 | AR71: =データ一覧!$A$438 -> 3年度 | AW71: =データ一覧!$A$452 -> 2年度 | BB71: 区分 | BF71: =+AR71 -> 3年度 | BK71: =データ一覧!$A$452 -> 2年度 | BU71: =データ一覧!H672 -> 763 | BY71: － | BZ71: =データ一覧!H673 -> 1 | CB71: =データ一覧!H674 -> 42 | CF71: =データ一覧!H675 -> 5 | CH71: =データ一覧!H676 -> 18 | CK71: =データ一覧!H677 -> 0 | CN71: =データ一覧!H678 -> 26 | CQ71: =データ一覧!H679 -> 105 | CT71: =データ一覧!H680 -> 21 | CW71: =データ一覧!H681 -> 3
A72: 複合サービス事業 | H72: =データ一覧!H147 -> … | K72: =データ一覧!H204 -> … | N72: =データ一覧!H148 -> 17 | Q72: =データ一覧!H205 -> 381 | T72: =データ一覧!H149 -> … | W72: =データ一覧!H206 -> … | Z72: 各種商品 | AD72: =データ一覧!H297 -> 3 | AG72: =データ一覧!H306 -> 342 | AJ72: =データ一覧!H315 -> 7877 | AN72: 総額 | AR72: =SUM(AR73:AV85) -> 32793256 | AW72: =SUM(AW73:BA85) -> 47006846 | BB72: 総額 | BF72: =SUM(BF73:BJ85) -> 32793256 | BK72: =SUM(BK73:BO85) -> 44627785 | BP72: １９ 警 察 ・ 消 防 | CE72: =+データ一覧!$A682 -> 3.4.1
A73: サービス業 | H73: =データ一覧!H150 -> … | K73: =データ一覧!H207 -> … | N73: =データ一覧!H151 -> 267 | Q73: =データ一覧!H208 -> 2797 | T73: =データ一覧!H152 -> … | W73: =データ一覧!H209 -> … | Z73: 織物・衣服・身の回り品 | AD73: =データ一覧!H298 -> 90 | AG73: =データ一覧!H307 -> 294 | AJ73: =データ一覧!H316 -> 3627 | AN73: 地方税 | AR73: =データ一覧!H439 -> 12187646 | AW73: =データ一覧!H453 -> 13199993 | BB73: 議会費 | BF73: =データ一覧!H467 -> 289361 | BK73: =データ一覧!H481 -> 271179
A74: 公務 | H74: =データ一覧!H153 -> … | K74: =データ一覧!H210 -> … | N74: =データ一覧!H154 -> … | Q74: =データ一覧!H211 -> … | T74: =データ一覧!H155 -> … | W74: =データ一覧!H212 -> … | Z74: 飲食料品 | AD74: =データ一覧!H299 -> 180 | AG74: =データ一覧!H308 -> 1425 | AJ74: =データ一覧!H317 -> 23405 | AN74: 地方譲与税 | AR74: =データ一覧!H440 -> 216677 | AW74: =データ一覧!H454 -> 227810 | BB74: 総務費 | BF74: =データ一覧!H468 -> 5389304 | BK74: =データ一覧!H482 -> 14703462 | BZ74: 交番・駐在所 | CI74: 刑法犯認知件数 | CR74: 交通人身事故発生件数
A75: ４ 農 業 | Z75: 機械器具 | AD75: =データ一覧!H300 -> 91 | AG75: =データ一覧!H309 -> 652 | AJ75: =データ一覧!H318 -> 19293 | AN75: 各種交付金 | AR75: =データ一覧!H441 -> 1658000 | AW75: =データ一覧!H455 -> 1579113 | BB75: 民生費 | BF75: =データ一覧!H469 -> 10163031 | BK75: =データ一覧!H483 -> 10099700 | BQ75: 警察署数 | BZ75: 検問所数 | CJ75: =データ一覧!$A$684 -> 2年中 | CS75: =データ一覧!$A$684 -> 2年中
Z76: その他 | AD76: =データ一覧!H301 -> 205 | AG76: =データ一覧!H310 -> 1120 | AJ76: =データ一覧!H319 -> 22895 | AN76: 地方特例交付金 | AR76: =データ一覧!H442 -> 465000 | AW76: =データ一覧!H456 -> 70462 | BB76: 衛生費 | BF76: =データ一覧!H470 -> 3122221 | BK76: =データ一覧!H484 -> 2941911 | CN76: 件 | CW76: 件
C77: 農業経営体数 | J77: 農産物販売額規模別経営体数 | R77: 経営耕地面積規模別経営体数 | Z77: 無店舗 | AD77: =データ一覧!H302 -> 14 | AG77: =データ一覧!H311 -> 85 | AJ77: =データ一覧!H320 -> 3881 | AN77: 地方交付税 | AR77: =データ一覧!H443 -> 1350000 | AW77: =データ一覧!H457 -> 1456323 | BB77: 労働費 | BF77: =データ一覧!H471 -> 138427 | BK77: =データ一覧!H485 -> 140743 | BR77: =データ一覧!H682 -> 1 | CA77: =データ一覧!H683 -> 8 | CJ77: =データ一覧!H684 -> 292 | CS77: =データ一覧!H685 -> 85
A78: 農 | C78: 区 分 | G78: 経営体数 （経営体） | J78: 区 分 | O78: 経営体数 （経営体） | R78: 区 分 | W78: 経営体数 （経営体） | AN78: 分担金および負担金 | AR78: =データ一覧!H444 -> 1094889 | AW78: =データ一覧!H458 -> 541058 | BB78: 農林水産業費 | BF78: =データ一覧!H472 -> 488691 | BK78: =データ一覧!H486 -> 409370 | BP78: 火災発生件数 | BZ78: 林野焼損 | CE78: 損 害 | CJ78: 消 防 自 | CN78: その他の
A79: 業 | B79: 令 | Z79: ８ 住 宅 | AN79: 使用料および手数料 | AR79: =データ一覧!H445 -> 555974 | AW79: =データ一覧!H459 -> 487304 | BB79: 商工費 | BF79: =データ一覧!H473 -> 1369642 | BK79: =データ一覧!H487 -> 2737843 | BP79: =+データ一覧!$A$686 -> 2年中 | BU79: 焼損棟数 | BZ79: 面 積 | CE79: 見 積 額 | CJ79: 動 車 数 | CN79: ﾎﾟﾝﾌﾟ数 | CR79: 消防吏員 | CV79: 消防団員
A80: 経 | B80: =+LEFT(データ一覧!$A$213) -> 2 | C80: 計 | G80: =データ一覧!H213 -> 356 | J80: 総 数 | O80: =データ一覧!H217 -> 356 | R80: 総 数 | W80: =データ一覧!H233 -> 418 | AN80: 国庫支出金 | AR80: =データ一覧!H446 -> 5000860 | AW80: =データ一覧!H460 -> 14343330 | BB80: 土木費 | BF80: =データ一覧!H474 -> 5015132 | BK80: =データ一覧!H488 -> 3588417 | BP80: 件 | BV80: 棟 | CC80: ａ | CG80: 千円 | CT80: 人 | CX80: 人
A81: 営 | B81: ・ | C81: 個人経営体 | G81: =データ一覧!H214 -> 351 | J81: 販 売 な し | O81: =データ一覧!H218 -> 41 | R81: 0.5 ha 未満 | W81: =データ一覧!H234 -> 42 | Z81: =+データ一覧!$A$321 -> 令和元年 | AE81: =データ一覧!$A$324 -> 2年 | AF81: 中の増減 | AJ81: =+データ一覧!$A$324 -> 2年 | AN81: 県支出金 | AR81: =データ一覧!H447 -> 2698566 | AW81: =データ一覧!H461 -> 2636787 | BB81: 消防費 | BF81: =データ一覧!H475 -> 1105886 | BK81: =データ一覧!H489 -> 1124437 | BQ81: =データ一覧!H686 -> 14 | BV81: =データ一覧!H687 -> 12 | CA81: =データ一覧!H688 -> 0 | CE81: =データ一覧!H689 -> 38078 | CK81: =データ一覧!H690 -> 21 | CO81: =データ一覧!H691 -> 13 | CS81: =データ一覧!H692 -> 111 | CW81: =データ一覧!H693 -> 279
A82: 体 | B82: =+LEFT(データ一覧!$A$213,1) -> 2 | C82: 団体経営体 | G82: =データ一覧!H215 -> 5 | J82: 50万円未満 | O82: =データ一覧!H219 -> 177 | R82: 0.5 ha ～ 1.0 ha | W82: =データ一覧!H235 -> 94 | AD82: 建設した住宅 | AG82: 消失した住宅 | AN82: 財産収入 | AR82: =データ一覧!H448 -> 39032 | AW82: =データ一覧!H462 -> 76433 | BB82: 教育費 | BF82: =データ一覧!H476 -> 3622511 | BK82: =データ一覧!H490 -> 6667470 | BP82: ２０ そ の 他
A83: 数 | B83: ・ | D83: 法人経営 | G83: =データ一覧!H216 -> 2 | J83: 50～300万円 | O83: =データ一覧!H220 -> 112 | R83: 1.0 ha ～ 2.0 ha | W83: =データ一覧!H236 -> 89 | AN83: 繰入金 | AR83: =データ一覧!H449 -> 1352213 | AW83: =データ一覧!H463 -> 1457720 | BB83: 災害復旧費 | BF83: =データ一覧!H477 -> 4000 | BK83: =データ一覧!H491 -> 1235
A84: （ | B84: =+RIGHT(データ一覧!$A$213) -> 1 | J84: 300～500万円 | O84: =データ一覧!H221 -> 11 | R84: 2.0 ha ～ 3.0 ha | W84: =データ一覧!H237 -> 31 | AA84: =データ一覧!H321 -> 25098 | AC84: 戸 | AD84: =データ一覧!H322 -> 387 | AF84: 戸 | AG84: =データ一覧!H323 -> 265 | AI84: 戸 | AK84: =データ一覧!H324 -> 25220 | AM84: 戸 | AN84: 地方債 | AR84: =データ一覧!H450 -> 3284400 | AW84: =データ一覧!H464 -> 4592700 | BB84: 公債費 | BF84: =データ一覧!H478 -> 2065050 | BK84: =データ一覧!H492 -> 1942018 | BU84: 気比の松原、柴田氏庭園、西福寺書院庭園、西福寺御影堂・阿弥陀堂・書院及び庫裏、金ヶ崎城跡、武田耕雲斎等墓、氣比神宮大鳥居、朝鮮鐘、疋壇城跡、穴地蔵古墳、立洞古墳、中郷古墳群、洲崎の高燈籠、玄蕃尾城跡、旧大和田銀行本店本館、旧紐育スタンダード石油会社倉庫（赤レンガ倉庫）、旧敦賀倉庫株式会社新港第一号・第二号・第三号倉庫
A85: 総 | J85: 500～1,000万円 | O85: =データ一覧!H222 -> 9 | R85: 3.0 ha ～ 5.0 ha | W85: =データ一覧!H238 -> 52 | AN85: その他 | AR85: =データ一覧!H451 -> 2889999 | AW85: =データ一覧!H465 -> 6337813 | BB85: その他 | BF85: =データ一覧!H479 -> 20000 | BK85: =データ一覧!H493 -> 0 | BP85: 名所・旧跡
A86: 数 | J86: 1,000万円以上 | O86: =データ一覧!H223 -> 6 | R86: 5.0 ha以上 | W86: =データ一覧!H239 -> 110 | BP86: 文化財等
A87: ） | C87: 15歳以上の常雇い数 | J87: 農業に60日以上従事した世帯員、役員・構成員 （経営主を含む）の平均年齢 | Z87: ９ 議 員 ・ 職 員 | AN87: １４ 文 化 | AX87: ( | AY87: =データ一覧!$A$500 -> 3.3.31 | BC87: ただし図書館・公民館・児童館 | BK87: =データ一覧!$A$494 -> 3.4.1
A88: と | BD88: 宗教法人数 | BK88: =データ一覧!$A$502 -> 2.12.31 | BO88: ）
A89: 就 | J89: 農業に60日以上従事 | R89: 農業に150日以上従事 | Z89: 市 町 村 議 会 | AC89: 有権者数 | AE89: =データ一覧!$A$328 -> 3.9.1 | AG89: 市 町 村 議 会 | AJ89: 職 員 数 | AS89: 図書館 | AY89: 公 民 館 | BJ89: 社会教育学級講座 | BP89: 特産物 | BU89: 昆布加工品、かまぼこ、越前かに、敦賀ふぐ、敦賀真鯛、杉箸アカカンバ、古田苅かぶら、黒河マナ、東浦みかん、豆らくがん、かたパン、敦賀ラーメン、ソースカツ丼
A90: 業 | C90: 区 分 | G90: 人 | J90: 区 分 | O90: 人 | R90: 区 分 | W90: 人 | Z90: 議 員 定 数 | AC90: 男 | AE90: 女 | AG90: 選 挙 投 票 率 | AJ90: 総 数 | AL90: 一般行政職 | AN90: 公 共 | AR90: 館 数 | AU90: 図書数 | AX90: 本 館 | BA90: 分 館 | BD90: 公 園 | BG90: 児童館 | BJ90: 学級講座数 | BM90: 受講者数
A91: 状 | C91: 総数 | G91: =データ一覧!H230 -> 8 | J91: 総数 | O91: =データ一覧!H224 -> 69.2 | R91: 総数 | W91: =データ一覧!H227 -> 69.6 | AB91: 人 | AD91: 人 | AF91: 人 | AI91: ％ | AK91: 人 | AM91: 人 | AN91: 施 設 数 | AS91: =データ一覧!H494 -> 1 | AU91: =データ一覧!H495 -> 270021 | AY91: =データ一覧!H496 -> 9 | BA91: =データ一覧!H497 -> 0 | BD91: =データ一覧!H498 -> 40 | BG91: =データ一覧!H499 -> 3 | BJ91: =データ一覧!H500 -> 268 | BM91: =データ一覧!H501 -> 3984 | BP91: 年中行事 | BU91: 敦賀西町の綱引き､花換まつり､沓見御田植祭､総参祭､とうろう流しと大花火大会､氣比神宮例大祭敦賀まつり、赤崎の獅子舞、相撲甚句、菊花大会、厄除せんべい焼､彼岸祭、野坂だのせ祭、御船遊管絃祭、昆沙講
A92: 況 | C92: 男 | G92: =データ一覧!H231 -> 3 | J92: 男 | O92: =データ一覧!H225 -> 68.2 | R92: 男 | W92: =データ一覧!H228 -> 69.2 | AA92: =データ一覧!H325 -> 24 | AC92: =データ一覧!H328 -> 26375 | AE92: =データ一覧!H329 -> 27298 | AG92: =データ一覧!H327 -> 無投票 | AJ92: =データ一覧!H330 -> 1031 | AL92: =データ一覧!H331 -> 351 | AN92: 宗 教 | AR92: 仏教系 | AU92: ｷﾘｽﾄ教系 | AX92: 神道諸派 | BA92: 公会堂・市民会館 | BG92: テレビ | BJ92: 衛星放送契約数
C93: 女 | G93: =データ一覧!H232 -> 5 | J93: 女 | O93: =データ一覧!H226 -> 70.9 | R93: 女 | W93: =データ一覧!H229 -> 70.2 | AG93: =データ一覧!H326 -> 31.4.21 | AN93: 法 人 数 | AR93: =データ一覧!H502 -> 127 | AU93: =データ一覧!H503 -> 6 | AX93: =データ一覧!H504 -> 106 | BA93: =データ一覧!H505 -> 2 | BG93: 等 | BJ93: =データ一覧!H506 -> 15612

Sheet 小浜市
A1: =+データ一覧!I2 -> 0
A2: =+データ一覧!I5 -> 0
AN3: 0
AB4: 【市章とそのいわれ】小浜市の「小」の字を、未来への飛躍を | AN4: 【位置および地勢】小浜市は福井県の南西部に位置し南は東西に走る京都 | BS4: 所在地 | CA4: 〒917-8585
AB5: こめて、鳥の羽ばたく姿にデザインしたもので、 | AO5: 北部一帯に連なる山岳で、一部滋賀県と境を接し、北は内外海半島、 | CA5: 小浜市大手町６番３号
A6: =+データ一覧!I3 -> おばまし | AB6: 市制発足の際、市民の公募作品から選定した。 | AO6: 大島半島で囲まれた小浜湾に面している。付近一帯の海岸は 国定公園の
A7: =データ一覧!I6 -> 小浜市 | AB7: 0 | AO7: 指定を受け、各所に明媚な風光をかもしだしており、遠く南の山岳地帯に | BS7: 電話番号 | CA7: （０７７０）５３－１１１１
AB8: 0 | AO8: 源を発する北川、南川の両河川は海岸に細長く走る肥沃な平野を貫流して、 | BS8: FAX番号 | CA8: 〃 ５３－０７４２
AB9: 0 | AO9: 下流にかんがいをもたらし小浜湾に注いでいる。
AB10: 0 | AN10: 0 | BS10: 最寄駅および距離 | CA10: ＪＲ小浜線小浜駅 下車４００ｍ
AB11: 0 | AN11: 0
AB13: 【市が掲げる標語】「夢、無限大」感動おばま | BS13: ホームページ | CA13: http://www1.city.obama.fukui.jp/
A15: １ 土 地 | Z15: =データ一覧!$A$240 -> 2年 | AA15: 産米収穫量 | AD15: 収 穫 量 | AG15: 作 付 面 積 | AJ15: 10a当たり収量 | BP15: １５ 労 働 | CE15: 27.10.1
AD16: =データ一覧!$I$240 -> 4520 | AF16: t | AG16: =データ一覧!$I$241 -> 929 | AI16: ha | AJ16: =データ一覧!I242 -> 487 | AM16: kg | AN16: １０ 工 業 | BB16: =データ一覧!$A$332 -> 2.6.1（令和元年実績）
A17: 総 面 積 | K17: 固 定 資 産 概 要 調 書 に よ る 地 目 別 面 積 | AC17: 総 数 | AG17: うち 田 | AK17: うち 畑 | BW17: 産業別就業者数
C18: =データ一覧!$A$7 -> 3.10.1 | Q18: =データ一覧!$A$9 -> 3.1.1 | Z18: 耕 地 面 積 | AD18: ha | AG18: ha | AK18: ha | AO18: 産業分類 | AW18: 事業所数 | BB18: 従業者数 | BH18: 年間製造品出荷額等 | BQ18: 区 分 | BV18: 総 数 | CA18: 男 | CE18: 女 | CI18: 区 分 | CN18: 総 数 | CS18: 男 | CW18: 女
G19: ㎢ | K19: 総 数 | P19: う ち 田 | U19: う ち 畑 | Z19: =データ一覧!A243 -> 2.7.15 | AC19: =データ一覧!$I$243 -> 1420 | AF19: =データ一覧!$I$244 -> 1300 | AJ19: =データ一覧!$I$245 -> 118 | AZ19: 事業所 | BB19: 人 | BE19: 人 | BG19: 万円 | BN19: 万円 | BV19: 人 | CB19: 人 | CF19: 人 | CN19: 人 | CR19: 人 | CV19: 人
D20: =データ一覧!I7 -> 233.11 | O20: ha | T20: ha | Y20: ha | Z20: 農 業 生 産 物 | AD20: 作 付 面 積 | AG20: 収 穫 量 | AJ20: 10a当たり収量 | AO20: 総数 | AX20: =データ一覧!I332 -> 63 | BB20: =+データ一覧!I357 -> 1616 | BI20: =データ一覧!I382 -> 4343232 | BP20: 総 数 | BV20: =BZ20+CD20 -> 15214 | BZ20: =データ一覧!I507 -> 8537 | CD20: =データ一覧!I532 -> 6677
L21: =データ一覧!I9 -> 13506.2 | Q21: =データ一覧!I10 -> 1482.5 | V21: =データ一覧!I11 -> 234.8 | Z21: =データ一覧!$A$246 -> 2年中 | AD21: ha | AG21: t | AJ21: kg | AN21: 食料品 | AO21: 食料品 | AX21: =データ一覧!I333 -> 13 | BB21: =+データ一覧!I358 -> 287 | BI21: =データ一覧!I383 -> 374864 | CI21: 卸売業,小売業 | CN21: =CR21+CV21 -> 2358 | CR21: =データ一覧!I520 -> 1170 | CV21: =データ一覧!I545 -> 1188
A22: 町 ･ 丁 ･ 大 字 | K22: う ち 宅 地 | P22: う ち 山 林 | U22: う ち 原 野 | Z22: 水 稲 | AD22: =データ一覧!I246 -> 929 | AG22: =データ一覧!I247 -> 4520 | AJ22: =データ一覧!I248 -> 487 | AN22: 飲料・飼料 | AO22: 飲料・飼料 | AX22: =データ一覧!I334 -> 0 | BB22: =+データ一覧!I359 -> 0 | BI22: =データ一覧!I384 -> 0 | BP22: 第１次産業 | BV22: =BZ22+CD22 -> 637 | BZ22: =データ一覧!I508 -> 399 | CD22: =データ一覧!I533 -> 238 | CI22: 金融業,保険業 | CN22: =CR22+CV22 -> 284 | CR22: =データ一覧!I521 -> 113 | CV22: =データ一覧!I546 -> 171
A23: 区 画 数 | H23: =データ一覧!I8 -> 143 | O23: ha | T23: ha | Y23: ha | Z23: 六 条 大 麦 | AD23: =データ一覧!I249 -> 36 | AG23: =データ一覧!I250 -> 94 | AJ23: =データ一覧!I251 -> 261 | AN23: 繊維 | AO23: 繊維 | AX23: =データ一覧!I335 -> 8 | BB23: =+データ一覧!I360 -> 186 | BI23: =データ一覧!I385 -> 303141 | BQ23: 農業 | BV23: =BZ23+CD23 -> 514 | BZ23: =データ一覧!I509 -> 300 | CD23: =データ一覧!I534 -> 214 | CI23: 不動産業 | CN23: 114 | CR23: =データ一覧!I522 -> 73 | CV23: =データ一覧!I547 -> 41
A24: =データ一覧!$A$8 -> 2.4.1 | L24: =データ一覧!I12 -> 652.2 | Q24: =データ一覧!I13 -> 7285.2 | V24: =データ一覧!I14 -> 150.3 | Z24: 大 豆 | AD24: =データ一覧!I252 -> 23 | AG24: =データ一覧!I253 -> 18 | AJ24: =データ一覧!I254 -> 77 | AN24: 衣服 | AO24: 木材 | AX24: =データ一覧!I336 -> 5 | BB24: =+データ一覧!I361 -> 41 | BI24: =データ一覧!I386 -> 52444 | BQ24: 林業 | BV24: 23 | BZ24: =データ一覧!I510 -> 19 | CD24: =データ一覧!I535 -> 4 | CI24: 学術研究 | CN24: 503 | CR24: =データ一覧!I523 -> 399 | CV24: =データ一覧!I548 -> 104
A25: ２ 世 帯 数 と 人 口 | AB25: 区 分 | AD25: 乳 用 牛 | AF25: 肉 用 牛 | AH25: 豚 | AJ25: 採卵鶏 | AL25: ブロイラー | AN25: 木材 | AO25: 家具 | AX25: =データ一覧!I337 -> 2 | BB25: =+データ一覧!I362 -> 16 | BI25: =データ一覧!I387 -> x | BQ25: 漁業 | BV25: 100 | BZ25: =データ一覧!I511 -> 80 | CD25: =データ一覧!I536 -> 20 | CI25: 宿泊業,飲食ｻｰﾋﾞｽ | CN25: 891 | CR25: =データ一覧!I524 -> 315 | CV25: =データ一覧!I549 -> 576
Z26: 畜 産 | AB26: 飼養農家 | AD26: =データ一覧!$I$255 -> 0 | AF26: =データ一覧!$I$257 -> 0 | AH26: =データ一覧!$I$259 -> - | AJ26: =データ一覧!$I$261 -> 0 | AL26: =データ一覧!$I$263 -> 0 | AN26: 家具 | AO26: パルプ・紙 | AX26: =データ一覧!I338 -> 1 | BB26: =+データ一覧!I363 -> 36 | BI26: =データ一覧!I388 -> x | BP26: 第２次産業 | BV26: 4332 | BZ26: =データ一覧!I512 -> 3020 | CD26: =データ一覧!I537 -> 1312 | CI26: 生活関連ｻｰﾋﾞｽ業 | CN26: 465 | CR26: =データ一覧!I525 -> 191 | CV26: =データ一覧!I550 -> 274
I27: 人 口 | U27: １世帯当 | W27: 人 口 | Z27: =データ一覧!$A$255 -> 3.3.31 | AB27: （戸） | AN27: パルプ・紙 | AO27: 印刷 | AX27: =データ一覧!I339 -> 2 | BB27: =+データ一覧!I364 -> 14 | BI27: =データ一覧!I389 -> x | BQ27: 鉱業，採石業 | BV27: 1 | BZ27: =データ一覧!I513 -> 1 | CD27: =データ一覧!I538 -> 0 | CI27: 教育,学習支援業 | CN27: 829 | CR27: =データ一覧!I526 -> 384 | CV27: =データ一覧!I551 -> 445
A28: 区 分 | F28: 世帯数 | I28: 総 数 | L28: 男 | O28: 女 | R28: 男／女 | U28: たり人員 | W28: 密 度 | AB28: 頭 羽 | AD28: =データ一覧!$I$256 -> 0 | AF28: =データ一覧!$I$258 -> 0 | AH28: =データ一覧!$I$260 -> 0 | AJ28: =データ一覧!$I$262 -> 0 | AL28: =データ一覧!$I$264 -> 0 | AN28: 出版・印刷 | AO28: 化学 | AX28: =データ一覧!I340 -> 1 | BB28: =+データ一覧!I365 -> 48 | BI28: =データ一覧!I390 -> x | BQ28: 建設業 | BV28: 1726 | BZ28: =データ一覧!I514 -> 1498 | CD28: =データ一覧!I539 -> 228 | CI28: 医療，福祉 | CN28: 1990 | CR28: =データ一覧!I527 -> 459 | CV28: =データ一覧!I552 -> 1531
F29: 世 帯 | I29: 人 | L29: 人 | O29: 人 | S29: ％ | U29: 人 | W29: 人/㎢ | AN29: 化学 | AO29: 石油・石炭 | AX29: =データ一覧!I341 -> 1 | BB29: =+データ一覧!I366 -> 14 | BI29: =データ一覧!I391 -> x | BQ29: 製造業 | BV29: 2605 | BZ29: =データ一覧!I515 -> 1521 | CD29: =データ一覧!I540 -> 1084 | CI29: 複合サービス事業 | CN29: 277 | CR29: =データ一覧!I528 -> 185 | CV29: =データ一覧!I553 -> 92
A30: =データ一覧!$A$22 -> 2.10.1 | F30: =データ一覧!I22 -> 9920 | I30: =+L30+O30 -> 33774 | L30: =データ一覧!I24 -> 16175 | O30: =データ一覧!I25 -> 17599 | S30: =+L30/O30*100 -> 91.90863117 | U30: =データ一覧!I27 -> 3.4 | W30: =データ一覧!I28 -> 145.1 | Z30: ５ 林 業 | AN30: 石油・石炭 | AO30: プラスチック | AX30: =データ一覧!I342 -> 1 | BB30: =+データ一覧!I367 -> 44 | BI30: =データ一覧!I392 -> x | BP30: 第３次産業 | BV30: 10174 | BZ30: =データ一覧!I516 -> 5073 | CD30: =データ一覧!I541 -> 5101 | CI30: サービス業 | CN30: 1089 | CR30: =データ一覧!I529 -> 743 | CV30: =データ一覧!I554 -> 346
A31: =データ一覧!$A$29 -> 7.10.1 | F31: =データ一覧!I29 -> 10383 | I31: =+L31+O31 -> 33496 | L31: =データ一覧!I31 -> 16164 | O31: =データ一覧!I32 -> 17332 | S31: 93.26102008 | U31: =データ一覧!I34 -> 3.23 | W31: =データ一覧!I35 -> 143.9 | AN31: プラスチック | AO31: ゴム | AX31: =データ一覧!I343 -> 0 | BB31: =+データ一覧!I368 -> 0 | BI31: =データ一覧!I393 -> 0 | BQ31: 電気･ｶﾞｽ･水道業 | BV31: 277 | BZ31: =データ一覧!I517 -> 245 | CD31: =データ一覧!I542 -> 32 | CI31: 公務 | CN31: 626 | CR31: =データ一覧!I530 -> 433 | CV31: =データ一覧!I555 -> 193
A32: =データ一覧!$A$36 -> 12.10.1 | F32: =データ一覧!I36 -> 10962 | I32: =+L32+O32 -> 33295 | L32: =データ一覧!I38 -> 16134 | O32: =データ一覧!I39 -> 17161 | S32: 94.01550026 | U32: =データ一覧!I41 -> 3.04 | W32: =データ一覧!I42 -> 143 | Z32: 森 林 総 面 積 | AH32: =データ一覧!$A$265 -> 3.3.31 | AN32: ゴム | AO32: 皮革 | AX32: =データ一覧!I344 -> 0 | BB32: =+データ一覧!I369 -> 0 | BI32: =データ一覧!I394 -> 0 | BQ32: 情報通信業 | BV32: 104 | BZ32: =データ一覧!I518 -> 57 | CD32: =データ一覧!I543 -> 47 | CH32: 分類不能の産業 | CN32: 71 | CR32: =データ一覧!I531 -> 45 | CV32: =データ一覧!I556 -> 26
A33: =+データ一覧!$A$43 -> 17.10.1 | F33: =データ一覧!I43 -> 11136 | I33: =+L33+O33 -> 32182 | L33: =データ一覧!I45 -> 15620 | O33: =データ一覧!I46 -> 16562 | S33: 94.31228113 | U33: =データ一覧!I48 -> 2.89 | W33: =データ一覧!I49 -> 138.2 | Z33: 森 林 の 構 成 | AN33: 皮革 | AO33: 窯業・土石 | AX33: =データ一覧!I345 -> 2 | BB33: =+データ一覧!I370 -> 31 | BI33: =データ一覧!I395 -> x | BQ33: 運輸業,郵便業 | BV33: =BZ33+CD33 -> 367 | BZ33: =データ一覧!I519 -> 306 | CD33: =データ一覧!I544 -> 61
A34: =+データ一覧!$A$50 -> 22.10.1 | F34: =+データ一覧!I50 -> 11477 | I34: =+L34+O34 -> 31340 | L34: =+データ一覧!I52 -> 15376 | O34: =+データ一覧!I53 -> 15964 | S34: 96.3167126 | U34: =+データ一覧!I55 -> 2.73 | W34: =+データ一覧!I56 -> 134.6 | AE34: ha | AL34: ha | AN34: 窯業・土石 | AO34: 鉄鋼 | AX34: =データ一覧!I346 -> 0 | BB34: =+データ一覧!I371 -> 0 | BI34: =データ一覧!I396 -> 0 | BP34: １６ 社 会 福 祉 | CF34: =データ一覧!$A$557 -> 3.4.1
A35: =データ一覧!$A$57 -> 27.10.1 | F35: =データ一覧!I57 -> 11220 | I35: =データ一覧!I58 -> 29670 | L35: =データ一覧!I59 -> 14539 | O35: =データ一覧!I60 -> 15131 | S35: 96.08750248 | U35: =データ一覧!I72 -> 2.38 | W35: =データ一覧!I63 -> 127.3 | Z35: 総 数 | AD35: =データ一覧!I265 -> 19030.38 | AG35: 天然林 針葉樹 | AK35: =データ一覧!I268 -> 1177.73 | AN35: 鉄鋼 | AO35: 非鉄金属 | AX35: =データ一覧!I347 -> 0 | BB35: =+データ一覧!I372 -> 0 | BI35: =データ一覧!I397 -> 0
A36: 令 2.10.1（国調） | F36: =データ一覧!I64 -> 12082 | I36: =データ一覧!I65 -> 28991 | L36: =データ一覧!I66 -> 14317 | O36: =データ一覧!I67 -> 14674 | S36: =+L36/O36*100 -> 97.56712553 | U36: =データ一覧!I72 -> 2.38 | W36: =データ一覧!I73 -> 122.9162198 | Z36: 人工林 針葉樹 | AD36: =データ一覧!I266 -> 7345.22 | AG36: 天然林 広葉樹 | AK36: =データ一覧!I269 -> 10147.22 | AN36: 非鉄金属 | AO36: 金属 | AX36: =データ一覧!I348 -> 1 | BB36: =+データ一覧!I373 -> 17 | BI36: =データ一覧!I398 -> x | BQ36: 区分 | BX36: 施設数 | CC36: 収容定員 | CI36: 区分 | CP36: 施設数 | CU36: 収容定員
A37: 年 | C37: 区 | E37: 0歳 | H37: 15歳 | K37: 25歳 | N37: 35歳 | Q37: 45歳 | T37: 55歳 | W37: 65歳 | Z37: 人工林 広葉樹 | AD37: =データ一覧!I267 -> 34.73 | AG37: 竹 林 | AK37: =データ一覧!I270 -> 181.56 | AN37: 金属 | AO37: はん用機械 | AX37: =データ一覧!I349 -> 0 | BB37: =+データ一覧!I374 -> 0 | BI37: =データ一覧!I399 -> 0 | BP37: 生活保護施設 | BX37: =データ一覧!I557 -> 0 | CB37: =データ一覧!I570 -> 0 | CF37: 人 | CH37: 指定障害者支援施設 | CP37: =データ一覧!I563 -> 3 | CT37: =データ一覧!I576 -> 120 | CX37: 人
A38: 齢 | B38: 令 | F38: ～ | I38: ～ | L38: ～ | O38: ～ | R38: ～ | U38: ～ | AN38: 一般機械 | AO38: 生産用機械 | AX38: =データ一覧!I350 -> 3 | BB38: =+データ一覧!I375 -> 104 | BI38: =データ一覧!I400 -> 125837 | BP38: 地域福祉施設 | BX38: =データ一覧!I558 -> 0 | CB38: =データ一覧!I571 -> 0 | CH38: 指定相談支援事業所 | CP38: =データ一覧!I564 -> 3 | CT38: =データ一覧!I577 -> 0
A39: 階 | B39: =+LEFT(データ一覧!$A$83,1) -> 3 | C39: 分 | G39: 14歳 | J39: 24歳 | M39: 34歳 | P39: 44歳 | S39: 54歳 | V39: 64歳 | Y39: 以上 | Z39: 林 野 の 構 成 | AG39: 保 有 形 態 別 | AN39: 電気機械 | AO39: 業務用機械 | AX39: =データ一覧!I351 -> 1 | BB39: =+データ一覧!I376 -> 53 | BI39: =データ一覧!I401 -> x | BP39: 老人福祉施設 | BX39: =データ一覧!I559 -> 10 | CB39: =データ一覧!I572 -> 111 | CH39: 児童福祉施設 | CP39: =データ一覧!I565 -> 24 | CT39: =データ一覧!I578 -> 1182
A40: 級 | B40: ・ | G40: 人 | J40: 人 | L40: 人 | O40: 人 | R40: 人 | U40: 人 | X40: 人 | AF40: ha | AL40: ha | AO40: 電子・デバイス | AX40: =データ一覧!I352 -> 2 | BB40: =+データ一覧!I377 -> 154 | BI40: =データ一覧!I402 -> x | BP40: 介護保険施設 | BX40: =データ一覧!I560 -> 45 | CB40: =データ一覧!I573 -> 820 | CH40: 母子福祉施設 | CP40: =データ一覧!I566 -> 0 | CT40: =データ一覧!I579 -> 0
A41: 別 | B41: =+MID(データ一覧!$A$83,3,2) -> 10 | C41: 総 数 | E41: =+E42+E43 -> 3428 | H41: =+H42+H43 -> 2093 | K41: =+K42+K43 -> 2538 | N41: =+N42+N43 -> 3095 | Q41: =+Q42+Q43 -> 3657 | T41: =+T42+T43 -> 3724 | W41: =+W42+W43 -> 9210 | Z41: 無立木地 伐採跡地 | AD41: =データ一覧!I271 -> 3.12 | AG41: 国 有 | AK41: =データ一覧!I273 -> 705.7 | AO41: 電気機械 | AX41: =データ一覧!I353 -> 4 | BB41: =+データ一覧!I378 -> 225 | BI41: =データ一覧!I403 -> 1545940 | BP41: 障害者自立支援法施行前からの身体障害者福祉施設 | BX41: =データ一覧!I561 -> 0 | CB41: =データ一覧!I574 -> 0 | CH41: 婦人保護施設 | CP41: =データ一覧!I567 -> 0 | CT41: =データ一覧!I580 -> 0
A42: 人 | B42: ・ | C42: 男 | E42: =データ一覧!I83 -> 1783 | H42: =データ一覧!I84 -> 1149 | K42: =データ一覧!I85 -> 1400 | N42: =データ一覧!I86 -> 1634 | Q42: =データ一覧!I87 -> 1863 | T42: =データ一覧!I88 -> 1897 | W42: =データ一覧!I89 -> 3961 | Z42: 無立木地 未立木地 | AD42: =データ一覧!I272 -> 140.8 | AG42: 公 有 | AK42: =データ一覧!I274 -> 1887.25 | AN42: 輸送機械 | AO42: 情報通信機械 | AX42: =データ一覧!I354 -> 0 | BB42: =+データ一覧!I379 -> 0 | BI42: =データ一覧!I404 -> 0 | CH42: その他の社会福祉施設 | CP42: =データ一覧!I568+データ一覧!I569 -> 0 | CT42: =データ一覧!I581+データ一覧!I582 -> 0
A43: 口 | B43: =+RIGHT(データ一覧!$A$83,1) -> 1 | C43: 女 | E43: =データ一覧!I91 -> 1645 | H43: =データ一覧!I92 -> 944 | K43: =データ一覧!I93 -> 1138 | N43: =データ一覧!I94 -> 1461 | Q43: =データ一覧!I95 -> 1794 | T43: =データ一覧!I96 -> 1827 | W43: =データ一覧!I97 -> 5249 | AG43: 私 有 | AK43: =データ一覧!I275 -> 16437.43 | AN43: 精密機械 | AO43: 輸送機械 | AX43: =データ一覧!I355 -> 2 | BB43: =+データ一覧!I380 -> 25 | BI43: =データ一覧!I405 -> x | BP43: 障害福祉サービス事業所 | BX43: =データ一覧!I562 -> 27 | CB43: =データ一覧!I575 -> 256
Z44: 林 産 物 生 産 量 | AJ44: =データ一覧!$A$276 -> 2年中 | AN44: その他 | AO44: その他 | AX44: =データ一覧!I356 -> 14 | BB44: =+データ一覧!I381 -> 321 | BI44: =データ一覧!I406 -> 516791 | BP44: １７ 教 育 | CF44: =データ一覧!$A$583 -> 3.5.1
A45: 人口動態 | H45: 自 然 動 態 | N45: 社 会 動 態 | T45: =データ一覧!$A78 -> 2.1.1～3.12.31 | Z45: 生椎茸 | AD45: =データ一覧!I276 -> 30 | AF45: ㎏ | AG45: 乾椎茸 | AK45: =データ一覧!I277 -> - | AM45: ㎏
C46: 区 分 | H46: 出 生 | K46: 死 亡 | N46: 転 入 | Q46: 転 出 | T46: 婚 姻 | W46: 離 婚 | Z46: えのきだけ | AD46: =データ一覧!I279 -> - | AF46: ㎏ | AG46: なめこ | AK46: =データ一覧!I278 -> - | AM46: ㎏ | AO46: 工 業 用 水 量 | AU46: （従業者30人以上の事業所） | BF46: =データ一覧!I407 -> 527 | BK46: ㎥／日 | BZ46: 学校数（校） | CG46: 教員数（人） | CO46: 学生・生徒・児童数（人）
A47: =LEFT(データ一覧!$A74,6) -> 2.10.1 | H47: 人 | K47: 人 | N47: 人 | Q47: 人 | U47: 件 | X47: 件 | Z47: ひらたけ | AD47: =+データ一覧!I280 -> - | AF47: ㎏ | AG47: まいたけ | AK47: =+データ一覧!I281 -> - | AM47: ㎏ | BR47: 区分 | BZ47: 本 校 | CC47: 分 校 | CF47: 本 務 | CJ47: 兼 務 | CN47: 総 数 | CR47: 男 | CV47: 女
A48: ～ | C48: 実 数 | H48: =データ一覧!I74 -> 98 | K48: =データ一覧!I75 -> 230 | N48: =データ一覧!I76 -> 324 | Q48: =データ一覧!I77 -> 387 | T48: =データ一覧!I78 -> 102 | W48: =データ一覧!I79 -> 33 | AN48: １１ 上 ・ 下 水 道 | BQ48: 小学校 | BZ48: =データ一覧!I584 -> 9 | CC48: =データ一覧!I585 -> 0 | CF48: =データ一覧!I586 -> 138 | CJ48: =データ一覧!I587 -> 21 | CN48: =データ一覧!I588 -> 1465 | CR48: =データ一覧!I589 -> 744 | CV48: =データ一覧!I590 -> 721
A49: =RIGHT(データ一覧!$A76,6) -> 3.9.30 | C49: 比率(対1,000人) | H49: =+H48/I35*1000 -> 3.302999663 | K49: =+K48/I35*1000 -> 7.751937984 | N49: - | Q49: - | T49: =+T48/I35*1000 -> 3.437815976 | W49: =+W48/I35*1000 -> 1.11223458 | Z49: ６ 漁 業 | BQ49: 中学校 | BZ49: =データ一覧!I592 -> 2 | CC49: =データ一覧!I593 -> 0 | CF49: =データ一覧!I594 -> 61 | CJ49: =データ一覧!I595 -> 6 | CN49: =データ一覧!I596 -> 739 | CR49: =データ一覧!I597 -> 391 | CV49: =データ一覧!I598 -> 348
AN50: 水 道 供 給 人 口 | AU50: 上 水 道 | AY50: 簡易水道 | BC50: 専用水道 | BG50: 飲料水供給施設 | BK50: 下水道処理人口 | BQ50: 高等学校 | BZ50: =データ一覧!I600 -> 2 | CC50: =データ一覧!I601 -> 0 | CF50: =データ一覧!I602 -> 112 | CJ50: =データ一覧!I603 -> 20 | CN50: =データ一覧!I604 -> 1203 | CR50: =データ一覧!I605 -> 614 | CV50: =データ一覧!I606 -> 589
A51: ３ 事 業 所（民 営） （平 28.6.1） | Z51: 漁船隻数・トン数 | AD51: =データ一覧!$A$282 -> 2.12.31 | AH51: 動 力 船 | AN51: =データ一覧!$A$408 -> 3.3.31 | AT51: 人 | AV51: =データ一覧!I408 -> 23961 | AY51: =データ一覧!I409 -> 4067 | BD51: =データ一覧!I410 -> 0 | BH51: =データ一覧!I411 -> 135 | BL51: =データ一覧!I412 -> 19911 | BQ51: 大学・短期大学 | BZ51: =データ一覧!I607 -> 0 | CC51: =データ一覧!I608 -> 1 | CF51: =データ一覧!I609 -> 23 | CJ51: =データ一覧!I610 -> 20 | CN51: =データ一覧!I611 -> 188 | CR51: =データ一覧!I612 -> 146 | CV51: =データ一覧!I613 -> 42
Z52: 無動力船隻数 | AD52: 船外機付漁船隻数 | AH52: 隻 数 | AK52: 総 ト ン 数 | BQ52: 高等専門学校 | BZ52: =データ一覧!I614 -> 0 | CC52: =データ一覧!I615 -> 0 | CF52: =データ一覧!I616 -> 0 | CJ52: =データ一覧!I617 -> 0 | CN52: =データ一覧!I618 -> 0 | CR52: =データ一覧!I619 -> 0 | CV52: =データ一覧!I620 -> 0
H53: 総 数 | N53: 民 営 | T53: 国 ･ 地方公共団体 | AC53: 隻 | AG53: 隻 | AJ53: 隻 | AM53: t | AN53: １２ 交 通 ・ 通 信 | BQ53: 特別支援学校 | BZ53: =+データ一覧!I622 -> 1 | CC53: =+データ一覧!I623 -> 0 | CF53: =+データ一覧!I624 -> 57 | CJ53: =+データ一覧!I625 -> 1 | CN53: =+データ一覧!I626 -> 70 | CR53: =+データ一覧!I627 -> 46 | CV53: =+データ一覧!I628 -> 24
A54: 区 分 | H54: 事業所数 | K54: 従業者数 | N54: 事業所数 | Q54: 従業者数 | T54: 事業所数 | W54: 従業者数 | Z54: =データ一覧!$I$282 -> 2 | AD54: =データ一覧!$I$283 -> 140 | AH54: =データ一覧!I284 -> 149 | AK54: =データ一覧!I285 -> 577.82 | BQ54: 幼稚園 | BZ54: =データ一覧!I630 -> 0 | CC54: =データ一覧!I631 -> 0 | CF54: =データ一覧!I632 -> 0 | CJ54: =データ一覧!I633 -> 0 | CN54: =データ一覧!I634 -> 0 | CR54: =データ一覧!I635 -> 0 | CV54: =データ一覧!I636 -> 0
K55: 人 | Q55: 人 | W55: 人 | Z55: 男女別就業者数 | AH55: =データ一覧!$A$286 -> 30.11.1 | AN55: 道 路 | AR55: 実 延 長 | AV55: 国 道 | AZ55: 県 道 | BD55: 市町道 | BH55: 鉄 道 営 業 キ ロ 数 | BQ55: 幼保連携認定こども園 | BZ55: =データ一覧!I638 -> 3 | CC55: =データ一覧!I639 -> 0 | CF55: =データ一覧!I640 -> 60 | CJ55: =データ一覧!I641 -> 8 | CN55: =データ一覧!I642 -> 409 | CR55: =データ一覧!I643 -> 205 | CV55: =データ一覧!I644 -> 204
A56: 総数 | H56: =データ一覧!I99 -> … | K56: =データ一覧!I156 -> … | N56: =データ一覧!I100 -> 1765 | Q56: =データ一覧!I157 -> 12822 | T56: =データ一覧!I101 -> … | W56: =データ一覧!I158 -> … | Z56: 総 数 | AF56: 男 | AJ56: 女 | AN56: =データ一覧!$A$413 -> 2.4.1 | AR56: =データ一覧!I413 -> 558.257 | AU56: ㎞ | AV56: =データ一覧!I414 -> 31.1 | AY56: ㎞ | AZ56: =データ一覧!I415 -> 87.3 | BC56: ㎞ | BD56: =データ一覧!I416 -> 439.857 | BG56: km | BH56: =データ一覧!$A$417 -> 3.4.1 | BL56: =データ一覧!I417 -> 16.247 | BO56: ㎞ | BQ56: 各種学校 | BZ56: =データ一覧!I646 -> 1 | CC56: =データ一覧!I647 -> 0 | CF56: =データ一覧!I648 -> 13 | CJ56: =データ一覧!I649 -> 0 | CN56: =データ一覧!I650 -> 126 | CR56: =データ一覧!I651 -> 93 | CV56: =データ一覧!I652 -> 33
A57: 農林漁業 | H57: =データ一覧!I102 -> … | K57: =データ一覧!I159 -> … | N57: =データ一覧!I103 -> 13 | Q57: =データ一覧!I160 -> 185 | T57: =データ一覧!I104 -> … | W57: =データ一覧!I161 -> … | AE57: 人 | AH57: 人 | AM57: 人 | AN57: 自動車 | AW57: 乗用車 | BQ57: 専修学校 | BZ57: =データ一覧!I654 -> 3 | CC57: =データ一覧!I655 -> 0 | CF57: =データ一覧!I656 -> 19 | CJ57: =データ一覧!I657 -> 93 | CN57: =データ一覧!I658 -> 140 | CR57: =データ一覧!I659 -> 34 | CV57: =データ一覧!I660 -> 106
A58: 鉱業 | H58: =データ一覧!I105 -> … | K58: =データ一覧!I162 -> … | N58: =データ一覧!I106 -> 0 | Q58: =データ一覧!I163 -> 0 | T58: =データ一覧!I107 -> … | W58: =データ一覧!I164 -> … | Z58: =AF58+AJ58 -> 154 | AF58: =データ一覧!$I$287 -> 139 | AJ58: =データ一覧!I288 -> 15 | AN58: 台 数 | AR58: 貨 物 | AV58: 普 通 | AZ58: 小 型 | BD58: 乗 合 | BG58: 特 種 | BJ58: 小型二輪 | BM58: 軽自動車 | BP58: １８ 衛 生
A59: 建設業 | H59: =データ一覧!I108 -> … | K59: =データ一覧!I165 -> … | N59: =データ一覧!I109 -> 190 | Q59: =データ一覧!I166 -> 983 | T59: =データ一覧!I110 -> … | W59: =データ一覧!I167 -> … | Z59: 海 面 漁 業 漁 獲 量 （属人） | AH59: =データ一覧!$A$289 -> 30年中 | AN59: =データ一覧!$A$418 -> 3.3.31 | AS59: =データ一覧!I418 -> 4758 | AW59: =データ一覧!I420 -> 15692 | BA59: =データ一覧!I421 -> 15837 | BD59: =データ一覧!I419 -> 183 | BG59: =データ一覧!I422 -> 1384 | BJ59: =データ一覧!I423 -> 896 | BM59: =データ一覧!I424 -> 30417
A60: 製造業 | H60: =データ一覧!I111 -> … | K60: =データ一覧!I168 -> … | N60: =データ一覧!I112 -> 167 | Q60: =データ一覧!I169 -> 2084 | T60: =データ一覧!I113 -> … | W60: =データ一覧!I170 -> … | AF60: ｔ | AM60: t | AR60: 郵 便 局 数 | BF60: =+MID(データ一覧!$A$428,3,2) -> 12 | BG60: 令 | BH60: 一般加入 | BL60: ＩＮＳネット | BT60: 医療関係施設 | BZ60: =データ一覧!$A$661 -> 元.10.1 | CG60: および医療関係者数 | CO60: =データ一覧!$A$666 -> 30.12.31
A61: 電気・ｶﾞ ｽ・熱供給・水道業 | H61: =データ一覧!I114 -> … | K61: =データ一覧!I171 -> … | N61: =データ一覧!I115 -> 2 | Q61: =データ一覧!I172 -> 34 | T61: =データ一覧!I116 -> … | W61: =データ一覧!I173 -> … | Z61: 総 数 | AD61: =データ一覧!I289 -> 675 | AG61: 藻 類 | AK61: =データ一覧!I292 -> 9 | AN61: 通 信 | AR61: 総 数 | AW61: 郵 便 局 | BB61: 簡 易 局 | BF61: ・ | BG61: =+LEFT(データ一覧!$A$428,1) -> 2 | BH61: 電話数 | BL61: 加入数 | BW61: 病 | BZ61: 院 | CH61: 一般診療所 | CT61: 歯科診療所
A62: 情報通信業 | H62: =データ一覧!I117 -> … | K62: =データ一覧!I174 -> … | N62: =データ一覧!I118 -> 10 | Q62: =データ一覧!I175 -> 59 | T62: =データ一覧!I119 -> … | W62: =データ一覧!I176 -> … | Z62: 魚 類 | AD62: =データ一覧!I290 -> 570 | AG62: そ の 他 | AK62: =データ一覧!I293 -> 64 | AN62: =データ一覧!$A$428 -> 2.12.31 | AR62: =データ一覧!I425 -> 14 | AW62: =データ一覧!I426 -> 13 | BB62: =データ一覧!I427 -> 1 | BF62: =+RIGHT(データ一覧!$A$428,2) -> 31 | BG62: ・ | BH62: =データ一覧!I428 -> 4745 | BL62: =データ一覧!I429 -> 527 | BQ62: 医療関係 | CC62: 一般病院 | CO62: 有 | CR62: 床
A63: 運輸業、郵便業 | H63: =データ一覧!I120 -> … | K63: =データ一覧!I177 -> … | N63: =データ一覧!I121 -> 19 | Q63: =データ一覧!I178 -> 297 | T63: =データ一覧!I122 -> … | W63: =データ一覧!I179 -> … | Z63: 貝 類 | AD63: =データ一覧!I291 -> 32 | BQ63: 施設数 | BX63: =データ一覧!I661 -> 2 | CD63: =データ一覧!I662 -> 2 | CJ63: =データ一覧!I663 -> 19 | CP63: =データ一覧!I664 -> 1 | CV63: =データ一覧!I665 -> 8
A64: 卸売業、小売業 | H64: =データ一覧!I123 -> … | K64: =データ一覧!I180 -> … | N64: =データ一覧!I124 -> 489 | Q64: =データ一覧!I181 -> 3144 | T64: =データ一覧!I125 -> … | W64: =データ一覧!I182 -> … | AN64: １３ 税 ・ 財 政 | BW64: 医師 | CB64: 歯科医師 | CG64: 薬剤師 | CL64: 保健師 | CQ64: 助産師 | CV64: 看護師
A65: 金融業、保険業 | H65: =データ一覧!I126 -> … | K65: =データ一覧!I183 -> … | N65: =データ一覧!I127 -> 34 | Q65: =データ一覧!I184 -> 348 | T65: =データ一覧!I128 -> … | W65: =データ一覧!I185 -> … | Z65: ７ 商 業 | AG65: =データ一覧!$A$294 -> 28.6.1(平成27年実績） | BQ65: 医療 | BZ65: 人 | CE65: 人 | CJ65: 人 | CO65: 人 | CT65: 人 | CY65: 人
A66: 不動産業、物品賃貸業 | H66: =データ一覧!I129 -> … | K66: =データ一覧!I186 -> … | N66: =データ一覧!I130 -> 67 | Q66: =データ一覧!I187 -> 220 | T66: =データ一覧!I131 -> … | W66: =データ一覧!I188 -> … | AR66: 歳入 | BA66: (千円） | BF66: 歳出 | BO66: (千円） | BQ66: 関係者 | BV66: =データ一覧!I666 -> 68 | CA66: =データ一覧!I667 -> 15 | CF66: =データ一覧!I668 -> 53 | CK66: =データ一覧!I669 -> 28 | CP66: =データ一覧!I670 -> 23 | CU66: =データ一覧!I671 -> 459
A67: 学術研究、専門・技術ｻｰﾋﾞｽ業 | H67: =データ一覧!I132 -> … | K67: =データ一覧!I189 -> … | N67: =データ一覧!I133 -> 68 | Q67: =データ一覧!I190 -> 748 | T67: =データ一覧!I134 -> … | W67: =データ一覧!I191 -> … | Z67: 産 業 分 類 | AD67: 商 店 数 | AG67: 従 業 者 数 | AJ67: 年 間 販 売 額 | AN67: 一人当たり歳入歳出予算決算額 | BY67: 死因別死亡数 | CO67: =データ一覧!$A$672 -> 2年中 | CX67: 単 位：人
A68: 宿泊業、飲食サービス業 | H68: =データ一覧!I135 -> … | K68: =データ一覧!I192 -> … | N68: =データ一覧!I136 -> 244 | Q68: =データ一覧!I193 -> 1406 | T68: =データ一覧!I137 -> … | W68: =データ一覧!I194 -> … | AE68: 店 | AI68: 人 | AK68: 百万円 | AN68: 区分 | AR68: =データ一覧!$A$438 -> 3年度 | AW68: =データ一覧!$A$452 -> 2年度 | BB68: 区分 | BF68: =+AR68 -> 3年度 | BK68: =データ一覧!$A$452 -> 2年度 | BP68: 死 因 | CB68: 悪 性 | CE68: 高血圧 | CK68: 脳血管 | CT68: 不慮の事故
A69: 生活関連サービス業、娯楽業 | H69: =データ一覧!I138 -> … | K69: =データ一覧!I195 -> … | N69: =データ一覧!I139 -> 167 | Q69: =データ一覧!I196 -> 598 | T69: =データ一覧!I140 -> … | W69: =データ一覧!I197 -> … | Z69: 総 計 | AD69: =データ一覧!$I$294 -> 407 | AG69: =データ一覧!I303 -> 2685 | AJ69: =データ一覧!I312 -> 59330 | AR69: =データ一覧!I434 -> 566488.8144 | AW69: =データ一覧!I435 -> 728126.0561 | BF69: =データ一覧!I436 -> 566488.8144 | BK69: =データ一覧!I437 -> 704124.3593 | BU69: 全 死 因 | BY69: 結 核 | CB69: 新生物 | CE69: 性疾患 | CH69: 心疾患 | CK69: 疾 患 | CN69: 肺 炎 | CQ69: 老 衰 | CW69: 交通事故
A70: 教育、学習支援業 | H70: =データ一覧!I141 -> … | K70: =データ一覧!I198 -> … | N70: =データ一覧!I142 -> 46 | Q70: =データ一覧!I199 -> 218 | T70: =データ一覧!I143 -> … | W70: =データ一覧!I200 -> … | Z70: 卸売業 | AD70: =データ一覧!I295 -> 92 | AG70: =データ一覧!I304 -> 679 | AJ70: =データ一覧!I313 -> 24287 | AN70: 項目別歳入歳出予算決算額
A71: 医療、福祉 | H71: =データ一覧!I144 -> … | K71: =データ一覧!I201 -> … | N71: =データ一覧!I145 -> 81 | Q71: =データ一覧!I202 -> 1336 | T71: =データ一覧!I146 -> … | W71: =データ一覧!I203 -> … | Z71: 小売業 | AD71: =データ一覧!I296 -> 315 | AG71: =データ一覧!I305 -> 2006 | AJ71: =データ一覧!I314 -> 35043 | AN71: 区分 | AR71: =データ一覧!$A$438 -> 3年度 | AW71: =データ一覧!$A$452 -> 2年度 | BB71: 区分 | BF71: =+AR71 -> 3年度 | BK71: =データ一覧!$A$452 -> 2年度 | BU71: =データ一覧!I672 -> 371 | BY71: － | BZ71: =データ一覧!I673 -> 1 | CB71: =データ一覧!I674 -> 20 | CF71: =データ一覧!I675 -> 3 | CH71: =データ一覧!I676 -> 10 | CK71: =データ一覧!I677 -> 1 | CN71: =データ一覧!I678 -> 18 | CQ71: =データ一覧!I679 -> 46 | CT71: =データ一覧!I680 -> 18 | CW71: =データ一覧!I681 -> 0
A72: 複合サービス事業 | H72: =データ一覧!I147 -> … | K72: =データ一覧!I204 -> … | N72: =データ一覧!I148 -> 21 | Q72: =データ一覧!I205 -> 306 | T72: =データ一覧!I149 -> … | W72: =データ一覧!I206 -> … | Z72: 各種商品 | AD72: =データ一覧!I297 -> 1 | AG72: =データ一覧!I306 -> 5 | AJ72: =データ一覧!I315 -> x | AN72: 総額 | AR72: =SUM(AR73:AV85) -> 16231604 | AW72: =SUM(AW73:BA85) -> 20565936 | BB72: 総額 | BF72: =SUM(BF73:BJ85) -> 16231604 | BK72: =SUM(BK73:BO85) -> 19918974 | BP72: １９ 警 察 ・ 消 防 | CF72: =+データ一覧!$A682 -> 3.4.1
A73: サービス業 | H73: =データ一覧!I150 -> … | K73: =データ一覧!I207 -> … | N73: =データ一覧!I151 -> 147 | Q73: =データ一覧!I208 -> 856 | T73: =データ一覧!I152 -> … | W73: =データ一覧!I209 -> … | Z73: 織物・衣服・身の回り品 | AD73: =データ一覧!I298 -> 33 | AG73: =データ一覧!I307 -> 98 | AJ73: =データ一覧!I316 -> 1276 | AN73: 地方税 | AR73: =データ一覧!I439 -> 3559321 | AW73: =データ一覧!I453 -> 3734281 | BB73: 議会費 | BF73: =データ一覧!I467 -> 185232 | BK73: =データ一覧!I481 -> 174870
A74: 公務 | H74: =データ一覧!I153 -> … | K74: =データ一覧!I210 -> … | N74: =データ一覧!I154 -> … | Q74: =データ一覧!I211 -> … | T74: =データ一覧!I155 -> … | W74: =データ一覧!I212 -> … | Z74: 飲食料品 | AD74: =データ一覧!I299 -> 106 | AG74: =データ一覧!I308 -> 843 | AJ74: =データ一覧!I317 -> 11565 | AN74: 地方譲与税 | AR74: =データ一覧!I440 -> 116000 | AW74: =データ一覧!I454 -> 160751 | BB74: 総務費 | BF74: =データ一覧!I468 -> 1857400 | BK74: =データ一覧!I482 -> 5439891 | BZ74: 交番・駐在所 | CI74: 刑法犯認知件数 | CR74: 交通人身事故発生件数
A75: ４ 農 業 | Z75: 機械器具 | AD75: =データ一覧!I300 -> 37 | AG75: =データ一覧!I309 -> 311 | AJ75: =データ一覧!I318 -> 7255 | AN75: 各種交付金 | AR75: =データ一覧!I441 -> 621500 | AW75: =データ一覧!I455 -> 681880 | BB75: 民生費 | BF75: =データ一覧!I469 -> 5352744 | BK75: =データ一覧!I483 -> 4624494 | BQ75: 警察署数 | BZ75: 検問所数 | CJ75: =データ一覧!$A$684 -> 2年中 | CS75: =データ一覧!$A$684 -> 2年中
Z76: その他 | AD76: =データ一覧!I301 -> 118 | AG76: =データ一覧!I310 -> 682 | AJ76: =データ一覧!I319 -> x | AN76: 地方特例交付金 | AR76: =データ一覧!I442 -> 74000 | AW76: =データ一覧!I456 -> 29362 | BB76: 衛生費 | BF76: =データ一覧!I470 -> 2118616 | BK76: =データ一覧!I484 -> 1859558 | CN76: 件 | CW76: 件
C77: 農業経営体数 | J77: 農産物販売額規模別経営体数 | R77: 経営耕地面積規模別経営体数 | Z77: 無店舗 | AD77: =データ一覧!I302 -> 20 | AG77: =データ一覧!I311 -> 67 | AJ77: =データ一覧!I320 -> 1548 | AN77: 地方交付税 | AR77: =データ一覧!I443 -> 5415000 | AW77: =データ一覧!I457 -> 5564802 | BB77: 労働費 | BF77: =データ一覧!I471 -> 172510 | BK77: =データ一覧!I485 -> 164988 | BR77: =データ一覧!I682 -> 1 | CA77: =データ一覧!I683 -> 6 | CJ77: =データ一覧!I684 -> 74 | CS77: =データ一覧!I685 -> 16
A78: 農 | C78: 区 分 | G78: 経営体数 （経営体） | J78: 区 分 | O78: 経営体数 （経営体） | R78: 区 分 | W78: 経営体数 （経営体） | AN78: 分担金および負担金 | AR78: =データ一覧!I444 -> 192597 | AW78: =データ一覧!I458 -> 226759 | BB78: 農林水産業費 | BF78: =データ一覧!I472 -> 745835 | BK78: =データ一覧!I486 -> 859376 | BP78: 火災発生件数 | BZ78: 林野焼損 | CE78: 損 害 | CJ78: 消 防 自 | CN78: その他の
A79: 業 | B79: 令 | Z79: ８ 住 宅 | AN79: 使用料および手数料 | AR79: =データ一覧!I445 -> 240037 | AW79: =データ一覧!I459 -> 240160 | BB79: 商工費 | BF79: =データ一覧!I473 -> 529382 | BK79: =データ一覧!I487 -> 845757 | BP79: =+データ一覧!$A$686 -> 2年中 | BU79: 焼損棟数 | BZ79: 面 積 | CE79: 見 積 額 | CJ79: 動 車 数 | CN79: ﾎﾟﾝﾌﾟ数 | CR79: 消防吏員 | CV79: 消防団員
A80: 経 | B80: =+LEFT(データ一覧!$A$213) -> 2 | C80: 計 | G80: =データ一覧!I213 -> 443 | J80: 総 数 | O80: =データ一覧!I217 -> 443 | R80: 総 数 | W80: =データ一覧!I233 -> 1011 | AN80: 国庫支出金 | AR80: =データ一覧!I446 -> 2079747 | AW80: =データ一覧!I460 -> 5535909 | BB80: 土木費 | BF80: =データ一覧!I474 -> 1690965 | BK80: =データ一覧!I488 -> 1943942 | BP80: 件 | BV80: 棟 | CC80: ａ | CG80: 千円 | CT80: 人 | CX80: 人
A81: 営 | B81: ・ | C81: 個人経営体 | G81: =データ一覧!I214 -> 424 | J81: 販 売 な し | O81: =データ一覧!I218 -> 42 | R81: 0.5 ha 未満 | W81: =データ一覧!I234 -> 40 | Z81: =+データ一覧!$A$321 -> 令和元年 | AE81: =データ一覧!$A$324 -> 2年 | AF81: 中の増減 | AJ81: =+データ一覧!$A$324 -> 2年 | AN81: 県支出金 | AR81: =データ一覧!I447 -> 1437028 | AW81: =データ一覧!I461 -> 1768245 | BB81: 消防費 | BF81: =データ一覧!I475 -> 594766 | BK81: =データ一覧!I489 -> 582789 | BQ81: =データ一覧!I686 -> 12 | BV81: =データ一覧!I687 -> 7 | CA81: =データ一覧!I688 -> 0 | CE81: =データ一覧!I689 -> 1785 | CK81: =データ一覧!I690 -> 11 | CO81: =データ一覧!I691 -> 33 | CS81: =データ一覧!I692 -> 70 | CW81: =データ一覧!I693 -> 368
A82: 体 | B82: =+LEFT(データ一覧!$A$213,1) -> 2 | C82: 団体経営体 | G82: =データ一覧!I215 -> 19 | J82: 50万円未満 | O82: =データ一覧!I219 -> 168 | R82: 0.5 ha ～ 1.0 ha | W82: =データ一覧!I235 -> 100 | AD82: 建設した住宅 | AG82: 消失した住宅 | AN82: 財産収入 | AR82: =データ一覧!I448 -> 26483 | AW82: =データ一覧!I462 -> 163602 | BB82: 教育費 | BF82: =データ一覧!I476 -> 1228748 | BK82: =データ一覧!I490 -> 1700381 | BP82: ２０ そ の 他
A83: 数 | B83: ・ | D83: 法人経営 | G83: =データ一覧!I216 -> 16 | J83: 50～300万円 | O83: =データ一覧!I220 -> 182 | R83: 1.0 ha ～ 2.0 ha | W83: =データ一覧!I236 -> 152 | AN83: 繰入金 | AR83: =データ一覧!I449 -> 389965 | AW83: =データ一覧!I463 -> 182032 | BB83: 災害復旧費 | BF83: =データ一覧!I477 -> 0 | BK83: =データ一覧!I491 -> 0
A84: （ | B84: =+RIGHT(データ一覧!$A$213) -> 1 | J84: 300～500万円 | O84: =データ一覧!I221 -> 21 | R84: 2.0 ha ～ 3.0 ha | W84: =データ一覧!I237 -> 86 | AA84: =データ一覧!I321 -> 11667 | AC84: 戸 | AD84: =データ一覧!I322 -> 193 | AF84: 戸 | AG84: =データ一覧!I323 -> 91 | AI84: 戸 | AK84: =データ一覧!I324 -> 11769 | AM84: 戸 | AN84: 地方債 | AR84: =データ一覧!I450 -> 1255600 | AW84: =データ一覧!I464 -> 971960 | BB84: 公債費 | BF84: =データ一覧!I478 -> 1745406 | BK84: =データ一覧!I492 -> 1722928 | BU84: 若狭湾国定公園（若狭蘇洞門 蒼島暖地性植物群落 双児島 児島）、明通寺、羽賀寺、神宮寺、妙楽寺、飯盛寺、国分寺、多田寺、円照寺、萬徳寺、小浜西組重要伝統的建造物群保存地区、国指定文化財等67、県指定80、市指定116（R3.5.1現在）
A85: 総 | J85: 500～1,000万円 | O85: =データ一覧!I222 -> 13 | R85: 3.0 ha ～ 5.0 ha | W85: =データ一覧!I238 -> 67 | AN85: その他 | AR85: =データ一覧!I451 -> 824326 | AW85: =データ一覧!I465 -> 1306193 | BB85: その他 | BF85: =データ一覧!I479 -> 10000 | BK85: =データ一覧!I493 -> 0 | BP85: 名所・旧跡
A86: 数 | J86: 1,000万円以上 | O86: =データ一覧!I223 -> 17 | R86: 5.0 ha以上 | W86: =データ一覧!I239 -> 567 | BP86: 文化財等
A87: ） | C87: 15歳以上の常雇い数 | J87: 農業に60日以上従事した世帯員、役員・構成員 （経営主を含む）の平均年齢 | Z87: ９ 議 員 ・ 職 員 | AN87: １４ 文 化 | AX87: ( | AY87: =データ一覧!$A$500 -> 3.3.31 | BC87: ただし図書館・公民館・児童館 | BK87: =データ一覧!$A$494 -> 3.4.1
A88: と | BD88: 宗教法人数 | BK88: =データ一覧!$A$502 -> 2.12.31 | BO88: ）
A89: 就 | J89: 農業に60日以上従事 | R89: 農業に150日以上従事 | Z89: 市 町 村 議 会 | AC89: 有権者数 | AE89: =データ一覧!$A$328 -> 3.9.1 | AG89: 市 町 村 議 会 | AJ89: 職 員 数 | AS89: 図書館 | AY89: 公 民 館 | BJ89: 社会教育学級講座 | BP89: 特産物 | BU89: 若狭塗（箸、漆器）、若狭めのう細工、若狭和紙、うるしダルマ、若狭かれい、小鯛ささ漬、谷田部ねぎ、浜焼き鯖、若狭ぐじ、若狭ふぐ、若狭かき、鯖へしこ、鯖のなれずし、おばま醤油干、小浜よっぱらいサバ、でっちようかん、くずまんじゅう、ふくいサーモン、若狭まはた、八百姫ひらめ
A90: 業 | C90: 区 分 | G90: 人 | J90: 区 分 | O90: 人 | R90: 区 分 | W90: 人 | Z90: 議 員 定 数 | AC90: 男 | AE90: 女 | AG90: 選 挙 投 票 率 | AJ90: 総 数 | AL90: 一般行政職 | AN90: 公 共 | AR90: 館 数 | AU90: 図書数 | AX90: 本 館 | BA90: 分 館 | BD90: 公 園 | BG90: 児童館 | BJ90: 学級講座数 | BM90: 受講者数
A91: 状 | C91: 総数 | G91: =データ一覧!I230 -> 73 | J91: 総数 | O91: =データ一覧!I224 -> 67 | R91: 総数 | W91: =データ一覧!I227 -> 67.4 | AB91: 人 | AD91: 人 | AF91: 人 | AI91: ％ | AK91: 人 | AM91: 人 | AN91: 施 設 数 | AS91: =データ一覧!I494 -> 1 | AU91: =データ一覧!I495 -> 195612 | AY91: =データ一覧!I496 -> 13 | BA91: =データ一覧!I497 -> 0 | BD91: =データ一覧!I498 -> 24 | BG91: =データ一覧!I499 -> 4 | BJ91: =データ一覧!I500 -> 94 | BM91: =データ一覧!I501 -> 2719
A92: 況 | C92: 男 | G92: =データ一覧!I231 -> 28 | J92: 男 | O92: =データ一覧!I225 -> 66 | R92: 男 | W92: =データ一覧!I228 -> 67 | AA92: =データ一覧!I325 -> 18 | AC92: =データ一覧!I328 -> 11806 | AE92: =データ一覧!I329 -> 12317 | AG92: =データ一覧!I327 -> 67.47 | AJ92: =データ一覧!I330 -> 288 | AL92: =データ一覧!I331 -> 209 | AN92: 宗 教 | AR92: 仏教系 | AU92: ｷﾘｽﾄ教系 | AX92: 神道諸派 | BA92: 公会堂・市民会館 | BG92: テレビ | BJ92: 衛星放送契約数 | BP92: 年中行事 | BU92: お水送り、お城祭り(雲浜獅子)、放生祭、地蔵盆、箸まつり、若狭マリンピア、芽立ち神事、すり鉢くぐり、小浜祇園祭、OBAMA食のまつり、御食国若狭おばまYOSAKOI祭
C93: 女 | G93: =データ一覧!I232 -> 45 | J93: 女 | O93: =データ一覧!I226 -> 69.7 | R93: 女 | W93: =データ一覧!I229 -> 68.3 | AG93: =データ一覧!I326 -> 31.4.21 | AN93: 法 人 数 | AR93: =データ一覧!I502 -> 139 | AU93: =データ一覧!I503 -> 2 | AX93: =データ一覧!I504 -> 108 | BA93: =データ一覧!I505 -> 0 | BG93: 等 | BJ93: =データ一覧!I506 -> 4808

Sheet 大野市
A1: =+データ一覧!J2 -> 0
A2: =+データ一覧!J5 -> 0
AB4: 【市紋章とそのいわれ】大の（大野）を図案化したもので、円は | AN4: 【位置および地勢】大野市は福井県の東端に位置し、東は岐阜県郡上市、高山市、 | BS4: 所在地 | CA4: 〒912-8666
AB5: 和と団結を象徴し、円満な市政の運用を意味し、 | AO5: 西は福井市、池田町、 南は岐阜県関市、本巣市および揖斐川町、北は勝山市および | CA5: 大野市天神町１番１号
A6: =+データ一覧!J3 -> おおのし | AB6: 剣尖は市の将来の発展性を表す。昭和２９年 | AO6: 石川県の白山市に接している。四方を1,000ｍ級の霊峰白山の支脈に囲まれ、市域の
A7: =データ一覧!J6 -> 大野市 | AB7: ７月１日、市制施行と同時に公募により制定。 | AO7: 約8割が林野に覆われており、これらの山岳地形の間を縫うように、岐阜県境に源を | BS7: 電話番号 | CA7: （０７７９）６６－１１１１
AB8: 0 | AO8: 発する九頭竜川が貫流し、これへ石徹白川をはじめ多くの中小河川が合流している。 | BS8: FAX番号 | CA8: 〃 ６５－８３７１
AB9: 0 | AO9: 市内の交通は、国道１５７号が南北に、国道１５８号が東西に走り、東は東海北陸
AB10: 0 | AO10: 自動車道、西は北陸自動車道に連絡している。また、ＪＲ越美北線が国道１５８号に | BS10: 最寄駅および距離 | CA10: ＪＲ越美北線越前大野駅 下車１ｋｍ
AB11: =+データ一覧!#REF! ->  | AO11: ほぼ並行して走り、越前花堂駅でＪＲ北陸本線と接続している。中部縦貫自動車道に
AO12: ついては、永平寺大野道路が全線開通し、北陸自動車道と直結している。
AB13: 【市が掲げる標語】人がつながり地域がつながる 住み続けたい結のまち | BS13: ホームページ | CA13: http://www.city.ono.fukui.jp/
A15: １ 土 地 | Z15: =データ一覧!$A$240 -> 2年 | AA15: 産米収穫量 | AD15: 収 穫 量 | AG15: 作 付 面 積 | AJ15: 10a当たり収量 | BP15: １５ 労 働 | CE15: 27.10.1
AD16: =データ一覧!$J$240 -> 14100 | AF16: t | AG16: =データ一覧!$J$241 -> 2660 | AI16: ha | AJ16: =データ一覧!J242 -> 530 | AM16: kg | AN16: １０ 工 業 | BB16: =データ一覧!$A$332 -> 2.6.1（令和元年実績）
A17: 総 面 積 | K17: 固 定 資 産 概 要 調 書 に よ る 地 目 別 面 積 | AC17: 総 数 | AG17: うち 田 | AK17: うち 畑 | BW17: 産業別就業者数
C18: =データ一覧!$A$7 -> 3.10.1 | Q18: =データ一覧!$A$9 -> 3.1.1 | Z18: 耕 地 面 積 | AD18: ha | AG18: ha | AK18: ha | AO18: 産業分類 | AW18: 事業所数 | BB18: 従業者数 | BH18: 年間製造品出荷額等 | BQ18: 区 分 | BV18: 総 数 | CA18: 男 | CE18: 女 | CI18: 区 分 | CN18: 総 数 | CS18: 男 | CW18: 女
G19: ㎢ | K19: 総 数 | P19: う ち 田 | U19: う ち 畑 | Z19: =データ一覧!A243 -> 2.7.15 | AC19: =データ一覧!$J$243 -> 4200 | AF19: =データ一覧!$J$244 -> 4060 | AJ19: =データ一覧!$J$245 -> 141 | AZ19: 事業所 | BB19: 人 | BE19: 人 | BG19: 万円 | BN19: 万円 | BV19: 人 | CB19: 人 | CF19: 人 | CN19: 人 | CR19: 人 | CV19: 人
D20: =データ一覧!J7 -> 872.43 | O20: ha | T20: ha | Y20: ha | Z20: 農 業 生 産 物 | AD20: 作 付 面 積 | AG20: 収 穫 量 | AJ20: 10a当たり収量 | AO20: 総数 | AX20: =データ一覧!J332 -> 79 | BB20: =+データ一覧!J357 -> 2523 | BI20: =データ一覧!J382 -> 6023106 | BP20: 総 数 | BV20: =BZ20+CD20 -> 17733 | BZ20: =データ一覧!J507 -> 9403 | CD20: =データ一覧!J532 -> 8330
L21: =データ一覧!J9 -> 48574.7 | Q21: =データ一覧!J10 -> 4201.6 | V21: =データ一覧!J11 -> 230.8 | Z21: =データ一覧!$A$246 -> 2年中 | AD21: ha | AG21: t | AJ21: kg | AN21: 食料品 | AO21: 食料品 | AX21: =データ一覧!J333 -> 8 | BB21: =+データ一覧!J358 -> 152 | BI21: =データ一覧!J383 -> 117944 | CI21: 卸売業,小売業 | CN21: =CR21+CV21 -> 2359 | CR21: =データ一覧!J520 -> 1142 | CV21: =データ一覧!J545 -> 1217
A22: 町 ･ 丁 ･ 大 字 | K22: う ち 宅 地 | P22: う ち 山 林 | U22: う ち 原 野 | Z22: 水 稲 | AD22: =データ一覧!J246 -> 2660 | AG22: =データ一覧!J247 -> 14100 | AJ22: =データ一覧!J248 -> 530 | AN22: 飲料・飼料 | AO22: 飲料・飼料 | AX22: =データ一覧!J334 -> 2 | BB22: =+データ一覧!J359 -> 26 | BI22: =データ一覧!J384 -> x | BP22: 第１次産業 | BV22: =BZ22+CD22 -> 1557 | BZ22: =データ一覧!J508 -> 934 | CD22: =データ一覧!J533 -> 623 | CI22: 金融業,保険業 | CN22: =CR22+CV22 -> 333 | CR22: =データ一覧!J521 -> 143 | CV22: =データ一覧!J546 -> 190
A23: 区 画 数 | H23: =データ一覧!J8 -> 207 | O23: ha | T23: ha | Y23: ha | Z23: 六 条 大 麦 | AD23: =データ一覧!J249 -> 683 | AG23: =データ一覧!J250 -> 1840 | AJ23: =データ一覧!J251 -> 270 | AN23: 繊維 | AO23: 繊維 | AX23: =データ一覧!J335 -> 25 | BB23: =+データ一覧!J360 -> 524 | BI23: =データ一覧!J385 -> 456926 | BQ23: 農業 | BV23: =BZ23+CD23 -> 1462 | BZ23: =データ一覧!J509 -> 848 | CD23: =データ一覧!J534 -> 614 | CI23: 不動産業 | CN23: 118 | CR23: =データ一覧!J522 -> 79 | CV23: =データ一覧!J547 -> 39
A24: =データ一覧!$A$8 -> 2.4.1 | L24: =データ一覧!J12 -> 1002.9 | Q24: =データ一覧!J13 -> 13089 | V24: =データ一覧!J14 -> 673.2 | Z24: 大 豆 | AD24: =データ一覧!J252 -> 97 | AG24: =データ一覧!J253 -> 119 | AJ24: =データ一覧!J254 -> 123 | AN24: 衣服 | AO24: 木材 | AX24: =データ一覧!J336 -> 2 | BB24: =+データ一覧!J361 -> 174 | BI24: =データ一覧!J386 -> x | BQ24: 林業 | BV24: 93 | BZ24: =データ一覧!J510 -> 84 | CD24: =データ一覧!J535 -> 9 | CI24: 学術研究 | CN24: 380 | CR24: =データ一覧!J523 -> 241 | CV24: =データ一覧!J548 -> 139
A25: ２ 世 帯 数 と 人 口 | AB25: 区 分 | AD25: 乳 用 牛 | AF25: 肉 用 牛 | AH25: 豚 | AJ25: 採卵鶏 | AL25: ブロイラー | AN25: 木材 | AO25: 家具 | AX25: =データ一覧!J337 -> 2 | BB25: =+データ一覧!J362 -> 27 | BI25: =データ一覧!J387 -> x | BQ25: 漁業 | BV25: 2 | BZ25: =データ一覧!J511 -> 2 | CD25: =データ一覧!J536 -> 0 | CI25: 宿泊業,飲食ｻｰﾋﾞｽ | CN25: 693 | CR25: =データ一覧!J524 -> 252 | CV25: =データ一覧!J549 -> 441
Z26: 畜 産 | AB26: 飼養農家 | AD26: =データ一覧!$J$255 -> 5 | AF26: =データ一覧!$J$257 -> x | AH26: =データ一覧!$J$259 -> x | AJ26: =データ一覧!$J$261 -> 0 | AL26: =データ一覧!$J$263 -> 0 | AN26: 家具 | AO26: パルプ・紙 | AX26: =データ一覧!J338 -> 3 | BB26: =+データ一覧!J363 -> 52 | BI26: =データ一覧!J388 -> 35971 | BP26: 第２次産業 | BV26: 5566 | BZ26: =データ一覧!J512 -> 3722 | CD26: =データ一覧!J537 -> 1844 | CI26: 生活関連ｻｰﾋﾞｽ業 | CN26: 613 | CR26: =データ一覧!J525 -> 215 | CV26: =データ一覧!J550 -> 398
I27: 人 口 | U27: １世帯当 | W27: 人 口 | Z27: =データ一覧!$A$255 -> 3.3.31 | AB27: （戸） | AN27: パルプ・紙 | AO27: 印刷 | AX27: =データ一覧!J339 -> 2 | BB27: =+データ一覧!J364 -> 25 | BI27: =データ一覧!J389 -> x | BQ27: 鉱業，採石業 | BV27: 6 | BZ27: =データ一覧!J513 -> 5 | CD27: =データ一覧!J538 -> 1 | CI27: 教育,学習支援業 | CN27: 758 | CR27: =データ一覧!J526 -> 314 | CV27: =データ一覧!J551 -> 444
A28: 区 分 | F28: 世帯数 | I28: 総 数 | L28: 男 | O28: 女 | R28: 男／女 | U28: たり人員 | W28: 密 度 | AB28: 頭 羽 | AD28: =データ一覧!$J$256 -> 244 | AF28: =データ一覧!$J$258 -> 5 | AH28: =データ一覧!$J$260 -> 140 | AJ28: =データ一覧!$J$262 -> 0 | AL28: =データ一覧!$J$264 -> 0 | AN28: 出版・印刷 | AO28: 化学 | AX28: =データ一覧!J340 -> 0 | BB28: =+データ一覧!J365 -> 0 | BI28: =データ一覧!J390 -> 0 | BQ28: 建設業 | BV28: 2161 | BZ28: =データ一覧!J514 -> 1833 | CD28: =データ一覧!J539 -> 328 | CI28: 医療，福祉 | CN28: 2635 | CR28: =データ一覧!J527 -> 508 | CV28: =データ一覧!J552 -> 2127
F29: 世 帯 | I29: 人 | L29: 人 | O29: 人 | S29: ％ | U29: 人 | W29: 人/㎢ | AN29: 化学 | AO29: 石油・石炭 | AX29: =データ一覧!J341 -> 0 | BB29: =+データ一覧!J366 -> 0 | BI29: =データ一覧!J391 -> 0 | BQ29: 製造業 | BV29: 3399 | BZ29: =データ一覧!J515 -> 1884 | CD29: =データ一覧!J540 -> 1515 | CI29: 複合サービス事業 | CN29: 324 | CR29: =データ一覧!J528 -> 197 | CV29: =データ一覧!J553 -> 127
A30: =データ一覧!$A$22 -> 2.10.1 | F30: =データ一覧!J22 -> 10758 | I30: =+L30+O30 -> 41837 | L30: =データ一覧!J24 -> 19944 | O30: =データ一覧!J25 -> 21893 | S30: =+L30/O30*100 -> 91.09761111 | U30: =データ一覧!J27 -> 3.89 | W30: =データ一覧!J21 -> 0 | Z30: ５ 林 業 | AN30: 石油・石炭 | AO30: プラスチック | AX30: =データ一覧!J342 -> 2 | BB30: =+データ一覧!J367 -> 41 | BI30: =データ一覧!J392 -> x | BP30: 第３次産業 | BV30: 10553 | BZ30: =データ一覧!J516 -> 4716 | CD30: =データ一覧!J541 -> 5837 | CI30: サービス業 | CN30: 916 | CR30: =データ一覧!J529 -> 546 | CV30: =データ一覧!J554 -> 370
A31: =データ一覧!$A$29 -> 7.10.1 | F31: =データ一覧!J29 -> 10862 | I31: =+L31+O31 -> 41069 | L31: =データ一覧!J31 -> 19537 | O31: =データ一覧!J32 -> 21532 | S31: 90.73472042 | U31: =データ一覧!J34 -> 3.78 | W31: =データ一覧!J28 -> 0 | AN31: プラスチック | AO31: ゴム | AX31: =データ一覧!J343 -> 0 | BB31: =+データ一覧!J368 -> 0 | BI31: =データ一覧!J393 -> 0 | BQ31: 電気･ｶﾞｽ･水道業 | BV31: 152 | BZ31: =データ一覧!J517 -> 137 | CD31: =データ一覧!J542 -> 15 | CI31: 公務 | CN31: 603 | CR31: =データ一覧!J530 -> 415 | CV31: =データ一覧!J555 -> 188
A32: =データ一覧!$A$36 -> 12.10.1 | F32: =データ一覧!J36 -> 11151 | I32: =+L32+O32 -> 39632 | L32: =データ一覧!J38 -> 18942 | O32: =データ一覧!J39 -> 20690 | S32: 91.55147414 | U32: =データ一覧!J41 -> 3.55 | W32: =データ一覧!J35 -> 0 | Z32: 森 林 総 面 積 | AH32: =データ一覧!$A$265 -> 3.3.31 | AN32: ゴム | AO32: 皮革 | AX32: =データ一覧!J344 -> 0 | BB32: =+データ一覧!J369 -> 0 | BI32: =データ一覧!J394 -> 0 | BQ32: 情報通信業 | BV32: 139 | BZ32: =データ一覧!J518 -> 108 | CD32: =データ一覧!J543 -> 31 | CH32: 分類不能の産業 | CN32: 57 | CR32: =データ一覧!J531 -> 31 | CV32: =データ一覧!J556 -> 26
A33: =+データ一覧!$A$43 -> 17.10.1 | F33: =データ一覧!J43 -> 11230 | I33: =+L33+O33 -> 37843 | L33: =データ一覧!J45 -> 17956 | O33: =データ一覧!J46 -> 19887 | S33: 90.29013929 | U33: =データ一覧!J48 -> 3.37 | W33: =データ一覧!J49 -> 43.4 | Z33: 森 林 の 構 成 | AN33: 皮革 | AO33: 窯業・土石 | AX33: =データ一覧!J345 -> 4 | BB33: =+データ一覧!J370 -> 45 | BI33: =データ一覧!J395 -> 150377 | BQ33: 運輸業,郵便業 | BV33: =BZ33+CD33 -> 530 | BZ33: =データ一覧!J519 -> 419 | CD33: =データ一覧!J544 -> 111
A34: =+データ一覧!$A$50 -> 22.10.1 | F34: =+データ一覧!J50 -> 10847 | I34: =+L34+O34 -> 35291 | L34: =+データ一覧!J52 -> 16705 | O34: =+データ一覧!J53 -> 18586 | S34: 89.87947918 | U34: =+データ一覧!J55 -> 3.25 | W34: =+データ一覧!J56 -> 40.5 | AE34: ha | AL34: ha | AN34: 窯業・土石 | AO34: 鉄鋼 | AX34: =データ一覧!J346 -> 0 | BB34: =+データ一覧!J371 -> 0 | BI34: =データ一覧!J396 -> 0 | BP34: １６ 社 会 福 祉 | CF34: =データ一覧!$A$557 -> 3.4.1
A35: =データ一覧!$A$57 -> 27.10.1 | F35: =データ一覧!J57 -> 10698 | I35: =データ一覧!J58 -> 33109 | L35: =データ一覧!J59 -> 15683 | O35: =データ一覧!J60 -> 17426 | S35: 89.99770458 | U35: =データ一覧!J62 -> 3.094877547 | W35: =データ一覧!J63 -> 38 | Z35: 総 数 | AD35: =データ一覧!J265 -> 75824.78 | AG35: 天然林 針葉樹 | AK35: =データ一覧!J268 -> 463.65 | AN35: 鉄鋼 | AO35: 非鉄金属 | AX35: =データ一覧!J347 -> 0 | BB35: =+データ一覧!J372 -> 0 | BI35: =データ一覧!J397 -> 0
A36: 令 2.10.1（国調） | F36: =データ一覧!J64 -> 10868 | I36: =データ一覧!J65 -> 31286 | L36: =データ一覧!J66 -> 14997 | O36: =データ一覧!J67 -> 16289 | S36: =+L36/O36*100 -> 92.06826693 | U36: =データ一覧!J72 -> 2.84 | W36: =データ一覧!J73 -> 35.13634332 | Z36: 人工林 針葉樹 | AD36: =データ一覧!J266 -> 18326.63 | AG36: 天然林 広葉樹 | AK36: =データ一覧!J269 -> 51981.33 | AN36: 非鉄金属 | AO36: 金属 | AX36: =データ一覧!J348 -> 14 | BB36: =+データ一覧!J373 -> 322 | BI36: =データ一覧!J398 -> 594707 | BQ36: 区分 | BX36: 施設数 | CC36: 収容定員 | CI36: 区分 | CP36: 施設数 | CU36: 収容定員
A37: 年 | C37: 区 | E37: 0歳 | H37: 15歳 | K37: 25歳 | N37: 35歳 | Q37: 45歳 | T37: 55歳 | W37: 65歳 | Z37: 人工林 広葉樹 | AD37: =データ一覧!J267 -> 1360.66 | AG37: 竹 林 | AK37: =データ一覧!J270 -> 8.83 | AN37: 金属 | AO37: はん用機械 | AX37: =データ一覧!J349 -> 0 | BB37: =+データ一覧!J374 -> 0 | BI37: =データ一覧!J399 -> 0 | BP37: 生活保護施設 | BX37: =データ一覧!J557 -> 1 | CB37: =データ一覧!J570 -> 140 | CF37: 人 | CH37: 指定障害者支援施設 | CP37: =データ一覧!J563 -> 2 | CT37: =データ一覧!J576 -> 110 | CX37: 人
A38: 齢 | B38: 令 | F38: ～ | I38: ～ | L38: ～ | O38: ～ | R38: ～ | U38: ～ | AN38: 一般機械 | AO38: 生産用機械 | AX38: =データ一覧!J350 -> 1 | BB38: =+データ一覧!J375 -> 7 | BI38: =データ一覧!J400 -> x | BP38: 地域福祉施設 | BX38: =データ一覧!J558 -> 0 | CB38: =データ一覧!J571 -> 0 | CH38: 指定相談支援事業所 | CP38: =データ一覧!J564 -> 3 | CT38: =データ一覧!J577 -> 0
A39: 階 | B39: =+LEFT(データ一覧!$A$83,1) -> 3 | C39: 分 | G39: 14歳 | J39: 24歳 | M39: 34歳 | P39: 44歳 | S39: 54歳 | V39: 64歳 | Y39: 以上 | Z39: 林 野 の 構 成 | AG39: 保 有 形 態 別 | AN39: 電気機械 | AO39: 業務用機械 | AX39: =データ一覧!J351 -> 0 | BB39: =+データ一覧!J376 -> 0 | BI39: =データ一覧!J401 -> 0 | BP39: 老人福祉施設 | BX39: =データ一覧!J559 -> 8 | CB39: =データ一覧!J572 -> 387 | CH39: 児童福祉施設 | CP39: =データ一覧!J565 -> 23 | CT39: =データ一覧!J578 -> 1153
A40: 級 | B40: ・ | G40: 人 | J40: 人 | L40: 人 | O40: 人 | R40: 人 | U40: 人 | X40: 人 | AF40: ha | AL40: ha | AO40: 電子・デバイス | AX40: =データ一覧!J352 -> 6 | BB40: =+データ一覧!J377 -> 726 | BI40: =データ一覧!J402 -> 2324248 | BP40: 介護保険施設 | BX40: =データ一覧!J560 -> 76 | CB40: =データ一覧!J573 -> 1289 | CH40: 母子福祉施設 | CP40: =データ一覧!J566 -> 0 | CT40: =データ一覧!J579 -> 0
A41: 別 | B41: =+MID(データ一覧!$A$83,3,2) -> 10 | C41: 総 数 | E41: =+E42+E43 -> 3221 | H41: =+H42+H43 -> 2189 | K41: =+K42+K43 -> 2202 | N41: =+N42+N43 -> 3231 | Q41: =+Q42+Q43 -> 3760 | T41: =+T42+T43 -> 4189 | W41: =+W42+W43 -> 11680 | Z41: 無立木地 伐採跡地 | AD41: =データ一覧!J271 -> 26.14 | AG41: 国 有 | AK41: =データ一覧!J273 -> 20664.12 | AO41: 電気機械 | AX41: =データ一覧!J353 -> 4 | BB41: =+データ一覧!J378 -> 117 | BI41: =データ一覧!J403 -> 327121 | BP41: 障害者自立支援法施行前からの身体障害者福祉施設 | BX41: =データ一覧!J561 -> 0 | CB41: =データ一覧!J574 -> 0 | CH41: 婦人保護施設 | CP41: =データ一覧!J567 -> 0 | CT41: =データ一覧!J580 -> 0
A42: 人 | B42: ・ | C42: 男 | E42: =データ一覧!J83 -> 1628 | H42: =データ一覧!J84 -> 1107 | K42: =データ一覧!J85 -> 1158 | N42: =データ一覧!J86 -> 1636 | Q42: =データ一覧!J87 -> 1937 | T42: =データ一覧!J88 -> 2046 | W42: =データ一覧!J89 -> 5048 | Z42: 無立木地 未立木地 | AD42: =データ一覧!J272 -> 3657.54 | AG42: 公 有 | AK42: =データ一覧!J274 -> 11115.76 | AN42: 輸送機械 | AO42: 情報通信機械 | AX42: =データ一覧!J354 -> 0 | BB42: =+データ一覧!J379 -> 0 | BI42: =データ一覧!J404 -> 0 | CH42: その他の社会福祉施設 | CP42: =データ一覧!J568+データ一覧!J569 -> 0 | CT42: =データ一覧!J581+データ一覧!J582 -> 0
A43: 口 | B43: =+RIGHT(データ一覧!$A$83,1) -> 1 | C43: 女 | E43: =データ一覧!J91 -> 1593 | H43: =データ一覧!J92 -> 1082 | K43: =データ一覧!J93 -> 1044 | N43: =データ一覧!J94 -> 1595 | Q43: =データ一覧!J95 -> 1823 | T43: =データ一覧!J96 -> 2143 | W43: =データ一覧!J97 -> 6632 | AG43: 私 有 | AK43: =データ一覧!J275 -> 44044.9 | AN43: 精密機械 | AO43: 輸送機械 | AX43: =データ一覧!J355 -> 2 | BB43: =+データ一覧!J380 -> 98 | BI43: =データ一覧!J405 -> x | BP43: 障害福祉サービス事業所 | BX43: =データ一覧!J562 -> 32 | CB43: =データ一覧!J575 -> 248
Z44: 林 産 物 生 産 量 | AJ44: =データ一覧!$A$276 -> 2年中 | AN44: その他 | AO44: その他 | AX44: =データ一覧!J356 -> 2 | BB44: =+データ一覧!J381 -> 187 | BI44: =データ一覧!J406 -> x | BP44: １７ 教 育 | CF44: =データ一覧!$A$583 -> 3.5.1
A45: 人口動態 | H45: 自 然 動 態 | N45: 社 会 動 態 | T45: =データ一覧!$A78 -> 2.1.1～3.12.31 | Z45: 生椎茸 | AD45: =データ一覧!J276 -> 59014 | AF45: ㎏ | AG45: 乾椎茸 | AK45: =データ一覧!J277 -> 114 | AM45: ㎏
C46: 区 分 | H46: 出 生 | K46: 死 亡 | N46: 転 入 | Q46: 転 出 | T46: 婚 姻 | W46: 離 婚 | Z46: えのきだけ | AD46: =データ一覧!J279 -> - | AF46: ㎏ | AG46: なめこ | AK46: =データ一覧!J278 -> 6 | AM46: ㎏ | AO46: 工 業 用 水 量 | AU46: （従業者30人以上の事業所） | BF46: =データ一覧!J407 -> 4437 | BK46: ㎥／日 | BZ46: 学校数（校） | CG46: 教員数（人） | CO46: 学生・生徒・児童数（人）
A47: =LEFT(データ一覧!$A74,6) -> 2.10.1 | H47: 人 | K47: 人 | N47: 人 | Q47: 人 | U47: 件 | X47: 件 | Z47: ひらたけ | AD47: =+データ一覧!J280 -> - | AF47: ㎏ | AG47: まいたけ | AK47: =+データ一覧!J281 -> 129814 | AM47: ㎏ | BR47: 区分 | BZ47: 本 校 | CC47: 分 校 | CF47: 本 務 | CJ47: 兼 務 | CN47: 総 数 | CR47: 男 | CV47: 女
A48: ～ | C48: 実 数 | H48: =データ一覧!J74 -> 86 | K48: =データ一覧!J75 -> 271 | N48: =データ一覧!J76 -> 310 | Q48: =データ一覧!J77 -> 448 | T48: =データ一覧!J78 -> 86 | W48: =データ一覧!J79 -> 45 | AN48: １１ 上 ・ 下 水 道 | BQ48: 小学校 | BZ48: =データ一覧!J584 -> 9 | CC48: =データ一覧!J585 -> 0 | CF48: =データ一覧!J586 -> 121 | CJ48: =データ一覧!J587 -> 18 | CN48: =データ一覧!J588 -> 1376 | CR48: =データ一覧!J589 -> 696 | CV48: =データ一覧!J590 -> 680
A49: =RIGHT(データ一覧!$A76,6) -> 3.9.30 | C49: 比率(対1,000人) | H49: =+H48/I35*1000 -> 2.597481047 | K49: =+K48/I35*1000 -> 8.185085626 | N49: - | Q49: - | T49: =+T48/I35*1000 -> 2.597481047 | W49: =+W48/I35*1000 -> 1.35914706 | Z49: ６ 漁 業 | BQ49: 中学校 | BZ49: =データ一覧!J592 -> 5 | CC49: =データ一覧!J593 -> 0 | CF49: =データ一覧!J594 -> 80 | CJ49: =データ一覧!J595 -> 22 | CN49: =データ一覧!J596 -> 782 | CR49: =データ一覧!J597 -> 406 | CV49: =データ一覧!J598 -> 376
AN50: 水 道 供 給 人 口 | AU50: 上 水 道 | AY50: 簡易水道 | BC50: 専用水道 | BG50: 飲料水供給施設 | BK50: 下水道処理人口 | BQ50: 高等学校 | BZ50: =データ一覧!J600 -> 2 | CC50: =データ一覧!J601 -> 0 | CF50: =データ一覧!J602 -> 88 | CJ50: =データ一覧!J603 -> 30 | CN50: =データ一覧!J604 -> 767 | CR50: =データ一覧!J605 -> 422 | CV50: =データ一覧!J606 -> 345
A51: ３ 事 業 所（民 営） （平 28.6.1） | Z51: 漁船隻数・トン数 | AD51: =データ一覧!$A$282 -> 2.12.31 | AH51: 動 力 船 | AN51: =データ一覧!$A$408 -> 3.3.31 | AT51: 人 | AV51: =データ一覧!J408 -> 4559 | AY51: =データ一覧!J409 -> 7333 | BD51: =データ一覧!J410 -> 98 | BH51: =データ一覧!J411 -> 253 | BL51: =データ一覧!J412 -> 17787 | BQ51: 大学・短期大学 | BZ51: =データ一覧!J607 -> 0 | CC51: =データ一覧!J608 -> 0 | CF51: =データ一覧!J609 -> 0 | CJ51: =データ一覧!J610 -> 0 | CN51: =データ一覧!J611 -> 0 | CR51: =データ一覧!J612 -> 0 | CV51: =データ一覧!J613 -> 0
Z52: 無動力船隻数 | AD52: 船外機付漁船隻数 | AH52: 隻 数 | AK52: 総 ト ン 数 | BQ52: 高等専門学校 | BZ52: =データ一覧!J614 -> 0 | CC52: =データ一覧!J615 -> 0 | CF52: =データ一覧!J616 -> 0 | CJ52: =データ一覧!J617 -> 0 | CN52: =データ一覧!J618 -> 0 | CR52: =データ一覧!J619 -> 0 | CV52: =データ一覧!J620 -> 0
H53: 総 数 | N53: 民 営 | T53: 国 ･ 地方公共団体 | AC53: 隻 | AG53: 隻 | AJ53: 隻 | AM53: t | AN53: １２ 交 通 ・ 通 信 | BQ53: 特別支援学校 | BZ53: =データ一覧!J622 -> 0 | CC53: =データ一覧!J623 -> 0 | CF53: =+データ一覧!J624 -> 0 | CJ53: =+データ一覧!J625 -> 0 | CN53: =+データ一覧!J626 -> 0 | CR53: =+データ一覧!J627 -> 0 | CV53: =+データ一覧!J628 -> 0
A54: 区 分 | H54: 事業所数 | K54: 従業者数 | N54: 事業所数 | Q54: 従業者数 | T54: 事業所数 | W54: 従業者数 | Z54: =データ一覧!$J$282 -> 0 | AD54: =データ一覧!$J$283 -> 1 | AH54: =データ一覧!J284 -> 0 | AK54: =データ一覧!J285 -> 0 | BQ54: 幼稚園 | BZ54: =データ一覧!J630 -> 6 | CC54: =データ一覧!J631 -> 0 | CF54: =データ一覧!J632 -> 9 | CJ54: =データ一覧!J633 -> 0 | CN54: =データ一覧!J634 -> 28 | CR54: =データ一覧!J635 -> 13 | CV54: =データ一覧!J636 -> 15
K55: 人 | Q55: 人 | W55: 人 | Z55: 男女別就業者数 | AH55: =データ一覧!$A$286 -> 30.11.1 | AN55: 道 路 | AR55: 実 延 長 | AV55: 国 道 | AZ55: 県 道 | BD55: 市町道 | BH55: 鉄 道 営 業 キ ロ 数 | BQ55: 幼保連携認定こども園 | BZ55: =データ一覧!J638 -> 8 | CC55: =データ一覧!J639 -> 0 | CF55: =データ一覧!J640 -> 151 | CJ55: =データ一覧!J641 -> 0 | CN55: =データ一覧!J642 -> 758 | CR55: =データ一覧!J643 -> 383 | CV55: =データ一覧!J644 -> 375
A56: 総数 | H56: =データ一覧!J99 -> … | K56: =データ一覧!J156 -> … | N56: =データ一覧!J100 -> 1837 | Q56: =データ一覧!J157 -> 13996 | T56: =データ一覧!J101 -> … | W56: =データ一覧!J158 -> … | Z56: 総 数 | AF56: 男 | AJ56: 女 | AN56: =データ一覧!$A$413 -> 2.4.1 | AR56: =データ一覧!J413 -> 764 | AU56: ㎞ | AV56: =データ一覧!J414 -> 110.2 | AY56: ㎞ | AZ56: =データ一覧!J415 -> 153.4 | BC56: ㎞ | BD56: =データ一覧!J416 -> 500.4 | BG56: km | BH56: =データ一覧!$A$417 -> 3.4.1 | BL56: =データ一覧!J417 -> 26.13 | BO56: ㎞ | BQ56: 各種学校 | BZ56: =データ一覧!J646 -> 1 | CC56: =データ一覧!J647 -> 0 | CF56: =データ一覧!J648 -> 10 | CJ56: =データ一覧!J649 -> 3 | CN56: =データ一覧!J650 -> 33 | CR56: =データ一覧!J651 -> 24 | CV56: =データ一覧!J652 -> 9
A57: 農林漁業 | H57: =データ一覧!J102 -> … | K57: =データ一覧!J159 -> … | N57: =データ一覧!J103 -> 37 | Q57: =データ一覧!J160 -> 671 | T57: =データ一覧!J104 -> … | W57: =データ一覧!J161 -> … | AE57: 人 | AH57: 人 | AM57: 人 | AN57: 自動車 | AW57: 乗用車 | BQ57: 専修学校 | BZ57: =データ一覧!J654 -> 0 | CC57: =データ一覧!J655 -> 0 | CF57: =データ一覧!J656 -> 0 | CJ57: =データ一覧!J657 -> 0 | CN57: =データ一覧!J658 -> 0 | CR57: =データ一覧!J659 -> 0 | CV57: =データ一覧!J660 -> 0
A58: 鉱業 | H58: =データ一覧!J105 -> … | K58: =データ一覧!J162 -> … | N58: =データ一覧!J106 -> 1 | Q58: =データ一覧!J163 -> 1 | T58: =データ一覧!J107 -> … | W58: =データ一覧!J164 -> … | Z58: =SUM(AF58,AJ58) -> 0 | AF58: =データ一覧!$J$287 -> 0 | AJ58: =データ一覧!J288 -> 0 | AN58: 台 数 | AR58: 貨 物 | AV58: 普 通 | AZ58: 小 型 | BD58: 乗 合 | BG58: 特 種 | BJ58: 小型二輪 | BM58: 軽自動車 | BP58: １８ 衛 生
A59: 建設業 | H59: =データ一覧!J108 -> … | K59: =データ一覧!J165 -> … | N59: =データ一覧!J109 -> 283 | Q59: =データ一覧!J166 -> 1695 | T59: =データ一覧!J110 -> … | W59: =データ一覧!J167 -> … | Z59: 海 面 漁 業 漁 獲 量 （属人） | AH59: =データ一覧!$A$289 -> 30年中 | AN59: =データ一覧!$A$418 -> 3.3.31 | AS59: =データ一覧!J418 -> 1469 | AW59: =データ一覧!J420 -> 4659 | BA59: =データ一覧!J421 -> 5056 | BD59: =データ一覧!J419 -> 104 | BG59: =データ一覧!J422 -> 546 | BJ59: =データ一覧!J423 -> 370 | BM59: =データ一覧!J424 -> 12391
A60: 製造業 | H60: =データ一覧!J111 -> … | K60: =データ一覧!J168 -> … | N60: =データ一覧!J112 -> 207 | Q60: =データ一覧!J169 -> 2742 | T60: =データ一覧!J113 -> … | W60: =データ一覧!J170 -> … | AF60: ｔ | AM60: t | AR60: 郵 便 局 数 | BF60: =+MID(データ一覧!$A$428,3,2) -> 12 | BG60: 令 | BH60: 一般加入 | BL60: ＩＮＳネット | BT60: 医療関係施設 | BZ60: =データ一覧!$A$661 -> 元.10.1 | CG60: および医療関係者数 | CO60: =データ一覧!$A$666 -> 30.12.31
A61: 電気・ｶﾞ ｽ・熱供給・水道業 | H61: =データ一覧!J114 -> … | K61: =データ一覧!J171 -> … | N61: =データ一覧!J115 -> 4 | Q61: =データ一覧!J172 -> 157 | T61: =データ一覧!J116 -> … | W61: =データ一覧!J173 -> … | Z61: 総 数 | AD61: =データ一覧!J289 -> 0 | AG61: 藻 類 | AK61: =データ一覧!J292 -> 0 | AN61: 通 信 | AR61: 総 数 | AW61: 郵 便 局 | BB61: 簡 易 局 | BF61: ・ | BG61: =+LEFT(データ一覧!$A$428,1) -> 2 | BH61: 電話数 | BL61: 加入数 | BW61: 病 | BZ61: 院 | CH61: 一般診療所 | CT61: 歯科診療所
A62: 情報通信業 | H62: =データ一覧!J117 -> … | K62: =データ一覧!J174 -> … | N62: =データ一覧!J118 -> 3 | Q62: =データ一覧!J175 -> 11 | T62: =データ一覧!J119 -> … | W62: =データ一覧!J176 -> … | Z62: 魚 類 | AD62: =データ一覧!J290 -> 0 | AG62: そ の 他 | AK62: =データ一覧!J293 -> 0 | AN62: =データ一覧!$A$428 -> 2.12.31 | AR62: =データ一覧!J425 -> 13 | AW62: =データ一覧!J426 -> 10 | BB62: =データ一覧!J427 -> 3 | BF62: =+RIGHT(データ一覧!$A$428,2) -> 31 | BG62: ・ | BH62: =データ一覧!J428 -> 3918 | BL62: =データ一覧!J429 -> 381 | BQ62: 医療関係 | CC62: 一般病院 | CO62: 有 | CR62: 床
A63: 運輸業、郵便業 | H63: =データ一覧!J120 -> … | K63: =データ一覧!J177 -> … | N63: =データ一覧!J121 -> 18 | Q63: =データ一覧!J178 -> 215 | T63: =データ一覧!J122 -> … | W63: =データ一覧!J179 -> … | Z63: 貝 類 | AD63: =データ一覧!J291 -> 0 | BQ63: 施設数 | BX63: =データ一覧!J661 -> 4 | CD63: =データ一覧!J662 -> 4 | CJ63: =データ一覧!J663 -> 23 | CP63: =データ一覧!J664 -> 1 | CV63: =データ一覧!J665 -> 11
A64: 卸売業、小売業 | H64: =データ一覧!J123 -> … | K64: =データ一覧!J180 -> … | N64: =データ一覧!J124 -> 416 | Q64: =データ一覧!J181 -> 2223 | T64: =データ一覧!J125 -> … | W64: =データ一覧!J182 -> … | AN64: １３ 税 ・ 財 政 | BW64: 医師 | CB64: 歯科医師 | CG64: 薬剤師 | CL64: 保健師 | CQ64: 助産師 | CV64: 看護師
A65: 金融業、保険業 | H65: =データ一覧!J126 -> … | K65: =データ一覧!J183 -> … | N65: =データ一覧!J127 -> 23 | Q65: =データ一覧!J184 -> 266 | T65: =データ一覧!J128 -> … | W65: =データ一覧!J185 -> … | Z65: ７ 商 業 | AG65: =データ一覧!$A$294 -> 28.6.1(平成27年実績） | BQ65: 医療 | BZ65: 人 | CE65: 人 | CJ65: 人 | CO65: 人 | CT65: 人 | CY65: 人
A66: 不動産業、物品賃貸業 | H66: =データ一覧!J129 -> … | K66: =データ一覧!J186 -> … | N66: =データ一覧!J130 -> 26 | Q66: =データ一覧!J187 -> 642 | T66: =データ一覧!J131 -> … | W66: =データ一覧!J188 -> … | AR66: 歳入 | BA66: (千円） | BF66: 歳出 | BO66: (千円） | BQ66: 関係者 | BV66: =データ一覧!J666 -> 29 | CA66: =データ一覧!J667 -> 17 | CF66: =データ一覧!J668 -> 31 | CK66: =データ一覧!J669 -> 20 | CP66: =データ一覧!J670 -> 1 | CU66: =データ一覧!J671 -> 261
A67: 学術研究、専門・技術ｻｰﾋﾞｽ業 | H67: =データ一覧!J132 -> … | K67: =データ一覧!J189 -> … | N67: =データ一覧!J133 -> 50 | Q67: =データ一覧!J190 -> 273 | T67: =データ一覧!J134 -> … | W67: =データ一覧!J191 -> … | Z67: 産 業 分 類 | AD67: 商 店 数 | AG67: 従 業 者 数 | AJ67: 年 間 販 売 額 | AN67: 一人当たり歳入歳出予算決算額 | BY67: 死因別死亡数 | CO67: =データ一覧!$A$672 -> 2年中 | CX67: 単 位：人
A68: 宿泊業、飲食サービス業 | H68: =データ一覧!J135 -> … | K68: =データ一覧!J192 -> … | N68: =データ一覧!J136 -> 230 | Q68: =データ一覧!J193 -> 848 | T68: =データ一覧!J137 -> … | W68: =データ一覧!J194 -> … | AE68: 店 | AI68: 人 | AK68: 百万円 | AN68: 区分 | AR68: =データ一覧!$A$438 -> 3年度 | AW68: =データ一覧!$A$452 -> 2年度 | BB68: 区分 | BF68: =+AR68 -> 3年度 | BK68: =データ一覧!$A$452 -> 2年度 | BP68: 死 因 | CB68: 悪 性 | CE68: 高血圧 | CK68: 脳血管 | CT68: 不慮の事故
A69: 生活関連サービス業、娯楽業 | H69: =データ一覧!J138 -> … | K69: =データ一覧!J195 -> … | N69: =データ一覧!J139 -> 173 | Q69: =データ一覧!J196 -> 605 | T69: =データ一覧!J140 -> … | W69: =データ一覧!J197 -> … | Z69: 総 計 | AD69: =データ一覧!J294 -> 378 | AG69: =データ一覧!J303 -> 1944 | AJ69: =データ一覧!J312 -> 32710 | AR69: =データ一覧!J434 -> 550487.7014 | AW69: =データ一覧!J435 -> 810687.3061 | BF69: =データ一覧!J436 -> 550487.7014 | BK69: =データ一覧!J437 -> 781170.5366 | BU69: 全 死 因 | BY69: 結 核 | CB69: 新生物 | CE69: 性疾患 | CH69: 心疾患 | CK69: 疾 患 | CN69: 肺 炎 | CQ69: 老 衰 | CW69: 交通事故
A70: 教育、学習支援業 | H70: =データ一覧!J141 -> … | K70: =データ一覧!J198 -> … | N70: =データ一覧!J142 -> 36 | Q70: =データ一覧!J199 -> 113 | T70: =データ一覧!J143 -> … | W70: =データ一覧!J200 -> … | Z70: 卸売業 | AD70: =データ一覧!J295 -> 48 | AG70: =データ一覧!J304 -> 209 | AJ70: =データ一覧!J313 -> 4267 | AN70: 項目別歳入歳出予算決算額
A71: 医療、福祉 | H71: =データ一覧!J144 -> … | K71: =データ一覧!J201 -> … | N71: =データ一覧!J145 -> 151 | Q71: =データ一覧!J202 -> 2194 | T71: =データ一覧!J146 -> … | W71: =データ一覧!J203 -> … | Z71: 小売業 | AD71: =データ一覧!J296 -> 330 | AG71: =データ一覧!J305 -> 1735 | AJ71: =データ一覧!J314 -> 28443 | AN71: 区分 | AR71: =データ一覧!$A$438 -> 3年度 | AW71: =データ一覧!$A$452 -> 2年度 | BB71: 区分 | BF71: =+AR71 -> 3年度 | BK71: =データ一覧!$A$452 -> 2年度 | BU71: =データ一覧!J672 -> 457 | BY71: － | BZ71: =データ一覧!J673 -> 0 | CB71: =データ一覧!J674 -> 18 | CF71: =データ一覧!J675 -> 1 | CH71: =データ一覧!J676 -> 8 | CK71: =データ一覧!J677 -> 0 | CN71: =データ一覧!J678 -> 17 | CQ71: =データ一覧!J679 -> 46 | CT71: =データ一覧!J680 -> 15 | CW71: =データ一覧!J681 -> 3
A72: 複合サービス事業 | H72: =データ一覧!J147 -> … | K72: =データ一覧!J204 -> … | N72: =データ一覧!J148 -> 17 | Q72: =データ一覧!J205 -> 197 | T72: =データ一覧!J149 -> … | W72: =データ一覧!J206 -> … | Z72: 各種商品 | AD72: =データ一覧!J297 -> 0 | AG72: =データ一覧!J306 -> 0 | AJ72: =データ一覧!J315 -> 0 | AN72: 総額 | AR72: =SUM(AR73:AV85) -> 16874650 | AW72: =SUM(AW73:BA85) -> 24786918 | BB72: 総額 | BF72: =SUM(BF73:BJ85) -> 16874650 | BK72: =SUM(BK73:BO85) -> 23920223 | BP72: １９ 警 察 ・ 消 防 | CF72: =+データ一覧!$A682 -> 3.4.1
A73: サービス業 | H73: =データ一覧!J150 -> … | K73: =データ一覧!J207 -> … | N73: =データ一覧!J151 -> 162 | Q73: =データ一覧!J208 -> 1143 | T73: =データ一覧!J152 -> … | W73: =データ一覧!J209 -> … | Z73: 織物・衣服・身の回り品 | AD73: =データ一覧!J298 -> 58 | AG73: =データ一覧!J307 -> 125 | AJ73: =データ一覧!J316 -> 992 | AN73: 地方税 | AR73: =データ一覧!J439 -> 3551726 | AW73: =データ一覧!J453 -> 3905328 | BB73: 議会費 | BF73: =データ一覧!J467 -> 195744 | BK73: =データ一覧!J481 -> 178203
A74: 公務 | H74: =データ一覧!J153 -> … | K74: =データ一覧!J210 -> … | N74: =データ一覧!J154 -> … | Q74: =データ一覧!J211 -> … | T74: =データ一覧!J155 -> … | W74: =データ一覧!J212 -> … | Z74: 飲食料品 | AD74: =データ一覧!J299 -> 86 | AG74: =データ一覧!J308 -> 654 | AJ74: =データ一覧!J317 -> 9947 | AN74: 地方譲与税 | AR74: =データ一覧!J440 -> 225850 | AW74: =データ一覧!J454 -> 223775 | BB74: 総務費 | BF74: =データ一覧!J468 -> 2031773 | BK74: =データ一覧!J482 -> 6007521 | BZ74: 交番・駐在所 | CI74: 刑法犯認知件数 | CR74: 交通人身事故発生件数
A75: ４ 農 業 | Z75: 機械器具 | AD75: =データ一覧!J300 -> 62 | AG75: =データ一覧!J309 -> 352 | AJ75: =データ一覧!J318 -> 7796 | AN75: 各種交付金 | AR75: =データ一覧!J441 -> 750500 | AW75: =データ一覧!J455 -> 743455 | BB75: 民生費 | BF75: =データ一覧!J469 -> 5379527 | BK75: =データ一覧!J483 -> 5454965 | BQ75: 警察署数 | BZ75: 検問所数 | CJ75: =データ一覧!$A$684 -> 2年中 | CS75: =データ一覧!$A$684 -> 2年中
Z76: その他 | AD76: =データ一覧!J301 -> 118 | AG76: =データ一覧!J310 -> 576 | AJ76: =データ一覧!J319 -> x | AN76: 地方特例交付金 | AR76: =データ一覧!J442 -> 26000 | AW76: =データ一覧!J456 -> 26109 | BB76: 衛生費 | BF76: =データ一覧!J470 -> 1484883 | BK76: =データ一覧!J484 -> 1423409 | CN76: 件 | CW76: 件
C77: 農業経営体数 | J77: 農産物販売額規模別経営体数 | R77: 経営耕地面積規模別経営体数 | Z77: 無店舗 | AD77: =データ一覧!J302 -> 6 | AG77: =データ一覧!J311 -> 28 | AJ77: =データ一覧!J320 -> x | AN77: 地方交付税 | AR77: =データ一覧!J443 -> 5950000 | AW77: =データ一覧!J457 -> 6597844 | BB77: 労働費 | BF77: =データ一覧!J471 -> 134109 | BK77: =データ一覧!J485 -> 131758 | BR77: =データ一覧!J682 -> 1 | CA77: =データ一覧!J683 -> 8 | CJ77: =データ一覧!J684 -> 102 | CS77: =データ一覧!J685 -> 19
A78: 農 | C78: 区 分 | G78: 経営体数 （経営体） | J78: 区 分 | O78: 経営体数 （経営体） | R78: 区 分 | W78: 経営体数 （経営体） | AN78: 分担金および負担金 | AR78: =データ一覧!J444 -> 20591 | AW78: =データ一覧!J458 -> 19010 | BB78: 農林水産業費 | BF78: =データ一覧!J472 -> 1284254 | BK78: =データ一覧!J486 -> 1349742 | BP78: 火災発生件数 | BZ78: 林野焼損 | CE78: 損 害 | CJ78: 消 防 自 | CN78: その他の
A79: 業 | B79: 令 | Z79: ８ 住 宅 | AN79: 使用料および手数料 | AR79: =データ一覧!J445 -> 210411 | AW79: =データ一覧!J459 -> 175791 | BB79: 商工費 | BF79: =データ一覧!J473 -> 901531 | BK79: =データ一覧!J487 -> 880192 | BP79: =+データ一覧!$A$686 -> 2年中 | BU79: 焼損棟数 | BZ79: 面 積 | CE79: 見 積 額 | CJ79: 動 車 数 | CN79: ﾎﾟﾝﾌﾟ数 | CR79: 消防吏員 | CV79: 消防団員
A80: 経 | B80: =+LEFT(データ一覧!$A$213) -> 2 | C80: 計 | G80: =データ一覧!J213 -> 933 | J80: 総 数 | O80: =データ一覧!J217 -> 933 | R80: 総 数 | W80: =データ一覧!J233 -> 3837 | AN80: 国庫支出金 | AR80: =データ一覧!J446 -> 2098539 | AW80: =データ一覧!J460 -> 6783091 | BB80: 土木費 | BF80: =データ一覧!J474 -> 1584856 | BK80: =データ一覧!J488 -> 4219476 | BP80: 件 | BV80: 棟 | CC80: ａ | CG80: 千円 | CT80: 人 | CX80: 人
A81: 営 | B81: ・ | C81: 個人経営体 | G81: =データ一覧!J214 -> 885 | J81: 販 売 な し | O81: =データ一覧!J218 -> 38 | R81: 0.5 ha 未満 | W81: =データ一覧!J234 -> 35 | Z81: =+データ一覧!$A$321 -> 令和元年 | AE81: =データ一覧!$A$324 -> 2年 | AF81: 中の増減 | AJ81: =+データ一覧!$A$324 -> 2年 | AN81: 県支出金 | AR81: =データ一覧!J447 -> 1729759 | AW81: =データ一覧!J461 -> 2177905 | BB81: 消防費 | BF81: =データ一覧!J475 -> 697356 | BK81: =データ一覧!J489 -> 715661 | BQ81: =データ一覧!J686 -> 10 | BV81: =データ一覧!J687 -> 7 | CA81: =データ一覧!J688 -> 0 | CE81: =データ一覧!J689 -> 13169 | CK81: =データ一覧!J690 -> 17 | CO81: =データ一覧!J691 -> 28 | CS81: =データ一覧!J692 -> 55 | CW81: =データ一覧!J693 -> 441
A82: 体 | B82: =+LEFT(データ一覧!$A$213,1) -> 2 | C82: 団体経営体 | G82: =データ一覧!J215 -> 48 | J82: 50万円未満 | O82: =データ一覧!J219 -> 252 | R82: 0.5 ha ～ 1.0 ha | W82: =データ一覧!J235 -> 183 | AD82: 建設した住宅 | AG82: 消失した住宅 | AN82: 財産収入 | AR82: =データ一覧!J448 -> 45481 | AW82: =データ一覧!J462 -> 58920 | BB82: 教育費 | BF82: =データ一覧!J476 -> 1649769 | BK82: =データ一覧!J490 -> 1991048 | BP82: ２０ そ の 他
A83: 数 | B83: ・ | D83: 法人経営 | G83: =データ一覧!J216 -> 34 | J83: 50～300万円 | O83: =データ一覧!J220 -> 508 | R83: 1.0 ha ～ 2.0 ha | W83: =データ一覧!J236 -> 469 | AN83: 繰入金 | AR83: =データ一覧!J449 -> 951930 | AW83: =データ一覧!J463 -> 932914 | BB83: 災害復旧費 | BF83: =データ一覧!J477 -> 2570 | BK83: =データ一覧!J491 -> 7532
A84: （ | B84: =+RIGHT(データ一覧!$A$213) -> 1 | J84: 300～500万円 | O84: =データ一覧!J221 -> 43 | R84: 2.0 ha ～ 3.0 ha | W84: =データ一覧!J237 -> 263 | AA84: =データ一覧!J321 -> 11322 | AC84: 戸 | AD84: =データ一覧!J322 -> 74 | AF84: 戸 | AG84: =データ一覧!J323 -> 103 | AI84: 戸 | AK84: =データ一覧!J324 -> 11293 | AM84: 戸 | AN84: 地方債 | AR84: =データ一覧!J450 -> 961500 | AW84: =データ一覧!J464 -> 1906300 | BB84: 公債費 | BF84: =データ一覧!J478 -> 1508278 | BK84: =データ一覧!J492 -> 1560716 | BP84: 名所・旧跡 | BU84: 越前大野城、民俗資料館、歴史博物館、武家屋敷旧内山家、武家屋敷旧田村家、笛資料館、宝慶寺、和泉郷土資料館、御清水(名水百選)、本願清水(平成の名水百選)、本願清水イトヨの里、旧橋本家住宅、専福寺の大ケヤキ、朝倉義景墓所、平成大野屋、荒島岳（日本百名山）、刈込池、九頭竜峡、七間通り(朝市)、寺町通り、六呂師高原、九頭竜湖、良縁の樹、化石発掘体験センターHOROSSA!、COCONOアートプレイス
A85: 総 | J85: 500～1,000万円 | O85: =データ一覧!J222 -> 25 | R85: 3.0 ha ～ 5.0 ha | W85: =データ一覧!J238 -> 153 | AN85: その他 | AR85: =データ一覧!J451 -> 352363 | AW85: =データ一覧!J465 -> 1236476 | BB85: その他 | BF85: =データ一覧!J479 -> 20000 | BK85: =データ一覧!J493 -> 0 | BP85: 文化財等
A86: 数 | J86: 1,000万円以上 | O86: =データ一覧!J223 -> 67 | R86: 5.0 ha以上 | W86: =データ一覧!J239 -> 2732
A87: ） | C87: 15歳以上の常雇い数 | J87: 農業に60日以上従事した世帯員、役員・構成員 （経営主を含む）の平均年齢 | Z87: ９ 議 員 ・ 職 員 | AN87: １４ 文 化 | AX87: ( | AY87: =データ一覧!$A$500 -> 3.3.31 | BC87: ただし図書館・公民館・児童館 | BK87: =データ一覧!$A$494 -> 3.4.1 | BP87: 特産物 | BU87: けんけら、でっち羊かん、やまぶどうワイン、地酒、はまな味噌、草木染（什器)、里芋、 大野在来そば、越前おおの米、半夏生さば、穴馬スイートコーン、九頭竜まいたけ、とんちゃん、オウレン、醤油カツ丼
A88: と | BD88: 宗教法人数 | BK88: =データ一覧!$A$502 -> 2.12.31 | BO88: ）
A89: 就 | J89: 農業に60日以上従事 | R89: 農業に150日以上従事 | Z89: 市 町 村 議 会 | AC89: 有権者数 | AE89: =データ一覧!$A$328 -> 3.9.1 | AG89: 市 町 村 議 会 | AJ89: 職 員 数 | AS89: 図書館 | AY89: 公 民 館 | BJ89: 社会教育学級講座 | BP89: 年中行事 | BU89: 七間朝市(春分の日～12月)､結の花まつり(4月上旬～5月中旬)､七間朝市山菜フードピア(5月中旬)､名水マラソン(5月下旬)､九頭竜新緑まつり(5月中旬)､おおの城まつり(8月13日～16日)、アルプス音楽祭(9月中旬)、三大朝市物産まつり・九頭竜紅葉まつり(10月下旬)、産業と食彩フェア(11月上旬)､小京都物産五番まつり(11月上旬)、新そばまつり(11月中旬)､越前おおの冬物語・ふるさと味物語・でっち羊かんまつり(2月上旬)
A90: 業 | C90: 区 分 | G90: 人 | J90: 区 分 | O90: 人 | R90: 区 分 | W90: 人 | Z90: 議 員 定 数 | AC90: 男 | AE90: 女 | AG90: 選 挙 投 票 率 | AJ90: 総 数 | AL90: 一般行政職 | AN90: 公 共 | AR90: 館 数 | AU90: 図書数 | AX90: 本 館 | BA90: 分 館 | BD90: 公 園 | BG90: 児童館 | BJ90: 学級講座数 | BM90: 受講者数
A91: 状 | C91: 総数 | G91: =データ一覧!J230 -> 75 | J91: 総数 | O91: =データ一覧!J224 -> 68.3 | R91: 総数 | W91: =データ一覧!J227 -> 69.3 | AB91: 人 | AD91: 人 | AF91: 人 | AI91: ％ | AK91: 人 | AM91: 人 | AN91: 施 設 数 | AS91: =データ一覧!J494 -> 1 | AU91: =データ一覧!J495 -> 215646 | AY91: =データ一覧!J496 -> 9 | BA91: =データ一覧!J497 -> 0 | BD91: =データ一覧!J498 -> 34 | BG91: =データ一覧!J499 -> 4 | BJ91: =データ一覧!J500 -> 1151 | BM91: =データ一覧!J501 -> 14915
A92: 況 | C92: 男 | G92: =データ一覧!J231 -> 52 | J92: 男 | O92: =データ一覧!J225 -> 67.4 | R92: 男 | W92: =データ一覧!J228 -> 68.6 | AA92: =データ一覧!J325 -> 18 | AC92: =データ一覧!J328 -> 13031 | AE92: =データ一覧!J329 -> 14299 | AG92: =データ一覧!J327 -> 60.82 | AJ92: =データ一覧!J330 -> 362 | AL92: =データ一覧!J331 -> 221 | AN92: 宗 教 | AR92: 仏教系 | AU92: ｷﾘｽﾄ教系 | AX92: 神道諸派 | BA92: 公会堂・市民会館 | BG92: テレビ | BJ92: 衛星放送契約数
C93: 女 | G93: =データ一覧!J232 -> 23 | J93: 女 | O93: =データ一覧!J226 -> 69.7 | R93: 女 | W93: =データ一覧!J229 -> 70.7 | AG93: =データ一覧!J326 -> 31.2.17 | AN93: 法 人 数 | AR93: =データ一覧!J502 -> 78 | AU93: =データ一覧!J503 -> 2 | AX93: =データ一覧!J504 -> 102 | BA93: =データ一覧!J505 -> 2 | BG93: 等 | BJ93: =データ一覧!J506 -> 7089

Sheet 勝山市
A1: =+データ一覧!K2 -> 0
A2: =+データ一覧!K5 -> 0
AN3: 0
AB4: 【市章とそのいわれ】カツ山をもって勝山を意味する。 | AN4: 【位置および地勢】勝山市は福井県の北東部に位置し、南東は大野市に、 | BS4: 所在地 | CA4: 〒911-8501
AB5: 福井、大野、金沢の三方面への発展を | AO5: 南西は福井市、北西に坂井市、西に永平寺町、北は石川県に隣接し、 | CA5: 勝山市元町１丁目１番１号
A6: =+データ一覧!K3 -> かつやまし | AB6: 三角の各頂点であらわし、丸は和合、 | AO6: 市の周辺は1,000m級の山々に囲まれ、中心部は県下最大河川 である九頭竜川の
A7: =データ一覧!K6 -> 勝山市 | AB7: 三角は、どっしりとした安定性を意味 | AO7: 中流域に位置している。 | BS7: 電話番号 | CA7: （０７７９）８８－１１１１
AB8: し、三角と丸を組み合わせて勝山市と | AO8: 市街地は九頭竜川の流れに沿って形成された河岸段丘に位置しており、 | BS8: FAX番号 | CA8: 〃 ８８－１１１９
AB9: しての将来の発展を意味する。 | AO9: 明治以来の地場産業である繊維産業を中心とした商工業、古くから盛んな
AB10: 0 | AO10: 農林業を基幹産業とする水と緑の豊かな田園都市である。 | BS10: 最寄駅および距離 | CA10: えちぜん鉄道勝山永平寺線勝山駅 下車１ｋｍ
AB11: 0
AB13: 【市が掲げる標語】小さくてもキラリと光る誇りと活力に満ちたふるさと勝山 | BS13: ホームページ | CA13: http://www.city.katsuyama.fukui.jp/
A15: １ 土 地 | Z15: =データ一覧!$A$240 -> 2年 | AA15: 産米収穫量 | AD15: 収 穫 量 | AG15: 作 付 面 積 | AJ15: 10a当たり収量 | BP15: １５ 労 働 | CE15: 27.10.1
AD16: =データ一覧!$K$240 -> 5580 | AF16: t | AG16: =データ一覧!$K$241 -> 1100 | AI16: ha | AJ16: =データ一覧!K242 -> 506 | AM16: kg | AN16: １０ 工 業 | BB16: =データ一覧!$A$332 -> 2.6.1（令和元年実績）
A17: 総 面 積 | K17: 固 定 資 産 概 要 調 書 に よ る 地 目 別 面 積 | AC17: 総 数 | AG17: うち 田 | AK17: うち 畑 | BW17: 産業別就業者数
C18: =データ一覧!$A$7 -> 3.10.1 | Q18: =データ一覧!$A$9 -> 3.1.1 | Z18: 耕 地 面 積 | AD18: ha | AG18: ha | AK18: ha | AO18: 産業分類 | AW18: 事業所数 | BB18: 従業者数 | BH18: 年間製造品出荷額等 | BQ18: 区 分 | BV18: 総 数 | CA18: 男 | CE18: 女 | CI18: 区 分 | CN18: 総 数 | CS18: 男 | CW18: 女
G19: ㎢ | K19: 総 数 | P19: う ち 田 | U19: う ち 畑 | Z19: =データ一覧!A243 -> 2.7.15 | AC19: =データ一覧!$K$243 -> 1930 | AF19: =データ一覧!$K$244 -> 1780 | AJ19: =データ一覧!$K$245 -> 155 | AZ19: 事業所 | BB19: 人 | BE19: 人 | BG19: 万円 | BN19: 万円 | BV19: 人 | CB19: 人 | CF19: 人 | CN19: 人 | CR19: 人 | CV19: 人
D20: =データ一覧!K7 -> 253.88 | O20: ha | T20: ha | Y20: ha | Z20: 農 業 生 産 物 | AD20: 作 付 面 積 | AG20: 収 穫 量 | AJ20: 10a当たり収量 | AO20: 総数 | AX20: =データ一覧!K332 -> 62 | BB20: =+データ一覧!K357 -> 2218 | BI20: =データ一覧!K382 -> 6034387 | BP20: 総 数 | BV20: =BZ20+CD20 -> 12480 | BZ20: =データ一覧!K507 -> 6673 | CD20: =データ一覧!K532 -> 5807
L21: =データ一覧!K9 -> 20774.5 | Q21: =データ一覧!K10 -> 1918.6 | V21: =データ一覧!K11 -> 149.1 | Z21: =データ一覧!$A$246 -> 2年中 | AD21: ha | AG21: t | AJ21: kg | AN21: 食料品 | AO21: 食料品 | AX21: =データ一覧!K333 -> 4 | BB21: =+データ一覧!K358 -> 104 | BI21: =データ一覧!K383 -> 156015 | CI21: 卸売業,小売業 | CN21: =CR21+CV21 -> 1648 | CR21: =データ一覧!K520 -> 845 | CV21: =データ一覧!K545 -> 803
A22: 町 ･ 丁 ･ 大 字 | K22: う ち 宅 地 | P22: う ち 山 林 | U22: う ち 原 野 | Z22: 水 稲 | AD22: =データ一覧!K246 -> 1100 | AG22: =データ一覧!K247 -> 5580 | AJ22: =データ一覧!K248 -> 506 | AN22: 飲料・飼料 | AO22: 飲料・飼料 | AX22: =データ一覧!K334 -> 1 | BB22: =+データ一覧!K359 -> 29 | BI22: =データ一覧!K384 -> x | BP22: 第１次産業 | BV22: =BZ22+CD22 -> 780 | BZ22: =データ一覧!K508 -> 510 | CD22: =データ一覧!K533 -> 270 | CI22: 金融業,保険業 | CN22: =CR22+CV22 -> 241 | CR22: =データ一覧!K521 -> 99 | CV22: =データ一覧!K546 -> 142
A23: 区 画 数 | H23: =データ一覧!K8 -> 118 | O23: ha | T23: ha | Y23: ha | Z23: 六 条 大 麦 | AD23: =データ一覧!K249 -> 240 | AG23: =データ一覧!K250 -> 468 | AJ23: =データ一覧!K251 -> 195 | AN23: 繊維 | AO23: 繊維 | AX23: =データ一覧!K335 -> 28 | BB23: =+データ一覧!K360 -> 1028 | BI23: =データ一覧!K385 -> 1205687 | BQ23: 農業 | BV23: =BZ23+CD23 -> 714 | BZ23: =データ一覧!K509 -> 448 | CD23: =データ一覧!K534 -> 266 | CI23: 不動産業 | CN23: 71 | CR23: =データ一覧!K522 -> 48 | CV23: =データ一覧!K547 -> 23
A24: =データ一覧!$A$8 -> 2.4.1 | L24: =データ一覧!K12 -> 602.3 | Q24: =データ一覧!K13 -> 9270.4 | V24: =データ一覧!K14 -> 331.1 | Z24: 大 豆 | AD24: =データ一覧!K252 -> 14 | AG24: =データ一覧!K253 -> 11 | AJ24: =データ一覧!K254 -> 82 | AN24: 衣服 | AO24: 木材 | AX24: =データ一覧!K336 -> 1 | BB24: =+データ一覧!K361 -> 7 | BI24: =データ一覧!K386 -> x | BQ24: 林業 | BV24: 63 | BZ24: =データ一覧!K510 -> 59 | CD24: =データ一覧!K535 -> 4 | CI24: 学術研究 | CN24: 182 | CR24: =データ一覧!K523 -> 116 | CV24: =データ一覧!K548 -> 66
A25: ２ 世 帯 数 と 人 口 | AB25: 区 分 | AD25: 乳 用 牛 | AF25: 肉 用 牛 | AH25: 豚 | AJ25: 採卵鶏 | AL25: ブロイラー | AN25: 木材 | AO25: 家具 | AX25: =データ一覧!K337 -> 2 | BB25: =+データ一覧!K362 -> 36 | BI25: =データ一覧!K387 -> x | BQ25: 漁業 | BV25: 3 | BZ25: =データ一覧!K511 -> 3 | CD25: =データ一覧!K536 -> 0 | CI25: 宿泊業,飲食ｻｰﾋﾞｽ | CN25: 548 | CR25: =データ一覧!K524 -> 232 | CV25: =データ一覧!K549 -> 316
Z26: 畜 産 | AB26: 飼養農家 | AD26: =データ一覧!$K$255 -> 3 | AF26: =データ一覧!$K$257 -> 3 | AH26: =データ一覧!$K$259 -> - | AJ26: =データ一覧!$K$261 -> x | AL26: =データ一覧!$K$263 -> 0 | AN26: 家具 | AO26: パルプ・紙 | AX26: =データ一覧!K338 -> 0 | BB26: =+データ一覧!K363 -> 0 | BI26: =データ一覧!K388 -> 0 | BP26: 第２次産業 | BV26: 4424 | BZ26: =データ一覧!K512 -> 2807 | CD26: =データ一覧!K537 -> 1617 | CI26: 生活関連ｻｰﾋﾞｽ業 | CN26: 411 | CR26: =データ一覧!K525 -> 151 | CV26: =データ一覧!K550 -> 260
I27: 人 口 | U27: １世帯当 | W27: 人 口 | Z27: =データ一覧!$A$255 -> 3.3.31 | AB27: （戸） | AN27: パルプ・紙 | AO27: 印刷 | AX27: =データ一覧!K339 -> 3 | BB27: =+データ一覧!K364 -> 34 | BI27: =データ一覧!K389 -> 45832 | BQ27: 鉱業，採石業 | BV27: 10 | BZ27: =データ一覧!K513 -> 6 | CD27: =データ一覧!K538 -> 4 | CI27: 教育,学習支援業 | CN27: 578 | CR27: =データ一覧!K526 -> 229 | CV27: =データ一覧!K551 -> 349
A28: 区 分 | F28: 世帯数 | I28: 総 数 | L28: 男 | O28: 女 | R28: 男／女 | U28: たり人員 | W28: 密 度 | AB28: 頭 羽 | AD28: =データ一覧!$K$256 -> 131 | AF28: =データ一覧!$K$258 -> 8 | AH28: =データ一覧!$K$260 -> 0 | AJ28: =データ一覧!$K$262 -> 139 | AL28: =データ一覧!$K$264 -> 0 | AN28: 出版・印刷 | AO28: 化学 | AX28: =データ一覧!K340 -> 1 | BB28: =+データ一覧!K365 -> 346 | BI28: =データ一覧!K390 -> x | BQ28: 建設業 | BV28: 1181 | BZ28: =データ一覧!K514 -> 1008 | CD28: =データ一覧!K539 -> 173 | CI28: 医療，福祉 | CN28: 1707 | CR28: =データ一覧!K527 -> 330 | CV28: =データ一覧!K552 -> 1377
F29: 世 帯 | I29: 人 | L29: 人 | O29: 人 | S29: ％ | U29: 人 | W29: 人/㎢ | AN29: 化学 | AO29: 石油・石炭 | AX29: =データ一覧!K341 -> 1 | BB29: =+データ一覧!K366 -> 18 | BI29: =データ一覧!K391 -> x | BQ29: 製造業 | BV29: 3233 | BZ29: =データ一覧!K515 -> 1793 | CD29: =データ一覧!K540 -> 1440 | CI29: 複合サービス事業 | CN29: 170 | CR29: =データ一覧!K528 -> 87 | CV29: =データ一覧!K553 -> 83
A30: =データ一覧!$A$22 -> 2.10.1 | F30: =データ一覧!K22 -> 7701 | I30: =+L30+O30 -> 29805 | L30: =データ一覧!K24 -> 14400 | O30: =データ一覧!K25 -> 15405 | S30: =+L30/O30*100 -> 93.47614411 | U30: =データ一覧!K27 -> 3.87 | W30: =データ一覧!K28 -> 117.5 | Z30: ５ 林 業 | AN30: 石油・石炭 | AO30: プラスチック | AX30: =データ一覧!K342 -> 0 | BB30: =+データ一覧!K367 -> 0 | BI30: =データ一覧!K392 -> 0 | BP30: 第３次産業 | BV30: 7199 | BZ30: =データ一覧!K516 -> 3310 | CD30: =データ一覧!K541 -> 3889 | CI30: サービス業 | CN30: 567 | CR30: =データ一覧!K529 -> 362 | CV30: =データ一覧!K554 -> 205
A31: =データ一覧!$A$29 -> 7.10.1 | F31: =データ一覧!K29 -> 7733 | I31: =+L31+O31 -> 29162 | L31: =データ一覧!K31 -> 14033 | O31: =データ一覧!K32 -> 15129 | S31: 92.75563487 | U31: =データ一覧!K34 -> 3.77 | W31: =データ一覧!K35 -> 115 | AN31: プラスチック | AO31: ゴム | AX31: =データ一覧!K343 -> 0 | BB31: =+データ一覧!K368 -> 0 | BI31: =データ一覧!K393 -> 0 | BQ31: 電気･ｶﾞｽ･水道業 | BV31: 58 | BZ31: =データ一覧!K517 -> 47 | CD31: =データ一覧!K542 -> 11 | CI31: 公務 | CN31: 452 | CR31: =データ一覧!K530 -> 319 | CV31: =データ一覧!K555 -> 133
A32: =データ一覧!$A$36 -> 12.10.1 | F32: =データ一覧!K36 -> 7942 | I32: =+L32+O32 -> 28143 | L32: =データ一覧!K38 -> 13391 | O32: =データ一覧!K39 -> 14752 | S32: 90.77413232 | U32: =データ一覧!K41 -> 3.54 | W32: =データ一覧!K42 -> 110.9 | Z32: 森 林 総 面 積 | AH32: =データ一覧!$A$265 -> 3.3.31 | AN32: ゴム | AO32: 皮革 | AX32: =データ一覧!K344 -> 0 | BB32: =+データ一覧!K369 -> 0 | BI32: =データ一覧!K394 -> 0 | BQ32: 情報通信業 | BV32: 140 | BZ32: =データ一覧!K518 -> 97 | CD32: =データ一覧!K543 -> 43 | CH32: 分類不能の産業 | CN32: 77 | CR32: =データ一覧!K531 -> 46 | CV32: =データ一覧!K556 -> 31
A33: =+データ一覧!$A$43 -> 17.10.1 | F33: =データ一覧!K43 -> 7990 | I33: =+L33+O33 -> 26961 | L33: =データ一覧!K45 -> 12777 | O33: =データ一覧!K46 -> 14184 | S33: 90.08037225 | U33: =データ一覧!K48 -> 3.37 | W33: =データ一覧!K49 -> 106.3 | Z33: 森 林 の 構 成 | AN33: 皮革 | AO33: 窯業・土石 | AX33: =データ一覧!K345 -> 3 | BB33: =+データ一覧!K370 -> 31 | BI33: =データ一覧!K395 -> 120339 | BQ33: 運輸業,郵便業 | BV33: =BZ33+CD33 -> 426 | BZ33: =データ一覧!K519 -> 348 | CD33: =データ一覧!K544 -> 78
A34: =+データ一覧!$A$50 -> 22.10.1 | F34: =+データ一覧!K50 -> 7773 | I34: =+L34+O34 -> 25466 | L34: =+データ一覧!K52 -> 12072 | O34: =+データ一覧!K53 -> 13394 | S34: 90.12990891 | U34: =+データ一覧!K55 -> 3.28 | W34: =+データ一覧!K56 -> 100.4 | AE34: ha | AL34: ha | AN34: 窯業・土石 | AO34: 鉄鋼 | AX34: =データ一覧!K346 -> 2 | BB34: =+データ一覧!K371 -> 89 | BI34: =データ一覧!K396 -> x | BP34: １６ 社 会 福 祉 | CF34: =データ一覧!$A$557 -> 3.4.1
A35: =データ一覧!$A$57 -> 27.10.1 | F35: =データ一覧!K57 -> 7703 | I35: =データ一覧!K58 -> 24125 | L35: =データ一覧!K59 -> 11478 | O35: =データ一覧!K60 -> 12647 | S35: 90.75670119 | U35: =データ一覧!K62 -> 3.131896664 | W35: =データ一覧!K63 -> 95 | Z35: 総 数 | AD35: =データ一覧!K265 -> 20180.56 | AG35: 天然林 針葉樹 | AK35: =データ一覧!K268 -> 221.21 | AN35: 鉄鋼 | AO35: 非鉄金属 | AX35: =データ一覧!K347 -> 0 | BB35: =+データ一覧!K372 -> 0 | BI35: =データ一覧!K397 -> 0
A36: 令 2.10.1（国調） | F36: =データ一覧!K64 -> 7524 | I36: =データ一覧!K65 -> 22150 | L36: =データ一覧!K66 -> 10581 | O36: =データ一覧!K67 -> 11569 | S36: =+L36/O36*100 -> 91.45993604 | U36: =データ一覧!K72 -> 2.92 | W36: =データ一覧!K73 -> 85.67039546 | Z36: 人工林 針葉樹 | AD36: =データ一覧!K266 -> 7900.46 | AG36: 天然林 広葉樹 | AK36: =データ一覧!K269 -> 11070.38 | AN36: 非鉄金属 | AO36: 金属 | AX36: =データ一覧!K348 -> 4 | BB36: =+データ一覧!K373 -> 233 | BI36: =データ一覧!K398 -> 815830 | BQ36: 区分 | BX36: 施設数 | CC36: 収容定員 | CI36: 区分 | CP36: 施設数 | CU36: 収容定員
A37: 年 | C37: 区 | E37: 0歳 | H37: 15歳 | K37: 25歳 | N37: 35歳 | Q37: 45歳 | T37: 55歳 | W37: 65歳 | Z37: 人工林 広葉樹 | AD37: =データ一覧!K267 -> 221.39 | AG37: 竹 林 | AK37: =データ一覧!K270 -> 9.4 | AN37: 金属 | AO37: はん用機械 | AX37: =データ一覧!K349 -> 1 | BB37: =+データ一覧!K374 -> 5 | BI37: =データ一覧!K399 -> 0 | BP37: 生活保護施設 | BX37: =データ一覧!K557 -> 0 | CB37: =データ一覧!K570 -> 0 | CF37: 人 | CH37: 指定障害者支援施設 | CP37: =データ一覧!K563 -> 4 | CT37: =データ一覧!K576 -> 215 | CX37: 人
A38: 齢 | B38: 令 | F38: ～ | I38: ～ | L38: ～ | O38: ～ | R38: ～ | U38: ～ | AN38: 一般機械 | AO38: 生産用機械 | AX38: =データ一覧!K350 -> 1 | BB38: =+データ一覧!K375 -> 13 | BI38: =データ一覧!K400 -> x | BP38: 地域福祉施設 | BX38: =データ一覧!K558 -> 0 | CB38: =データ一覧!K571 -> 0 | CH38: 指定相談支援事業所 | CP38: =データ一覧!K564 -> 0 | CT38: =データ一覧!K577 -> 0
A39: 階 | B39: =+LEFT(データ一覧!$A$83,1) -> 3 | C39: 分 | G39: 14歳 | J39: 24歳 | M39: 34歳 | P39: 44歳 | S39: 54歳 | V39: 64歳 | Y39: 以上 | Z39: 林 野 の 構 成 | AG39: 保 有 形 態 別 | AN39: 電気機械 | AO39: 業務用機械 | AX39: =データ一覧!K351 -> 0 | BB39: =+データ一覧!K376 -> 0 | BI39: =データ一覧!K401 -> 0 | BP39: 老人福祉施設 | BX39: =データ一覧!K559 -> 5 | CB39: =データ一覧!K572 -> 76 | CH39: 児童福祉施設 | CP39: =データ一覧!K565 -> 14 | CT39: =データ一覧!K578 -> 844
A40: 級 | B40: ・ | G40: 人 | J40: 人 | L40: 人 | O40: 人 | R40: 人 | U40: 人 | X40: 人 | AF40: ha | AL40: ha | AO40: 電子・デバイス | AX40: =データ一覧!K352 -> 2 | BB40: =+データ一覧!K377 -> 56 | BI40: =データ一覧!K402 -> x | BP40: 介護保険施設 | BX40: =データ一覧!K560 -> 35 | CB40: =データ一覧!K573 -> 789 | CH40: 母子福祉施設 | CP40: =データ一覧!K566 -> 0 | CT40: =データ一覧!K579 -> 0
A41: 別 | B41: =+MID(データ一覧!$A$83,3,2) -> 10 | C41: 総 数 | E41: =+E42+E43 -> 2377 | H41: =+H42+H43 -> 1583 | K41: =+K42+K43 -> 1603 | N41: =+N42+N43 -> 2247 | Q41: =+Q42+Q43 -> 2654 | T41: =+T42+T43 -> 2929 | W41: =+W42+W43 -> 8254 | Z41: 無立木地 伐採跡地 | AD41: =データ一覧!K271 -> 27.17 | AG41: 国 有 | AK41: =データ一覧!K273 -> 2002.41 | AO41: 電気機械 | AX41: =データ一覧!K353 -> 3 | BB41: =+データ一覧!K378 -> 127 | BI41: =データ一覧!K403 -> 92882 | BP41: 障害者自立支援法施行前からの身体障害者福祉施設 | BX41: =データ一覧!K561 -> 0 | CB41: =データ一覧!K574 -> 0 | CH41: 婦人保護施設 | CP41: =データ一覧!K567 -> 0 | CT41: =データ一覧!K580 -> 0
A42: 人 | B42: ・ | C42: 男 | E42: =データ一覧!K83 -> 1226 | H42: =データ一覧!K84 -> 797 | K42: =データ一覧!K85 -> 856 | N42: =データ一覧!K86 -> 1136 | Q42: =データ一覧!K87 -> 1309 | T42: =データ一覧!K88 -> 1422 | W42: =データ一覧!K89 -> 3583 | Z42: 無立木地 未立木地 | AD42: =データ一覧!K272 -> 730.55 | AG42: 公 有 | AK42: =データ一覧!K274 -> 4145.07 | AN42: 輸送機械 | AO42: 情報通信機械 | AX42: =データ一覧!K354 -> 1 | BB42: =+データ一覧!K379 -> 19 | BI42: =データ一覧!K404 -> x | CH42: その他の社会福祉施設 | CP42: =データ一覧!K568+データ一覧!K569 -> 0 | CT42: =データ一覧!K581+データ一覧!K582 -> 0
A43: 口 | B43: =+RIGHT(データ一覧!$A$83,1) -> 1 | C43: 女 | E43: =データ一覧!K91 -> 1151 | H43: =データ一覧!K92 -> 786 | K43: =データ一覧!K93 -> 747 | N43: =データ一覧!K94 -> 1111 | Q43: =データ一覧!K95 -> 1345 | T43: =データ一覧!K96 -> 1507 | W43: =データ一覧!K97 -> 4671 | AG43: 私 有 | AK43: =データ一覧!K275 -> 14033.08 | AN43: 精密機械 | AO43: 輸送機械 | AX43: =データ一覧!K355 -> 3 | BB43: =+データ一覧!K380 -> 34 | BI43: =データ一覧!K405 -> 8521 | BP43: 障害福祉サービス事業所 | BX43: =データ一覧!K562 -> 19 | CB43: =データ一覧!K575 -> 233
Z44: 林 産 物 生 産 量 | AJ44: =データ一覧!$A$276 -> 2年中 | AN44: その他 | AO44: その他 | AX44: =データ一覧!K356 -> 1 | BB44: =+データ一覧!K381 -> 9 | BI44: =データ一覧!K406 -> x | BP44: １７ 教 育 | CF44: =データ一覧!$A$583 -> 3.5.1
A45: 人口動態 | H45: 自 然 動 態 | N45: 社 会 動 態 | T45: =データ一覧!$A78 -> 2.1.1～3.12.31 | Z45: 生椎茸 | AD45: =データ一覧!K276 -> - | AF45: ㎏ | AG45: 乾椎茸 | AK45: =データ一覧!K277 -> - | AM45: ㎏
C46: 区 分 | H46: 出 生 | K46: 死 亡 | N46: 転 入 | Q46: 転 出 | T46: 婚 姻 | W46: 離 婚 | Z46: えのきだけ | AD46: =データ一覧!K279 -> - | AF46: ㎏ | AG46: なめこ | AK46: =データ一覧!K278 -> - | AM46: ㎏ | AO46: 工 業 用 水 量 | AU46: （従業者30人以上の事業所） | BF46: =データ一覧!K407 -> 6690 | BK46: ㎥／日 | BZ46: 学校数（校） | CG46: 教員数（人） | CO46: 学生・生徒・児童数（人）
A47: =LEFT(データ一覧!$A74,6) -> 2.10.1 | H47: 人 | K47: 人 | N47: 人 | Q47: 人 | U47: 件 | X47: 件 | Z47: ひらたけ | AD47: =+データ一覧!K280 -> - | AF47: ㎏ | AG47: まいたけ | AK47: =+データ一覧!K281 -> - | AM47: ㎏ | BR47: 区分 | BZ47: 本 校 | CC47: 分 校 | CF47: 本 務 | CJ47: 兼 務 | CN47: 総 数 | CR47: 男 | CV47: 女
A48: ～ | C48: 実 数 | H48: =データ一覧!K74 -> 56 | K48: =データ一覧!K75 -> 177 | N48: =データ一覧!K76 -> 176 | Q48: =データ一覧!K77 -> 297 | T48: =データ一覧!K78 -> 64 | W48: =データ一覧!K79 -> 21 | AN48: １１ 上 ・ 下 水 道 | BQ48: 小学校 | BZ48: =データ一覧!K584 -> 10 | CC48: =データ一覧!K585 -> 0 | CF48: =データ一覧!K586 -> 112 | CJ48: =データ一覧!K587 -> 19 | CN48: =データ一覧!K588 -> 1036 | CR48: =データ一覧!K589 -> 531 | CV48: =データ一覧!K590 -> 505
A49: =RIGHT(データ一覧!$A76,6) -> 3.9.30 | C49: 比率(対1,000人) | H49: =+H48/I35*1000 -> 2.321243523 | K49: =+K48/I35*1000 -> 7.336787565 | N49: - | Q49: - | T49: =+T48/I35*1000 -> 2.652849741 | W49: =+W48/I35*1000 -> 0.8704663212 | Z49: ６ 漁 業 | BQ49: 中学校 | BZ49: =データ一覧!K592 -> 4 | CC49: =データ一覧!K593 -> 0 | CF49: =データ一覧!K594 -> 63 | CJ49: =データ一覧!K595 -> 13 | CN49: =データ一覧!K596 -> 566 | CR49: =データ一覧!K597 -> 302 | CV49: =データ一覧!K598 -> 264
AN50: 水 道 供 給 人 口 | AU50: 上 水 道 | AY50: 簡易水道 | BC50: 専用水道 | BG50: 飲料水供給施設 | BK50: 下水道処理人口 | BQ50: 高等学校 | BZ50: =データ一覧!K600 -> 1 | CC50: =データ一覧!K601 -> 0 | CF50: =データ一覧!K602 -> 35 | CJ50: =データ一覧!K603 -> 9 | CN50: =データ一覧!K604 -> 310 | CR50: =データ一覧!K605 -> 141 | CV50: =データ一覧!K606 -> 169
A51: ３ 事 業 所（民 営） （平 28.6.1） | Z51: 漁船隻数・トン数 | AD51: =データ一覧!$A$282 -> 2.12.31 | AH51: 動 力 船 | AN51: =データ一覧!$A$408 -> 3.3.31 | AT51: 人 | AV51: =データ一覧!K408 -> 21418 | AY51: =データ一覧!K409 -> 0 | BD51: =データ一覧!K410 -> 135 | BH51: =データ一覧!K411 -> 0 | BL51: =データ一覧!K412 -> 19254 | BQ51: 大学・短期大学 | BZ51: =データ一覧!K607 -> 0 | CC51: =データ一覧!K608 -> 0 | CF51: =データ一覧!K609 -> 0 | CJ51: =データ一覧!K610 -> 0 | CN51: =データ一覧!K611 -> 0 | CR51: =データ一覧!K612 -> 0 | CV51: =データ一覧!K613 -> 0
Z52: 無動力船隻数 | AD52: 船外機付漁船隻数 | AH52: 隻 数 | AK52: 総 ト ン 数 | BQ52: 高等専門学校 | BZ52: =データ一覧!K614 -> 0 | CC52: =データ一覧!K615 -> 0 | CF52: =データ一覧!K616 -> 0 | CJ52: =データ一覧!K617 -> 0 | CN52: =データ一覧!K618 -> 0 | CR52: =データ一覧!K619 -> 0 | CV52: =データ一覧!K620 -> 0
H53: 総 数 | N53: 民 営 | T53: 国 ･ 地方公共団体 | AC53: 隻 | AG53: 隻 | AJ53: 隻 | AM53: t | AN53: １２ 交 通 ・ 通 信 | BQ53: 特別支援学校 | BZ53: =データ一覧!K622 -> 1 | CC53: =データ一覧!K623 -> 0 | CF53: =+データ一覧!K624 -> 57 | CJ53: =+データ一覧!K625 -> 4 | CN53: =+データ一覧!K626 -> 52 | CR53: =+データ一覧!K627 -> 30 | CV53: =+データ一覧!K628 -> 22
A54: 区 分 | H54: 事業所数 | K54: 従業者数 | N54: 事業所数 | Q54: 従業者数 | T54: 事業所数 | W54: 従業者数 | Z54: =データ一覧!$K$282 -> 0 | AD54: =データ一覧!$K$283 -> 0 | AH54: =データ一覧!K284 -> 0 | AK54: =データ一覧!K285 -> 0 | BQ54: 幼稚園 | BZ54: =データ一覧!K630 -> 1 | CC54: =データ一覧!K631 -> 0 | CF54: =データ一覧!K632 -> 4 | CJ54: =データ一覧!K633 -> 0 | CN54: =データ一覧!K634 -> 16 | CR54: =データ一覧!K635 -> 5 | CV54: =データ一覧!K636 -> 11
K55: 人 | Q55: 人 | W55: 人 | Z55: 男女別就業者数 | AH55: =データ一覧!$A$286 -> 30.11.1 | AN55: 道 路 | AR55: 実 延 長 | AV55: 国 道 | AZ55: 県 道 | BD55: 市町道 | BH55: 鉄 道 営 業 キ ロ 数 | BQ55: 幼保連携認定こども園 | BZ55: =データ一覧!K638 -> 7 | CC55: =データ一覧!K639 -> 0 | CF55: =データ一覧!K640 -> 117 | CJ55: =データ一覧!K641 -> 9 | CN55: =データ一覧!K642 -> 526 | CR55: =データ一覧!K643 -> 267 | CV55: =データ一覧!K644 -> 259
A56: 総数 | H56: =データ一覧!K99 -> … | K56: =データ一覧!K156 -> … | N56: =データ一覧!K100 -> 1212 | Q56: =データ一覧!K157 -> 9260 | T56: =データ一覧!K101 -> … | W56: =データ一覧!K158 -> … | Z56: 総 数 | AF56: 男 | AJ56: 女 | AN56: =データ一覧!$A$413 -> 2.4.1 | AR56: =データ一覧!K413 -> 568.42 | AU56: ㎞ | AV56: =データ一覧!K414 -> 39.7 | AY56: ㎞ | AZ56: =データ一覧!K415 -> 82.7 | BC56: ㎞ | BD56: =データ一覧!K416 -> 446.02 | BG56: km | BH56: =データ一覧!$A$417 -> 3.4.1 | BL56: =データ一覧!K417 -> 6.6 | BO56: ㎞ | BQ56: 各種学校 | BZ56: =データ一覧!K646 -> 1 | CC56: =データ一覧!K647 -> 0 | CF56: =データ一覧!K648 -> 21 | CJ56: =データ一覧!K649 -> 0 | CN56: =データ一覧!K650 -> 54 | CR56: =データ一覧!K651 -> 29 | CV56: =データ一覧!K652 -> 25
A57: 農林漁業 | H57: =データ一覧!K102 -> … | K57: =データ一覧!K159 -> … | N57: =データ一覧!K103 -> 18 | Q57: =データ一覧!K160 -> 323 | T57: =データ一覧!K104 -> … | W57: =データ一覧!K161 -> … | AE57: 人 | AH57: 人 | AM57: 人 | AN57: 自動車 | AW57: 乗用車 | BQ57: 専修学校 | BZ57: =データ一覧!K654 -> 0 | CC57: =データ一覧!K655 -> 0 | CF57: =データ一覧!K656 -> 0 | CJ57: =データ一覧!K657 -> 0 | CN57: =データ一覧!K658 -> 0 | CR57: =データ一覧!K659 -> 0 | CV57: =データ一覧!K660 -> 0
A58: 鉱業 | H58: =データ一覧!K105 -> … | K58: =データ一覧!K162 -> … | N58: =データ一覧!K106 -> 0 | Q58: =データ一覧!K163 -> 0 | T58: =データ一覧!K107 -> … | W58: =データ一覧!K164 -> … | Z58: =SUM(AF58,AJ58) -> 0 | AF58: =データ一覧!$K$287 -> 0 | AJ58: =データ一覧!K288 -> 0 | AN58: 台 数 | AR58: 貨 物 | AV58: 普 通 | AZ58: 小 型 | BD58: 乗 合 | BG58: 特 種 | BJ58: 小型二輪 | BM58: 軽自動車 | BP58: １８ 衛 生
A59: 建設業 | H59: =データ一覧!K108 -> … | K59: =データ一覧!K165 -> … | N59: =データ一覧!K109 -> 167 | Q59: =データ一覧!K166 -> 814 | T59: =データ一覧!K110 -> … | W59: =データ一覧!K167 -> … | Z59: 海 面 漁 業 漁 獲 量 （属人） | AH59: =データ一覧!$A$289 -> 30年中 | AN59: =データ一覧!$A$418 -> 3.3.31 | AS59: =データ一覧!K418 -> 1755 | AW59: =データ一覧!K420 -> 6041 | BA59: =データ一覧!K421 -> 6536 | BD59: =データ一覧!K419 -> 92 | BG59: =データ一覧!K422 -> 1070 | BJ59: =データ一覧!K423 -> 312 | BM59: =データ一覧!K424 -> 14160
A60: 製造業 | H60: =データ一覧!K111 -> … | K60: =データ一覧!K168 -> … | N60: =データ一覧!K112 -> 172 | Q60: =データ一覧!K169 -> 2909 | T60: =データ一覧!K113 -> … | W60: =データ一覧!K170 -> … | AF60: ｔ | AM60: t | AR60: 郵 便 局 数 | BF60: =+MID(データ一覧!$A$428,3,2) -> 12 | BG60: 令 | BH60: 一般加入 | BL60: ＩＮＳネット | BT60: 医療関係施設 | BZ60: =データ一覧!$A$661 -> 元.10.1 | CG60: および医療関係者数 | CO60: =データ一覧!$A$666 -> 30.12.31
A61: 電気・ｶﾞ ｽ・熱供給・水道業 | H61: =データ一覧!K114 -> … | K61: =データ一覧!K171 -> … | N61: =データ一覧!K115 -> 2 | Q61: =データ一覧!K172 -> 15 | T61: =データ一覧!K116 -> … | W61: =データ一覧!K173 -> … | Z61: 総 数 | AD61: =データ一覧!K289 -> 0 | AG61: 藻 類 | AK61: =データ一覧!K292 -> 0 | AN61: 通 信 | AR61: 総 数 | AW61: 郵 便 局 | BB61: 簡 易 局 | BF61: ・ | BG61: =+LEFT(データ一覧!$A$428,1) -> 2 | BH61: 電話数 | BL61: 加入数 | BW61: 病 | BZ61: 院 | CH61: 一般診療所 | CT61: 歯科診療所
A62: 情報通信業 | H62: =データ一覧!K117 -> … | K62: =データ一覧!K174 -> … | N62: =データ一覧!K118 -> 6 | Q62: =データ一覧!K175 -> 43 | T62: =データ一覧!K119 -> … | W62: =データ一覧!K176 -> … | Z62: 魚 類 | AD62: =データ一覧!K290 -> 0 | AG62: そ の 他 | AK62: =データ一覧!K293 -> 0 | AN62: =データ一覧!$A$428 -> 2.12.31 | AR62: =データ一覧!K425 -> 10 | AW62: =データ一覧!K426 -> 9 | BB62: =データ一覧!K427 -> 1 | BF62: =+RIGHT(データ一覧!$A$428,2) -> 31 | BG62: ・ | BH62: =データ一覧!K428 -> 2706 | BL62: =データ一覧!K429 -> 245 | BQ62: 医療関係 | CC62: 一般病院 | CO62: 有 | CR62: 床
A63: 運輸業、郵便業 | H63: =データ一覧!K120 -> … | K63: =データ一覧!K177 -> … | N63: =データ一覧!K121 -> 16 | Q63: =データ一覧!K178 -> 345 | T63: =データ一覧!K122 -> … | W63: =データ一覧!K179 -> … | Z63: 貝 類 | AD63: =データ一覧!K291 -> 0 | BQ63: 施設数 | BX63: =データ一覧!K661 -> 2 | CD63: =データ一覧!K662 -> 1 | CJ63: =データ一覧!K663 -> 13 | CP63: =データ一覧!K664 -> 3 | CV63: =データ一覧!K665 -> 8
A64: 卸売業、小売業 | H64: =データ一覧!K123 -> … | K64: =データ一覧!K180 -> … | N64: =データ一覧!K124 -> 285 | Q64: =データ一覧!K181 -> 1379 | T64: =データ一覧!K125 -> … | W64: =データ一覧!K182 -> … | AN64: １３ 税 ・ 財 政 | BW64: 医師 | CB64: 歯科医師 | CG64: 薬剤師 | CL64: 保健師 | CQ64: 助産師 | CV64: 看護師
A65: 金融業、保険業 | H65: =データ一覧!K126 -> … | K65: =データ一覧!K183 -> … | N65: =データ一覧!K127 -> 17 | Q65: =データ一覧!K184 -> 118 | T65: =データ一覧!K128 -> … | W65: =データ一覧!K185 -> … | Z65: ７ 商 業 | AG65: =データ一覧!$A$294 -> 28.6.1(平成27年実績） | BQ65: 医療 | BZ65: 人 | CE65: 人 | CJ65: 人 | CO65: 人 | CT65: 人 | CY65: 人
A66: 不動産業、物品賃貸業 | H66: =データ一覧!K129 -> … | K66: =データ一覧!K186 -> … | N66: =データ一覧!K130 -> 14 | Q66: =データ一覧!K187 -> 31 | T66: =データ一覧!K131 -> … | W66: =データ一覧!K188 -> … | AR66: 歳入 | BA66: (千円） | BF66: 歳出 | BO66: (千円） | BQ66: 関係者 | BV66: =データ一覧!K666 -> 43 | CA66: =データ一覧!K667 -> 13 | CF66: =データ一覧!K668 -> 44 | CK66: =データ一覧!K669 -> 20 | CP66: =データ一覧!K670 -> 1 | CU66: =データ一覧!K671 -> 357
A67: 学術研究、専門・技術ｻｰﾋﾞｽ業 | H67: =データ一覧!K132 -> … | K67: =データ一覧!K189 -> … | N67: =データ一覧!K133 -> 32 | Q67: =データ一覧!K190 -> 97 | T67: =データ一覧!K134 -> … | W67: =データ一覧!K191 -> … | Z67: 産 業 分 類 | AD67: 商 店 数 | AG67: 従 業 者 数 | AJ67: 年 間 販 売 額 | AN67: 一人当たり歳入歳出予算決算額 | BY67: 死因別死亡数 | CO67: =データ一覧!$A$672 -> 2年中 | CX67: 単 位：人
A68: 宿泊業、飲食サービス業 | H68: =データ一覧!K135 -> … | K68: =データ一覧!K192 -> … | N68: =データ一覧!K136 -> 151 | Q68: =データ一覧!K193 -> 645 | T68: =データ一覧!K137 -> … | W68: =データ一覧!K194 -> … | AE68: 店 | AI68: 人 | AK68: 百万円 | AN68: 区分 | AR68: =データ一覧!$A$438 -> 3年度 | AW68: =データ一覧!$A$452 -> 2年度 | BB68: 区分 | BF68: =+AR68 -> 3年度 | BK68: =データ一覧!$A$452 -> 2年度 | BP68: 死 因 | CB68: 悪 性 | CE68: 高血圧 | CK68: 脳血管 | CT68: 不慮の事故
A69: 生活関連サービス業、娯楽業 | H69: =データ一覧!K138 -> … | K69: =データ一覧!K195 -> … | N69: =データ一覧!K139 -> 128 | Q69: =データ一覧!K196 -> 317 | T69: =データ一覧!K140 -> … | W69: =データ一覧!K197 -> … | Z69: 総 計 | AD69: =データ一覧!K294 -> 240 | AG69: =データ一覧!K303 -> 1163 | AJ69: =データ一覧!K312 -> 22697 | AR69: =データ一覧!K434 -> 528071.3103 | AW69: =データ一覧!K435 -> 734301.1136 | BF69: =データ一覧!K436 -> 528071.3103 | BK69: =データ一覧!K437 -> 712117.8035 | BU69: 全 死 因 | BY69: 結 核 | CB69: 新生物 | CE69: 性疾患 | CH69: 心疾患 | CK69: 疾 患 | CN69: 肺 炎 | CQ69: 老 衰 | CW69: 交通事故
A70: 教育、学習支援業 | H70: =データ一覧!K141 -> … | K70: =データ一覧!K198 -> … | N70: =データ一覧!K142 -> 30 | Q70: =データ一覧!K199 -> 149 | T70: =データ一覧!K143 -> … | W70: =データ一覧!K200 -> … | Z70: 卸売業 | AD70: =データ一覧!K295 -> 28 | AG70: =データ一覧!K304 -> 99 | AJ70: =データ一覧!K313 -> 6386 | AN70: 項目別歳入歳出予算決算額
A71: 医療、福祉 | H71: =データ一覧!K144 -> … | K71: =データ一覧!K201 -> … | N71: =データ一覧!K145 -> 75 | Q71: =データ一覧!K202 -> 1671 | T71: =データ一覧!K146 -> … | W71: =データ一覧!K203 -> … | Z71: 小売業 | AD71: =データ一覧!K296 -> 212 | AG71: =データ一覧!K305 -> 1064 | AJ71: =データ一覧!K314 -> 16311 | AN71: 区分 | AR71: =データ一覧!$A$438 -> 3年度 | AW71: =データ一覧!$A$452 -> 2年度 | BB71: 区分 | BF71: =+AR71 -> 3年度 | BK71: =データ一覧!$A$452 -> 2年度 | BU71: =データ一覧!K672 -> 341 | BY71: － | BZ71: =データ一覧!K673 -> 2 | CB71: =データ一覧!K674 -> 18 | CF71: =データ一覧!K675 -> 7 | CH71: =データ一覧!K676 -> 1 | CK71: =データ一覧!K677 -> 0 | CN71: =データ一覧!K678 -> 21 | CQ71: =データ一覧!K679 -> 32 | CT71: =データ一覧!K680 -> 7 | CX71: =データ一覧!K681 -> 2
A72: 複合サービス事業 | H72: =データ一覧!K147 -> … | K72: =データ一覧!K204 -> … | N72: =データ一覧!K148 -> 13 | Q72: =データ一覧!K205 -> 133 | T72: =データ一覧!K149 -> … | W72: =データ一覧!K206 -> … | Z72: 各種商品 | AD72: =データ一覧!K297 -> 0 | AG72: =データ一覧!K306 -> 0 | AJ72: =データ一覧!K315 -> 0 | AN72: 総額 | AR72: =SUM(AR73:AV85) -> 11485551 | AW72: =SUM(AW73:BA85) -> 16249551 | BB72: 総額 | BF72: =SUM(BF73:BJ85) -> 11485551 | BK72: =SUM(BK73:BO85) -> 15795485 | BP72: １９ 警 察 ・ 消 防 | CF72: =+データ一覧!$A682 -> 3.4.1
A73: サービス業 | H73: =データ一覧!K150 -> … | K73: =データ一覧!K207 -> … | N73: =データ一覧!K151 -> 86 | Q73: =データ一覧!K208 -> 271 | T73: =データ一覧!K152 -> … | W73: =データ一覧!K209 -> … | Z73: 織物・衣服・身の回り品 | AD73: =データ一覧!K298 -> 26 | AG73: =データ一覧!K307 -> 69 | AJ73: =データ一覧!K316 -> 743 | AN73: 地方税 | AR73: =データ一覧!K439 -> 2593513 | AW73: =データ一覧!K453 -> 2729877 | BB73: 議会費 | BF73: =データ一覧!K467 -> 161500 | BK73: =データ一覧!K481 -> 155633
A74: 公務 | H74: =データ一覧!K153 -> … | K74: =データ一覧!K210 -> … | N74: =データ一覧!K154 -> … | Q74: =データ一覧!K211 -> … | T74: =データ一覧!K155 -> … | W74: =データ一覧!K212 -> … | Z74: 飲食料品 | AD74: =データ一覧!K299 -> 63 | AG74: =データ一覧!K308 -> 373 | AJ74: =データ一覧!K317 -> 6094 | AN74: 地方譲与税 | AR74: =データ一覧!K440 -> 160019 | AW74: =データ一覧!K454 -> 163650 | BB74: 総務費 | BF74: =データ一覧!K468 -> 1414135 | BK74: =データ一覧!K482 -> 4164233 | BZ74: 交番・駐在所 | CI74: 刑法犯認知件数 | CR74: 交通人身事故発生件数
A75: ４ 農 業 | Z75: 機械器具 | AD75: =データ一覧!K300 -> 40 | AG75: =データ一覧!K309 -> 164 | AJ75: =データ一覧!K318 -> 2691 | AN75: 各種交付金 | AR75: =データ一覧!K441 -> 526416 | AW75: =データ一覧!K455 -> 525481 | BB75: 民生費 | BF75: =データ一覧!K469 -> 3562731 | BK75: =データ一覧!K483 -> 3921558 | BQ75: 警察署数 | BZ75: 検問所数 | CJ75: =データ一覧!$A$684 -> 2年中 | CS75: =データ一覧!$A$684 -> 2年中
Z76: その他 | AD76: =データ一覧!K301 -> 76 | AG76: =データ一覧!K310 -> 402 | AJ76: =データ一覧!K319 -> 6072 | AN76: 地方特例交付金 | AR76: =データ一覧!K442 -> 101659 | AW76: =データ一覧!K456 -> 18808 | BB76: 衛生費 | BF76: =データ一覧!K470 -> 834622 | BK76: =データ一覧!K484 -> 771580 | CN76: 件 | CW76: 件
C77: 農業経営体数 | J77: 農産物販売額規模別経営体数 | R77: 経営耕地面積規模別経営体数 | Z77: 無店舗 | AD77: =データ一覧!K302 -> 7 | AG77: =データ一覧!K311 -> 56 | AJ77: =データ一覧!K320 -> 711 | AN77: 地方交付税 | AR77: =データ一覧!K443 -> 3800000 | AW77: =データ一覧!K457 -> 4391197 | BB77: 労働費 | BF77: =データ一覧!K471 -> 114219 | BK77: =データ一覧!K485 -> 114459 | BR77: =データ一覧!K682 -> 1 | CA77: =データ一覧!K683 -> 5 | CJ77: =データ一覧!K684 -> 56 | CS77: =データ一覧!K685 -> 16
A78: 農 | C78: 区 分 | G78: 経営体数 （経営体） | J78: 区 分 | O78: 経営体数 （経営体） | R78: 区 分 | W78: 経営体数 （経営体） | AN78: 分担金および負担金 | AR78: =データ一覧!K444 -> 17410 | AW78: =データ一覧!K458 -> 87240 | BB78: 農林水産業費 | BF78: =データ一覧!K472 -> 684882 | BK78: =データ一覧!K486 -> 784440 | BP78: 火災発生件数 | BZ78: 林野焼損 | CE78: 損 害 | CJ78: 消 防 自 | CN78: その他の
A79: 業 | B79: 令 | Z79: ８ 住 宅 | AN79: 使用料および手数料 | AR79: =データ一覧!K445 -> 130656 | AW79: =データ一覧!K459 -> 106956 | BB79: 商工費 | BF79: =データ一覧!K473 -> 916872 | BK79: =データ一覧!K487 -> 996268 | BP79: =+データ一覧!$A$686 -> 2年中 | BU79: 焼損棟数 | BZ79: 面 積 | CE79: 見 積 額 | CJ79: 動 車 数 | CN79: ﾎﾟﾝﾌﾟ数 | CR79: 消防吏員 | CV79: 消防団員
A80: 経 | B80: =+LEFT(データ一覧!$A$213) -> 2 | C80: 計 | G80: =データ一覧!K213 -> 580 | J80: 総 数 | O80: =データ一覧!K217 -> 580 | R80: 総 数 | W80: =データ一覧!K233 -> 1416 | AN80: 国庫支出金 | AR80: =データ一覧!K446 -> 1335251 | AW80: =データ一覧!K460 -> 4730159 | BB80: 土木費 | BF80: =データ一覧!K474 -> 972933 | BK80: =データ一覧!K488 -> 1660163 | BP80: 件 | BV80: 棟 | CC80: ａ | CG80: 千円 | CT80: 人 | CX80: 人
A81: 営 | B81: ・ | C81: 個人経営体 | G81: =データ一覧!K214 -> 554 | J81: 販 売 な し | O81: =データ一覧!K218 -> 68 | R81: 0.5 ha 未満 | W81: =データ一覧!K234 -> 40 | Z81: =+データ一覧!$A$321 -> 令和元年 | AE81: =データ一覧!$A$324 -> 2年 | AF81: 中の増減 | AJ81: =+データ一覧!$A$324 -> 2年 | AN81: 県支出金 | AR81: =データ一覧!K447 -> 1138675 | AW81: =データ一覧!K461 -> 1171782 | BB81: 消防費 | BF81: =データ一覧!K475 -> 341077 | BK81: =データ一覧!K489 -> 544794 | BQ81: =データ一覧!K686 -> 9 | BV81: =データ一覧!K687 -> 8 | CA81: =データ一覧!K688 -> 0 | CE81: =データ一覧!K689 -> 19395 | CK81: =データ一覧!K690 -> 7 | CO81: =データ一覧!K691 -> 37 | CS81: =データ一覧!K692 -> 38 | CW81: =データ一覧!K693 -> 292
A82: 体 | B82: =+LEFT(データ一覧!$A$213,1) -> 2 | C82: 団体経営体 | G82: =データ一覧!K215 -> 26 | J82: 50万円未満 | O82: =データ一覧!K219 -> 225 | R82: 0.5 ha ～ 1.0 ha | W82: =データ一覧!K235 -> 150 | AD82: 建設した住宅 | AG82: 消失した住宅 | AN82: 財産収入 | AR82: =データ一覧!K448 -> 21007 | AW82: =データ一覧!K462 -> 37892 | BB82: 教育費 | BF82: =データ一覧!K476 -> 1230817 | BK82: =データ一覧!K490 -> 1553095 | BP82: ２０ そ の 他
A83: 数 | B83: ・ | D83: 法人経営 | G83: =データ一覧!K216 -> 18 | J83: 50～300万円 | O83: =データ一覧!K220 -> 219 | R83: 1.0 ha ～ 2.0 ha | W83: =データ一覧!K236 -> 225 | AN83: 繰入金 | AR83: =データ一覧!K449 -> 85395 | AW83: =データ一覧!K463 -> 408881 | BB83: 災害復旧費 | BF83: =データ一覧!K477 -> 0 | BK83: =データ一覧!K491 -> 5389
A84: （ | B84: =+RIGHT(データ一覧!$A$213) -> 1 | J84: 300～500万円 | O84: =データ一覧!K221 -> 18 | R84: 2.0 ha ～ 3.0 ha | W84: =データ一覧!K237 -> 84 | AA84: =データ一覧!K321 -> 8370 | AC84: 戸 | AD84: =データ一覧!K322 -> 53 | AF84: 戸 | AG84: =データ一覧!K323 -> 95 | AI84: 戸 | AK84: =データ一覧!K324 -> 8328 | AM84: 戸 | AN84: 地方債 | AR84: =データ一覧!K450 -> 950900 | AW84: =データ一覧!K464 -> 1169505 | BB84: 公債費 | BF84: =データ一覧!K478 -> 1243663 | BK84: =データ一覧!K492 -> 1123873 | BU84: 越前大仏、勝山温泉センター｢水芭蕉｣、平泉寺白山神社、弁天桜、県立恐竜博物館、
A85: 総 | J85: 500～1,000万円 | O85: =データ一覧!K222 -> 18 | R85: 3.0 ha ～ 5.0 ha | W85: =データ一覧!K238 -> 53 | AN85: その他 | AR85: =データ一覧!K451 -> 624650 | AW85: =データ一覧!K465 -> 708123 | BB85: その他 | BF85: =データ一覧!K479 -> 8100 | BK85: =データ一覧!K493 -> 0 | BP85: 名所・旧跡 | BU85: 道の駅 恐竜渓谷かつやま、東山いこいの森、勝山城博物館、弁ヶ滝、岩屋観音、
A86: 数 | J86: 1,000万円以上 | O86: =データ一覧!K223 -> 32 | R86: 5.0 ha以上 | W86: =データ一覧!K239 -> 863 | BP86: 文化財等 | BU86: スキージャム勝山、はたや記念館 ゆめおーれ勝山、加越国境と取立山「水芭蕉群生地」、
A87: ） | C87: 15歳以上の常雇い数 | J87: 農業に60日以上従事した世帯員、役員・構成員 （経営主を含む）の平均年齢 | Z87: ９ 議 員 ・ 職 員 | AN87: １４ 文 化 | AX87: ( | AY87: =データ一覧!$A$500 -> 3.3.31 | BC87: ただし図書館・公民館・児童館 | BK87: =データ一覧!$A$494 -> 3.4.1 | BU87: 史跡白山平泉寺旧境内、旧木下家住宅、藩校｢旧成器堂講堂」外３棟、
A88: と | BD88: 宗教法人数 | BK88: =データ一覧!$A$502 -> 2.12.31 | BO88: ） | BU88: えちぜん鉄道勝山駅本屋・ホーム待合所、白山平泉寺歴史探遊館まほろば
A89: 就 | J89: 農業に60日以上従事 | R89: 農業に150日以上従事 | Z89: 市 町 村 議 会 | AC89: 有権者数 | AE89: =データ一覧!$A$328 -> 3.9.1 | AG89: 市 町 村 議 会 | AJ89: 職 員 数 | AS89: 図書館 | AY89: 公 民 館 | BJ89: 社会教育学級講座 | BP89: 特産物 | BU89: 繊維製品、勝ち山おろしそば、勝ち山ボッカケ、勝ち山おやき、勝山水菜、鯖の熟れ鮨し、若猪野メロン、のむきのエゴマ、西ヶ原にんにく、九頭竜勝山あゆ
A90: 業 | C90: 区 分 | G90: 人 | J90: 区 分 | O90: 人 | R90: 区 分 | W90: 人 | Z90: 議 員 定 数 | AC90: 男 | AE90: 女 | AG90: 選 挙 投 票 率 | AJ90: 総 数 | AL90: 一般行政職 | AN90: 公 共 | AR90: 館 数 | AU90: 図書数 | AX90: 本 館 | BA90: 分 館 | BD90: 公 園 | BG90: 児童館 | BJ90: 学級講座数 | BM90: 受講者数
A91: 状 | C91: 総数 | G91: =データ一覧!K230 -> 15 | J91: 総数 | O91: =データ一覧!K224 -> 69.3 | R91: 総数 | W91: =データ一覧!K227 -> 69.9 | AB91: 人 | AD91: 人 | AF91: 人 | AI91: ％ | AK91: 人 | AM91: 人 | AN91: 施 設 数 | AS91: =データ一覧!K494 -> 1 | AU91: =データ一覧!K495 -> 147364 | AY91: =データ一覧!K496 -> 9 | BA91: =データ一覧!K497 -> 0 | BD91: =データ一覧!K498 -> 33 | BG91: =データ一覧!K499 -> 1 | BJ91: =データ一覧!K500 -> 98 | BM91: =データ一覧!K501 -> 2659 | BP91: 年中行事 | BU91: 勝山年の市、勝山左義長まつり、弁天桜まつり、
A92: 況 | C92: 男 | G92: =データ一覧!K231 -> 7 | J92: 男 | O92: =データ一覧!K225 -> 68.3 | R92: 男 | W92: =データ一覧!K228 -> 69.4 | AA92: =データ一覧!K325 -> 16 | AC92: =データ一覧!K328 -> 9126 | AE92: =データ一覧!K329 -> 10043 | AG92: =データ一覧!K327 -> 63.7 | AJ92: =データ一覧!K330 -> 255 | AL92: =データ一覧!K331 -> 152 | AN92: 宗 教 | AR92: 仏教系 | AU92: ｷﾘｽﾄ教系 | AX92: 神道諸派 | BA92: 公会堂・市民会館 | BG92: テレビ | BJ92: 衛星放送契約数 | BU92: 顕如講、神明神社祭礼、走りやんこ、勝山恐竜クロカンマラソン
C93: 女 | G93: =データ一覧!K232 -> 8 | J93: 女 | O93: =データ一覧!K226 -> 71.8 | R93: 女 | W93: =データ一覧!K229 -> 71.2 | AG93: =データ一覧!K326 -> 元.8.4 | AN93: 法 人 数 | AR93: =データ一覧!K502 -> 46 | AU93: =データ一覧!K503 -> 2 | AX93: =データ一覧!K504 -> 83 | BA93: =データ一覧!K505 -> 2 | BG93: 等 | BJ93: =データ一覧!K506 -> 5061

Sheet 鯖江市
A1: =+データ一覧!L2 -> 0
A2: =+データ一覧!L5 -> 0 | AN2: 0
AN3: 0
AB4: 【市章とそのいわれ】 サの図案化にて飛鳥の上昇を形象し、 | AN4: 【位置および地勢】鯖江市は福井県のほぼ中央、福井平野の南に位置し、 | BS4: 所在地 | CA4: 〒916-8666
AB5: 市将来の向上発展を意味づけたもの。 | AO5: 北は福井市、南は越前市に接している。東西約19.2㎞南北約 8.3㎞に | CA5: 鯖江市西山町１３番１号
A6: =+データ一覧!L3 -> さばえし | AB6: 0 | AO6: わたる地域のうち、その多くが平坦地であり、東部及び南西の一部が山地と
A7: =データ一覧!L6 -> 鯖江市 | AB7: 0 | AO7: なっている。市の中央を低い丘陵が南北に細長く延び、これに沿って市街地が | BS7: 電話番号 | CA7: （０７７８）５１－２２００
AB8: 0 | AO8: 形成されている。この丘陵に沿って国道８号、東側を北陸自動車道が走り、 | BS8: FAX番号 | CA8: 〃 ５１－８１５０
AB9: 0 | AO9: また日野川が北方に向かって流れている。
AB10: 0 | AN10: 0 | BS10: 最寄駅および距離 | CA10: 福井鉄道福武線西山公園駅 下車５００ｍ
AN11: 0
AB13: 【市が掲げる標語】若者が住みたくなる・住み続けたくなるまち鯖江 | BS13: ホームページ | CA13: http://www.city.sabae.fukui.jp/
A15: １ 土 地 | Z15: =データ一覧!$A$240 -> 2年 | AA15: 産米収穫量 | AD15: 収 穫 量 | AG15: 作 付 面 積 | AJ15: 10a当たり収量 | BP15: １５ 労 働 | CE15: 27.10.1
AD16: =データ一覧!$L$240 -> 7810 | AF16: t | AG16: =データ一覧!$L$241 -> 1490 | AI16: ha | AJ16: =データ一覧!L242 -> 524 | AM16: kg | AN16: １０ 工 業 | BB16: =データ一覧!$A$332 -> 2.6.1（令和元年実績）
A17: 総 面 積 | K17: 固 定 資 産 概 要 調 書 に よ る 地 目 別 面 積 | AC17: 総 数 | AG17: うち 田 | AK17: うち 畑 | BW17: 産業別就業者数
C18: =データ一覧!$A$7 -> 3.10.1 | Q18: =データ一覧!$A$9 -> 3.1.1 | Z18: 耕 地 面 積 | AD18: ha | AG18: ha | AK18: ha | AO18: 産業分類 | AW18: 事業所数 | BB18: 従業者数 | BH18: 年間製造品出荷額等 | BQ18: 区 分 | BV18: 総 数 | CA18: 男 | CE18: 女 | CI18: 区 分 | CN18: 総 数 | CS18: 男 | CW18: 女
G19: ㎢ | K19: 総 数 | P19: う ち 田 | U19: う ち 畑 | Z19: =データ一覧!A243 -> 2.7.15 | AC19: =データ一覧!$L$243 -> 2050 | AF19: =データ一覧!$L$244 -> 1980 | AJ19: =データ一覧!$L$245 -> 70 | AZ19: 事業所 | BB19: 人 | BE19: 人 | BG19: 万円 | BN19: 万円 | BV19: 人 | CB19: 人 | CF19: 人 | CN19: 人 | CR19: 人 | CV19: 人
D20: =データ一覧!L7 -> 84.59 | O20: ha | T20: ha | Y20: ha | Z20: 農 業 生 産 物 | AD20: 作 付 面 積 | AG20: 収 穫 量 | AJ20: 10a当たり収量 | AO20: 総数 | AX20: =データ一覧!L332 -> 342 | BB20: =+データ一覧!L357 -> 9550 | BI20: =データ一覧!L382 -> 20641233 | BP20: 総 数 | BV20: =BZ20+CD20 -> 34919 | BZ20: =データ一覧!L507 -> 18777 | CD20: =データ一覧!L532 -> 16142
L21: =データ一覧!L9 -> 8459 | Q21: =データ一覧!L10 -> 2014 | V21: =データ一覧!L11 -> 123.8 | Z21: =データ一覧!$A$246 -> 2年中 | AD21: ha | AG21: t | AJ21: kg | AN21: 食料品 | AO21: 食料品 | AX21: =データ一覧!L333 -> 7 | BB21: =+データ一覧!L358 -> 134 | BI21: =データ一覧!L383 -> 95206 | CI21: 卸売業,小売業 | CN21: =CR21+CV21 -> 5016 | CR21: =データ一覧!L520 -> 2397 | CV21: =データ一覧!L545 -> 2619
A22: 町 ･ 丁 ･ 大 字 | K22: う ち 宅 地 | P22: う ち 山 林 | U22: う ち 原 野 | Z22: 水 稲 | AD22: =データ一覧!L246 -> 1490 | AG22: =データ一覧!L247 -> 7810 | AJ22: =データ一覧!L248 -> 524 | AN22: 飲料・飼料 | AO22: 飲料・飼料 | AX22: =データ一覧!L334 -> 0 | BB22: =+データ一覧!L359 -> 0 | BI22: =データ一覧!L384 -> 0 | BP22: 第１次産業 | BV22: =BZ22+CD22 -> 622 | BZ22: =データ一覧!L508 -> 443 | CD22: =データ一覧!L533 -> 179 | CI22: 金融業,保険業 | CN22: =CR22+CV22 -> 798 | CR22: =データ一覧!L521 -> 307 | CV22: =データ一覧!L546 -> 491
A23: 区 画 数 | H23: =データ一覧!L8 -> 153 | O23: ha | T23: ha | Y23: ha | Z23: 六 条 大 麦 | AD23: =データ一覧!L249 -> 262 | AG23: =データ一覧!L250 -> 697 | AJ23: =データ一覧!L251 -> 266 | AN23: 繊維 | AO23: 繊維 | AX23: =データ一覧!L335 -> 58 | BB23: =+データ一覧!L360 -> 1958 | BI23: =データ一覧!L385 -> 4305202 | BQ23: 農業 | BV23: =BZ23+CD23 -> 587 | BZ23: =データ一覧!L509 -> 413 | CD23: =データ一覧!L534 -> 174 | CI23: 不動産業 | CN23: 278 | CR23: =データ一覧!L522 -> 164 | CV23: =データ一覧!L547 -> 114
A24: =データ一覧!$A$8 -> 2.4.1 | L24: =データ一覧!L12 -> 1474 | Q24: =データ一覧!L13 -> 1164.4 | V24: =データ一覧!L14 -> 0 | Z24: 大 豆 | AD24: =データ一覧!L252 -> 111 | AG24: =データ一覧!L253 -> 101 | AJ24: =データ一覧!L254 -> 91 | AN24: 衣服 | AO24: 木材 | AX24: =データ一覧!L336 -> 4 | BB24: =+データ一覧!L361 -> 110 | BI24: =データ一覧!L386 -> 151076 | BQ24: 林業 | BV24: 27 | BZ24: =データ一覧!L510 -> 24 | CD24: =データ一覧!L535 -> 3 | CI24: 学術研究 | CN24: 719 | CR24: =データ一覧!L523 -> 438 | CV24: =データ一覧!L548 -> 281
A25: ２ 世 帯 数 と 人 口 | AB25: 区 分 | AD25: 乳 用 牛 | AF25: 肉 用 牛 | AH25: 豚 | AJ25: 採卵鶏 | AL25: ブロイラー | AN25: 木材 | AO25: 家具 | AX25: =データ一覧!L337 -> 3 | BB25: =+データ一覧!L362 -> 42 | BI25: =データ一覧!L387 -> 54494 | BQ25: 漁業 | BV25: 8 | BZ25: =データ一覧!L511 -> 6 | CD25: =データ一覧!L536 -> 2 | CI25: 宿泊業,飲食ｻｰﾋﾞｽ | CN25: 1346 | CR25: =データ一覧!L524 -> 506 | CV25: =データ一覧!L549 -> 840
Z26: 畜 産 | AB26: 飼養農家 | AD26: =データ一覧!$L$255 -> 0 | AF26: =データ一覧!$L$257 -> 0 | AH26: =データ一覧!$L$259 -> - | AJ26: =データ一覧!$L$261 -> x | AL26: =データ一覧!$L$263 -> 0 | AN26: 家具 | AO26: パルプ・紙 | AX26: =データ一覧!L338 -> 2 | BB26: =+データ一覧!L363 -> 65 | BI26: =データ一覧!L388 -> x | BP26: 第２次産業 | BV26: 13630 | BZ26: =データ一覧!L512 -> 8919 | CD26: =データ一覧!L537 -> 4711 | CI26: 生活関連ｻｰﾋﾞｽ業 | CN26: 1054 | CR26: =データ一覧!L525 -> 404 | CV26: =データ一覧!L550 -> 650
I27: 人 口 | U27: １世帯当 | W27: 人 口 | Z27: =データ一覧!$A$255 -> 3.3.31 | AB27: （戸） | AN27: パルプ・紙 | AO27: 印刷 | AX27: =データ一覧!L339 -> 12 | BB27: =+データ一覧!L364 -> 214 | BI27: =データ一覧!L389 -> 358167 | BQ27: 鉱業，採石業 | BV27: 4 | BZ27: =データ一覧!L513 -> 4 | CD27: =データ一覧!L538 -> 0 | CI27: 教育,学習支援業 | CN27: 1423 | CR27: =データ一覧!L526 -> 556 | CV27: =データ一覧!L551 -> 867
A28: 区 分 | F28: 世帯数 | I28: 総 数 | L28: 男 | O28: 女 | R28: 男／女 | U28: たり人員 | W28: 密 度 | AB28: 頭 羽 | AD28: =データ一覧!$L$256 -> 0 | AF28: =データ一覧!$L$258 -> 0 | AH28: =データ一覧!$L$260 -> 0 | AJ28: =データ一覧!$L$262 -> 180 | AL28: =データ一覧!$L$264 -> 0 | AN28: 出版・印刷 | AO28: 化学 | AX28: =データ一覧!L340 -> 3 | BB28: =+データ一覧!L365 -> 106 | BI28: =データ一覧!L390 -> 1486921 | BQ28: 建設業 | BV28: 2181 | BZ28: =データ一覧!L514 -> 1824 | CD28: =データ一覧!L539 -> 357 | CI28: 医療，福祉 | CN28: 4372 | CR28: =データ一覧!L527 -> 777 | CV28: =データ一覧!L552 -> 3595
F29: 世 帯 | I29: 人 | L29: 人 | O29: 人 | S29: ％ | U29: 人 | W29: 人/㎢ | AN29: 化学 | AO29: 石油・石炭 | AX29: =データ一覧!L341 -> 1 | BB29: =+データ一覧!L366 -> 5 | BI29: =データ一覧!L391 -> x | BQ29: 製造業 | BV29: 11445 | BZ29: =データ一覧!L515 -> 7091 | CD29: =データ一覧!L540 -> 4354 | CI29: 複合サービス事業 | CN29: 373 | CR29: =データ一覧!L528 -> 211 | CV29: =データ一覧!L553 -> 162
A30: =データ一覧!$A$22 -> 2.10.1 | F30: =データ一覧!L22 -> 16053 | I30: =+L30+O30 -> 62283 | L30: =データ一覧!L24 -> 30164 | O30: =データ一覧!L25 -> 32119 | S30: =+L30/O30*100 -> 93.91326006 | U30: =データ一覧!L27 -> 3.88 | W30: =データ一覧!L28 -> 734.9 | Z30: ５ 林 業 | AN30: 石油・石炭 | AO30: プラスチック | AX30: =データ一覧!L342 -> 16 | BB30: =+データ一覧!L367 -> 432 | BI30: =データ一覧!L392 -> 1364704 | BP30: 第３次産業 | BV30: 19721 | BZ30: =データ一覧!L516 -> 8898 | CD30: =データ一覧!L541 -> 10823 | CI30: サービス業 | CN30: 1533 | CR30: =データ一覧!L529 -> 981 | CV30: =データ一覧!L554 -> 552
A31: =データ一覧!$A$29 -> 7.10.1 | F31: =データ一覧!L29 -> 16919 | I31: =+L31+O31 -> 62890 | L31: =データ一覧!L31 -> 30376 | O31: =データ一覧!L32 -> 32514 | S31: 93.42437104 | U31: =データ一覧!L34 -> 3.72 | W31: =データ一覧!L35 -> 742.1 | AN31: プラスチック | AO31: ゴム | AX31: =データ一覧!L343 -> 0 | BB31: =+データ一覧!L368 -> 0 | BI31: =データ一覧!L393 -> 0 | BQ31: 電気･ｶﾞｽ･水道業 | BV31: 123 | BZ31: =データ一覧!L517 -> 106 | CD31: =データ一覧!L542 -> 17 | CI31: 公務 | CN31: 999 | CR31: =データ一覧!L530 -> 691 | CV31: =データ一覧!L555 -> 308
A32: =データ一覧!$A$36 -> 12.10.1 | F32: =データ一覧!L36 -> 18598 | I32: =+L32+O32 -> 64898 | L32: =データ一覧!L38 -> 31448 | O32: =データ一覧!L39 -> 33450 | S32: 94.01494768 | U32: =データ一覧!L41 -> 3.49 | W32: =データ一覧!L42 -> 765.8 | Z32: 森 林 総 面 積 | AH32: =データ一覧!$A$265 -> 3.3.31 | AN32: ゴム | AO32: 皮革 | AX32: =データ一覧!L344 -> 0 | BB32: =+データ一覧!L369 -> 0 | BI32: =データ一覧!L394 -> 0 | BQ32: 情報通信業 | BV32: 498 | BZ32: =データ一覧!L518 -> 361 | CD32: =データ一覧!L543 -> 137 | CH32: 分類不能の産業 | CN32: 946 | CR32: =データ一覧!L531 -> 517 | CV32: =データ一覧!L556 -> 429
A33: =+データ一覧!$A$43 -> 17.10.1 | F33: =データ一覧!L43 -> 20177 | I33: =+L33+O33 -> 66831 | L33: =データ一覧!L45 -> 32263 | O33: =データ一覧!L46 -> 34568 | S33: 93.33198334 | U33: =データ一覧!L48 -> 3.31 | W33: =データ一覧!L49 -> 788.6 | Z33: 森 林 の 構 成 | AN33: 皮革 | AO33: 窯業・土石 | AX33: =データ一覧!L345 -> 4 | BB33: =+データ一覧!L370 -> 116 | BI33: =データ一覧!L395 -> 354680 | BQ33: 運輸業,郵便業 | BV33: =BZ33+CD33 -> 1189 | BZ33: =データ一覧!L519 -> 999 | CD33: =データ一覧!L544 -> 190
A34: =+データ一覧!$A$50 -> 22.10.1 | F34: =+データ一覧!L50 -> 21028 | I34: =+L34+O34 -> 67450 | L34: =+データ一覧!L52 -> 32507 | O34: =+データ一覧!L53 -> 34943 | S34: 93.02864665 | U34: =+データ一覧!L55 -> 3.21 | W34: =+データ一覧!L56 -> 795.9 | AE34: ha | AL34: ha | AN34: 窯業・土石 | AO34: 鉄鋼 | AX34: =データ一覧!L346 -> 2 | BB34: =+データ一覧!L371 -> 21 | BI34: =データ一覧!L396 -> x | BP34: １６ 社 会 福 祉 | CF34: =データ一覧!$A$557 -> 3.4.1
A35: =データ一覧!$A$57 -> 27.10.1 | F35: =データ一覧!L57 -> 22335 | I35: =データ一覧!L58 -> 68284 | L35: =データ一覧!L59 -> 33105 | O35: =データ一覧!L60 -> 35179 | S35: 94.10443731 | U35: =データ一覧!L62 -> 3.057264383 | W35: =データ一覧!L63 -> 807.2 | Z35: 総 数 | AD35: =データ一覧!L265 -> 3148.42 | AG35: 天然林 針葉樹 | AK35: =データ一覧!L268 -> 72.23 | AN35: 鉄鋼 | AO35: 非鉄金属 | AX35: =データ一覧!L347 -> 2 | BB35: =+データ一覧!L372 -> 38 | BI35: =データ一覧!L397 -> x
A36: 令 2.10.1（国調） | F36: =データ一覧!L64 -> 23915 | I36: =データ一覧!L65 -> 68302 | L36: =データ一覧!L66 -> 33323 | O36: =データ一覧!L67 -> 34979 | S36: =+L36/O36*100 -> 95.26573087 | U36: =データ一覧!L72 -> 2.81 | W36: =データ一覧!L73 -> 808.4525358 | Z36: 人工林 針葉樹 | AD36: =データ一覧!L266 -> 2093.15 | AG36: 天然林 広葉樹 | AK36: =データ一覧!L269 -> 899.78 | AN36: 非鉄金属 | AO36: 金属 | AX36: =データ一覧!L348 -> 18 | BB36: =+データ一覧!L373 -> 728 | BI36: =データ一覧!L398 -> 1446835 | BQ36: 区分 | BX36: 施設数 | CC36: 収容定員 | CI36: 区分 | CP36: 施設数 | CU36: 収容定員
A37: 年 | C37: 区 | E37: 0歳 | H37: 15歳 | K37: 25歳 | N37: 35歳 | Q37: 45歳 | T37: 55歳 | W37: 65歳 | Z37: 人工林 広葉樹 | AD37: =データ一覧!L267 -> 40.33 | AG37: 竹 林 | AK37: =データ一覧!L270 -> 18.62 | AN37: 金属 | AO37: はん用機械 | AX37: =データ一覧!L349 -> 2 | BB37: =+データ一覧!L374 -> 32 | BI37: =データ一覧!L399 -> x | BP37: 生活保護施設 | BX37: =データ一覧!L557 -> 0 | CB37: =データ一覧!L570 -> 0 | CF37: 人 | CH37: 指定障害者支援施設 | CP37: =データ一覧!L563 -> 2 | CT37: =データ一覧!L576 -> 190 | CX37: 人
A38: 齢 | B38: 令 | F38: ～ | I38: ～ | L38: ～ | O38: ～ | R38: ～ | U38: ～ | AN38: 一般機械 | AO38: 生産用機械 | AX38: =データ一覧!L350 -> 26 | BB38: =+データ一覧!L375 -> 419 | BI38: =データ一覧!L400 -> 899363 | BP38: 地域福祉施設 | BX38: =データ一覧!L558 -> 0 | CB38: =データ一覧!L571 -> 0 | CH38: 指定相談支援事業所 | CP38: =データ一覧!L564 -> 3 | CT38: =データ一覧!L577 -> 0
A39: 階 | B39: =+LEFT(データ一覧!$A$83,1) -> 3 | C39: 分 | G39: 14歳 | J39: 24歳 | M39: 34歳 | P39: 44歳 | S39: 54歳 | V39: 64歳 | Y39: 以上 | Z39: 林 野 の 構 成 | AG39: 保 有 形 態 別 | AN39: 電気機械 | AO39: 業務用機械 | AX39: =データ一覧!L351 -> 3 | BB39: =+データ一覧!L376 -> 162 | BI39: =データ一覧!L401 -> 280503 | BP39: 老人福祉施設 | BX39: =データ一覧!L559 -> 6 | CB39: =データ一覧!L572 -> 143 | CH39: 児童福祉施設 | CP39: =データ一覧!L565 -> 46 | CT39: =データ一覧!L578 -> 2915
A40: 級 | B40: ・ | G40: 人 | J40: 人 | L40: 人 | O40: 人 | R40: 人 | U40: 人 | X40: 人 | AF40: ha | AL40: ha | AO40: 電子・デバイス | AX40: =データ一覧!L352 -> 5 | BB40: =+データ一覧!L377 -> 1037 | BI40: =データ一覧!L402 -> 2112666 | BP40: 介護保険施設 | BX40: =データ一覧!L560 -> 84 | CB40: =データ一覧!L573 -> 1682 | CH40: 母子福祉施設 | CP40: =データ一覧!L566 -> 0 | CT40: =データ一覧!L579 -> 0
A41: 別 | B41: =+MID(データ一覧!$A$83,3,2) -> 10 | C41: 総 数 | E41: =+E42+E43 -> 9446 | H41: =+H42+H43 -> 6435 | K41: =+K42+K43 -> 6646 | N41: =+N42+N43 -> 8601 | Q41: =+Q42+Q43 -> 10271 | T41: =+T42+T43 -> 7567 | W41: =+W42+W43 -> 18883 | Z41: 無立木地 伐採跡地 | AD41: =データ一覧!L271 -> 0 | AG41: 国 有 | AK41: =データ一覧!L273 -> 16.96 | AO41: 電気機械 | AX41: =データ一覧!L353 -> 3 | BB41: =+データ一覧!L378 -> 33 | BI41: =データ一覧!L403 -> 64970 | BP41: 障害者自立支援法施行前からの身体障害者福祉施設 | BX41: =データ一覧!L561 -> 0 | CB41: =データ一覧!L574 -> 0 | CH41: 婦人保護施設 | CP41: =データ一覧!L567 -> 0 | CT41: =データ一覧!L580 -> 0
A42: 人 | B42: ・ | C42: 男 | E42: =データ一覧!L83 -> 4827 | H42: =データ一覧!L84 -> 3295 | K42: =データ一覧!L85 -> 3371 | N42: =データ一覧!L86 -> 4381 | Q42: =データ一覧!L87 -> 5197 | T42: =データ一覧!L88 -> 3716 | W42: =データ一覧!L89 -> 8252 | Z42: 無立木地 未立木地 | AD42: =データ一覧!L272 -> 24.31 | AG42: 公 有 | AK42: =データ一覧!L274 -> 126.77 | AN42: 輸送機械 | AO42: 情報通信機械 | AX42: =データ一覧!L354 -> 1 | BB42: =+データ一覧!L379 -> 4 | BI42: =データ一覧!L404 -> x | CH42: その他の社会福祉施設 | CP42: =データ一覧!L568+データ一覧!L569 -> 0 | CT42: =データ一覧!L581+データ一覧!L582 -> 0
A43: 口 | B43: =+RIGHT(データ一覧!$A$83,1) -> 1 | C43: 女 | E43: =データ一覧!L91 -> 4619 | H43: =データ一覧!L92 -> 3140 | K43: =データ一覧!L93 -> 3275 | N43: =データ一覧!L94 -> 4220 | Q43: =データ一覧!L95 -> 5074 | T43: =データ一覧!L96 -> 3851 | W43: =データ一覧!L97 -> 10631 | AG43: 私 有 | AK43: =データ一覧!L275 -> 3004.69 | AN43: 精密機械 | AO43: 輸送機械 | AX43: =データ一覧!L355 -> 1 | BB43: =+データ一覧!L380 -> 13 | BI43: =データ一覧!L405 -> x | BP43: 障害福祉サービス事業所 | BX43: =データ一覧!L562 -> 45 | CB43: =データ一覧!L575 -> 530
Z44: 林 産 物 生 産 量 | AJ44: =データ一覧!$A$276 -> 2年中 | AN44: その他 | AO44: その他 | AX44: =データ一覧!L356 -> 169 | BB44: =+データ一覧!L381 -> 3881 | BI44: =データ一覧!L406 -> 7305235 | BP44: １７ 教 育 | CF44: =データ一覧!$A$583 -> 3.5.1
A45: 人口動態 | H45: 自 然 動 態 | N45: 社 会 動 態 | T45: =データ一覧!$A78 -> 2.1.1～3.12.31 | Z45: 生椎茸 | AD45: =データ一覧!L276 -> 390 | AF45: ㎏ | AG45: 乾椎茸 | AK45: =データ一覧!L277 -> 171 | AM45: ㎏
C46: 区 分 | H46: 出 生 | K46: 死 亡 | N46: 転 入 | Q46: 転 出 | T46: 婚 姻 | W46: 離 婚 | Z46: えのきだけ | AD46: =データ一覧!L279 -> - | AF46: ㎏ | AG46: なめこ | AK46: =データ一覧!L278 -> - | AM46: ㎏ | AO46: 工 業 用 水 量 | AU46: （従業者30人以上の事業所） | BF46: =データ一覧!L407 -> 39930 | BK46: ㎥／日 | BZ46: 学校数（校） | CG46: 教員数（人） | CO46: 学生・生徒・児童数（人）
A47: =LEFT(データ一覧!$A74,6) -> 2.10.1 | H47: 人 | K47: 人 | N47: 人 | Q47: 人 | U47: 件 | X47: 件 | Z47: ひらたけ | AD47: =+データ一覧!L280 -> - | AF47: ㎏ | AG47: まいたけ | AK47: =+データ一覧!L281 -> - | AM47: ㎏ | BR47: 区分 | BZ47: 本 校 | CC47: 分 校 | CF47: 本 務 | CJ47: 兼 務 | CN47: 総 数 | CR47: 男 | CV47: 女
A48: ～ | C48: 実 数 | H48: =データ一覧!L74 -> 263 | K48: =データ一覧!L75 -> 348 | N48: =データ一覧!L76 -> 1064 | Q48: =データ一覧!L77 -> 939 | T48: =データ一覧!L78 -> 262 | W48: =データ一覧!L79 -> 96 | AN48: １１ 上 ・ 下 水 道 | BQ48: 小学校 | BZ48: =データ一覧!L584 -> 12 | CC48: =データ一覧!L585 -> 0 | CF48: =データ一覧!L586 -> 262 | CJ48: =データ一覧!L587 -> 28 | CN48: =データ一覧!L588 -> 4017 | CR48: =データ一覧!L589 -> 2057 | CV48: =データ一覧!L590 -> 1960
A49: =RIGHT(データ一覧!$A76,6) -> 3.9.30 | C49: 比率(対1,000人) | H49: =+H48/I35*1000 -> 3.851561127 | K49: =+K48/I35*1000 -> 5.096362252 | N49: - | Q49: - | T49: =+T48/I35*1000 -> 3.836916408 | W49: =+W48/I35*1000 -> 1.405893035 | Z49: ６ 漁 業 | BQ49: 中学校 | BZ49: =データ一覧!L592 -> 3 | CC49: =データ一覧!L593 -> 0 | CF49: =データ一覧!L594 -> 147 | CJ49: =データ一覧!L595 -> 8 | CN49: =データ一覧!L596 -> 2088 | CR49: =データ一覧!L597 -> 1054 | CV49: =データ一覧!L598 -> 1034
AN50: 水 道 供 給 人 口 | AU50: 上 水 道 | AY50: 簡易水道 | BC50: 専用水道 | BG50: 飲料水供給施設 | BK50: 下水道処理人口 | BQ50: 高等学校 | BZ50: =データ一覧!L600 -> 2 | CC50: =データ一覧!L601 -> 0 | CF50: =データ一覧!L602 -> 79 | CJ50: =データ一覧!L603 -> 42 | CN50: =データ一覧!L604 -> 845 | CR50: =データ一覧!L605 -> 461 | CV50: =データ一覧!L606 -> 384
A51: ３ 事 業 所（民 営） （平 28.6.1） | Z51: 漁船隻数・トン数 | AD51: =データ一覧!$A$282 -> 2.12.31 | AH51: 動 力 船 | AN51: =データ一覧!$A$408 -> 3.3.31 | AT51: 人 | AV51: =データ一覧!L408 -> 69353 | AY51: =データ一覧!L409 -> 0 | BD51: =データ一覧!L410 -> 0 | BH51: =データ一覧!L411 -> 0 | BL51: =データ一覧!L412 -> 50611 | BQ51: 大学・短期大学 | BZ51: =データ一覧!L607 -> 0 | CC51: =データ一覧!L608 -> 0 | CF51: =データ一覧!L609 -> 0 | CJ51: =データ一覧!L610 -> 0 | CN51: =データ一覧!L611 -> 0 | CR51: =データ一覧!L612 -> 0 | CV51: =データ一覧!L613 -> 0
Z52: 無動力船隻数 | AD52: 船外機付漁船隻数 | AH52: 隻 数 | AK52: 総 ト ン 数 | BQ52: 高等専門学校 | BZ52: =データ一覧!L614 -> 1 | CC52: =データ一覧!L615 -> 0 | CF52: =データ一覧!L616 -> 79 | CJ52: =データ一覧!L617 -> 36 | CN52: =データ一覧!L618 -> 998 | CR52: =データ一覧!L619 -> 790 | CV52: =データ一覧!L620 -> 208
H53: 総 数 | N53: 民 営 | T53: 国 ･ 地方公共団体 | AC53: 隻 | AG53: 隻 | AJ53: 隻 | AM53: t | AN53: １２ 交 通 ・ 通 信 | BQ53: 特別支援学校 | BZ53: =データ一覧!L622 -> 0 | CC53: =データ一覧!L623 -> 0 | CF53: =データ一覧!L624 -> 0 | CJ53: =データ一覧!L625 -> 0 | CN53: =データ一覧!L626 -> 0 | CR53: =データ一覧!L627 -> 0 | CV53: =データ一覧!L628 -> 0
A54: 区 分 | H54: 事業所数 | K54: 従業者数 | N54: 事業所数 | Q54: 従業者数 | T54: 事業所数 | W54: 従業者数 | Z54: =データ一覧!$L$282 -> 0 | AD54: =データ一覧!$L$283 -> 0 | AH54: =データ一覧!L284 -> 0 | AK54: =データ一覧!L285 -> 0 | BQ54: 幼稚園 | BZ54: =データ一覧!L630 -> 4 | CC54: =データ一覧!L631 -> 0 | CF54: =データ一覧!L632 -> 15 | CJ54: =データ一覧!L633 -> 3 | CN54: =データ一覧!L634 -> 113 | CR54: =データ一覧!L635 -> 64 | CV54: =データ一覧!L636 -> 49
K55: 人 | Q55: 人 | W55: 人 | Z55: 男女別就業者数 | AH55: =データ一覧!$A$286 -> 30.11.1 | AN55: 道 路 | AR55: 実 延 長 | AV55: 国 道 | AZ55: 県 道 | BD55: 市町道 | BH55: 鉄 道 営 業 キ ロ 数 | BQ55: 幼保連携認定こども園 | BZ55: =データ一覧!L638 -> 5 | CC55: =データ一覧!L639 -> 0 | CF55: =データ一覧!L640 -> 113 | CJ55: =データ一覧!L641 -> 23 | CN55: =データ一覧!L642 -> 760 | CR55: =データ一覧!L643 -> 364 | CV55: =データ一覧!L644 -> 396
A56: 総数 | H56: =データ一覧!L99 -> … | K56: =データ一覧!L156 -> … | N56: =データ一覧!L100 -> 3520 | Q56: =データ一覧!L157 -> 29663 | T56: =データ一覧!L101 -> … | W56: =データ一覧!L158 -> … | Z56: 総 数 | AF56: 男 | AJ56: 女 | AN56: =データ一覧!$A$413 -> 2.4.1 | AR56: =データ一覧!L413 -> 710.1 | AU56: ㎞ | AV56: =データ一覧!L414 -> 11.1 | AY56: ㎞ | AZ56: =データ一覧!L415 -> 66.9 | BC56: ㎞ | BD56: =データ一覧!L416 -> 632.1 | BG56: km | BH56: =データ一覧!$A$417 -> 3.4.1 | BL56: =データ一覧!L417 -> 13.726 | BO56: ㎞ | BQ56: 各種学校 | BZ56: =データ一覧!L646 -> - | CC56: =データ一覧!L647 -> 0 | CF56: =データ一覧!L648 -> - | CJ56: =データ一覧!L649 -> 0 | CN56: =データ一覧!L650 -> 0 | CR56: =データ一覧!L651 -> - | CV56: =データ一覧!L652 -> -
A57: 農林漁業 | H57: =データ一覧!L102 -> … | K57: =データ一覧!L159 -> … | N57: =データ一覧!L103 -> 15 | Q57: =データ一覧!L160 -> 177 | T57: =データ一覧!L104 -> … | W57: =データ一覧!L161 -> … | AE57: 人 | AH57: 人 | AM57: 人 | AN57: 自動車 | AW57: 乗用車 | BQ57: 専修学校 | BZ57: =データ一覧!L654 -> 0 | CC57: =データ一覧!L655 -> 0 | CF57: =データ一覧!L656 -> 0 | CJ57: =データ一覧!L657 -> 0 | CN57: =データ一覧!L658 -> 0 | CR57: =データ一覧!L659 -> 0 | CV57: =データ一覧!L660 -> 0
A58: 鉱業 | H58: =データ一覧!L105 -> … | K58: =データ一覧!L162 -> … | N58: =データ一覧!L106 -> 0 | Q58: =データ一覧!L163 -> 0 | T58: =データ一覧!L107 -> … | W58: =データ一覧!L164 -> … | Z58: =SUM(AF58,AJ58) -> 0 | AF58: =データ一覧!$L$287 -> 0 | AJ58: =データ一覧!L288 -> 0 | AN58: 台 数 | AR58: 貨 物 | AV58: 普 通 | AZ58: 小 型 | BD58: 乗 合 | BG58: 特 種 | BJ58: 小型二輪 | BM58: 軽自動車 | BP58: １８ 衛 生
A59: 建設業 | H59: =データ一覧!L108 -> … | K59: =データ一覧!L165 -> … | N59: =データ一覧!L109 -> 265 | Q59: =データ一覧!L166 -> 1510 | T59: =データ一覧!L110 -> … | W59: =データ一覧!L167 -> … | Z59: 海 面 漁 業 漁 獲 量 （属人） | AH59: =データ一覧!$A$289 -> 30年中 | AN59: =データ一覧!$A$418 -> 3.3.31 | AS59: =データ一覧!L418 -> 947 | AW59: =データ一覧!L420 -> 3955 | BA59: =データ一覧!L421 -> 4376 | BD59: =データ一覧!L419 -> 64 | BG59: =データ一覧!L422 -> 493 | BJ59: =データ一覧!L423 -> 233 | BM59: =データ一覧!L424 -> 9181
A60: 製造業 | H60: =データ一覧!L111 -> … | K60: =データ一覧!L168 -> … | N60: =データ一覧!L112 -> 1056 | Q60: =データ一覧!L169 -> 10659 | T60: =データ一覧!L113 -> … | W60: =データ一覧!L170 -> … | AF60: ｔ | AM60: t | AR60: 郵 便 局 数 | BF60: =+MID(データ一覧!$A$428,3,2) -> 12 | BG60: 令 | BH60: 一般加入 | BL60: ＩＮＳネット | BT60: 医療関係施設 | BZ60: =データ一覧!$A$661 -> 元.10.1 | CG60: および医療関係者数 | CO60: =データ一覧!$A$666 -> 30.12.31
A61: 電気・ｶﾞ ｽ・熱供給・水道業 | H61: =データ一覧!L114 -> … | K61: =データ一覧!L171 -> … | N61: =データ一覧!L115 -> 0 | Q61: =データ一覧!L172 -> 0 | T61: =データ一覧!L116 -> … | W61: =データ一覧!L173 -> … | Z61: 総 数 | AD61: =データ一覧!L289 -> 0 | AG61: 藻 類 | AK61: =データ一覧!L292 -> 0 | AN61: 通 信 | AR61: 総 数 | AW61: 郵 便 局 | BB61: 簡 易 局 | BF61: ・ | BG61: =+LEFT(データ一覧!$A$428,1) -> 2 | BH61: 電話数 | BL61: 加入数 | BW61: 病 | BZ61: 院 | CH61: 一般診療所 | CT61: 歯科診療所
A62: 情報通信業 | H62: =データ一覧!L117 -> … | K62: =データ一覧!L174 -> … | N62: =データ一覧!L118 -> 17 | Q62: =データ一覧!L175 -> 265 | T62: =データ一覧!L119 -> … | W62: =データ一覧!L176 -> … | Z62: 魚 類 | AD62: =データ一覧!L290 -> 0 | AG62: そ の 他 | AK62: =データ一覧!L293 -> 0 | AN62: =データ一覧!$A$428 -> 2.12.31 | AR62: =データ一覧!L425 -> 14 | AW62: =データ一覧!L426 -> 12 | BB62: =データ一覧!L427 -> 2 | BF62: =+RIGHT(データ一覧!$A$428,2) -> 31 | BG62: ・ | BH62: =データ一覧!L428 -> 4975 | BL62: =データ一覧!L429 -> 610 | BQ62: 医療関係 | CC62: 一般病院 | CO62: 有 | CR62: 床
A63: 運輸業、郵便業 | H63: =データ一覧!L120 -> … | K63: =データ一覧!L177 -> … | N63: =データ一覧!L121 -> 48 | Q63: =データ一覧!L178 -> 677 | T63: =データ一覧!L122 -> … | W63: =データ一覧!L179 -> … | Z63: 貝 類 | AD63: =データ一覧!L291 -> 0 | BQ63: 施設数 | BX63: =データ一覧!L661 -> 7 | CD63: =データ一覧!L662 -> 6 | CJ63: =データ一覧!L663 -> 40 | CP63: =データ一覧!L664 -> 4 | CV63: =データ一覧!L665 -> 23
A64: 卸売業、小売業 | H64: =データ一覧!L123 -> … | K64: =データ一覧!L180 -> … | N64: =データ一覧!L124 -> 797 | Q64: =データ一覧!L181 -> 5638 | T64: =データ一覧!L125 -> … | W64: =データ一覧!L182 -> … | AN64: １３ 税 ・ 財 政 | BW64: 医師 | CB64: 歯科医師 | CG64: 薬剤師 | CL64: 保健師 | CQ64: 助産師 | CV64: 看護師
A65: 金融業、保険業 | H65: =データ一覧!L126 -> … | K65: =データ一覧!L183 -> … | N65: =データ一覧!L127 -> 51 | Q65: =データ一覧!L184 -> 650 | T65: =データ一覧!L128 -> … | W65: =データ一覧!L185 -> … | Z65: ７ 商 業 | AG65: =データ一覧!$A$294 -> 28.6.1(平成27年実績） | BQ65: 医療 | BZ65: 人 | CE65: 人 | CJ65: 人 | CO65: 人 | CT65: 人 | CY65: 人
A66: 不動産業、物品賃貸業 | H66: =データ一覧!L129 -> … | K66: =データ一覧!L186 -> … | N66: =データ一覧!L130 -> 74 | Q66: =データ一覧!L187 -> 243 | T66: =データ一覧!L131 -> … | W66: =データ一覧!L188 -> … | AR66: 歳入 | BA66: (千円） | BF66: 歳出 | BO66: (千円） | BQ66: 関係者 | BV66: =データ一覧!L666 -> 110 | CA66: =データ一覧!L667 -> 35 | CF66: =データ一覧!L668 -> 95 | CK66: =データ一覧!L669 -> 35 | CP66: =データ一覧!L670 -> 10 | CU66: =データ一覧!L671 -> 877
A67: 学術研究、専門・技術ｻｰﾋﾞｽ業 | H67: =データ一覧!L132 -> … | K67: =データ一覧!L189 -> … | N67: =データ一覧!L133 -> 89 | Q67: =データ一覧!L190 -> 397 | T67: =データ一覧!L134 -> … | W67: =データ一覧!L191 -> … | Z67: 産 業 分 類 | AD67: 商 店 数 | AG67: 従 業 者 数 | AJ67: 年 間 販 売 額 | AN67: 一人当たり歳入歳出予算決算額 | BY67: 死因別死亡数 | CO67: =データ一覧!$A$672 -> 2年中 | CX67: 単 位：人
A68: 宿泊業、飲食サービス業 | H68: =データ一覧!L135 -> … | K68: =データ一覧!L192 -> … | N68: =データ一覧!L136 -> 338 | Q68: =データ一覧!L193 -> 2542 | T68: =データ一覧!L137 -> … | W68: =データ一覧!L194 -> … | AE68: 店 | AI68: 人 | AK68: 百万円 | AN68: 区分 | AR68: =データ一覧!$A$438 -> 3年度 | AW68: =データ一覧!$A$452 -> 2年度 | BB68: 区分 | BF68: =+AR68 -> 3年度 | BK68: =データ一覧!$A$452 -> 2年度 | BP68: 死 因 | CB68: 悪 性 | CE68: 高血圧 | CK68: 脳血管 | CT68: 不慮の事故
A69: 生活関連サービス業、娯楽業 | H69: =データ一覧!L138 -> … | K69: =データ一覧!L195 -> … | N69: =データ一覧!L139 -> 296 | Q69: =データ一覧!L196 -> 1069 | T69: =データ一覧!L140 -> … | W69: =データ一覧!L197 -> … | Z69: 総 計 | AD69: =データ一覧!L294 -> 681 | AG69: =データ一覧!L303 -> 4817 | AJ69: =データ一覧!L312 -> 115279 | AR69: =データ一覧!L434 -> 377335.941 | AW69: =データ一覧!L435 -> 546096.9831 | BF69: =データ一覧!L436 -> 377335.941 | BK69: =データ一覧!L437 -> 530755.4123 | BU69: 全 死 因 | BY69: 結 核 | CB69: 新生物 | CE69: 性疾患 | CH69: 心疾患 | CK69: 疾 患 | CN69: 肺 炎 | CQ69: 老 衰 | CW69: 交通事故
A70: 教育、学習支援業 | H70: =データ一覧!L141 -> … | K70: =データ一覧!L198 -> … | N70: =データ一覧!L142 -> 85 | Q70: =データ一覧!L199 -> 490 | T70: =データ一覧!L143 -> … | W70: =データ一覧!L200 -> … | Z70: 卸売業 | AD70: =データ一覧!L295 -> 178 | AG70: =データ一覧!L304 -> 1486 | AJ70: =データ一覧!L313 -> 57280 | AN70: 項目別歳入歳出予算決算額
A71: 医療、福祉 | H71: =データ一覧!L144 -> … | K71: =データ一覧!L201 -> … | N71: =データ一覧!L145 -> 195 | Q71: =データ一覧!L202 -> 3700 | T71: =データ一覧!L146 -> … | W71: =データ一覧!L203 -> … | Z71: 小売業 | AD71: =データ一覧!L296 -> 503 | AG71: =データ一覧!L305 -> 3331 | AJ71: =データ一覧!L314 -> 57999 | AN71: 区分 | AR71: =データ一覧!$A$438 -> 3年度 | AW71: =データ一覧!$A$452 -> 2年度 | BB71: 区分 | BF71: =+AR71 -> 3年度 | BK71: =データ一覧!$A$452 -> 2年度 | BU71: =データ一覧!L672 -> 743 | BY71: － | BZ71: =データ一覧!L673 -> 0 | CB71: =データ一覧!L674 -> 45 | CF71: =データ一覧!L675 -> 6 | CH71: =データ一覧!L676 -> 6 | CK71: =データ一覧!L677 -> 0 | CN71: =データ一覧!L678 -> 55 | CQ71: =データ一覧!L679 -> 33 | CT71: =データ一覧!L680 -> 27 | CW71: =データ一覧!L681 -> 2
A72: 複合サービス事業 | H72: =データ一覧!L147 -> … | K72: =データ一覧!L204 -> … | N72: =データ一覧!L148 -> 24 | Q72: =データ一覧!L205 -> 557 | T72: =データ一覧!L149 -> … | W72: =データ一覧!L206 -> … | Z72: 各種商品 | AD72: =データ一覧!L297 -> 2 | AG72: =データ一覧!L306 -> 198 | AJ72: =データ一覧!L315 -> x | AN72: 総額 | AR72: =SUM(AR73:AV85) -> 25804873 | AW72: =SUM(AW73:BA85) -> 37325589 | BB72: 総額 | BF72: =SUM(BF73:BJ85) -> 25804873 | BK72: =SUM(BK73:BO85) -> 36382222 | BP72: １９ 警 察 ・ 消 防 | CF72: =+データ一覧!$A682 -> 3.4.1
A73: サービス業 | H73: =データ一覧!L150 -> … | K73: =データ一覧!L207 -> … | N73: =データ一覧!L151 -> 170 | Q73: =データ一覧!L208 -> 1089 | T73: =データ一覧!L152 -> … | W73: =データ一覧!L209 -> … | Z73: 織物・衣服・身の回り品 | AD73: =データ一覧!L298 -> 79 | AG73: =データ一覧!L307 -> 270 | AJ73: =データ一覧!L316 -> 3492 | AN73: 地方税 | AR73: =データ一覧!L439 -> 8353000 | AW73: =データ一覧!L453 -> 9773908 | BB73: 議会費 | BF73: =データ一覧!L467 -> 238612 | BK73: =データ一覧!L481 -> 224366
A74: 公務 | H74: =データ一覧!L153 -> … | K74: =データ一覧!L210 -> … | N74: =データ一覧!L154 -> … | Q74: =データ一覧!L211 -> … | T74: =データ一覧!L155 -> … | W74: =データ一覧!L212 -> … | Z74: 飲食料品 | AD74: =データ一覧!L299 -> 154 | AG74: =データ一覧!L308 -> 1271 | AJ74: =データ一覧!L317 -> 22395 | AN74: 地方譲与税 | AR74: =データ一覧!L440 -> 248600 | AW74: =データ一覧!L454 -> 252727 | BB74: 総務費 | BF74: =データ一覧!L468 -> 2454170 | BK74: =データ一覧!L482 -> 10127365 | BZ74: 交番・駐在所 | CI74: 刑法犯認知件数 | CR74: 交通人身事故発生件数
A75: ４ 農 業 | Z75: 機械器具 | AD75: =データ一覧!L300 -> 71 | AG75: =データ一覧!L309 -> 359 | AJ75: =データ一覧!L318 -> 8600 | AN75: 各種交付金 | AR75: =データ一覧!L441 -> 1555000 | AW75: =データ一覧!L455 -> 1551439 | BB75: 民生費 | BF75: =データ一覧!L469 -> 9927993 | BK75: =データ一覧!L483 -> 10842632 | BQ75: 警察署数 | BZ75: 検問所数 | CJ75: =データ一覧!$A$684 -> 2年中 | CS75: =データ一覧!$A$684 -> 2年中
Z76: その他 | AD76: =データ一覧!L301 -> 175 | AG76: =データ一覧!L310 -> 1005 | AJ76: =データ一覧!L319 -> x | AN76: 地方特例交付金 | AR76: =データ一覧!L442 -> 542000 | AW76: =データ一覧!L456 -> 86230 | BB76: 衛生費 | BF76: =データ一覧!L470 -> 2625865 | BK76: =データ一覧!L484 -> 2046341 | CN76: 件 | CW76: 件
C77: 農業経営体数 | J77: 農産物販売額規模別経営体数 | R77: 経営耕地面積規模別経営体数 | Z77: 無店舗 | AD77: =データ一覧!L302 -> 22 | AG77: =データ一覧!L311 -> 228 | AJ77: =データ一覧!L320 -> 5362 | AN77: 地方交付税 | AR77: =データ一覧!L443 -> 4750000 | AW77: =データ一覧!L457 -> 4536953 | BB77: 労働費 | BF77: =データ一覧!L471 -> 116303 | BK77: =データ一覧!L485 -> 90257 | BR77: =データ一覧!L682 -> 1 | CA77: =データ一覧!L683 -> 8 | CJ77: =データ一覧!L684 -> 280 | CS77: =データ一覧!L685 -> 97
A78: 農 | C78: 区 分 | G78: 経営体数 （経営体） | J78: 区 分 | O78: 経営体数 （経営体） | R78: 区 分 | W78: 経営体数 （経営体） | AN78: 分担金および負担金 | AR78: =データ一覧!L444 -> 165165 | AW78: =データ一覧!L458 -> 164044 | BB78: 農林水産業費 | BF78: =データ一覧!L472 -> 1009997 | BK78: =データ一覧!L486 -> 1168205 | BP78: 火災発生件数 | BZ78: 林野焼損 | CE78: 損 害 | CJ78: 消 防 自 | CN78: その他の
A79: 業 | B79: 令 | Z79: ８ 住 宅 | AN79: 使用料および手数料 | AR79: =データ一覧!L445 -> 264121 | AW79: =データ一覧!L459 -> 260971 | BB79: 商工費 | BF79: =データ一覧!L473 -> 611079 | BK79: =データ一覧!L487 -> 1631214 | BP79: =+データ一覧!$A$686 -> 2年中 | BU79: 焼損棟数 | BZ79: 面 積 | CE79: 見 積 額 | CJ79: 動 車 数 | CN79: ﾎﾟﾝﾌﾟ数 | CR79: 消防吏員 | CV79: 消防団員
A80: 経 | B80: =+LEFT(データ一覧!$A$213) -> 2 | C80: 計 | G80: =データ一覧!L213 -> 445 | J80: 総 数 | O80: =データ一覧!L217 -> 445 | R80: 総 数 | W80: =データ一覧!L233 -> 1850 | AN80: 国庫支出金 | AR80: =データ一覧!L446 -> 3916774 | AW80: =データ一覧!L460 -> 12686340 | BB80: 土木費 | BF80: =データ一覧!L474 -> 2498589 | BK80: =データ一覧!L488 -> 2845599 | BP80: 件 | BV80: 棟 | CC80: ａ | CG80: 千円 | CT80: 人 | CX80: 人
A81: 営 | B81: ・ | C81: 個人経営体 | G81: =データ一覧!L214 -> 412 | J81: 販 売 な し | O81: =データ一覧!L218 -> 23 | R81: 0.5 ha 未満 | W81: =データ一覧!L234 -> 27 | Z81: =+データ一覧!$A$321 -> 令和元年 | AE81: =データ一覧!$A$324 -> 2年 | AF81: 中の増減 | AJ81: =+データ一覧!$A$324 -> 2年 | AN81: 県支出金 | AR81: =データ一覧!L447 -> 2363111 | AW81: =データ一覧!L461 -> 2517098 | BB81: 消防費 | BF81: =データ一覧!L475 -> 852226 | BK81: =データ一覧!L489 -> 914558 | BQ81: =データ一覧!L686 -> 14 | BV81: =データ一覧!L687 -> 25 | CA81: =データ一覧!L688 -> 0 | CE81: =データ一覧!L689 -> 68666 | CK81: =データ一覧!L690 -> 20 | CO81: =データ一覧!L691 -> 1 | CS81: =データ一覧!L692 -> 89 | CW81: =データ一覧!L693 -> 221
A82: 体 | B82: =+LEFT(データ一覧!$A$213,1) -> 2 | C82: 団体経営体 | G82: =データ一覧!L215 -> 33 | J82: 50万円未満 | O82: =データ一覧!L219 -> 125 | R82: 0.5 ha ～ 1.0 ha | W82: =データ一覧!L235 -> 84 | AD82: 建設した住宅 | AG82: 消失した住宅 | AN82: 財産収入 | AR82: =データ一覧!L448 -> 61153 | AW82: =データ一覧!L462 -> 130591 | BB82: 教育費 | BF82: =データ一覧!L476 -> 2685411 | BK82: =データ一覧!L490 -> 3838604 | BP82: ２０ そ の 他
A83: 数 | B83: ・ | D83: 法人経営 | G83: =データ一覧!L216 -> 17 | J83: 50～300万円 | O83: =データ一覧!L220 -> 224 | R83: 1.0 ha ～ 2.0 ha | W83: =データ一覧!L236 -> 182 | AN83: 繰入金 | AR83: =データ一覧!L449 -> 503105 | AW83: =データ一覧!L463 -> 813800 | BB83: 災害復旧費 | BF83: =データ一覧!L477 -> 0 | BK83: =データ一覧!L491 -> 0
A84: （ | B84: =+RIGHT(データ一覧!$A$213) -> 1 | J84: 300～500万円 | O84: =データ一覧!L221 -> 19 | R84: 2.0 ha ～ 3.0 ha | W84: =データ一覧!L237 -> 85 | AA84: =データ一覧!L321 -> 22715 | AC84: 戸 | AD84: =データ一覧!L322 -> 591 | AF84: 戸 | AG84: =データ一覧!L323 -> 146 | AI84: 戸 | AK84: =データ一覧!L324 -> 23160 | AM84: 戸 | AN84: 地方債 | AR84: =データ一覧!L450 -> 2470800 | AW84: =データ一覧!L464 -> 2741788 | BB84: 公債費 | BF84: =データ一覧!L478 -> 2764628 | BK84: =データ一覧!L492 -> 2653081 | BU84: 西山公園、本山誠照寺、本山證誠寺、王山古墳群、兜山古墳、木地屋資料、旧瓜生家住宅、
A85: 総 | J85: 500～1,000万円 | O85: =データ一覧!L222 -> 20 | R85: 3.0 ha ～ 5.0 ha | W85: =データ一覧!L238 -> 53 | AN85: その他 | AR85: =データ一覧!L451 -> 612044 | AW85: =データ一覧!L465 -> 1809700 | BB85: その他 | BF85: =データ一覧!L479 -> 20000 | BK85: =データ一覧!L493 -> 0 | BP85: 名所・旧跡 | BU85: 春日神社本殿、鳥ヶ森社叢、三六の桜、加多志波神社の追儺面、木造聖観音菩薩立像、
A86: 数 | J86: 1,000万円以上 | O86: =データ一覧!L223 -> 34 | R86: 5.0 ha以上 | W86: =データ一覧!L239 -> 1419 | BP86: 文化財等 | BU86: 日吉神社の相生の大杉、鯖江藩家老植田家長屋門、舟津神社本殿、神明社中雀門、
A87: ） | C87: 15歳以上の常雇い数 | J87: 農業に60日以上従事した世帯員、役員・構成員 （経営主を含む）の平均年齢 | Z87: ９ 議 員 ・ 職 員 | AN87: １４ 文 化 | AX87: ( | AY87: =データ一覧!$A$500 -> 3.3.31 | BC87: ただし図書館・公民館・児童館 | BK87: =データ一覧!$A$494 -> 3.4.1 | BU87: 上河内の薄墨桜、薬師堂古樹林、三峯城跡、萬慶寺本堂天井絵
A88: と | BD88: 宗教法人数 | BK88: =データ一覧!$A$502 -> 2.12.31 | BO88: ） | BP88: 特産物 | BU88: 眼鏡枠、織物、漆器、吉川ナス、ブロッコリー、マルセイユメロン、さばえ菜花、
A89: 就 | J89: 農業に60日以上従事 | R89: 農業に150日以上従事 | Z89: 市 町 村 議 会 | AC89: 有権者数 | AE89: =データ一覧!$A$328 -> 3.9.1 | AG89: 市 町 村 議 会 | AJ89: 職 員 数 | AS89: 図書館 | AY89: 公 民 館 | BJ89: 社会教育学級講座 | BU89: ミディトマト、山うに、さばえ菜花米、川島ごぼう
A90: 業 | C90: 区 分 | G90: 人 | J90: 区 分 | O90: 人 | R90: 区 分 | W90: 人 | Z90: 議 員 定 数 | AC90: 男 | AE90: 女 | AG90: 選 挙 投 票 率 | AJ90: 総 数 | AL90: 一般行政職 | AN90: 公 共 | AR90: 館 数 | AU90: 図書数 | AX90: 本 館 | BA90: 分 館 | BD90: 公 園 | BG90: 児童館 | BJ90: 学級講座数 | BM90: 受講者数 | BP90: 年中行事 | BU90: すりばちやいと(2月20日・3月2日)、誠市(3月～12月第2日曜)、 かたかみ春たんぼ(4月29日)､越前漆器まつり(5月3･4日)､ さばえつつじまつり(5月上旬)、つつじマラソン、 やっしきまつり(7月下旬)、じゃぼんこう(11月17日)
A91: 状 | C91: 総数 | G91: =データ一覧!L230 -> 17 | J91: 総数 | O91: =データ一覧!L224 -> 67.3 | R91: 総数 | W91: =データ一覧!L227 -> 65.3 | AB91: 人 | AD91: 人 | AF91: 人 | AI91: ％ | AK91: 人 | AM91: 人 | AN91: 施 設 数 | AS91: =データ一覧!L494 -> 1 | AU91: =データ一覧!L495 -> 356285 | AY91: =データ一覧!L496 -> 10 | BA91: =データ一覧!L497 -> 0 | BD91: =データ一覧!L498 -> 190 | BG91: =データ一覧!L499 -> 15 | BJ91: =データ一覧!L500 -> 0 | BM91: =データ一覧!L501 -> 0
A92: 況 | C92: 男 | G92: =データ一覧!L231 -> 13 | J92: 男 | O92: =データ一覧!L225 -> 66.9 | R92: 男 | W92: =データ一覧!L228 -> 65 | AA92: =データ一覧!L325 -> 20 | AC92: =データ一覧!L328 -> 27351 | AE92: =データ一覧!L329 -> 29157 | AG92: =データ一覧!L327 -> 53.07 | AJ92: =データ一覧!L330 -> 393 | AL92: =データ一覧!L331 -> 257 | AN92: 宗 教 | AR92: 仏教系 | AU92: ｷﾘｽﾄ教系 | AX92: 神道諸派 | BA92: 公会堂・市民会館 | BG92: テレビ | BJ92: 衛星放送契約数
C93: 女 | G93: =データ一覧!L232 -> 4 | J93: 女 | O93: =データ一覧!L226 -> 68.6 | R93: 女 | W93: =データ一覧!L229 -> 66 | AG93: =データ一覧!L326 -> 元.6.30 | AN93: 法 人 数 | AR93: =データ一覧!L502 -> 111 | AU93: =データ一覧!L503 -> 3 | AX93: =データ一覧!L504 -> 63 | BA93: =データ一覧!L505 -> 5 | BG93: 等 | BJ93: =データ一覧!L506 -> 15435

Sheet あわら市
A1: =+データ一覧!M2 -> 0
A2: =+データ一覧!M5 -> 0
AN3: 0
AB4: 【市章とそのいわれ】あわら市の頭文字である、アルファベット | AN4: 【位置および地勢】あわら市は、福井県の最北端に位置し、西および南は | BS4: 所在地 | CA4: 〒919-0692
AB5: 小文字の「a」をモチーフにデザイン化した。 | AO5: 坂井市、北東は石川県加賀市に隣接し、北西は日本海に面している。 | CA5: あわら市市姫三丁目１番１号
A6: =+データ一覧!M3 -> あわらし | AB6: 緑の山並みをバックに、自然に囲まれ、黄色く | AO6: 面積は、116.98ｋ㎡で、地形は北部の丘陵地、南西部の平坦地、東部の
A7: =データ一覧!M6 -> あわら市 | AB7: 輝くあわら市を表現している。 | AO7: 山岳地帯と大きく３つに分かれており、南北に北潟湖が横たわり、東西には | BS7: 電話番号 | CA7: （０７７６）７３－１２２１
AO8: 竹田川が流れている。美しい日本海と静かな湖や川、優れた泉質の温泉、 | BS8: FAX番号 | CA8: 〃 ７３－１３５０
AO9: 太陽をいっぱいあびた農作物など、自然の恵みにあふれたところである。
AB10: 0 | AO10: 気候は、北陸地方の中でも比較的温暖で、気象環境は過ごしやすいものと | BS10: 最寄駅および距離 | CA10: ＪＲ北陸本線芦原温泉駅 下車８００ｍ
AB11: 0 | AO11: なっている。
AB13: 【市が掲げる標語】暮らしやすくて 幸せを実感できるまち | BS13: ホームページ | CA13: http://www.city.awara.lg.jp/
A15: １ 土 地 | Z15: =データ一覧!$A$240 -> 2年 | AA15: 産米収穫量 | AD15: 収 穫 量 | AG15: 作 付 面 積 | AJ15: 10a当たり収量 | BP15: １５ 労 働 | CE15: 27.10.1
AD16: =データ一覧!$M$240 -> 9650 | AF16: t | AG16: =データ一覧!$M$241 -> 1810 | AI16: ha | AJ16: =データ一覧!M242 -> 532 | AM16: kg | AN16: １０ 工 業 | BB16: =データ一覧!$A$332 -> 2.6.1（令和元年実績）
A17: 総 面 積 | K17: 固 定 資 産 概 要 調 書 に よ る 地 目 別 面 積 | AC17: 総 数 | AG17: うち 田 | AK17: うち 畑 | BW17: 産業別就業者数
C18: =データ一覧!$A$7 -> 3.10.1 | Q18: =データ一覧!$A$9 -> 3.1.1 | Z18: 耕 地 面 積 | AD18: ha | AG18: ha | AK18: ha | AO18: 産業分類 | AW18: 事業所数 | BB18: 従業者数 | BH18: 年間製造品出荷額等 | BQ18: 区 分 | BV18: 総 数 | CA18: 男 | CE18: 女 | CI18: 区 分 | CN18: 総 数 | CS18: 男 | CW18: 女
G19: ㎢ | K19: 総 数 | P19: う ち 田 | U19: う ち 畑 | Z19: =データ一覧!A243 -> 2.7.15 | AC19: =データ一覧!$M$243 -> 3420 | AF19: =データ一覧!$M$244 -> 2600 | AJ19: =データ一覧!$M$245 -> 819 | AZ19: 事業所 | BB19: 人 | BE19: 人 | BG19: 万円 | BN19: 万円 | BV19: 人 | CB19: 人 | CF19: 人 | CN19: 人 | CR19: 人 | CV19: 人
D20: =データ一覧!M7 -> 116.98 | O20: ha | T20: ha | Y20: ha | Z20: 農 業 生 産 物 | AD20: 作 付 面 積 | AG20: 収 穫 量 | AJ20: 10a当たり収量 | AO20: 総数 | AX20: =データ一覧!M332 -> 76 | BB20: =+データ一覧!M357 -> 4330 | BI20: =データ一覧!M382 -> 18566740 | BP20: 総 数 | BV20: =BZ20+CD20 -> 15132 | BZ20: =データ一覧!M507 -> 8033 | CD20: =データ一覧!M532 -> 7099
L21: =データ一覧!M9 -> 8974.2 | Q21: =データ一覧!M10 -> 2676.3 | V21: =データ一覧!M11 -> 892.9 | Z21: =データ一覧!$A$246 -> 2年中 | AD21: ha | AG21: t | AJ21: kg | AN21: 食料品 | AO21: 食料品 | AX21: =データ一覧!M333 -> 1 | BB21: =+データ一覧!M358 -> 34 | BI21: =データ一覧!M383 -> x | CI21: 卸売業,小売業 | CN21: =CR21+CV21 -> 2070 | CR21: =データ一覧!M520 -> 912 | CV21: =データ一覧!M545 -> 1158
A22: 町 ･ 丁 ･ 大 字 | K22: う ち 宅 地 | P22: う ち 山 林 | U22: う ち 原 野 | Z22: 水 稲 | AD22: =データ一覧!M246 -> 1810 | AG22: =データ一覧!M247 -> 9650 | AJ22: =データ一覧!M248 -> 532 | AN22: 飲料・飼料 | AO22: 飲料・飼料 | AX22: =データ一覧!M334 -> 0 | BB22: =+データ一覧!M359 -> 0 | BI22: =データ一覧!M384 -> 0 | BP22: 第１次産業 | BV22: =BZ22+CD22 -> 923 | BZ22: =データ一覧!M508 -> 610 | CD22: =データ一覧!M533 -> 313 | CI22: 金融業,保険業 | CN22: =CR22+CV22 -> 314 | CR22: =データ一覧!M521 -> 130 | CV22: =データ一覧!M546 -> 184
A23: 区 画 数 | H23: =データ一覧!M8 -> 125 | O23: ha | T23: ha | Y23: ha | Z23: 六 条 大 麦 | AD23: =データ一覧!M249 -> 548 | AG23: =データ一覧!M250 -> 1800 | AJ23: =データ一覧!M251 -> 328 | AN23: 繊維 | AO23: 繊維 | AX23: =データ一覧!M335 -> 21 | BB23: =+データ一覧!M360 -> 479 | BI23: =データ一覧!M385 -> 562721 | BQ23: 農業 | BV23: =BZ23+CD23 -> 893 | BZ23: =データ一覧!M509 -> 583 | CD23: =データ一覧!M534 -> 310 | CI23: 不動産業 | CN23: 90 | CR23: =データ一覧!M522 -> 55 | CV23: =データ一覧!M547 -> 35
A24: =データ一覧!$A$8 -> 2.4.1 | L24: =データ一覧!M12 -> 873.2 | Q24: =データ一覧!M13 -> 2168.9 | V24: =データ一覧!M14 -> 94.9 | Z24: 大 豆 | AD24: =データ一覧!M252 -> 331 | AG24: =データ一覧!M253 -> 358 | AJ24: =データ一覧!M254 -> 108 | AN24: 衣服 | AO24: 木材 | AX24: =データ一覧!M336 -> 0 | BB24: =+データ一覧!M361 -> 0 | BI24: =データ一覧!M386 -> 0 | BQ24: 林業 | BV24: 24 | BZ24: =データ一覧!M510 -> 21 | CD24: =データ一覧!M535 -> 3 | CI24: 学術研究 | CN24: 322 | CR24: =データ一覧!M523 -> 209 | CV24: =データ一覧!M548 -> 113
A25: ２ 世 帯 数 と 人 口 | AB25: 区 分 | AD25: 乳 用 牛 | AF25: 肉 用 牛 | AH25: 豚 | AJ25: 採卵鶏 | AL25: ブロイラー | AN25: 木材 | AO25: 家具 | AX25: =データ一覧!M337 -> 2 | BB25: =+データ一覧!M362 -> 34 | BI25: =データ一覧!M387 -> x | BQ25: 漁業 | BV25: 6 | BZ25: =データ一覧!M511 -> 6 | CD25: =データ一覧!M536 -> 0 | CI25: 宿泊業,飲食ｻｰﾋﾞｽ | CN25: 1238 | CR25: =データ一覧!M524 -> 447 | CV25: =データ一覧!M549 -> 791
Z26: 畜 産 | AB26: 飼養農家 | AD26: =データ一覧!$M$255 -> 2 | AF26: =データ一覧!$M$257 -> 0 | AH26: =データ一覧!$M$259 -> - | AJ26: =データ一覧!$M$261 -> 2 | AL26: =データ一覧!$M$263 -> 0 | AN26: 家具 | AO26: パルプ・紙 | AX26: =データ一覧!M338 -> 3 | BB26: =+データ一覧!M363 -> 188 | BI26: =データ一覧!M388 -> 2382227 | BP26: 第２次産業 | BV26: 4711 | BZ26: =データ一覧!M512 -> 3153 | CD26: =データ一覧!M537 -> 1558 | CI26: 生活関連ｻｰﾋﾞｽ業 | CN26: 593 | CR26: =データ一覧!M525 -> 212 | CV26: =データ一覧!M550 -> 381
I27: 人 口 | U27: １世帯当 | W27: 人 口 | Z27: =データ一覧!$A$255 -> 3.3.31 | AB27: （戸） | AN27: パルプ・紙 | AO27: 印刷 | AX27: =データ一覧!M339 -> 2 | BB27: =+データ一覧!M364 -> 13 | BI27: =データ一覧!M389 -> x | BQ27: 鉱業，採石業 | BV27: 1 | BZ27: =データ一覧!M513 -> 1 | CD27: =データ一覧!M538 -> 0 | CI27: 教育,学習支援業 | CN27: 685 | CR27: =データ一覧!M526 -> 268 | CV27: =データ一覧!M551 -> 417
A28: 区 分 | F28: 世帯数 | I28: 総 数 | L28: 男 | O28: 女 | R28: 男／女 | U28: たり人員 | W28: 密 度 | AB28: 頭 羽 | AD28: =データ一覧!$M$256 -> 138 | AF28: =データ一覧!$M$258 -> 0 | AH28: =データ一覧!$M$260 -> 0 | AJ28: =データ一覧!$M$262 -> 200350 | AL28: =データ一覧!$M$264 -> 0 | AN28: 出版・印刷 | AO28: 化学 | AX28: =データ一覧!M340 -> 2 | BB28: =+データ一覧!M365 -> 903 | BI28: =データ一覧!M390 -> x | BQ28: 建設業 | BV28: 1032 | BZ28: =データ一覧!M514 -> 863 | CD28: =データ一覧!M539 -> 169 | CI28: 医療，福祉 | CN28: 1697 | CR28: =データ一覧!M527 -> 365 | CV28: =データ一覧!M552 -> 1332
F29: 世 帯 | I29: 人 | L29: 人 | O29: 人 | S29: ％ | U29: 人 | W29: 人/㎢ | AN29: 化学 | AO29: 石油・石炭 | AX29: =データ一覧!M341 -> 0 | BB29: =+データ一覧!M366 -> 0 | BI29: =データ一覧!M391 -> 0 | BQ29: 製造業 | BV29: 3678 | BZ29: =データ一覧!M515 -> 2289 | CD29: =データ一覧!M540 -> 1389 | CI29: 複合サービス事業 | CN29: 232 | CR29: =データ一覧!M528 -> 146 | CV29: =データ一覧!M553 -> 86
A30: =データ一覧!$A$22 -> 2.10.1 | F30: =データ一覧!M22 -> 8708 | I30: =+L30+O30 -> 31743 | L30: =データ一覧!M24 -> 14885 | O30: =データ一覧!M25 -> 16858 | S30: =+L30/O30*100 -> 88.29635781 | U30: =データ一覧!M27 -> 3.65 | W30: =データ一覧!M21 -> 0 | Z30: ５ 林 業 | AN30: 石油・石炭 | AO30: プラスチック | AX30: =データ一覧!M342 -> 5 | BB30: =+データ一覧!M367 -> 102 | BI30: =データ一覧!M392 -> 98239 | BP30: 第３次産業 | BV30: 9345 | BZ30: =データ一覧!M516 -> 4190 | CD30: =データ一覧!M541 -> 5155 | CI30: サービス業 | CN30: 699 | CR30: =データ一覧!M529 -> 418 | CV30: =データ一覧!M554 -> 281
A31: =データ一覧!$A$29 -> 7.10.1 | F31: =データ一覧!M29 -> 9327 | I31: =+L31+O31 -> 32432 | L31: =データ一覧!M31 -> 15174 | O31: =データ一覧!M32 -> 17258 | S31: 87.92444084 | U31: =データ一覧!M34 -> 3.48 | W31: =データ一覧!M28 -> 0 | AN31: プラスチック | AO31: ゴム | AX31: =データ一覧!M343 -> 0 | BB31: =+データ一覧!M368 -> 0 | BI31: =データ一覧!M393 -> 0 | BQ31: 電気･ｶﾞｽ･水道業 | BV31: 50 | BZ31: =データ一覧!M517 -> 40 | CD31: =データ一覧!M542 -> 10 | CI31: 公務 | CN31: 493 | CR31: =データ一覧!M530 -> 346 | CV31: =データ一覧!M555 -> 147
A32: =データ一覧!$A$36 -> 12.10.1 | F32: =データ一覧!M36 -> 9562 | I32: =+L32+O32 -> 32178 | L32: =データ一覧!M38 -> 15072 | O32: =データ一覧!M39 -> 17106 | S32: 88.10943529 | U32: =データ一覧!M41 -> 3.37 | W32: =データ一覧!M35 -> 0 | Z32: 森 林 総 面 積 | AH32: =データ一覧!$A$265 -> 3.3.31 | AN32: ゴム | AO32: 皮革 | AX32: =データ一覧!M344 -> 0 | BB32: =+データ一覧!M369 -> 0 | BI32: =データ一覧!M394 -> 0 | BQ32: 情報通信業 | BV32: 208 | BZ32: =データ一覧!M518 -> 157 | CD32: =データ一覧!M543 -> 51 | CH32: 分類不能の産業 | CN32: 153 | CR32: =データ一覧!M531 -> 80 | CV32: =データ一覧!M556 -> 73
A33: =+データ一覧!$A$43 -> 17.10.1 | F33: =データ一覧!M43 -> 9658 | I33: =+L33+O33 -> 31081 | L33: =データ一覧!M45 -> 14498 | O33: =データ一覧!M46 -> 16583 | S33: 87.42688295 | U33: =データ一覧!M48 -> 3.22 | W33: =データ一覧!M49 -> 265.7 | Z33: 森 林 の 構 成 | AN33: 皮革 | AO33: 窯業・土石 | AX33: =データ一覧!M345 -> 6 | BB33: =+データ一覧!M370 -> 109 | BI33: =データ一覧!M395 -> 486162 | BQ33: 運輸業,郵便業 | BV33: =BZ33+CD33 -> 654 | BZ33: =データ一覧!M519 -> 485 | CD33: =データ一覧!M544 -> 169
A34: =+データ一覧!$A$50 -> 22.10.1 | F34: =+データ一覧!M50 -> 9735 | I34: =+L34+O34 -> 29989 | L34: =+データ一覧!M52 -> 14081 | O34: =+データ一覧!M53 -> 15908 | S34: 88.51521247 | U34: =+データ一覧!M55 -> 3.08 | W34: =+データ一覧!M56 -> 256.3 | AE34: ha | AL34: ha | AN34: 窯業・土石 | AO34: 鉄鋼 | AX34: =データ一覧!M346 -> 0 | BB34: =+データ一覧!M371 -> 0 | BI34: =データ一覧!M396 -> 0 | BP34: １６ 社 会 福 祉 | CF34: =データ一覧!$A$557 -> 3.4.1
A35: =データ一覧!$A$57 -> 27.10.1 | F35: =データ一覧!M57 -> 9697 | I35: =データ一覧!M58 -> 28729 | L35: =データ一覧!M59 -> 13555 | O35: =データ一覧!M60 -> 15174 | S35: 89.33043364 | U35: =データ一覧!M62 -> 2.962668867 | W35: =データ一覧!M63 -> 245.6 | Z35: 総 数 | AD35: =データ一覧!M265 -> 4441.13 | AG35: 天然林 針葉樹 | AK35: =データ一覧!M268 -> 281.25 | AN35: 鉄鋼 | AO35: 非鉄金属 | AX35: =データ一覧!M347 -> 1 | BB35: =+データ一覧!M372 -> 13 | BI35: =データ一覧!M397 -> x
A36: 令 2.10.1（国調） | F36: =データ一覧!M64 -> 9933 | I36: =データ一覧!M65 -> 27524 | L36: =データ一覧!M66 -> 13067 | O36: =データ一覧!M67 -> 14457 | S36: =+L36/O36*100 -> 90.38528049 | U36: =データ一覧!M72 -> 2.73 | W36: =データ一覧!M73 -> 232.022568 | Z36: 人工林 針葉樹 | AD36: =データ一覧!M266 -> 3176.71 | AG36: 天然林 広葉樹 | AK36: =データ一覧!M269 -> 862.69 | AN36: 非鉄金属 | AO36: 金属 | AX36: =データ一覧!M348 -> 7 | BB36: =+データ一覧!M373 -> 388 | BI36: =データ一覧!M398 -> 866771 | BQ36: 区分 | BX36: 施設数 | CC36: 収容定員 | CI36: 区分 | CP36: 施設数 | CU36: 収容定員
A37: 年 | C37: 区 | E37: 0歳 | H37: 15歳 | K37: 25歳 | N37: 35歳 | Q37: 45歳 | T37: 55歳 | W37: 65歳 | Z37: 人工林 広葉樹 | AD37: =データ一覧!M267 -> 25.93 | AG37: 竹 林 | AK37: =データ一覧!M270 -> 15.75 | AN37: 金属 | AO37: はん用機械 | AX37: =データ一覧!M349 -> 3 | BB37: =+データ一覧!M374 -> 36 | BI37: =データ一覧!M399 -> 52141 | BP37: 生活保護施設 | BX37: =データ一覧!M557 -> 0 | CB37: =データ一覧!M570 -> 0 | CF37: 人 | CH37: 指定障害者支援施設 | CP37: =データ一覧!M563 -> 1 | CT37: =データ一覧!M576 -> 50 | CX37: 人
A38: 齢 | B38: 令 | F38: ～ | I38: ～ | L38: ～ | O38: ～ | R38: ～ | U38: ～ | AN38: 一般機械 | AO38: 生産用機械 | AX38: =データ一覧!M350 -> 11 | BB38: =+データ一覧!M375 -> 664 | BI38: =データ一覧!M400 -> 2953611 | BP38: 地域福祉施設 | BX38: =データ一覧!M558 -> 0 | CB38: =データ一覧!M571 -> 0 | CH38: 指定相談支援事業所 | CP38: =データ一覧!M564 -> 3 | CT38: =データ一覧!M577 -> 0
A39: 階 | B39: =+LEFT(データ一覧!$A$83,1) -> 3 | C39: 分 | G39: 14歳 | J39: 24歳 | M39: 34歳 | P39: 44歳 | S39: 54歳 | V39: 64歳 | Y39: 以上 | Z39: 林 野 の 構 成 | AG39: 保 有 形 態 別 | AN39: 電気機械 | AO39: 業務用機械 | AX39: =データ一覧!M351 -> 0 | BB39: =+データ一覧!M376 -> 0 | BI39: =データ一覧!M401 -> 0 | BP39: 老人福祉施設 | BX39: =データ一覧!M559 -> 7 | CB39: =データ一覧!M572 -> 658 | CH39: 児童福祉施設 | CP39: =データ一覧!M565 -> 18 | CT39: =データ一覧!M578 -> 1035
A40: 級 | B40: ・ | G40: 人 | J40: 人 | L40: 人 | O40: 人 | R40: 人 | U40: 人 | X40: 人 | AF40: ha | AL40: ha | AO40: 電子・デバイス | AX40: =データ一覧!M352 -> 7 | BB40: =+データ一覧!M377 -> 1273 | BI40: =データ一覧!M402 -> 4438852 | BP40: 介護保険施設 | BX40: =データ一覧!M560 -> 50 | CB40: =データ一覧!M573 -> 1026 | CH40: 母子福祉施設 | CP40: =データ一覧!M566 -> 0 | CT40: =データ一覧!M579 -> 0
A41: 別 | B41: =+MID(データ一覧!$A$83,3,2) -> 10 | C41: 総 数 | E41: =+E42+E43 -> 2911 | H41: =+H42+H43 -> 2074 | K41: =+K42+K43 -> 2362 | N41: =+N42+N43 -> 2862 | Q41: =+Q42+Q43 -> 3565 | T41: =+T42+T43 -> 3707 | W41: =+W42+W43 -> 9343 | Z41: 無立木地 伐採跡地 | AD41: =データ一覧!M271 -> 7.61 | AG41: 国 有 | AK41: =データ一覧!M273 -> 44.33 | AO41: 電気機械 | AX41: =データ一覧!M353 -> 2 | BB41: =+データ一覧!M378 -> 17 | BI41: =データ一覧!M403 -> x | BP41: 障害者自立支援法施行前からの身体障害者福祉施設 | BX41: =データ一覧!M561 -> 0 | CB41: =データ一覧!M574 -> 0 | CH41: 婦人保護施設 | CP41: =データ一覧!M567 -> 0 | CT41: =データ一覧!M580 -> 0
A42: 人 | B42: ・ | C42: 男 | E42: =データ一覧!M83 -> 1454 | H42: =データ一覧!M84 -> 1055 | K42: =データ一覧!M85 -> 1230 | N42: =データ一覧!M86 -> 1480 | Q42: =データ一覧!M87 -> 1767 | T42: =データ一覧!M88 -> 1786 | W42: =データ一覧!M89 -> 3974 | Z42: 無立木地 未立木地 | AD42: =データ一覧!M272 -> 71.19 | AG42: 公 有 | AK42: =データ一覧!M274 -> 571.91 | AN42: 輸送機械 | AO42: 情報通信機械 | AX42: =データ一覧!M354 -> 0 | BB42: =+データ一覧!M379 -> 0 | BI42: =データ一覧!M404 -> 0 | CH42: その他の社会福祉施設 | CP42: =データ一覧!M568+データ一覧!M569 -> 0 | CT42: =データ一覧!M581+データ一覧!M582 -> 0
A43: 口 | B43: =+RIGHT(データ一覧!$A$83,1) -> 1 | C43: 女 | E43: =データ一覧!M91 -> 1457 | H43: =データ一覧!M92 -> 1019 | K43: =データ一覧!M93 -> 1132 | N43: =データ一覧!M94 -> 1382 | Q43: =データ一覧!M95 -> 1798 | T43: =データ一覧!M96 -> 1921 | W43: =データ一覧!M97 -> 5369 | AG43: 私 有 | AK43: =データ一覧!M275 -> 3824.89 | AN43: 精密機械 | AO43: 輸送機械 | AX43: =データ一覧!M355 -> 2 | BB43: =+データ一覧!M380 -> 70 | BI43: =データ一覧!M405 -> x | BP43: 障害福祉サービス事業所 | BX43: =データ一覧!M562 -> 37 | CB43: =データ一覧!M575 -> 460
Z44: 林 産 物 生 産 量 | AJ44: =データ一覧!$A$276 -> 2年中 | AN44: その他 | AO44: その他 | AX44: =データ一覧!M356 -> 1 | BB44: =+データ一覧!M381 -> 7 | BI44: =データ一覧!M406 -> x | BP44: １７ 教 育 | CF44: =データ一覧!$A$583 -> 3.5.1
A45: 人口動態 | H45: 自 然 動 態 | N45: 社 会 動 態 | T45: =データ一覧!$A78 -> 2.1.1～3.12.31 | Z45: 生椎茸 | AD45: =データ一覧!M276 -> - | AF45: ㎏ | AG45: 乾椎茸 | AK45: =データ一覧!M277 -> - | AM45: ㎏
C46: 区 分 | H46: 出 生 | K46: 死 亡 | N46: 転 入 | Q46: 転 出 | T46: 婚 姻 | W46: 離 婚 | Z46: えのきだけ | AD46: =データ一覧!M279 -> - | AF46: ㎏ | AG46: なめこ | AK46: =データ一覧!M278 -> - | AM46: ㎏ | AO46: 工 業 用 水 量 | AU46: （従業者30人以上の事業所） | BF46: =データ一覧!M407 -> 15845 | BK46: ㎥／日 | BZ46: 学校数（校） | CG46: 教員数（人） | CO46: 学生・生徒・児童数（人）
A47: =LEFT(データ一覧!$A74,6) -> 2.10.1 | H47: 人 | K47: 人 | N47: 人 | Q47: 人 | U47: 件 | X47: 件 | Z47: ひらたけ | AD47: =+データ一覧!M280 -> - | AF47: ㎏ | AG47: まいたけ | AK47: =+データ一覧!M281 -> - | AM47: ㎏ | BR47: 区分 | BZ47: 本 校 | CC47: 分 校 | CF47: 本 務 | CJ47: 兼 務 | CN47: 総 数 | CR47: 男 | CV47: 女
A48: ～ | C48: 実 数 | H48: =データ一覧!M74 -> 71 | K48: =データ一覧!M75 -> 201 | N48: =データ一覧!M76 -> 326 | Q48: =データ一覧!M77 -> 431 | T48: =データ一覧!M78 -> 91 | W48: =データ一覧!M79 -> 33 | AN48: １１ 上 ・ 下 水 道 | BQ48: 小学校 | BZ48: =データ一覧!M584 -> 10 | CC48: =データ一覧!M585 -> 0 | CF48: =データ一覧!M586 -> 109 | CJ48: =データ一覧!M587 -> 20 | CN48: =データ一覧!M588 -> 1218 | CR48: =データ一覧!M589 -> 615 | CV48: =データ一覧!M590 -> 603
A49: =RIGHT(データ一覧!$A76,6) -> 3.9.30 | C49: 比率(対1,000人) | H49: =+H48/I35*1000 -> 2.471370392 | K49: =+K48/I35*1000 -> 6.996414773 | N49: - | Q49: - | T49: =+T48/I35*1000 -> 3.167531066 | W49: =+W48/I35*1000 -> 1.148665112 | Z49: ６ 漁 業 | BQ49: 中学校 | BZ49: =データ一覧!M592 -> 2 | CC49: =データ一覧!M593 -> 0 | CF49: =データ一覧!M594 -> 54 | CJ49: =データ一覧!M595 -> 6 | CN49: =データ一覧!M596 -> 622 | CR49: =データ一覧!M597 -> 311 | CV49: =データ一覧!M598 -> 311
AN50: 水 道 供 給 人 口 | AU50: 上 水 道 | AY50: 簡易水道 | BC50: 専用水道 | BG50: 飲料水供給施設 | BK50: 下水道処理人口 | BQ50: 高等学校 | BZ50: =データ一覧!M600 -> 1 | CC50: =データ一覧!M601 -> 0 | CF50: =データ一覧!M602 -> 49 | CJ50: =データ一覧!M603 -> 10 | CN50: =データ一覧!M604 -> 644 | CR50: =データ一覧!M605 -> 359 | CV50: =データ一覧!M606 -> 285
A51: ３ 事 業 所（民 営） （平 28.6.1） | Z51: 漁船隻数・トン数 | AD51: =データ一覧!$A$282 -> 2.12.31 | AH51: 動 力 船 | AN51: =データ一覧!$A$408 -> 3.3.31 | AT51: 人 | AV51: =データ一覧!M408 -> 24768 | AY51: =データ一覧!M409 -> 2687 | BD51: =データ一覧!M410 -> 0 | BH51: =データ一覧!M411 -> 0 | BL51: =データ一覧!M412 -> 26497 | BQ51: 大学・短期大学 | BZ51: =データ一覧!M607 -> 0 | CC51: =データ一覧!M608 -> 1 | CF51: =データ一覧!M609 -> 8 | CJ51: =データ一覧!M610 -> 0 | CN51: =データ一覧!M611 -> 0 | CR51: =データ一覧!M612 -> 0 | CV51: =データ一覧!M613 -> 0
Z52: 無動力船隻数 | AD52: 船外機付漁船隻数 | AH52: 隻 数 | AK52: 総 ト ン 数 | BQ52: 高等専門学校 | BZ52: =データ一覧!M614 -> 0 | CC52: =データ一覧!M615 -> 0 | CF52: =データ一覧!M616 -> 0 | CJ52: =データ一覧!M617 -> 0 | CN52: =データ一覧!M618 -> 0 | CR52: =データ一覧!M619 -> 0 | CV52: =データ一覧!M620 -> 0
H53: 総 数 | N53: 民 営 | T53: 国 ･ 地方公共団体 | AC53: 隻 | AG53: 隻 | AJ53: 隻 | AM53: t | AN53: １２ 交 通 ・ 通 信 | BQ53: 特別支援学校 | BZ53: =データ一覧!M622 -> 0 | CC53: =データ一覧!M623 -> 0 | CF53: =+データ一覧!M624 -> 0 | CJ53: =+データ一覧!M625 -> 0 | CN53: =+データ一覧!M626 -> 0 | CR53: =+データ一覧!M627 -> 0 | CV53: =+データ一覧!M628 -> 0
A54: 区 分 | H54: 事業所数 | K54: 従業者数 | N54: 事業所数 | Q54: 従業者数 | T54: 事業所数 | W54: 従業者数 | Z54: =データ一覧!$M$282 -> 0 | AD54: =データ一覧!$M$283 -> 28 | AH54: =データ一覧!M284 -> 12 | AK54: =データ一覧!M285 -> 15.24 | BQ54: 幼稚園 | BZ54: =データ一覧!M630 -> 0 | CC54: =データ一覧!M631 -> 0 | CF54: =データ一覧!M632 -> 0 | CJ54: =データ一覧!M633 -> 0 | CN54: =データ一覧!M634 -> 0 | CR54: =データ一覧!M635 -> 0 | CV54: =データ一覧!M636 -> 0
K55: 人 | Q55: 人 | W55: 人 | Z55: 男女別就業者数 | AH55: =データ一覧!$A$286 -> 30.11.1 | AN55: 道 路 | AR55: 実 延 長 | AV55: 国 道 | AZ55: 県 道 | BD55: 市町道 | BH55: 鉄 道 営 業 キ ロ 数 | BQ55: 幼保連携認定こども園 | BZ55: =データ一覧!M638 -> 12 | CC55: =データ一覧!M639 -> 0 | CF55: =データ一覧!M640 -> 208 | CJ55: =データ一覧!M641 -> 2 | CN55: =データ一覧!M642 -> 870 | CR55: =データ一覧!M643 -> 434 | CV55: =データ一覧!M644 -> 436
A56: 総数 | H56: =データ一覧!M99 -> … | K56: =データ一覧!M156 -> … | N56: =データ一覧!M100 -> 1282 | Q56: =データ一覧!M157 -> 13756 | T56: =データ一覧!M101 -> … | W56: =データ一覧!M158 -> … | Z56: 総 数 | AF56: 男 | AJ56: 女 | AN56: =データ一覧!$A$413 -> 2.4.1 | AR56: =データ一覧!M413 -> 415.5 | AU56: ㎞ | AV56: =データ一覧!M414 -> 11.2 | AY56: ㎞ | AZ56: =データ一覧!M415 -> 70.9 | BC56: ㎞ | BD56: =データ一覧!M416 -> 333.4 | BG56: km | BH56: =データ一覧!$A$417 -> 3.4.1 | BL56: =データ一覧!M417 -> 14.772 | BO56: ㎞ | BQ56: 各種学校 | BZ56: =データ一覧!M646 -> - | CC56: =データ一覧!M647 -> 0 | CF56: =データ一覧!M648 -> - | CJ56: =データ一覧!M649 -> 0 | CN56: =データ一覧!M650 -> 0 | CR56: =データ一覧!M651 -> - | CV56: =データ一覧!M652 -> -
A57: 農林漁業 | H57: =データ一覧!M102 -> … | K57: =データ一覧!M159 -> … | N57: =データ一覧!M103 -> 24 | Q57: =データ一覧!M160 -> 285 | T57: =データ一覧!M104 -> … | W57: =データ一覧!M161 -> … | AE57: 人 | AH57: 人 | AM57: 人 | AN57: 自動車 | AW57: 乗用車 | BQ57: 専修学校 | BZ57: =データ一覧!M654 -> 0 | CC57: =データ一覧!M655 -> 0 | CF57: =データ一覧!M656 -> 0 | CJ57: =データ一覧!M657 -> 0 | CN57: =データ一覧!M658 -> 0 | CR57: =データ一覧!M659 -> 0 | CV57: =データ一覧!M660 -> 0
A58: 鉱業 | H58: =データ一覧!M105 -> … | K58: =データ一覧!M162 -> … | N58: =データ一覧!M106 -> 1 | Q58: =データ一覧!M163 -> 4 | T58: =データ一覧!M107 -> … | W58: =データ一覧!M164 -> … | Z58: =SUM(AF58,AJ58) -> 42 | AF58: =データ一覧!$M$287 -> 41 | AJ58: =データ一覧!M288 -> 1 | AN58: 台 数 | AR58: 貨 物 | AV58: 普 通 | AZ58: 小 型 | BD58: 乗 合 | BG58: 特 種 | BJ58: 小型二輪 | BM58: 軽自動車 | BP58: １８ 衛 生
A59: 建設業 | H59: =データ一覧!M108 -> … | K59: =データ一覧!M165 -> … | N59: =データ一覧!M109 -> 142 | Q59: =データ一覧!M166 -> 686 | T59: =データ一覧!M110 -> … | W59: =データ一覧!M167 -> … | Z59: 海 面 漁 業 漁 獲 量 （属人） | AH59: =データ一覧!$A$289 -> 30年中 | AN59: =データ一覧!$A$418 -> 3.3.31 | AS59: =データ一覧!M418 -> 2704 | AW59: =データ一覧!M420 -> 12995 | BA59: =データ一覧!M421 -> 12960 | BD59: =データ一覧!M419 -> 97 | BG59: =データ一覧!M422 -> 825 | BJ59: =データ一覧!M423 -> 751 | BM59: =データ一覧!M424 -> 24680
A60: 製造業 | H60: =データ一覧!M111 -> … | K60: =データ一覧!M168 -> … | N60: =データ一覧!M112 -> 166 | Q60: =データ一覧!M169 -> 4684 | T60: =データ一覧!M113 -> … | W60: =データ一覧!M170 -> … | AF60: ｔ | AM60: t | AR60: 郵 便 局 数 | BF60: =+MID(データ一覧!$A$428,3,2) -> 12 | BG60: 令 | BH60: 一般加入 | BL60: ＩＮＳネット | BT60: 医療関係施設 | BZ60: =データ一覧!$A$661 -> 元.10.1 | CG60: および医療関係者数 | CO60: =データ一覧!$A$666 -> 30.12.31
A61: 電気・ｶﾞ ｽ・熱供給・水道業 | H61: =データ一覧!M114 -> … | K61: =データ一覧!M171 -> … | N61: =データ一覧!M115 -> 0 | Q61: =データ一覧!M172 -> 0 | T61: =データ一覧!M116 -> … | W61: =データ一覧!M173 -> … | Z61: 総 数 | AD61: =データ一覧!M289 -> 3 | AG61: 藻 類 | AK61: =データ一覧!M292 -> 1 | AN61: 通 信 | AR61: 総 数 | AW61: 郵 便 局 | BB61: 簡 易 局 | BF61: ・ | BG61: =+LEFT(データ一覧!$A$428,1) -> 2 | BH61: 電話数 | BL61: 加入数 | BW61: 病 | BZ61: 院 | CH61: 一般診療所 | CT61: 歯科診療所
A62: 情報通信業 | H62: =データ一覧!M117 -> … | K62: =データ一覧!M174 -> … | N62: =データ一覧!M118 -> 2 | Q62: =データ一覧!M175 -> 10 | T62: =データ一覧!M119 -> … | W62: =データ一覧!M176 -> … | Z62: 魚 類 | AD62: =データ一覧!M290 -> 2 | AG62: そ の 他 | AK62: =データ一覧!M293 -> 0 | AN62: =データ一覧!$A$428 -> 2.12.31 | AR62: =データ一覧!M425 -> 9 | AW62: =データ一覧!M426 -> 7 | BB62: =データ一覧!M427 -> 2 | BF62: =+RIGHT(データ一覧!$A$428,2) -> 31 | BG62: ・ | BH62: =データ一覧!M428 -> 2330 | BL62: =データ一覧!M429 -> 428 | BQ62: 医療関係 | CC62: 一般病院 | CO62: 有 | CR62: 床
A63: 運輸業、郵便業 | H63: =データ一覧!M120 -> … | K63: =データ一覧!M177 -> … | N63: =データ一覧!M121 -> 32 | Q63: =データ一覧!M178 -> 1199 | T63: =データ一覧!M122 -> … | W63: =データ一覧!M179 -> … | Z63: 貝 類 | AD63: =データ一覧!M291 -> 1 | BQ63: 施設数 | BX63: =データ一覧!M661 -> 3 | CD63: =データ一覧!M662 -> 3 | CJ63: =データ一覧!M663 -> 15 | CP63: =データ一覧!M664 -> 0 | CV63: =データ一覧!M665 -> 9
A64: 卸売業、小売業 | H64: =データ一覧!M123 -> … | K64: =データ一覧!M180 -> … | N64: =データ一覧!M124 -> 291 | Q64: =データ一覧!M181 -> 1655 | T64: =データ一覧!M125 -> … | W64: =データ一覧!M182 -> … | AN64: １３ 税 ・ 財 政 | BW64: 医師 | CB64: 歯科医師 | CG64: 薬剤師 | CL64: 保健師 | CQ64: 助産師 | CV64: 看護師
A65: 金融業、保険業 | H65: =データ一覧!M126 -> … | K65: =データ一覧!M183 -> … | N65: =データ一覧!M127 -> 15 | Q65: =データ一覧!M184 -> 143 | T65: =データ一覧!M128 -> … | W65: =データ一覧!M185 -> … | Z65: ７ 商 業 | AG65: =データ一覧!$A$294 -> 28.6.1(平成27年実績） | BQ65: 医療 | BZ65: 人 | CE65: 人 | CJ65: 人 | CO65: 人 | CT65: 人 | CY65: 人
A66: 不動産業、物品賃貸業 | H66: =データ一覧!M129 -> … | K66: =データ一覧!M186 -> … | N66: =データ一覧!M130 -> 19 | Q66: =データ一覧!M187 -> 37 | T66: =データ一覧!M131 -> … | W66: =データ一覧!M188 -> … | AR66: 歳入 | BA66: (千円） | BF66: 歳出 | BO66: (千円） | BQ66: 関係者 | BV66: =データ一覧!M666 -> 39 | CA66: =データ一覧!M667 -> 16 | CF66: =データ一覧!M668 -> 52 | CK66: =データ一覧!M669 -> 22 | CP66: =データ一覧!M670 -> 3 | CU66: =データ一覧!M671 -> 312
A67: 学術研究、専門・技術ｻｰﾋﾞｽ業 | H67: =データ一覧!M132 -> … | K67: =データ一覧!M189 -> … | N67: =データ一覧!M133 -> 33 | Q67: =データ一覧!M190 -> 116 | T67: =データ一覧!M134 -> … | W67: =データ一覧!M191 -> … | Z67: 産 業 分 類 | AD67: 商 店 数 | AG67: 従 業 者 数 | AJ67: 年 間 販 売 額 | AN67: 一人当たり歳入歳出予算決算額 | BY67: 死因別死亡数 | CO67: =データ一覧!$A$672 -> 2年中 | CX67: 単 位：人
A68: 宿泊業、飲食サービス業 | H68: =データ一覧!M135 -> … | K68: =データ一覧!M192 -> … | N68: =データ一覧!M136 -> 202 | Q68: =データ一覧!M193 -> 1686 | T68: =データ一覧!M137 -> … | W68: =データ一覧!M194 -> … | AE68: 店 | AI68: 人 | AK68: 百万円 | AN68: 区分 | AR68: =データ一覧!$A$438 -> 3年度 | AW68: =データ一覧!$A$452 -> 2年度 | BB68: 区分 | BF68: =+AR68 -> 3年度 | BK68: =データ一覧!$A$452 -> 2年度 | BP68: 死 因 | CB68: 悪 性 | CE68: 高血圧 | CK68: 脳血管 | CT68: 不慮の事故
A69: 生活関連サービス業、娯楽業 | H69: =データ一覧!M138 -> … | K69: =データ一覧!M195 -> … | N69: =データ一覧!M139 -> 127 | Q69: =データ一覧!M196 -> 564 | T69: =データ一覧!M140 -> … | W69: =データ一覧!M197 -> … | Z69: 総 計 | AD69: =データ一覧!M294 -> 253 | AG69: =データ一覧!M303 -> 1390 | AJ69: =データ一覧!M312 -> 24938 | AR69: =データ一覧!M434 -> 563153.1575 | AW69: =データ一覧!M435 -> 696830.956 | BF69: =データ一覧!M436 -> 563153.1575 | BK69: =データ一覧!M437 -> 663741.7403 | BU69: 全 死 因 | BY69: 結 核 | CB69: 新生物 | CE69: 性疾患 | CH69: 心疾患 | CK69: 疾 患 | CN69: 肺 炎 | CQ69: 老 衰 | CW69: 交通事故
A70: 教育、学習支援業 | H70: =データ一覧!M141 -> … | K70: =データ一覧!M198 -> … | N70: =データ一覧!M142 -> 32 | Q70: =データ一覧!M199 -> 205 | T70: =データ一覧!M143 -> … | W70: =データ一覧!M200 -> … | Z70: 卸売業 | AD70: =データ一覧!M295 -> 32 | AG70: =データ一覧!M304 -> 232 | AJ70: =データ一覧!M313 -> 8458 | AN70: 項目別歳入歳出予算決算額
A71: 医療、福祉 | H71: =データ一覧!M144 -> … | K71: =データ一覧!M201 -> … | N71: =データ一覧!M145 -> 81 | Q71: =データ一覧!M202 -> 1484 | T71: =データ一覧!M146 -> … | W71: =データ一覧!M203 -> … | Z71: 小売業 | AD71: =データ一覧!M296 -> 221 | AG71: =データ一覧!M305 -> 1158 | AJ71: =データ一覧!M314 -> 16481 | AN71: 区分 | AR71: =データ一覧!$A$438 -> 3年度 | AW71: =データ一覧!$A$452 -> 2年度 | BB71: 区分 | BF71: =+AR71 -> 3年度 | BK71: =データ一覧!$A$452 -> 2年度 | BU71: =データ一覧!M672 -> 381 | BY71: － | BZ71: =データ一覧!M673 -> 0 | CB71: =データ一覧!M674 -> 17 | CF71: =データ一覧!M675 -> 8 | CH71: =データ一覧!M676 -> 1 | CK71: =データ一覧!M677 -> 0 | CN71: =データ一覧!M678 -> 39 | CQ71: =データ一覧!M679 -> 24 | CT71: =データ一覧!M680 -> 6 | CW71: =データ一覧!M681 -> 0
A72: 複合サービス事業 | H72: =データ一覧!M147 -> … | K72: =データ一覧!M204 -> … | N72: =データ一覧!M148 -> 13 | Q72: =データ一覧!M205 -> 128 | T72: =データ一覧!M149 -> … | W72: =データ一覧!M206 -> … | Z72: 各種商品 | AD72: =データ一覧!M297 -> 0 | AG72: =データ一覧!M306 -> 0 | AJ72: =データ一覧!M315 -> 0 | AN72: 総額 | AR72: =SUM(AR73:AV85) -> 15285103 | AW72: =SUM(AW73:BA85) -> 18896072 | BB72: 総額 | BF72: =SUM(BF73:BJ85) -> 15285103 | BK72: =SUM(BK73:BO85) -> 18100901 | BP72: １９ 警 察 ・ 消 防 | CF72: =+データ一覧!$A682 -> 3.4.1
A73: サービス業 | H73: =データ一覧!M150 -> … | K73: =データ一覧!M207 -> … | N73: =データ一覧!M151 -> 102 | Q73: =データ一覧!M208 -> 870 | T73: =データ一覧!M152 -> … | W73: =データ一覧!M209 -> … | Z73: 織物・衣服・身の回り品 | AD73: =データ一覧!M298 -> 23 | AG73: =データ一覧!M307 -> 78 | AJ73: =データ一覧!M316 -> 764 | AN73: 地方税 | AR73: =データ一覧!M439 -> 4194037 | AW73: =データ一覧!M453 -> 4535105 | BB73: 議会費 | BF73: =データ一覧!M467 -> 173924 | BK73: =データ一覧!M481 -> 147923
A74: 公務 | H74: =データ一覧!M153 -> … | K74: =データ一覧!M210 -> … | N74: =データ一覧!M154 -> … | Q74: =データ一覧!M211 -> … | T74: =データ一覧!M155 -> … | W74: =データ一覧!M212 -> … | Z74: 飲食料品 | AD74: =データ一覧!M299 -> 89 | AG74: =データ一覧!M308 -> 525 | AJ74: =データ一覧!M317 -> 6676 | AN74: 地方譲与税 | AR74: =データ一覧!M440 -> 127500 | AW74: =データ一覧!M454 -> 130666 | BB74: 総務費 | BF74: =データ一覧!M468 -> 1616459 | BK74: =データ一覧!M482 -> 4619582 | BZ74: 交番・駐在所 | CI74: 刑法犯認知件数 | CR74: 交通人身事故発生件数
A75: ４ 農 業 | Z75: 機械器具 | AD75: =データ一覧!M300 -> 31 | AG75: =データ一覧!M309 -> 122 | AJ75: =データ一覧!M318 -> 1820 | AN75: 各種交付金 | AR75: =データ一覧!M441 -> 798300 | AW75: =データ一覧!M455 -> 713536 | BB75: 民生費 | BF75: =データ一覧!M469 -> 4718487 | BK75: =データ一覧!M483 -> 4665996 | BQ75: 警察署数 | BZ75: 検問所数 | CJ75: =データ一覧!$A$684 -> 2年中 | CS75: =データ一覧!$A$684 -> 2年中
Z76: その他 | AD76: =データ一覧!M301 -> 75 | AG76: =データ一覧!M310 -> 391 | AJ76: =データ一覧!M319 -> x | AN76: 地方特例交付金 | AR76: =データ一覧!M442 -> 100000 | AW76: =データ一覧!M456 -> 25049 | BB76: 衛生費 | BF76: =データ一覧!M470 -> 949086 | BK76: =データ一覧!M484 -> 826040 | CN76: 件 | CW76: 件
C77: 農業経営体数 | J77: 農産物販売額規模別経営体数 | R77: 経営耕地面積規模別経営体数 | Z77: 無店舗 | AD77: =データ一覧!M302 -> 3 | AG77: =データ一覧!M311 -> 42 | AJ77: =データ一覧!M320 -> x | AN77: 地方交付税 | AR77: =データ一覧!M443 -> 2580000 | AW77: =データ一覧!M457 -> 3388313 | BB77: 労働費 | BF77: =データ一覧!M471 -> 40248 | BK77: =データ一覧!M485 -> 30592 | BR77: =データ一覧!M682 -> 1 | CA77: =データ一覧!M683 -> 6 | CJ77: =データ一覧!M684 -> 90 | CS77: =データ一覧!M685 -> 28
A78: 農 | C78: 区 分 | G78: 経営体数 （経営体） | J78: 区 分 | O78: 経営体数 （経営体） | R78: 区 分 | W78: 経営体数 （経営体） | AN78: 分担金および負担金 | AR78: =データ一覧!M444 -> 105566 | AW78: =データ一覧!M458 -> 218062 | BB78: 農林水産業費 | BF78: =データ一覧!M472 -> 802172 | BK78: =データ一覧!M486 -> 742410 | BP78: 火災発生件数 | BZ78: 林野焼損 | CE78: 損 害 | CJ78: 消 防 自 | CN78: その他の
A79: 業 | B79: 令 | Z79: ８ 住 宅 | AN79: 使用料および手数料 | AR79: =データ一覧!M445 -> 195514 | AW79: =データ一覧!M459 -> 164083 | BB79: 商工費 | BF79: =データ一覧!M473 -> 423859 | BK79: =データ一覧!M487 -> 707099 | BP79: =+データ一覧!$A$686 -> 2年中 | BU79: 焼損棟数 | BZ79: 面 積 | CE79: 見 積 額 | CJ79: 動 車 数 | CN79: ﾎﾟﾝﾌﾟ数 | CR79: 消防吏員 | CV79: 消防団員
A80: 経 | B80: =+LEFT(データ一覧!$A$213) -> 2 | C80: 計 | G80: =データ一覧!M213 -> 508 | J80: 総 数 | O80: =データ一覧!M217 -> 508 | R80: 総 数 | W80: =データ一覧!M233 -> 2560 | AN80: 国庫支出金 | AR80: =データ一覧!M446 -> 2294329 | AW80: =データ一覧!M460 -> 5434590 | BB80: 土木費 | BF80: =データ一覧!M474 -> 2955234 | BK80: =データ一覧!M488 -> 2736186 | BP80: 件 | BV80: 棟 | CC80: ａ | CG80: 千円 | CT80: 人 | CX80: 人
A81: 営 | B81: ・ | C81: 個人経営体 | G81: =データ一覧!M214 -> 457 | J81: 販 売 な し | O81: =データ一覧!M218 -> 14 | R81: 0.5 ha 未満 | W81: =データ一覧!M234 -> 31 | Z81: =+データ一覧!$A$321 -> 令和元年 | AE81: =データ一覧!$A$324 -> 2年 | AF81: 中の増減 | AJ81: =+データ一覧!$A$324 -> 2年 | AN81: 県支出金 | AR81: =データ一覧!M447 -> 1455476 | AW81: =データ一覧!M461 -> 1246035 | BB81: 消防費 | BF81: =データ一覧!M475 -> 549786 | BK81: =データ一覧!M489 -> 602714 | BQ81: =データ一覧!M686 -> 8 | BV81: =データ一覧!M687 -> 7 | CA81: =データ一覧!M688 -> 0 | CE81: =データ一覧!M689 -> 6304 | CK81: =データ一覧!M690 -> 16 | CO81: =データ一覧!M691 -> 2 | CS81: =データ一覧!M692 -> 45 | CW81: =データ一覧!M693 -> 249
A82: 体 | B82: =+LEFT(データ一覧!$A$213,1) -> 2 | C82: 団体経営体 | G82: =データ一覧!M215 -> 51 | J82: 50万円未満 | O82: =データ一覧!M219 -> 113 | R82: 0.5 ha ～ 1.0 ha | W82: =データ一覧!M235 -> 86 | AD82: 建設した住宅 | AG82: 消失した住宅 | AN82: 財産収入 | AR82: =データ一覧!M448 -> 38722 | AW82: =データ一覧!M462 -> 65626 | BB82: 教育費 | BF82: =データ一覧!M476 -> 1487058 | BK82: =データ一覧!M490 -> 1566709 | BP82: ２０ そ の 他
A83: 数 | B83: ・ | D83: 法人経営 | G83: =データ一覧!M216 -> 46 | J83: 50～300万円 | O83: =データ一覧!M220 -> 253 | R83: 1.0 ha ～ 2.0 ha | W83: =データ一覧!M236 -> 215 | AN83: 繰入金 | AR83: =データ一覧!M449 -> 1141104 | AW83: =データ一覧!M463 -> 571768 | BB83: 災害復旧費 | BF83: =データ一覧!M477 -> 1300 | BK83: =データ一覧!M491 -> 8101
A84: （ | B84: =+RIGHT(データ一覧!$A$213) -> 1 | J84: 300～500万円 | O84: =データ一覧!M221 -> 29 | R84: 2.0 ha ～ 3.0 ha | W84: =データ一覧!M237 -> 105 | AA84: =データ一覧!M321 -> 12982 | AC84: 戸 | AD84: =データ一覧!M322 -> 106 | AF84: 戸 | AG84: =データ一覧!M323 -> 136 | AI84: 戸 | AK84: =データ一覧!M324 -> 12952 | AM84: 戸 | AN84: 地方債 | AR84: =データ一覧!M450 -> 1606200 | AW84: =データ一覧!M464 -> 1419538 | BB84: 公債費 | BF84: =データ一覧!M478 -> 1544792 | BK84: =データ一覧!M492 -> 1447549 | BU84: あわら温泉、芦湯（足湯）、セントピアあわら、あわら温泉屋台村 湯けむり横丁、藤野厳九郎記念館、越前加賀海岸国定公園、あわら北潟湖畔花菖蒲園、北潟湖畔公園、夢ぐるま公園、刈安山森林自然公園、金津創作の森美術館、あわら市郷土歴史資料館、桑野遺跡出土品、吉崎御坊跡、越前加賀県境の館、横山古墳群、椚古墳（石室）、千束一里塚、本荘春日神社本殿、紙本著色法然上人図像（福円寺）絹本著色梅山聞本禅師像（龍澤寺）、絹本著色龍澤寺三祖像（龍澤寺）木造執金剛神像（安楽寺）、石造狛犬（永正十二年銘）、どっしゃどっしゃ踊り、多賀谷左近三経公墓所
A85: 総 | J85: 500～1,000万円 | O85: =データ一覧!M222 -> 30 | R85: 3.0 ha ～ 5.0 ha | W85: =データ一覧!M238 -> 98 | AN85: その他 | AR85: =データ一覧!M451 -> 648355 | AW85: =データ一覧!M465 -> 983701 | BB85: その他 | BF85: =データ一覧!M479 -> 22698 | BK85: =データ一覧!M493 -> 0 | BP85: 名所・旧跡
A86: 数 | J86: 1,000万円以上 | O86: =データ一覧!M223 -> 69 | R86: 5.0 ha以上 | W86: =データ一覧!M239 -> 2026 | BP86: 文化財等
A87: ） | C87: 15歳以上の常雇い数 | J87: 農業に60日以上従事した世帯員、役員・構成員 （経営主を含む）の平均年齢 | Z87: ９ 議 員 ・ 職 員 | AN87: １４ 文 化 | AX87: ( | AY87: =データ一覧!$A$500 -> 3.3.31 | BC87: ただし図書館・公民館・児童館 | BK87: =データ一覧!$A$494 -> 3.4.1
A88: と | BD88: 宗教法人数 | BK88: =データ一覧!$A$502 -> 2.12.31 | BO88: ） | BP88: 特産物 | BU88: メロン、スイカ、とみつ金時（サツマイモ）、越のルビー、越前柿、芦原梨、剱岳そば
A89: 就 | J89: 農業に60日以上従事 | R89: 農業に150日以上従事 | Z89: 市 町 村 議 会 | AC89: 有権者数 | AE89: =データ一覧!$A$328 -> 3.9.1 | AG89: 市 町 村 議 会 | AJ89: 職 員 数 | AS89: 図書館 | AY89: 公 民 館 | BJ89: 社会教育学級講座
A90: 業 | C90: 区 分 | G90: 人 | J90: 区 分 | O90: 人 | R90: 区 分 | W90: 人 | Z90: 議 員 定 数 | AC90: 男 | AE90: 女 | AG90: 選 挙 投 票 率 | AJ90: 総 数 | AL90: 一般行政職 | AN90: 公 共 | AR90: 館 数 | AU90: 図書数 | AX90: 本 館 | BA90: 分 館 | BD90: 公 園 | BG90: 児童館 | BJ90: 学級講座数 | BM90: 受講者数 | BU90: 芦原温泉春まつり、蓮如忌、あわら市トリムマラソン、あわら北潟湖畔花菖蒲まつり、金津祭、あわら湯かけまつり、あわらカップカヌーポロ大会、あわら観月の夕べ、越前・加賀県境綱引き、あわら湯けむり映画祭、あわら灯源郷、剱岳かりんて祭、芦原芸妓新春舞踊
A91: 状 | C91: 総数 | G91: =データ一覧!M230 -> 63 | J91: 総数 | O91: =データ一覧!M224 -> 66 | R91: 総数 | W91: =データ一覧!M227 -> 64.6 | AB91: 人 | AD91: 人 | AF91: 人 | AI91: ％ | AK91: 人 | AM91: 人 | AN91: 施 設 数 | AS91: =データ一覧!M494 -> 2 | AU91: =データ一覧!M495 -> 168849 | AY91: =データ一覧!M496 -> 9 | BA91: =データ一覧!M497 -> 0 | BD91: =データ一覧!M498 -> 24 | BG91: =データ一覧!M499 -> - | BJ91: =データ一覧!M500 -> 0 | BM91: =データ一覧!M501 -> 0 | BP91: 年中行事
A92: 況 | C92: 男 | G92: =データ一覧!M231 -> 46 | J92: 男 | O92: =データ一覧!M225 -> 65.1 | R92: 男 | W92: =データ一覧!M228 -> 63.7 | AA92: =データ一覧!M325 -> 16 | AC92: =データ一覧!M328 -> 11046 | AE92: =データ一覧!M329 -> 12313 | AG92: =データ一覧!M327 -> 63.98 | AJ92: =データ一覧!M330 -> 296 | AL92: =データ一覧!M331 -> 207 | AN92: 宗 教 | AR92: 仏教系 | AU92: ｷﾘｽﾄ教系 | AX92: 神道諸派 | BA92: 公会堂・市民会館 | BG92: テレビ | BJ92: 衛星放送契約数
C93: 女 | G93: =データ一覧!M232 -> 17 | J93: 女 | O93: =データ一覧!M226 -> 68 | R93: 女 | W93: =データ一覧!M229 -> 66.4 | AG93: =データ一覧!M326 -> 3.6.20 | AN93: 法 人 数 | AR93: =データ一覧!M502 -> 65 | AU93: =データ一覧!M503 -> 2 | AX93: =データ一覧!M504 -> 95 | BA93: =データ一覧!M505 -> 1 | BG93: 等 | BJ93: =データ一覧!M506 -> 6822

Sheet 越前市
A1: =+データ一覧!N2 -> 0
A2: =+データ一覧!N5 -> 0
AC4: 【市章とそのいわれ】 | AD4: 越前（ECHIZEN）市の頭文字である「Ｅ」をモチーフに | AN4: 【位置および地勢】越前市は、福井県のほぼ中央に位置し、市の中央を北陸自動車道と | BS4: 所在地 | CA4: 〒915-8530
AD5: デザイン化しています。 | AO5: 国道８号が縦断し、関西・中央圏などの主要都市や福井市・敦賀市など周辺都市との | CA5: 越前市府中一丁目１３番７号
A6: =+データ一覧!N3 -> えちぜんし | AD6: ３つの太く流れるようなラインは、かつて越前の国府が | AO6: 交通の動脈となっている。
A7: =データ一覧!N6 -> 越前市 | AD7: 置かれて以来連綿と積み重ねられてきた歴史、伝統、 | AO7: また、両路線に交差するように国道417号や県道、主要地方道が横断している。 | BS7: 電話番号 | CA7: （０７７８）２２－３０００
AD8: 文化そして豊かな自然を、また、越前市の将来像である | AO8: 地形は、東部の越前中央山脈、西部の丹生山地、南部の「越前冨士」と呼ばれる
AD9: 「交流拠点都市」、「生活快適都市」、「伝統文化都市」 | AO9: 日野山など、４００～７００メートル級の山々に囲まれ、武生盆地を作っている。
AD10: を表現している。 | AO10: 武生盆地の中央を、県内三大河川のひとつ日野川が南北に貫流し、九頭竜川と名を | BS10: 最寄駅および距離 | CA10: ＪＲ北陸本線武生駅 下車１００ｍ
AO11: 変えて日本海に注いでいる。旧今立町内に流れる五つの川は、鞍谷川に合流した後、
Z12: 【市が掲げる標語】 環境・文化創造都市 | AO12: 福井市内で日野川に合流している。
BS13: ホームページ | CA13: http://www.city.echizen.lg.jp/
A15: １ 土 地 | Z15: =データ一覧!$A$240 -> 2年 | AA15: 産米収穫量 | AD15: 収 穫 量 | AG15: 作 付 面 積 | AJ15: 10a当たり収量 | BP15: １５ 労 働 | CE15: 27.10.1
AD16: =データ一覧!$N$240 -> 13300 | AF16: t | AG16: =データ一覧!$N$241 -> 2550 | AI16: ha | AJ16: =データ一覧!N242 -> 522 | AM16: kg | AN16: １０ 工 業 | BB16: =データ一覧!$A$332 -> 2.6.1（令和元年実績）
A17: 総 面 積 | K17: 固 定 資 産 概 要 調 書 に よ る 地 目 別 面 積 | AC17: 総 数 | AG17: うち 田 | AK17: うち 畑 | BW17: 産業別就業者数
C18: =データ一覧!$A$7 -> 3.10.1 | Q18: =データ一覧!$A$9 -> 3.1.1 | Z18: 耕 地 面 積 | AD18: ha | AG18: ha | AK18: ha | AO18: 産業分類 | AW18: 事業所数 | BB18: 従業者数 | BH18: 年間製造品出荷額等 | BQ18: 区 分 | BV18: 総 数 | CA18: 男 | CE18: 女 | CI18: 区 分 | CN18: 総 数 | CS18: 男 | CW18: 女
G19: ㎢ | K19: 総 数 | P19: う ち 田 | U19: う ち 畑 | Z19: =データ一覧!A243 -> 2.7.15 | AC19: =データ一覧!$N$243 -> 3620 | AF19: =データ一覧!$N$244 -> 3440 | AJ19: =データ一覧!$N$245 -> 180 | AZ19: 事業所 | BB19: 人 | BE19: 人 | BG19: 万円 | BN19: 万円 | BV19: 人 | CB19: 人 | CF19: 人 | CN19: 人 | CR19: 人 | CV19: 人
D20: =データ一覧!N7 -> 230.7 | O20: ha | T20: ha | Y20: ha | Z20: 農 業 生 産 物 | AD20: 作 付 面 積 | AG20: 収 穫 量 | AJ20: 10a当たり収量 | AO20: 総数 | AX20: =データ一覧!N332 -> 286 | BB20: =+データ一覧!N357 -> 16272 | BI20: =データ一覧!N382 -> 64886480 | BP20: 総 数 | BV20: =BZ20+CD20 -> 41593 | BZ20: =データ一覧!N507 -> 22823 | CD20: =データ一覧!N532 -> 18770
L21: =データ一覧!N9 -> 13154.8 | Q21: =データ一覧!N10 -> 3708.7 | V21: =データ一覧!N11 -> 333.3 | Z21: =データ一覧!$A$246 -> 2年中 | AD21: ha | AG21: t | AJ21: kg | AN21: 食料品 | AO21: 食料品 | AX21: =データ一覧!N333 -> 28 | BB21: =+データ一覧!N358 -> 881 | BI21: =データ一覧!N383 -> 1338482 | CI21: 卸売業,小売業 | CN21: =CR21+CV21 -> 6078 | CR21: =データ一覧!N520 -> 2788 | CV21: =データ一覧!N545 -> 3290
A22: 町 ･ 丁 ･ 大 字 | K22: う ち 宅 地 | P22: う ち 山 林 | U22: う ち 原 野 | Z22: 水 稲 | AD22: =データ一覧!N246 -> 2550 | AG22: =データ一覧!N247 -> 13300 | AJ22: =データ一覧!N248 -> 522 | AN22: 飲料・飼料 | AO22: 飲料・飼料 | AX22: =データ一覧!N334 -> 1 | BB22: =+データ一覧!N359 -> 7 | BI22: =データ一覧!N384 -> x | BP22: 第１次産業 | BV22: =BZ22+CD22 -> 1153 | BZ22: =データ一覧!N508 -> 821 | CD22: =データ一覧!N533 -> 332 | CI22: 金融業,保険業 | CN22: =CR22+CV22 -> 758 | CR22: =データ一覧!N521 -> 315 | CV22: =データ一覧!N546 -> 443
A23: 区 画 数 | H23: =データ一覧!N8 -> 253 | O23: ha | T23: ha | Y23: ha | Z23: 六 条 大 麦 | AD23: =データ一覧!N249 -> 256 | AG23: =データ一覧!N250 -> 686 | AJ23: =データ一覧!N251 -> 268 | AN23: 繊維 | AO23: 繊維 | AX23: =データ一覧!N335 -> 63 | BB23: =+データ一覧!N360 -> 1600 | BI23: =データ一覧!N385 -> 2265983 | BQ23: 農業 | BV23: =BZ23+CD23 -> 1097 | BZ23: =データ一覧!N509 -> 769 | CD23: =データ一覧!N534 -> 328 | CI23: 不動産業 | CN23: 307 | CR23: =データ一覧!N522 -> 155 | CV23: =データ一覧!N547 -> 152
A24: =データ一覧!$A$8 -> 2.4.1 | L24: =データ一覧!N12 -> 1937.8 | Q24: =データ一覧!N13 -> 4838.7 | V24: =データ一覧!N14 -> 107.9 | Z24: 大 豆 | AD24: =データ一覧!N252 -> 71 | AG24: =データ一覧!N253 -> 43 | AJ24: =データ一覧!N254 -> 60 | AN24: 衣服 | AO24: 木材 | AX24: =データ一覧!N336 -> 9 | BB24: =+データ一覧!N361 -> 164 | BI24: =データ一覧!N386 -> 267396 | BQ24: 林業 | BV24: 48 | BZ24: =データ一覧!N510 -> 45 | CD24: =データ一覧!N535 -> 3 | CI24: 学術研究 | CN24: 897 | CR24: =データ一覧!N523 -> 554 | CV24: =データ一覧!N548 -> 343
A25: ２ 世 帯 数 と 人 口 | AB25: 区 分 | AD25: 乳 用 牛 | AF25: 肉 用 牛 | AH25: 豚 | AJ25: 採卵鶏 | AL25: ブロイラー | AN25: 木材 | AO25: 家具 | AX25: =データ一覧!N337 -> 3 | BB25: =+データ一覧!N362 -> 122 | BI25: =データ一覧!N387 -> 293381 | BQ25: 漁業 | BV25: 8 | BZ25: =データ一覧!N511 -> 7 | CD25: =データ一覧!N536 -> 1 | CI25: 宿泊業,飲食ｻｰﾋﾞｽ | CN25: 1711 | CR25: =データ一覧!N524 -> 619 | CV25: =データ一覧!N549 -> 1092
Z26: 畜 産 | AB26: 飼養農家 | AD26: =データ一覧!$N$255 -> 0 | AF26: =データ一覧!$N$257 -> x | AH26: =データ一覧!$N$259 -> x | AJ26: =データ一覧!$N$261 -> 4 | AL26: =データ一覧!$N$263 -> 0 | AN26: 家具 | AO26: パルプ・紙 | AX26: =データ一覧!N338 -> 37 | BB26: =+データ一覧!N363 -> 609 | BI26: =データ一覧!N388 -> 1341258 | BP26: 第２次産業 | BV26: 17417 | BZ26: =データ一覧!N512 -> 11673 | CD26: =データ一覧!N537 -> 5744 | CI26: 生活関連ｻｰﾋﾞｽ業 | CN26: 1214 | CR26: =データ一覧!N525 -> 435 | CV26: =データ一覧!N550 -> 779
I27: 人 口 | U27: １世帯当 | W27: 人 口 | Z27: =データ一覧!$A$255 -> 3.3.31 | AB27: （戸） | AN27: パルプ・紙 | AO27: 印刷 | AX27: =データ一覧!N339 -> 9 | BB27: =+データ一覧!N364 -> 107 | BI27: =データ一覧!N389 -> 138918 | BQ27: 鉱業，採石業 | BV27: 10 | BZ27: =データ一覧!N513 -> 10 | CD27: =データ一覧!N538 -> 0 | CI27: 教育,学習支援業 | CN27: 1642 | CR27: =データ一覧!N526 -> 640 | CV27: =データ一覧!N551 -> 1002
A28: 区 分 | F28: 世帯数 | I28: 総 数 | L28: 男 | O28: 女 | R28: 男／女 | U28: たり人員 | W28: 密 度 | AB28: 頭 羽 | AD28: =データ一覧!$N$256 -> 0 | AF28: =データ一覧!$N$258 -> 12 | AH28: =データ一覧!$N$260 -> 1254 | AJ28: =データ一覧!$N$262 -> 46740 | AL28: =データ一覧!$N$264 -> 0 | AN28: 出版・印刷 | AO28: 化学 | AX28: =データ一覧!N340 -> 5 | BB28: =+データ一覧!N365 -> 450 | BI28: =データ一覧!N390 -> 2703466 | BQ28: 建設業 | BV28: 3147 | BZ28: =データ一覧!N514 -> 2623 | CD28: =データ一覧!N539 -> 524 | CI28: 医療，福祉 | CN28: 4460 | CR28: =データ一覧!N527 -> 787 | CV28: =データ一覧!N552 -> 3673
F29: 世 帯 | I29: 人 | L29: 人 | O29: 人 | S29: ％ | U29: 人 | W29: 人/㎢ | AN29: 化学 | AO29: 石油・石炭 | AX29: =データ一覧!N341 -> 1 | BB29: =+データ一覧!N366 -> 8 | BI29: =データ一覧!N391 -> x | BQ29: 製造業 | BV29: 14260 | BZ29: =データ一覧!N515 -> 9040 | CD29: =データ一覧!N540 -> 5220 | CI29: 複合サービス事業 | CN29: 430 | CR29: =データ一覧!N528 -> 252 | CV29: =データ一覧!N553 -> 178
A30: =データ一覧!$A$22 -> 2.10.1 | F30: =データ一覧!N22 -> 22678 | I30: =+L30+O30 -> 84897 | L30: =データ一覧!N24 -> 41272 | O30: =データ一覧!N25 -> 43625 | S30: =+L30/O30*100 -> 94.60630372 | U30: =データ一覧!N27 -> 3.74 | W30: =データ一覧!N21 -> 0 | Z30: ５ 林 業 | AN30: 石油・石炭 | AO30: プラスチック | AX30: =データ一覧!N342 -> 28 | BB30: =+データ一覧!N367 -> 1184 | BI30: =データ一覧!N392 -> 2928128 | BP30: 第３次産業 | BV30: 22259 | BZ30: =データ一覧!N516 -> 9904 | CD30: =データ一覧!N541 -> 12355 | CI30: サービス業 | CN30: 1747 | CR30: =データ一覧!N529 -> 1109 | CV30: =データ一覧!N554 -> 638
A31: =データ一覧!$A$29 -> 7.10.1 | F31: =データ一覧!N29 -> 24233 | I31: =+L31+O31 -> 85533 | L31: =データ一覧!N31 -> 41641 | O31: =データ一覧!N32 -> 43892 | S31: 94.87150278 | U31: =データ一覧!N34 -> 3.53 | W31: =データ一覧!N28 -> 0 | AN31: プラスチック | AO31: ゴム | AX31: =データ一覧!N343 -> 1 | BB31: =+データ一覧!N368 -> 122 | BI31: =データ一覧!N393 -> x | BQ31: 電気･ｶﾞｽ･水道業 | BV31: 153 | BZ31: =データ一覧!N517 -> 129 | CD31: =データ一覧!N542 -> 24 | CI31: 公務 | CN31: 1100 | CR31: =データ一覧!N530 -> 719 | CV31: =データ一覧!N555 -> 381
A32: =データ一覧!$A$36 -> 12.10.1 | F32: =データ一覧!N36 -> 26461 | I32: =+L32+O32 -> 87699 | L32: =データ一覧!N38 -> 42858 | O32: =データ一覧!N39 -> 44841 | S32: 95.5777079 | U32: =データ一覧!N41 -> 3.31 | W32: =データ一覧!N35 -> 0 | Z32: 森 林 総 面 積 | AH32: =データ一覧!$A$265 -> 3.3.31 | AN32: ゴム | AO32: 皮革 | AX32: =データ一覧!N344 -> 0 | BB32: =+データ一覧!N369 -> 0 | BI32: =データ一覧!N394 -> 0 | BQ32: 情報通信業 | BV32: 367 | BZ32: =データ一覧!N518 -> 262 | CD32: =データ一覧!N543 -> 105 | CH32: 分類不能の産業 | CN32: 764 | CR32: =データ一覧!N531 -> 425 | CV32: =データ一覧!N556 -> 339
A33: =+データ一覧!$A$43 -> 17.10.1 | F33: =データ一覧!N43 -> 27916 | I33: =+L33+O33 -> 87742 | L33: =データ一覧!N45 -> 42706 | O33: =データ一覧!N46 -> 45036 | S33: 94.82636113 | U33: =データ一覧!N48 -> 3.14 | W33: =データ一覧!N49 -> 380.2 | Z33: 森 林 の 構 成 | AN33: 皮革 | AO33: 窯業・土石 | AX33: =データ一覧!N345 -> 12 | BB33: =+データ一覧!N370 -> 466 | BI33: =データ一覧!N395 -> 1591563 | BQ33: 運輸業,郵便業 | BV33: =BZ33+CD33 -> 1395 | BZ33: =データ一覧!N519 -> 1140 | CD33: =データ一覧!N544 -> 255
A34: =+データ一覧!$A$50 -> 22.10.1 | F34: =+データ一覧!N50 -> 27601 | I34: =+L34+O34 -> 85614 | L34: =+データ一覧!N52 -> 41762 | O34: =+データ一覧!N53 -> 43852 | S34: 95.2339688 | U34: =+データ一覧!N55 -> 3.1 | W34: =+データ一覧!N56 -> 371 | AE34: ha | AL34: ha | AN34: 窯業・土石 | AO34: 鉄鋼 | AX34: =データ一覧!N346 -> 4 | BB34: =+データ一覧!N371 -> 95 | BI34: =データ一覧!N396 -> 513363 | BP34: １６ 社 会 福 祉 | CF34: =データ一覧!$A$557 -> 3.4.1
A35: =データ一覧!$A$57 -> 27.10.1 | F35: =データ一覧!N57 -> 27889 | I35: =データ一覧!N58 -> 81524 | L35: =データ一覧!N59 -> 39859 | O35: =データ一覧!N60 -> 41665 | S35: 95.66542662 | U35: =データ一覧!N62 -> 2.923159669 | W35: =データ一覧!N63 -> 353.4 | Z35: 総 数 | AD35: =データ一覧!N265 -> 14185.62 | AG35: 天然林 針葉樹 | AK35: =データ一覧!N268 -> 628.61 | AN35: 鉄鋼 | AO35: 非鉄金属 | AX35: =データ一覧!N347 -> 4 | BB35: =+データ一覧!N372 -> 274 | BI35: =データ一覧!N397 -> 2562113
A36: 令 2.10.1（国調） | F36: =データ一覧!N64 -> 29634 | I36: =データ一覧!N65 -> 80611 | L36: =データ一覧!N66 -> 39657 | O36: =データ一覧!N67 -> 40954 | S36: =+L36/O36*100 -> 96.83303218 | U36: =データ一覧!N72 -> 2.68 | W36: =データ一覧!N73 -> 348.0190724 | Z36: 人工林 針葉樹 | AD36: =データ一覧!N266 -> 7775.12 | AG36: 天然林 広葉樹 | AK36: =データ一覧!N269 -> 5465.82 | AN36: 非鉄金属 | AO36: 金属 | AX36: =データ一覧!N348 -> 26 | BB36: =+データ一覧!N373 -> 354 | BI36: =データ一覧!N398 -> 873449 | BQ36: 区分 | BX36: 施設数 | CC36: 収容定員 | CI36: 区分 | CP36: 施設数 | CU36: 収容定員
A37: 年 | C37: 区 | E37: 0歳 | H37: 15歳 | K37: 25歳 | N37: 35歳 | Q37: 45歳 | T37: 55歳 | W37: 65歳 | Z37: 人工林 広葉樹 | AD37: =データ一覧!N267 -> 59.06 | AG37: 竹 林 | AK37: =データ一覧!N270 -> 135.77 | AN37: 金属 | AO37: はん用機械 | AX37: =データ一覧!N349 -> 2 | BB37: =+データ一覧!N374 -> 28 | BI37: =データ一覧!N399 -> x | BP37: 生活保護施設 | BX37: =データ一覧!N557 -> 0 | CB37: =データ一覧!N570 -> 0 | CF37: 人 | CH37: 指定障害者支援施設 | CP37: =データ一覧!N563 -> 2 | CT37: =データ一覧!N576 -> 138 | CX37: 人
A38: 齢 | B38: 令 | F38: ～ | I38: ～ | L38: ～ | O38: ～ | R38: ～ | U38: ～ | AN38: 一般機械 | AO38: 生産用機械 | AX38: =データ一覧!N350 -> 9 | BB38: =+データ一覧!N375 -> 166 | BI38: =データ一覧!N400 -> 240970 | BP38: 地域福祉施設 | BX38: =データ一覧!N558 -> 0 | CB38: =データ一覧!N571 -> 0 | CH38: 指定相談支援事業所 | CP38: =データ一覧!N564 -> 2 | CT38: =データ一覧!N577 -> 0
A39: 階 | B39: =+LEFT(データ一覧!$A$83,1) -> 3 | C39: 分 | G39: 14歳 | J39: 24歳 | M39: 34歳 | P39: 44歳 | S39: 54歳 | V39: 64歳 | Y39: 以上 | Z39: 林 野 の 構 成 | AG39: 保 有 形 態 別 | AN39: 電気機械 | AO39: 業務用機械 | AX39: =データ一覧!N351 -> 3 | BB39: =+データ一覧!N376 -> 341 | BI39: =データ一覧!N401 -> 418519 | BP39: 老人福祉施設 | BX39: =データ一覧!N559 -> 20 | CB39: =データ一覧!N572 -> 496 | CH39: 児童福祉施設 | CP39: =データ一覧!N565 -> 56 | CT39: =データ一覧!N578 -> 3279
A40: 級 | B40: ・ | G40: 人 | J40: 人 | L40: 人 | O40: 人 | R40: 人 | U40: 人 | X40: 人 | AF40: ha | AL40: ha | AO40: 電子・デバイス | AX40: =データ一覧!N352 -> 5 | BB40: =+データ一覧!N377 -> 3979 | BI40: =データ一覧!N402 -> 15970131 | BP40: 介護保険施設 | BX40: =データ一覧!N560 -> 111 | CB40: =データ一覧!N573 -> 2281 | CH40: 母子福祉施設 | CP40: =データ一覧!N566 -> 0 | CT40: =データ一覧!N579 -> 0
A41: 別 | B41: =+MID(データ一覧!$A$83,3,2) -> 10 | C41: 総 数 | E41: =+E42+E43 -> 9950 | H41: =+H42+H43 -> 7154 | K41: =+K42+K43 -> 8448 | N41: =+N42+N43 -> 9462 | Q41: =+Q42+Q43 -> 11271 | T41: =+T42+T43 -> 9472 | W41: =+W42+W43 -> 23805 | Z41: 無立木地 伐採跡地 | AD41: =データ一覧!N271 -> 0 | AG41: 国 有 | AK41: =データ一覧!N273 -> 54.83 | AO41: 電気機械 | AX41: =データ一覧!N353 -> 17 | BB41: =+データ一覧!N378 -> 1429 | BI41: =データ一覧!N403 -> 13895363 | BP41: 障害者自立支援法施行前からの身体障害者福祉施設 | BX41: =データ一覧!N561 -> 0 | CB41: =データ一覧!N574 -> 0 | CH41: 婦人保護施設 | CP41: =データ一覧!N567 -> 0 | CT41: =データ一覧!N580 -> 0
